Workbook

Sheet GUIDE
B2: How to use the calculator
C5: Step 1
C7: To erase the information from a previous action press
C10: To visualise the calculator as full screen press | I10: and to go back press
C13: Fill in all the blank fields, all numbers should be entered as whole numbers (50000 and not 50.000 or 50,000)
C16: "Waste treatment option" refers to the type of waste treatment that would have been used if the food had been wasted, if you do not have this information, the right option is not provided, or more
C17: than one waste treatment type is used, select "other/unknown"
C19: When entering the amounts of food waste saved, remember to select the right unit of measure (this is the same for the entire list of food items)
C22: When entering number of leaflets please calculate them as A4-equivalent (one poster size A1 is equivalent to 8 A4)
C24: Step 2
C26: To see the results of the calculation press | I26: ATTENTION: Only press this button if you see no charts with the results
C29: To check the environmental savings for other impact categories select the desired one from the drop down list on the right
C32: Press | E32: to generate a PDF file with a summary of the evaluation

Sheet Calculator
B2: Food waste prevention calculator
B5: Action name | D5: Country | F5: Action type | K5: Action cost in € | Z5: =2 -> 2 | AA5: =Z5 -> 2
B6: Stop Food waste | D6: Spain | F6: Consumer behaviour change | H6: Households | J6: 100000 | L6: Other/Unknown
B9: Food waste prevented | H9: Financial costs and benefits | N9: Environmental assessment | Q9: Climate Change
H10: [euros] | N10: ="["&Q32&"]" -> [kg CO2 eq]
B11: Type | D11: Amount | F11: Select Unit *
B12: FRUIT | D12: 500
B13: VEGETABLES | D13: 500
B14: bread | D14: 100
H27: saved food | J27: avoided waste treatment | L27: action
N28: =Q9 -> Climate Change
H29: =Calculations!B55 -> Cost of action | J29: =Calculations!C55 -> -100000 | K29: € | N29: =Calculations!B73 -> Impact of action | P29: =Calculations!C80 -> -325.9605011 | Q29: =Calculations!D80 -> kg CO2 eq
H30: =Calculations!B56 -> Savings from avoided treatment | J30: =Calculations!C56 -> 170281.0326 | K30: € | N30: =Calculations!B74 -> Impact of avoided treatment | P30: =Calculations!C81 -> 690838.5294 | Q30: =Calculations!D81 -> kg CO2 eq
H31: =Calculations!B57 -> Savings from avoided food production | J31: =Calculations!C57 -> 300000 | K31: € | N31: =Calculations!B75 -> Impact of saved food | P31: =Calculations!C82 -> 1486913.413 | Q31: =Calculations!D82 -> kg CO2 eq
H32: Net economic benefits | J32: =Calculations!C58 -> 370281.0326 | K32: € | N32: Net environmental savings | P32: =Calculations!C83 -> 2177425.982 | Q32: =Calculations!D83 -> kg CO2 eq
B35: Value of food waste prevented | F35: Euros
B37: Action resources | D37: 1000
B39: Paper used (leaflets, letters) | D39: 500 | E39: Number (A4 equivalent)
B41: Transport distances | E41: km
B43: Electricity use | E43: kWh
E44: 300000

Sheet Calculations (hidden)
A3: Country | B3: =Calculator!D6 -> Spain
A4: Step of the FSC | B4: =Calculator!H6 -> Households
B5: =IF(OR(D51="Food redistribution/donations",D51="Gleaning"),"use",IF($B$4="Primary production","agriculture",IF($B$4="Processing and manufacturing","manufacturing",IF($B$4="Retail and distribution","retail","use")))) -> use
A7: Food waste prevented
F8: 2 | G8: 3 | H8: 4 | I8: 5 | J8: 6 | K8: 7 | L8: 8 | M8: 9 | N8: 10 | O8: 11 | P8: 12 | Q8: 13 | R8: 14 | S8: 15 | T8: 16 | U8: 17 | V8: 18
A9: Type | C9: Amount | D9: Amount (in kg) | E9: Cost (euros) | F9: IPCC GWP 100a | G9: Ozone depletion | H9: Human toxicity, non-cancer effects | I9: Human toxicity, cancer effects | J9: Particulate matter | K9: Ionizing radiation HH | L9: Photochemical ozone formation | M9: Acidification | N9: Terrestrial eutrophication | O9: Freshwater eutrophication | P9: Marine eutrophication | Q9: Freshwater ecotoxicity | R9: Land use | S9: Water scarcity | T9: ADP Fossil | U9: ADP (ultimate) | V9: Single point
A10: =IF(Calculator!B12=0,"",Calculator!B12) -> FRUIT | B10: =IF(A10="","",CONCATENATE(A10," ",$B$5)) -> FRUIT use | C10: =IF(Calculator!D12=0,"",Calculator!D12) -> 500 | D10: =IFERROR(IF($D$34=1,C10,IF($D$34=2,C10*10^3,IF($D$34=3,C10*10^9))),"") -> 500000 | E10: =IFERROR((INDEX(cost_table_p,VLOOKUP(B10,type_number,2,FALSE),VLOOKUP($B$3,country_number,2,FALSE))*D10),"") -> 866410.2564 | F10: =IFERROR(VLOOKUP($B10, impacts,F$8,FALSE)*$D10,"") -> 801817.8217 | G10: 6.644497828 | H10: 0.1832137505 | I10: 0.007540611547 | J10: 0.02931076471 | K10: 25434.23913 | L10: 1817.593445 | M10: 4610.62348 | N10: 16271.12568 | O10: 99.03066871 | P10: 2348.483264 | Q10: 13144551.89 | R10: 31471777.59 | S10: 4883406.041 | T10: 6048819.658 | U10: 1.594620603 | V10: 2.013925973e-06
A11: =IF(Calculator!B13=0,"",Calculator!B13) -> VEGETABLES | B11: VEGETABLES use | C11: =IF(Calculator!D13=0,"",Calculator!D13) -> 500 | D11: =IFERROR(IF($D$34=1,C11,IF($D$34=2,C11*10^3,IF($D$34=3,C11*10^9))),"") -> 500000 | E11: 645192.3077 | F11: 538212.9753 | G11: 1.405431752 | H11: 0.5411201999 | I11: 0.009044120269 | J11: 0.02924816457 | K11: 22415.9499 | L11: 1218.694286 | M11: 3861.261761 | N11: 13874.20068 | O11: 221.4078317 | P11: 2786.650912 | Q11: 7658565.722 | R11: 20971717.35 | S11: 881034.7492 | T11: 5671013.514 | U11: 2.242735145 | V11: 1.461417296e-06
A12: =IF(Calculator!B14=0,"",Calculator!B14) -> bread | B12: bread use | C12: =IF(Calculator!D14=0,"",Calculator!D14) -> 100 | D12: 100000 | E12: 279000 | F12: 146882.6159 | G12: 0.01135130818 | H12: 0.2887874148 | I12: 0.002721756255 | J12: 0.01501010088 | K12: 11092.12626 | L12: 403.9464691 | M12: 2128.935333 | N12: 8217.566955 | O12: 72.60245243 | P12: 1938.217343 | Q12: 2010811.456 | R12: 16030656.86 | S12: 158634.0058 | T12: 2054534.988 | U12: 0.2556632742 | V12: 5.735138818e-07
A13: =IF(Calculator!B15=0,"",Calculator!B15) ->  | C13: =IF(Calculator!D15=0,"",Calculator!D15) -> 
A14: =IF(Calculator!B16=0,"",Calculator!B16) ->  | C14: =IF(Calculator!D16=0,"",Calculator!D16) -> 
A15: =IF(Calculator!B17=0,"",Calculator!B17) ->  | C15: =IF(Calculator!D17=0,"",Calculator!D17) -> 
A16: =IF(Calculator!B18=0,"",Calculator!B18) ->  | C16: =IF(Calculator!D18=0,"",Calculator!D18) -> 
A17: =IF(Calculator!B19=0,"",Calculator!B19) ->  | C17: =IF(Calculator!D19=0,"",Calculator!D19) -> 
A18: =IF(Calculator!B20=0,"",Calculator!B20) ->  | C18: =IF(Calculator!D20=0,"",Calculator!D20) -> 
A19: =IF(Calculator!B21=0,"",Calculator!B21) ->  | C19: =IF(Calculator!D21=0,"",Calculator!D21) -> 
A20: =IF(Calculator!B22=0,"",Calculator!B22) ->  | C20: =IF(Calculator!D22=0,"",Calculator!D22) ->  | F20: =IFERROR(VLOOKUP($B20, impacts,F$8,FALSE)*$D20,"") -> 
A21: =IF(Calculator!B23=0,"",Calculator!B23) ->  | C21: =IF(Calculator!D23=0,"",Calculator!D23) -> 
A22: =IF(Calculator!B24=0,"",Calculator!B24) ->  | C22: =IF(Calculator!D24=0,"",Calculator!D24) -> 
A23: =IF(Calculator!B25=0,"",Calculator!B25) ->  | C23: =IF(Calculator!D25=0,"",Calculator!D25) -> 
A24: =IF(Calculator!B26=0,"",Calculator!B26) ->  | C24: =IF(Calculator!D26=0,"",Calculator!D26) -> 
A25: =IF(Calculator!B28=0,"",Calculator!B28) ->  | C25: =IF(Calculator!D28=0,"",Calculator!D28) -> 
A26: =IF(Calculator!B29=0,"",Calculator!B29) ->  | C26: =IF(Calculator!D29=0,"",Calculator!D29) -> 
A27: =IF(Calculator!B30=0,"",Calculator!B30) ->  | C27: =IF(Calculator!D30=0,"",Calculator!D30) -> 
A28: =IF(Calculator!B31=0,"",Calculator!B31) ->  | C28: =IF(Calculator!D31=0,"",Calculator!D31) -> 
A29: =IF(Calculator!B32=0,"",Calculator!B32) ->  | C29: =IF(Calculator!D32=0,"",Calculator!D32) -> 
A30: =IF(Calculator!B33=0,"",Calculator!B33) ->  | C30: =IF(Calculator!D33=0,"",Calculator!D33) -> 
A31: =IF(Calculator!B34=0,"",Calculator!B34) ->  | C31: =IF(Calculator!D34=0,"",Calculator!D34) -> 
A32: TOTAL | C32: =SUM(C10:C31) -> 1100 | D32: =SUM(D10:D31) -> 1100000 | E32: =SUM(E10:E31) -> 1790602.564 | F32: =SUM(F10:F31) -> 1486913.413 | G32: 8.061280888 | H32: 1.013121365 | I32: 0.01930648807 | J32: 0.07356903016 | K32: 58942.31528 | L32: 3440.234201 | M32: 10600.82057 | N32: 38362.89331 | O32: 393.0409528 | P32: 7073.351519 | Q32: 22813929.07 | R32: 68474151.8 | S32: 5923074.796 | T32: 13774368.16 | U32: 4.093019022 | V32: 4.048857151e-06
A34: Unit type | D34: =Calculator!AA5 -> 2
A35: Cost provided by user | B35: =Calculator!E44 -> 300000
A37: Waste management prevented | F37: 2 | G37: 3 | H37: 4 | I37: 5 | J37: 6 | K37: 7 | L37: 8 | M37: 9 | N37: 10 | O37: 11 | P37: 12 | Q37: 13 | R37: 14 | S37: 15 | T37: 16 | U37: 17 | V37: 18
E38: Waste treatment | F38: IPCC GWP 100a | G38: Ozone depletion | H38: Human toxicity, non-cancer effects | I38: Human toxicity, cancer effects | J38: Particulate matter | K38: Ionizing radiation HH | L38: Photochemical ozone formation | M38: Acidification | N38: Terrestrial eutrophication | O38: Freshwater eutrophication | P38: Marine eutrophication | Q38: Freshwater ecotoxicity | R38: Land use | S38: Water scarcity | T38: ADP Fossil | U38: ADP (ultimate) | V38: Single point
E39: Anaerobic Digestion | F39: ='EoL emissions'!B17 -> 460.15782 | G39: ='EoL emissions'!C17 -> 1.1346326e-05 | H39: ='EoL emissions'!D17 -> 0.00024619743 | I39: ='EoL emissions'!E17 -> 5.1754339e-05 | J39: ='EoL emissions'!F17 -> 1.9972316e-05 | K39: ='EoL emissions'!G17 -> 8.3372557 | L39: ='EoL emissions'!H17 -> 1.1706432 | M39: ='EoL emissions'!I17 -> 2.2231843 | N39: ='EoL emissions'!J17 -> 6.3885089 | O39: ='EoL emissions'!K17 -> 0.56859671 | P39: ='EoL emissions'!L17 -> 0.47271214 | Q39: ='EoL emissions'!M17 -> 13897.479 | R39: ='EoL emissions'!N17 -> 6480.7806 | S39: ='EoL emissions'!O17 -> 32.026542 | T39: ='EoL emissions'!P17 -> -2989.1056 | U39: ='EoL emissions'!Q17 -> 0.00022456932 | V39: ='EoL emissions'!R17 -> 1.327304682e-09
E40: Composting | F40: ='EoL emissions'!B18 -> 221.69807 | G40: ='EoL emissions'!C18 -> 2.0603889e-06 | H40: ='EoL emissions'!D18 -> -1.4292765e-06 | I40: ='EoL emissions'!E18 -> 1.4836581e-06 | J40: ='EoL emissions'!F18 -> 8.1002821e-06 | K40: ='EoL emissions'!G18 -> 1.2330446 | L40: ='EoL emissions'!H18 -> 0.34077319 | M40: ='EoL emissions'!I18 -> 1.7309969 | N40: ='EoL emissions'!J18 -> 8.0041385 | O40: ='EoL emissions'!K18 -> 0.00064056417 | P40: ='EoL emissions'!L18 -> 0.1458222 | Q40: ='EoL emissions'!M18 -> 0.1907032 | R40: ='EoL emissions'!N18 -> 329.38802 | S40: ='EoL emissions'!O18 -> -7.5158514 | T40: ='EoL emissions'!P18 -> 158.74387 | U40: ='EoL emissions'!Q18 -> -0.00014579331 | V40: ='EoL emissions'!R18 -> 1.808107178e-10
E41: Incineration | F41: ='EoL emissions'!B19 -> 34.317711 | G41: ='EoL emissions'!C19 -> 3.2650776e-06 | H41: ='EoL emissions'!D19 -> 8.6503023e-05 | I41: ='EoL emissions'!E19 -> 9.2031345e-06 | J41: ='EoL emissions'!F19 -> 2.7910843e-06 | K41: ='EoL emissions'!G19 -> 1.2653303 | L41: ='EoL emissions'!H19 -> 0.26453561 | M41: ='EoL emissions'!I19 -> 0.25654583 | N41: ='EoL emissions'!J19 -> 1.0507003 | O41: ='EoL emissions'!K19 -> 0.034332849 | P41: ='EoL emissions'!L19 -> 0.13402041 | Q41: ='EoL emissions'!M19 -> 2305.4808 | R41: ='EoL emissions'!N19 -> 223.96425 | S41: ='EoL emissions'!O19 -> 48.861493 | T41: ='EoL emissions'!P19 -> 265.39432 | U41: ='EoL emissions'!Q19 -> 4.6813947e-05 | V41: ='EoL emissions'!R19 -> 2.371349514e-10
E42: Landfill | F42: ='EoL emissions'!B20 -> 761.69718 | G42: ='EoL emissions'!C20 -> 3.7962566e-06 | H42: ='EoL emissions'!D20 -> 0.001507635 | I42: ='EoL emissions'!E20 -> 2.2767506e-05 | J42: ='EoL emissions'!F20 -> 2.3223084e-06 | K42: ='EoL emissions'!G20 -> 2.4432419 | L42: ='EoL emissions'!H20 -> 0.35127434 | M42: ='EoL emissions'!I20 -> 0.19281329 | N42: ='EoL emissions'!J20 -> 0.48159306 | O42: ='EoL emissions'!K20 -> 0.01716838 | P42: ='EoL emissions'!L20 -> 1.8076468 | Q42: ='EoL emissions'!M20 -> 112151.89 | R42: ='EoL emissions'!N20 -> 982.66324 | S42: ='EoL emissions'!O20 -> 12.995402 | T42: ='EoL emissions'!P20 -> 388.87445 | U42: ='EoL emissions'!Q20 -> 2.1829915e-05 | V42: ='EoL emissions'!R20 -> 4.044094275e-09
E43: Other/Unknown use | F43: =IF($B$3="Unknown",'EoL emissions'!B21,VLOOKUP($B$3,treat_impact_UU,F$37,FALSE)) -> 628.0350267 | G43: =IF($B$3="Unknown",'EoL emissions'!C21,VLOOKUP($B$3,treat_impact_UU,G$37,FALSE)) -> 3.808465172e-06 | H43: =IF($B$3="Unknown",'EoL emissions'!D21,VLOOKUP($B$3,treat_impact_UU,H$37,FALSE)) -> 0.001186845176 | I43: =IF($B$3="Unknown",'EoL emissions'!E21,VLOOKUP($B$3,treat_impact_UU,I$37,FALSE)) -> 2.030333615e-05 | J43: =IF($B$3="Unknown",'EoL emissions'!F21,VLOOKUP($B$3,treat_impact_UU,J$37,FALSE)) -> 3.397810407e-06 | K43: =IF($B$3="Unknown",'EoL emissions'!G21,VLOOKUP($B$3,treat_impact_UU,K$37,FALSE)) -> 2.384380351 | L43: =IF($B$3="Unknown",'EoL emissions'!H21,VLOOKUP($B$3,treat_impact_UU,L$37,FALSE)) -> 0.3651521757 | M43: =IF($B$3="Unknown",'EoL emissions'!I21,VLOOKUP($B$3,treat_impact_UU,M$37,FALSE)) -> 0.3944060193 | N43: =IF($B$3="Unknown",'EoL emissions'!J21,VLOOKUP($B$3,treat_impact_UU,N$37,FALSE)) -> 1.376917548 | O43: =IF($B$3="Unknown",'EoL emissions'!K21,VLOOKUP($B$3,treat_impact_UU,O$37,FALSE)) -> 0.03370630861 | P43: =IF($B$3="Unknown",'EoL emissions'!L21,VLOOKUP($B$3,treat_impact_UU,P$37,FALSE)) -> 1.444424066 | Q43: =IF($B$3="Unknown",'EoL emissions'!M21,VLOOKUP($B$3,treat_impact_UU,Q$37,FALSE)) -> 87729.44579 | R43: =IF($B$3="Unknown",'EoL emissions'!N21,VLOOKUP($B$3,treat_impact_UU,R$37,FALSE)) -> 1005.744183 | S43: =IF($B$3="Unknown",'EoL emissions'!O21,VLOOKUP($B$3,treat_impact_UU,S$37,FALSE)) -> 15.56214253 | T43: =IF($B$3="Unknown",'EoL emissions'!P21,VLOOKUP($B$3,treat_impact_UU,T$37,FALSE)) -> 256.4700234 | U43: =IF($B$3="Unknown",'EoL emissions'!Q21,VLOOKUP($B$3,treat_impact_UU,U$37,FALSE)) -> 1.568661712e-05 | V43: =IF($B$3="Unknown",'EoL emissions'!R21,VLOOKUP($B$3,treat_impact_UU,V$37,FALSE)) -> 3.219939423e-09
E44: Other/Unknown | F44: =IF($B$3="Unknown",'EoL emissions'!B22,VLOOKUP($B$3,treat_impact_UP,F$37,FALSE)) -> 352.2935845 | G44: =IF($B$3="Unknown",'EoL emissions'!C22,VLOOKUP($B$3,treat_impact_UP,G$37,FALSE)) -> 4.260988036e-06 | H44: =IF($B$3="Unknown",'EoL emissions'!D22,VLOOKUP($B$3,treat_impact_UP,H$37,FALSE)) -> 0.0002929659228 | I44: =IF($B$3="Unknown",'EoL emissions'!E22,VLOOKUP($B$3,treat_impact_UP,I$37,FALSE)) -> 1.533032848e-05 | J44: =IF($B$3="Unknown",'EoL emissions'!F22,VLOOKUP($B$3,treat_impact_UP,J$37,FALSE)) -> 9.466486946e-06 | K44: =IF($B$3="Unknown",'EoL emissions'!G22,VLOOKUP($B$3,treat_impact_UP,K$37,FALSE)) -> 2.876186769 | L44: =IF($B$3="Unknown",'EoL emissions'!H22,VLOOKUP($B$3,treat_impact_UP,L$37,FALSE)) -> 0.5098093438 | M44: =IF($B$3="Unknown",'EoL emissions'!I22,VLOOKUP($B$3,treat_impact_UP,M$37,FALSE)) -> 1.549180555 | N44: =IF($B$3="Unknown",'EoL emissions'!J22,VLOOKUP($B$3,treat_impact_UP,N$37,FALSE)) -> 6.301015733 | O44: =IF($B$3="Unknown",'EoL emissions'!K22,VLOOKUP($B$3,treat_impact_UP,O$37,FALSE)) -> 0.1199046661 | P44: =IF($B$3="Unknown",'EoL emissions'!L22,VLOOKUP($B$3,treat_impact_UP,P$37,FALSE)) -> 0.4784363644 | Q44: =IF($B$3="Unknown",'EoL emissions'!M22,VLOOKUP($B$3,treat_impact_UP,Q$37,FALSE)) -> 20858.05083 | R44: =IF($B$3="Unknown",'EoL emissions'!N22,VLOOKUP($B$3,treat_impact_UP,R$37,FALSE)) -> 1685.696894 | S44: =IF($B$3="Unknown",'EoL emissions'!O22,VLOOKUP($B$3,treat_impact_UP,S$37,FALSE)) -> 5.198642309 | T44: =IF($B$3="Unknown",'EoL emissions'!P22,VLOOKUP($B$3,treat_impact_UP,T$37,FALSE)) -> -443.6116201 | U44: =IF($B$3="Unknown",'EoL emissions'!Q22,VLOOKUP($B$3,treat_impact_UP,U$37,FALSE)) -> -3.875782726e-05 | V44: =IF($B$3="Unknown",'EoL emissions'!R22,VLOOKUP($B$3,treat_impact_UP,V$37,FALSE)) -> 1.034892526e-09
F45: 2 | G45: 3 | H45: 4 | I45: 5 | J45: 6 | K45: 7 | L45: 8 | M45: 9 | N45: 10 | O45: 11 | P45: 12 | Q45: 13 | R45: 14 | S45: 15 | T45: 16 | U45: 17 | V45: 18
B46: Waste treatment | D46: Amount (in tonnes) | E46: Cost (euros) | F46: IPCC GWP 100a | G46: Ozone depletion | H46: Human toxicity, non-cancer effects | I46: Human toxicity, cancer effects | J46: Particulate matter | K46: Ionizing radiation HH | L46: Photochemical ozone formation | M46: Acidification | N46: Terrestrial eutrophication | O46: Freshwater eutrophication | P46: Marine eutrophication | Q46: Freshwater ecotoxicity | R46: Land use | S46: Water scarcity | T46: ADP Fossil | U46: ADP (ultimate) | V46: Single point
B47: =Calculator!L6 -> Other/Unknown | C47: =IF((AND(B47="Other/Unknown",B5="use")),"Other/Unknown use",B47) -> Other/Unknown use | D47: =D32*10^-3 -> 1100 | E47: =IF(D51="Gleaning",0,D47*VLOOKUP(C47,treatment_cost,2,FALSE)) -> 170281.0326 | F47: =IF($D$51="Gleaning",0,VLOOKUP($C$47,treat_impacts_CS,F45,FALSE)*$D$47) -> 690838.5294 | G47: 0.004189311689 | H47: 1.305529694 | I47: 0.02233366976 | J47: 0.003737591447 | K47: 2622.818386 | L47: 401.6673932 | M47: 433.8466213 | N47: 1514.609302 | O47: 37.07693948 | P47: 1588.866472 | Q47: 96502390.37 | R47: 1106318.601 | S47: 17118.35678 | T47: 282117.0257 | U47: 0.01725527883 | V47: 3.541933365e-06
A49: ACTION impacts/costs
D50: Action type | E50: Cost (euros) | F50: IPCC GWP 100a | G50: Ozone depletion | H50: Human toxicity, non-cancer effects | I50: Human toxicity, cancer effects | J50: Particulate matter | K50: Ionizing radiation HH | L50: Photochemical ozone formation | M50: Acidification | N50: Terrestrial eutrophication | O50: Freshwater eutrophication | P50: Marine eutrophication | Q50: Freshwater ecotoxicity | R50: Land use | S50: Water scarcity | T50: ADP Fossil | U50: ADP (ultimate) | V50: Single point
D51: =Calculator!F6 -> Consumer behaviour change | E51: =Calculator!J6 -> 100000 | F51: ='Action impacts'!B25 -> 325.9605011 | G51: ='Action impacts'!C25 -> 4.746638073e-05 | H51: ='Action impacts'!D25 -> 3.401451326e-05 | I51: ='Action impacts'!E25 -> 5.227547274e-06 | J51: ='Action impacts'!F25 -> 2.212617173e-05 | K51: ='Action impacts'!G25 -> 18.599148 | L51: ='Action impacts'!H25 -> 1.081251386 | M51: ='Action impacts'!I25 -> 1.693042504 | N51: ='Action impacts'!J25 -> 3.441342086 | O51: ='Action impacts'!K25 -> 0.0178480861 | P51: ='Action impacts'!L25 -> 0.3184203728 | Q51: ='Action impacts'!M25 -> 615.3102608 | R51: ='Action impacts'!N25 -> 12843.18756 | S51: ='Action impacts'!O25 -> 109.9233172 | T51: ='Action impacts'!P25 -> 5090.992937 | U51: ='Action impacts'!Q25 -> 0.002953093974 | V51: ='Action impacts'!R25 -> 5.777132719e-10
A54: Results
B55: Cost of action | C55: =-E51 -> -100000
B56: Savings from avoided treatment | C56: =E47 -> 170281.0326
B57: Savings from avoided food production | C57: =IF(B35=0,E32*VLOOKUP(Calculator!$F$6,category,2,FALSE),B35) -> 300000
B58: Total net savings | C58: =C57+C56+C55 -> 370281.0326
N64: €
C72: Climate Change | D72: Ozone depletion | E72: Human toxicity, non-cancer effects | F72: Human toxicity, cancer effects | G72: Particulate matter | H72: Ionizing radiation, human health | I72: Photochemical ozone formation, human health | J72: Acidification | K72: Terrestrial eutrophication | L72: Freshwater eutrophication | M72: Marine eutrophication | N72: Freshwater ecotoxicity | O72: Land use | P72: Water use | Q72: Resource use, fossil | R72: Resource use, minerals and metals | S72: Single Point
B73: Impact of action | C73: =-F51 -> -325.9605011 | D73: -4.746638073e-05 | E73: -3.401451326e-05 | F73: -5.227547274e-06 | G73: -2.212617173e-05 | H73: -18.599148 | I73: -1.081251386 | J73: -1.693042504 | K73: -3.441342086 | L73: -0.0178480861 | M73: -0.3184203728 | N73: -615.3102608 | O73: -12843.18756 | P73: -109.9233172 | Q73: -5090.992937 | R73: -0.002953093974 | S73: -5.777132719e-10
B74: Impact of avoided treatment | C74: =F47 -> 690838.5294 | D74: =G47 -> 0.004189311689 | E74: 1.305529694 | F74: 0.02233366976 | G74: 0.003737591447 | H74: 2622.818386 | I74: 401.6673932 | J74: 433.8466213 | K74: 1514.609302 | L74: 37.07693948 | M74: 1588.866472 | N74: 96502390.37 | O74: 1106318.601 | P74: 17118.35678 | Q74: 282117.0257 | R74: 0.01725527883 | S74: 3.541933365e-06
B75: Impact of saved food | C75: =F32*VLOOKUP(Calculator!$F$6,category,2,FALSE) -> 1486913.413 | D75: =G32*VLOOKUP(Calculator!$F$6,category,2,FALSE) -> 8.061280888 | E75: =H32*VLOOKUP(Calculator!$F$6,category,2,FALSE) -> 1.013121365 | F75: =I32*VLOOKUP(Calculator!$F$6,category,2,FALSE) -> 0.01930648807 | G75: =J32*VLOOKUP(Calculator!$F$6,category,2,FALSE) -> 0.07356903016 | H75: =K32*VLOOKUP(Calculator!$F$6,category,2,FALSE) -> 58942.31528 | I75: =L32*VLOOKUP(Calculator!$F$6,category,2,FALSE) -> 3440.234201 | J75: =M32*VLOOKUP(Calculator!$F$6,category,2,FALSE) -> 10600.82057 | K75: =N32*VLOOKUP(Calculator!$F$6,category,2,FALSE) -> 38362.89331 | L75: =O32*VLOOKUP(Calculator!$F$6,category,2,FALSE) -> 393.0409528 | M75: =P32*VLOOKUP(Calculator!$F$6,category,2,FALSE) -> 7073.351519 | N75: =Q32*VLOOKUP(Calculator!$F$6,category,2,FALSE) -> 22813929.07 | O75: =R32*VLOOKUP(Calculator!$F$6,category,2,FALSE) -> 68474151.8 | P75: =S32*VLOOKUP(Calculator!$F$6,category,2,FALSE) -> 5923074.796 | Q75: =T32*VLOOKUP(Calculator!$F$6,category,2,FALSE) -> 13774368.16 | R75: =U32*VLOOKUP(Calculator!$F$6,category,2,FALSE) -> 4.093019022 | S75: =V32*VLOOKUP(Calculator!$F$6,category,2,FALSE) -> 4.048857151e-06
B76: Total | C76: =SUM(C73:C75) -> 2177425.982 | D76: =SUM(D73:D75) -> 8.065422733 | E76: 2.318617044 | F76: 0.04163493029 | G76: 0.07728449544 | H76: 61546.53452 | I76: 3840.820343 | J76: 11032.97415 | K76: 39874.06127 | L76: 430.1000442 | M76: 8661.899571 | N76: 119315704.1 | O76: 69567627.21 | P76: 5940083.229 | Q76: 14051394.19 | R76: 4.107321207 | S76: =SUM(S73:S75) -> 7.590212803e-06
B79: Impact category | C79: =Calculator!Q9 -> Climate Change
B80: Impact of action | C80: =HLOOKUP($C$79,$B$72:$S$76,2,FALSE) -> -325.9605011 | D80: =VLOOKUP($C$79,units,2,FALSE) -> kg CO2 eq
B81: Impact of avoided treatment | C81: =HLOOKUP($C$79,$B$72:$S$76,3,FALSE) -> 690838.5294 | D81: =VLOOKUP($C$79,units,2,FALSE) -> kg CO2 eq
B82: Impact of saved food | C82: =HLOOKUP($C$79,$B$72:$S$76,4,FALSE) -> 1486913.413 | D82: =VLOOKUP($C$79,units,2,FALSE) -> kg CO2 eq
B83: Total | C83: =HLOOKUP($C$79,$B$72:$S$76,5,FALSE) -> 2177425.982 | D83: =VLOOKUP($C$79,units,2,FALSE) -> kg CO2 eq
B97: Impact category | C97: Single Point
B98: Impact of action | C98: =HLOOKUP($C$97,$B$72:$S$76,2,FALSE) -> -5.777132719e-10 | D98: =VLOOKUP($C$97,units,2,FALSE) -> Pt
B99: Impact of avoided treatment | C99: =HLOOKUP($C$97,$B$72:$S$76,3,FALSE) -> 3.541933365e-06 | D99: =VLOOKUP($C$97,units,2,FALSE) -> Pt
B100: Impact of saved food | C100: =HLOOKUP($C$97,$B$72:$S$76,4,FALSE) -> 4.048857151e-06 | D100: =VLOOKUP($C$97,units,2,FALSE) -> Pt
B101: Total | C101: =HLOOKUP($C$97,$B$72:$S$76,5,FALSE) -> 7.590212803e-06 | D101: =VLOOKUP($C$97,units,2,FALSE) -> Pt
B115: Impact category | C115: Climate Change | D115: Climate change [kgCO2eq]
B116: Impact of action | C116: =HLOOKUP($C$115,$B$72:$S$76,2,FALSE) -> -325.9605011
B117: Impact of avoided treatment | C117: =HLOOKUP($C$115,$B$72:$S$76,3,FALSE) -> 690838.5294
B118: Impact of saved food | C118: =HLOOKUP($C$115,$B$72:$S$76,4,FALSE) -> 1486913.413
B119: Total | C119: =HLOOKUP($C$115,$B$72:$S$76,5,FALSE) -> 2177425.982
B121: Impact category | C121: Ozone depletion | D121: Ozone depletion [kg CFC-11eq]
B122: Impact of action | C122: =HLOOKUP(C121,$B$72:$S$76,2,FALSE) -> -4.746638073e-05
B123: Impact of avoided treatment | C123: =HLOOKUP(C121,$B$72:$S$76,3,FALSE) -> 0.004189311689
B124: Impact of saved food | C124: =HLOOKUP(C121,$B$72:$S$76,4,FALSE) -> 8.061280888
B125: Total | C125: =HLOOKUP(C121,$B$72:$S$76,5,FALSE) -> 8.065422733
B127: Impact category | C127: Human toxicity, non-cancer effects | D127: Human toxicity, non-cancer effects [CTUh]
B128: Impact of action | C128: =HLOOKUP(C127,$B$72:$S$76,2,FALSE) -> -3.401451326e-05
B129: Impact of avoided treatment | C129: =HLOOKUP(C127,$B$72:$S$76,3,FALSE) -> 1.305529694
B130: Impact of saved food | C130: =HLOOKUP(C127,$B$72:$S$76,4,FALSE) -> 1.013121365
B131: Total | C131: =HLOOKUP(C127,$B$72:$S$76,5,FALSE) -> 2.318617044
B133: Impact category | C133: Human toxicity, cancer effects | D133: Human toxicity, cancer effects [CTUh]
B134: Impact of action | C134: =HLOOKUP(C133,$B$72:$S$76,2,FALSE) -> -5.227547274e-06
B135: Impact of avoided treatment | C135: =HLOOKUP(C133,$B$72:$S$76,3,FALSE) -> 0.02233366976
B136: Impact of saved food | C136: =HLOOKUP(C133,$B$72:$S$76,4,FALSE) -> 0.01930648807
B137: Total | C137: =HLOOKUP(C133,$B$72:$S$76,5,FALSE) -> 0.04163493029
B139: Impact category | C139: Particulate matter | D139: Particulate matter [diseases incidences]
B140: Impact of action | C140: =HLOOKUP(C139,$B$72:$S$76,2,FALSE) -> -2.212617173e-05
B141: Impact of avoided treatment | C141: =HLOOKUP(C139,$B$72:$S$76,3,FALSE) -> 0.003737591447
B142: Impact of saved food | C142: =HLOOKUP(C139,$B$72:$S$76,4,FALSE) -> 0.07356903016
B143: Total | C143: =HLOOKUP(C139,$B$72:$S$76,5,FALSE) -> 0.07728449544
B145: Impact category | C145: Ionizing radiation, human health | D145: Ionizing radiation, human health [kBq U235]
B146: Impact of action | C146: =HLOOKUP(C145,$B$72:$S$76,2,FALSE) -> -18.599148
B147: Impact of avoided treatment | C147: =HLOOKUP(C145,$B$72:$S$76,3,FALSE) -> 2622.818386
B148: Impact of saved food | C148: =HLOOKUP(C145,$B$72:$S$76,4,FALSE) -> 58942.31528
B149: Total | C149: =HLOOKUP(C145,$B$72:$S$76,5,FALSE) -> 61546.53452
B151: Impact category | C151: Photochemical ozone formation, human health | D151: Photochemical ozone formation, human health [kg NMVOC eq]
B152: Impact of action | C152: =HLOOKUP(C151,$B$72:$S$76,2,FALSE) -> -1.081251386
B153: Impact of avoided treatment | C153: =HLOOKUP(C151,$B$72:$S$76,3,FALSE) -> 401.6673932
B154: Impact of saved food | C154: =HLOOKUP(C151,$B$72:$S$76,4,FALSE) -> 3440.234201
B155: Total | C155: =HLOOKUP(C151,$B$72:$S$76,5,FALSE) -> 3840.820343
B157: Impact category | C157: Acidification | D157: Acidification [mol H+ eq]
B158: Impact of action | C158: =HLOOKUP(C157,$B$72:$S$76,2,FALSE) -> -1.693042504
B159: Impact of avoided treatment | C159: =HLOOKUP(C157,$B$72:$S$76,3,FALSE) -> 433.8466213
B160: Impact of saved food | C160: =HLOOKUP(C157,$B$72:$S$76,4,FALSE) -> 10600.82057
B161: Total | C161: =HLOOKUP(C157,$B$72:$S$76,5,FALSE) -> 11032.97415
B163: Impact category | C163: Terrestrial eutrophication | D163: Terrestrial eutrophication [mol N eq]
B164: Impact of action | C164: =HLOOKUP(C163,$B$72:$S$76,2,FALSE) -> -3.441342086
B165: Impact of avoided treatment | C165: =HLOOKUP(C163,$B$72:$S$76,3,FALSE) -> 1514.609302
B166: Impact of saved food | C166: =HLOOKUP(C163,$B$72:$S$76,4,FALSE) -> 38362.89331
B167: Total | C167: =HLOOKUP(C163,$B$72:$S$76,5,FALSE) -> 39874.06127
B169: Impact category | C169: Freshwater eutrophication | D169: Freshwater eutrophication [kg P eq]
B170: Impact of action | C170: =HLOOKUP(C169,$B$72:$S$76,2,FALSE) -> -0.0178480861
B171: Impact of avoided treatment | C171: =HLOOKUP(C169,$B$72:$S$76,3,FALSE) -> 37.07693948
B172: Impact of saved food | C172: =HLOOKUP(C169,$B$72:$S$76,4,FALSE) -> 393.0409528
B173: Total | C173: =HLOOKUP(C169,$B$72:$S$76,5,FALSE) -> 430.1000442
B175: Impact category | C175: Marine eutrophication | D175: Marine eutrophication [kg N eq]
B176: Impact of action | C176: =HLOOKUP(C175,$B$72:$S$76,2,FALSE) -> -0.3184203728
B177: Impact of avoided treatment | C177: =HLOOKUP(C175,$B$72:$S$76,3,FALSE) -> 1588.866472
B178: Impact of saved food | C178: =HLOOKUP(C175,$B$72:$S$76,4,FALSE) -> 7073.351519
B179: Total | C179: =HLOOKUP(C175,$B$72:$S$76,5,FALSE) -> 8661.899571
B181: Impact category | C181: Freshwater ecotoxicity | D181: Freshwater ecotoxicity [CTUe]
B182: Impact of action | C182: =HLOOKUP(C181,$B$72:$S$76,2,FALSE) -> -615.3102608
B183: Impact of avoided treatment | C183: =HLOOKUP(C181,$B$72:$S$76,3,FALSE) -> 96502390.37
B184: Impact of saved food | C184: =HLOOKUP(C181,$B$72:$S$76,4,FALSE) -> 22813929.07
B185: Total | C185: =HLOOKUP(C181,$B$72:$S$76,5,FALSE) -> 119315704.1
B187: Impact category | C187: Land use | D187: Land use [Pt]
B188: Impact of action | C188: =HLOOKUP(C187,$B$72:$S$76,2,FALSE) -> -12843.18756
B189: Impact of avoided treatment | C189: =HLOOKUP(C187,$B$72:$S$76,3,FALSE) -> 1106318.601
B190: Impact of saved food | C190: =HLOOKUP(C187,$B$72:$S$76,4,FALSE) -> 68474151.8
B191: Total | C191: =HLOOKUP(C187,$B$72:$S$76,5,FALSE) -> 69567627.21
B193: Impact category | C193: Water use | D193: Water use [m3 world eq. deprived]
B194: Impact of action | C194: =HLOOKUP(C193,$B$72:$S$76,2,FALSE) -> -109.9233172
B195: Impact of avoided treatment | C195: =HLOOKUP(C193,$B$72:$S$76,3,FALSE) -> 17118.35678
B196: Impact of saved food | C196: =HLOOKUP(C193,$B$72:$S$76,4,FALSE) -> 5923074.796
B197: Total | C197: =HLOOKUP(C193,$B$72:$S$76,5,FALSE) -> 5940083.229
B199: Impact category | C199: Resource use, fossil | D199: Resource use, fossil [MJ]
B200: Impact of action | C200: =HLOOKUP(C199,$B$72:$S$76,2,FALSE) -> -5090.992937
B201: Impact of avoided treatment | C201: =HLOOKUP(C199,$B$72:$S$76,3,FALSE) -> 282117.0257
B202: Impact of saved food | C202: =HLOOKUP(C199,$B$72:$S$76,4,FALSE) -> 13774368.16
B203: Total | C203: =HLOOKUP(C199,$B$72:$S$76,5,FALSE) -> 14051394.19
B205: Impact category | C205: Resource use, minerals and metals | D205: Resource use, minerals and metals [kg Sb eq]
B206: Impact of action | C206: =HLOOKUP(C205,$B$72:$S$76,2,FALSE) -> -0.002953093974
B207: Impact of avoided treatment | C207: =HLOOKUP(C205,$B$72:$S$76,3,FALSE) -> 0.01725527883
B208: Impact of saved food | C208: =HLOOKUP(C205,$B$72:$S$76,4,FALSE) -> 4.093019022
B209: Total | C209: =HLOOKUP(C205,$B$72:$S$76,5,FALSE) -> 4.107321207

Sheet Impacts per FSC stage (hidden)
D1: 5 | E1: 6 | F1: 7 | G1: 8 | H1: 9 | I1: 10 | J1: 11 | K1: 12 | L1: 13 | M1: 14 | N1: 15 | O1: 16 | P1: 17 | Q1: 18 | R1: 19 | S1: 20
D2: IPCC GWP 100a | E2: Ozone depletion | F2: Human toxicity, non-cancer effects | G2: Human toxicity, cancer effects | H2: Particulate matter | I2: Ionizing radiation HH | J2: Photochemical ozone formation | K2: Acidification | L2: Terrestrial eutrophication | M2: Freshwater eutrophication | N2: Marine eutrophication | O2: Freshwater ecotoxicity | P2: Land use | Q2: Water scarcity | R2: ADP Fossil | S2: ADP (ultimate) | T2: Single point
D3: kg CO2 eq | E3: kg CFC11 eq | F3: CTUh | G3: CTUh | H3: Death | I3: kBq U235 eq | J3: kg NMVOC eq | K3: molc H+ eq | L3: molc N eq | M3: kg P eq | N3: kg N eq | O3: CTUe | P3: Pt | Q3: m3 water eq | R3: MJ | S3: kg Sb eq
A4: Meat | B4: PORK
A5: PORK | B5: agriculture | C5: =CONCATENATE(A5," ", B5) -> PORK agriculture | D5: =VLOOKUP($A5,primary,D$1,FALSE) -> 6.11 | E5: 3.42e-08 | F5: 2.21e-06 | G5: 6.99e-08 | H5: 9.07e-07 | I5: 0.0554 | J5: 0.00755 | K5: 0.126 | L5: 0.559 | M5: 0.00133 | N5: 0.0392 | O5: 16.8 | P5: 786 | Q5: 1.21 | R5: 20.9 | S5: 1.81e-07 | T5: =(D5/$D$239)*$D$240+(E5/$E$239)*$E$240+(F5/$F$239)*$F$240+(G5/$G$239)*$G$240+(H5/$H$239)*$H$240+(I5/$I$239)*$I$240+(J5/$J$239)*$J$240+(K5/$K$239)*$K$240+(L5/$L$239)*$L$240+(M5/$M$239)*$M$240+(N5/$N$239)*$N$240+(O5/$O$239)*$O$240+(P5/$P$239)*$P$240+(Q5/$Q$239)*$Q$240+(R5/$R$239)*$R$240+(S5/$S$239)*$S$240 -> 1.277948499e-11
A6: PORK | B6: manufacturing | C6: =CONCATENATE(A6," ", B6) -> PORK manufacturing | D6: =VLOOKUP($A6,manufacturing,D$1,FALSE) -> 6.842392378 | E6: 8.851715145e-07 | F6: 2.358074394e-06 | G6: 7.526574504e-08 | H6: 9.65557122e-07 | I6: 0.07417703648 | J6: 0.008777357497 | K6: 0.1339054775 | L6: 0.5931271666 | M6: 0.001407691107 | N6: 0.04159634215 | O6: 19.25640886 | P6: 828.7440108 | Q6: 1.488787311 | R6: 25.68857188 | S6: 3.271089024e-07 | T6: =(D6/$D$239)*$D$240+(E6/$E$239)*$E$240+(F6/$F$239)*$F$240+(G6/$G$239)*$G$240+(H6/$H$239)*$H$240+(I6/$I$239)*$I$240+(J6/$J$239)*$J$240+(K6/$K$239)*$K$240+(L6/$L$239)*$L$240+(M6/$M$239)*$M$240+(N6/$N$239)*$N$240+(O6/$O$239)*$O$240+(P6/$P$239)*$P$240+(Q6/$Q$239)*$Q$240+(R6/$R$239)*$R$240+(S6/$S$239)*$S$240 -> 1.395248571e-11
A7: PORK | B7: retail | C7: PORK retail | D7: =VLOOKUP($A7,retail,D$1,FALSE) -> 7.559926585 | E7: 1.348533347e-05 | F7: 2.390792934e-06 | G7: 7.681947126e-08 | H7: 9.773633347e-07 | I7: 0.08183958421 | J7: 0.009554489195 | K7: 0.1347545204 | L7: 0.5960114532 | M7: 0.001414525549 | N7: 0.04186329418 | O7: 20.58734759 | P7: 830.7188991 | Q7: 1.541318867 | R7: 27.47880651 | S7: 7.603676683e-07 | T7: =(D7/$D$239)*$D$240+(E7/$E$239)*$E$240+(F7/$F$239)*$F$240+(G7/$G$239)*$G$240+(H7/$H$239)*$H$240+(I7/$I$239)*$I$240+(J7/$J$239)*$J$240+(K7/$K$239)*$K$240+(L7/$L$239)*$L$240+(M7/$M$239)*$M$240+(N7/$N$239)*$N$240+(O7/$O$239)*$O$240+(P7/$P$239)*$P$240+(Q7/$Q$239)*$Q$240+(R7/$R$239)*$R$240+(S7/$S$239)*$S$240 -> 1.468226895e-11
A8: PORK | B8: use | C8: PORK use | D8: =VLOOKUP($A8,use,D$1,FALSE) -> 9.387030224 | E8: 1.581635754e-05 | F8: 2.988055551e-06 | G8: 9.756745991e-08 | H8: 1.174889835e-06 | I8: 0.1161487966 | J8: 0.01258533216 | K8: 0.1623346157 | L8: 0.7092463629 | M8: 0.002601133863 | N8: 0.07238413869 | O8: 31.54774935 | P8: 991.2551201 | Q8: 3.618683585 | R8: 38.67886867 | S8: 2.483100974e-06 | T8: 1.914682912e-11
A10: Meat | B10: BEEF
A11: BEEF | B11: agriculture | C11: =CONCATENATE(A11," ", B11) -> BEEF agriculture | D11: =VLOOKUP($A11,primary,D$1,FALSE) -> 28.3 | E11: 1.24e-08 | F11: 2.01e-05 | G11: 3.24e-07 | H11: 3.59e-06 | I11: 0.0199 | J11: 0.0309 | K11: 0.483 | L11: 2.14 | M11: 0.00426 | N11: 0.189 | O11: 37 | P11: 3320 | Q11: 8.83 | R11: 61.3 | S11: 3.48e-07 | T11: =(D11/$D$239)*$D$240+(E11/$E$239)*$E$240+(F11/$F$239)*$F$240+(G11/$G$239)*$G$240+(H11/$H$239)*$H$240+(I11/$I$239)*$I$240+(J11/$J$239)*$J$240+(K11/$K$239)*$K$240+(L11/$L$239)*$L$240+(M11/$M$239)*$M$240+(N11/$N$239)*$N$240+(O11/$O$239)*$O$240+(P11/$P$239)*$P$240+(Q11/$Q$239)*$Q$240+(R11/$R$239)*$R$240+(S11/$S$239)*$S$240 -> 5.733040637e-11
A12: BEEF | B12: manufacturing | C12: =CONCATENATE(A12," ", B12) -> BEEF manufacturing | D12: =VLOOKUP($A12,manufacturing,D$1,FALSE) -> 30.35607659 | E12: 2.604329409e-06 | F12: 2.119456913e-05 | G12: 3.429225871e-07 | H12: 3.80030449e-06 | I12: 0.02988229964 | J12: 0.03378156802 | K12: 0.5109581091 | L12: 2.258506114 | M12: 0.004493470055 | N12: 0.1994068685 | O12: 40.54588254 | P12: 3496.354537 | Q12: 9.520366258 | R12: 69.30962451 | S12: 5.555299551e-07 | T12: =(D12/$D$239)*$D$240+(E12/$E$239)*$E$240+(F12/$F$239)*$F$240+(G12/$G$239)*$G$240+(H12/$H$239)*$H$240+(I12/$I$239)*$I$240+(J12/$J$239)*$J$240+(K12/$K$239)*$K$240+(L12/$L$239)*$L$240+(M12/$M$239)*$M$240+(N12/$N$239)*$N$240+(O12/$O$239)*$O$240+(P12/$P$239)*$P$240+(Q12/$Q$239)*$Q$240+(R12/$R$239)*$R$240+(S12/$S$239)*$S$240 -> 6.098869341e-11
A13: BEEF | B13: retail | C13: BEEF retail | D13: =VLOOKUP($A13,retail,D$1,FALSE) -> 31.6396108 | E13: 3.060449136e-05 | F13: 2.122728767e-05 | G13: 3.444763134e-07 | H13: 3.812110703e-06 | I13: 0.03754484737 | J13: 0.03455869972 | K13: 0.511807152 | L13: 2.261390401 | M13: 0.004500304496 | N13: 0.1996738205 | O13: 41.87682127 | P13: 3498.329425 | Q13: 9.572897814 | R13: 71.09985914 | S13: 9.887887209e-07 | T13: =(D13/$D$239)*$D$240+(E13/$E$239)*$E$240+(F13/$F$239)*$F$240+(G13/$G$239)*$G$240+(H13/$H$239)*$H$240+(I13/$I$239)*$I$240+(J13/$J$239)*$J$240+(K13/$K$239)*$K$240+(L13/$L$239)*$L$240+(M13/$M$239)*$M$240+(N13/$N$239)*$N$240+(O13/$O$239)*$O$240+(P13/$P$239)*$P$240+(Q13/$Q$239)*$Q$240+(R13/$R$239)*$R$240+(S13/$S$239)*$S$240 -> 6.22247725e-11
A14: BEEF | B14: use | C14: BEEF use | D14: =VLOOKUP($A14,use,D$1,FALSE) -> 37.57418122 | E14: 3.585292512e-05 | F14: 2.505151475e-05 | G14: 4.108762358e-07 | H14: 4.494112129e-06 | I14: 0.06440570572 | J14: 0.04187055983 | K14: 0.6038515346 | L14: 2.659325842 | M14: 0.006202766526 | N14: 0.2588874701 | O14: 56.96520451 | P14: 4113.658451 | Q14: 13.07893984 | R14: 89.75347146 | S14: 2.760447712e-06 | T14: 7.486849695e-11
A16: Meat | B16: POULTRY
A17: POULTRY | B17: agriculture | C17: =CONCATENATE(A17," ", B17) -> POULTRY agriculture | D17: =VLOOKUP($A17,primary,D$1,FALSE) -> 5.58 | E17: 3.25e-08 | F17: 1.45e-06 | G17: 5e-08 | H17: 7.32e-07 | I17: 0.0523 | J17: 0.00609 | K17: 0.0902 | L17: 0.399 | M17: 0.00118 | N17: 0.0235 | O17: 12.1 | P17: 603 | Q17: 0.677 | R17: 18.6 | S17: 1.95e-07 | T17: =(D17/$D$239)*$D$240+(E17/$E$239)*$E$240+(F17/$F$239)*$F$240+(G17/$G$239)*$G$240+(H17/$H$239)*$H$240+(I17/$I$239)*$I$240+(J17/$J$239)*$J$240+(K17/$K$239)*$K$240+(L17/$L$239)*$L$240+(M17/$M$239)*$M$240+(N17/$N$239)*$N$240+(O17/$O$239)*$O$240+(P17/$P$239)*$P$240+(Q17/$Q$239)*$Q$240+(R17/$R$239)*$R$240+(S17/$S$239)*$S$240 -> 9.814959089e-12
A18: POULTRY | B18: manufacturing | C18: =CONCATENATE(A18," ", B18) -> POULTRY manufacturing | D18: =VLOOKUP($A18,manufacturing,D$1,FALSE) -> 7.443597641 | E18: 5.380688829e-07 | F18: 1.558108078e-06 | G18: 5.420579767e-08 | H18: 7.808323852e-07 | I18: 0.07058808911 | J18: 0.007214704866 | K18: 0.09606558275 | L18: 0.4240264297 | M18: 0.001249470581 | N18: 0.02504837373 | O18: 14.31896675 | P18: 636.0979056 | Q18: 0.8750831003 | R18: 22.96978241 | S18: 3.466089024e-07 | T18: =(D18/$D$239)*$D$240+(E18/$E$239)*$E$240+(F18/$F$239)*$F$240+(G18/$G$239)*$G$240+(H18/$H$239)*$H$240+(I18/$I$239)*$I$240+(J18/$J$239)*$J$240+(K18/$K$239)*$K$240+(L18/$L$239)*$L$240+(M18/$M$239)*$M$240+(N18/$N$239)*$N$240+(O18/$O$239)*$O$240+(P18/$P$239)*$P$240+(Q18/$Q$239)*$Q$240+(R18/$R$239)*$R$240+(S18/$S$239)*$S$240 -> 1.124530979e-11
A19: POULTRY | B19: retail | C19: POULTRY retail | D19: =VLOOKUP($A19,retail,D$1,FALSE) -> 7.507831848 | E19: 2.853823083e-05 | F19: 1.590826618e-06 | G19: 5.575952389e-08 | H19: 7.926385979e-07 | I19: 0.07825063684 | J19: 0.007991836564 | K19: 0.09691462564 | L19: 0.4269107163 | M19: 0.001256305022 | N19: 0.02531532576 | O19: 15.64990548 | P19: 638.0727938 | Q19: 0.9276146566 | R19: 24.76001703 | S19: 7.798676683e-07 | T19: =(D19/$D$239)*$D$240+(E19/$E$239)*$E$240+(F19/$F$239)*$F$240+(G19/$G$239)*$G$240+(H19/$H$239)*$H$240+(I19/$I$239)*$I$240+(J19/$J$239)*$J$240+(K19/$K$239)*$K$240+(L19/$L$239)*$L$240+(M19/$M$239)*$M$240+(N19/$N$239)*$N$240+(O19/$O$239)*$O$240+(P19/$P$239)*$P$240+(Q19/$Q$239)*$Q$240+(R19/$R$239)*$R$240+(S19/$S$239)*$S$240 -> 1.201843469e-11
A20: POULTRY | B20: use | C20: POULTRY use | D20: =VLOOKUP($A20,use,D$1,FALSE) -> 9.31605792 | E20: 3.343414903e-05 | F20: 2.042865388e-06 | G20: 7.28486451e-08 | H20: 9.571857888e-07 | I20: 0.1117482496 | J20: 0.01068638479 | K20: 0.1178063494 | L20: 0.5101288338 | M20: 0.002350950663 | N20: 0.04941619812 | O20: 25.50090794 | P20: 765.5798096 | Q20: 2.840396822 | R20: 35.45676488 | S20: 2.495924008e-06 | T20: 1.589742198e-11
A22: Fish | B22: COD
A23: COD | B23: agriculture | C23: =CONCATENATE(A23," ", B23) -> COD agriculture | D23: =VLOOKUP($A23,primary,D$1,FALSE) -> 2.25 | E23: 6.62e-07 | F23: 3.33e-08 | G23: 5.42e-09 | H23: 8.56e-08 | I23: 0.015 | J23: 0.0371 | K23: 0.0311 | L23: 0.146 | M23: 1.03e-05 | N23: 0.0133 | O23: 3.61 | P23: 1.85 | Q23: 17.6 | R23: 30.6 | S23: 3e-07 | T23: =(D23/$D$239)*$D$240+(E23/$E$239)*$E$240+(F23/$F$239)*$F$240+(G23/$G$239)*$G$240+(H23/$H$239)*$H$240+(I23/$I$239)*$I$240+(J23/$J$239)*$J$240+(K23/$K$239)*$K$240+(L23/$L$239)*$L$240+(M23/$M$239)*$M$240+(N23/$N$239)*$N$240+(O23/$O$239)*$O$240+(P23/$P$239)*$P$240+(Q23/$Q$239)*$Q$240+(R23/$R$239)*$R$240+(S23/$S$239)*$S$240 -> 5.622991054e-12
A24: COD | B24: manufacturing | C24: =CONCATENATE(A24," ", B24) -> COD manufacturing | D24: =VLOOKUP($A24,manufacturing,D$1,FALSE) -> 3.169399267 | E24: 4.292310135e-06 | F24: 1.30989159e-07 | G24: 1.190607377e-08 | H24: 1.047226799e-07 | I24: 0.07772832084 | J24: 0.04208534845 | K24: 0.03722202589 | L24: 0.1650209467 | M24: 5.704410866e-05 | N24: 0.01508846388 | O24: 6.259519253 | P24: -16.76560387 | Q24: 18.74428227 | R24: 43.86782121 | S24: 3.214349094e-06 | T24: =(D24/$D$239)*$D$240+(E24/$E$239)*$E$240+(F24/$F$239)*$F$240+(G24/$G$239)*$G$240+(H24/$H$239)*$H$240+(I24/$I$239)*$I$240+(J24/$J$239)*$J$240+(K24/$K$239)*$K$240+(L24/$L$239)*$L$240+(M24/$M$239)*$M$240+(N24/$N$239)*$N$240+(O24/$O$239)*$O$240+(P24/$P$239)*$P$240+(Q24/$Q$239)*$Q$240+(R24/$R$239)*$R$240+(S24/$S$239)*$S$240 -> 7.284260618e-12
A25: COD | B25: retail | C25: COD retail | D25: =VLOOKUP($A25,retail,D$1,FALSE) -> 3.581851233 | E25: 1.111267452e-05 | F25: 1.815808731e-07 | G25: 1.407670778e-08 | H25: 1.162116585e-07 | I25: 0.08549905323 | J25: 0.04287914477 | K25: 0.03804812239 | L25: 0.1681480916 | M25: 6.809910188e-05 | N25: 0.01538285596 | O25: 8.926881399 | P25: -14.65210534 | Q25: 18.78907827 | R25: 45.54584913 | S25: 3.502681318e-06 | T25: =(D25/$D$239)*$D$240+(E25/$E$239)*$E$240+(F25/$F$239)*$F$240+(G25/$G$239)*$G$240+(H25/$H$239)*$H$240+(I25/$I$239)*$I$240+(J25/$J$239)*$J$240+(K25/$K$239)*$K$240+(L25/$L$239)*$L$240+(M25/$M$239)*$M$240+(N25/$N$239)*$N$240+(O25/$O$239)*$O$240+(P25/$P$239)*$P$240+(Q25/$Q$239)*$Q$240+(R25/$R$239)*$R$240+(S25/$S$239)*$S$240 -> 7.832186389e-12
A26: COD | B26: use | C26: COD use | D26: =VLOOKUP($A26,use,D$1,FALSE) -> 5.191586101 | E26: 1.374218785e-05 | F26: 3.828744443e-07 | G26: 2.365182741e-08 | H26: 1.62840972e-07 | I26: 0.1177391861 | J26: 0.05401879553 | K26: 0.04965840043 | L26: 0.2173132829 | M26: 0.0009699845541 | N26: 0.03767896252 | O26: 17.65627299 | P26: 0.510812023 | Q26: 24.83835254 | R26: 66.61083033 | S26: 5.570429395e-06 | T26: 1.148931841e-11
A28: Fish | B28: SALMON
A29: SALMON | B29: agriculture | C29: =CONCATENATE(A29," ", B29) -> SALMON agriculture | D29: =VLOOKUP($A29,primary,D$1,FALSE) -> 6.47 | E29: 9.93e-08 | F29: 4.93e-06 | G29: 5.64e-08 | H29: 3.75e-07 | I29: 0.0913 | J29: 0.0168 | K29: 0.0418 | L29: 0.177 | M29: 0.011 | N29: 0.1 | O29: 11 | P29: 482 | Q29: 0.289 | R29: 36.5 | S29: 1.37e-06 | T29: =(D29/$D$239)*$D$240+(E29/$E$239)*$E$240+(F29/$F$239)*$F$240+(G29/$G$239)*$G$240+(H29/$H$239)*$H$240+(I29/$I$239)*$I$240+(J29/$J$239)*$J$240+(K29/$K$239)*$K$240+(L29/$L$239)*$L$240+(M29/$M$239)*$M$240+(N29/$N$239)*$N$240+(O29/$O$239)*$O$240+(P29/$P$239)*$P$240+(Q29/$Q$239)*$Q$240+(R29/$R$239)*$R$240+(S29/$S$239)*$S$240 -> 1.468409297e-11
A30: SALMON | B30: manufacturing | C30: =CONCATENATE(A30," ", B30) -> SALMON manufacturing | D30: =VLOOKUP($A30,manufacturing,D$1,FALSE) -> 7.302860969 | E30: 7.737226878e-07 | F30: 5.303096606e-06 | G30: 6.378311632e-08 | H30: 4.167894884e-07 | I30: 0.1359551294 | J30: 0.01973676335 | K30: 0.04739174929 | L30: 0.1952405637 | M30: 0.01173150007 | N30: 0.1070200277 | O30: 13.79503202 | P30: 517.5518217 | Q30: 0.3826184408 | R30: 45.511651 | S30: 2.148434201e-06 | T30: =(D30/$D$239)*$D$240+(E30/$E$239)*$E$240+(F30/$F$239)*$F$240+(G30/$G$239)*$G$240+(H30/$H$239)*$H$240+(I30/$I$239)*$I$240+(J30/$J$239)*$J$240+(K30/$K$239)*$K$240+(L30/$L$239)*$L$240+(M30/$M$239)*$M$240+(N30/$N$239)*$N$240+(O30/$O$239)*$O$240+(P30/$P$239)*$P$240+(Q30/$Q$239)*$Q$240+(R30/$R$239)*$R$240+(S30/$S$239)*$S$240 -> 1.641688834e-11
A31: SALMON | B31: retail | C31: SALMON retail | D31: =VLOOKUP($A31,retail,D$1,FALSE) -> 8.038312935 | E31: 1.507408708e-05 | F31: 5.35558832e-06 | G31: 6.607075033e-08 | H31: 4.29578467e-07 | I31: 0.1443458617 | J31: 0.02060855967 | K31: 0.04831184579 | L31: 0.1986377086 | M31: 0.01174286506 | N31: 0.1073394198 | O31: 16.48839416 | P31: 519.8353202 | Q31: 0.4315144424 | R31: 47.36967892 | S31: 2.509766424e-06 | T31: =(D31/$D$239)*$D$240+(E31/$E$239)*$E$240+(F31/$F$239)*$F$240+(G31/$G$239)*$G$240+(H31/$H$239)*$H$240+(I31/$I$239)*$I$240+(J31/$J$239)*$J$240+(K31/$K$239)*$K$240+(L31/$L$239)*$L$240+(M31/$M$239)*$M$240+(N31/$N$239)*$N$240+(O31/$O$239)*$O$240+(P31/$P$239)*$P$240+(Q31/$Q$239)*$Q$240+(R31/$R$239)*$R$240+(S31/$S$239)*$S$240 -> 1.724712503e-11
A32: SALMON | B32: use | C32: SALMON use | D32: =VLOOKUP($A32,use,D$1,FALSE) -> 10.29706999 | E32: 1.863269449e-05 | F32: 6.795326657e-06 | G32: 8.951992909e-08 | H32: 5.820713431e-07 | I32: 0.1864985373 | J32: 0.02685585121 | K32: 0.06754122844 | L32: 0.2552794331 | M32: 0.0157543555 | N32: 0.1542426019 | O32: 27.61522657 | P32: 660.3533056 | Q32: 3.465195167 | R32: 70.00475005 | S32: 4.110457184e-06 | T32: 2.346159013e-11
A34: Seafood | B34: SHRIMP
A35: SHRIMP | B35: agriculture | C35: =CONCATENATE(A35," ", B35) -> SHRIMP agriculture | D35: =VLOOKUP($A35,primary,D$1,FALSE) -> 6.61 | E35: 1.59e-07 | F35: 1.17e-06 | G35: 3.28e-08 | H35: 4.98e-07 | I35: 0.0787 | J35: 0.0247 | K35: 0.0449 | L35: 0.122 | M35: 0.011 | N35: 0.0941 | O35: 6.1 | P35: 347 | Q35: 0.594 | R35: 76.3 | S35: 4.4e-06 | T35: =(D35/$D$239)*$D$240+(E35/$E$239)*$E$240+(F35/$F$239)*$F$240+(G35/$G$239)*$G$240+(H35/$H$239)*$H$240+(I35/$I$239)*$I$240+(J35/$J$239)*$J$240+(K35/$K$239)*$K$240+(L35/$L$239)*$L$240+(M35/$M$239)*$M$240+(N35/$N$239)*$N$240+(O35/$O$239)*$O$240+(P35/$P$239)*$P$240+(Q35/$Q$239)*$Q$240+(R35/$R$239)*$R$240+(S35/$S$239)*$S$240 -> 1.316549991e-11
A36: SHRIMP | B36: manufacturing | C36: =CONCATENATE(A36," ", B36) -> SHRIMP manufacturing | D36: =VLOOKUP($A36,manufacturing,D$1,FALSE) -> 8.444001394 | E36: 3.71840056e-06 | F36: 1.355689159e-06 | G36: 4.102732909e-08 | H36: 5.886928926e-07 | I36: 0.1108442783 | J36: 0.03098506122 | K36: 0.05611315355 | L36: 0.1473582446 | M36: 0.01173591304 | N36: 0.1017129362 | O36: 8.85141287 | P36: 344.266311 | Q36: 1.323403547 | R36: 96.73335313 | S36: 7.407540584e-06 | T36: =(D36/$D$239)*$D$240+(E36/$E$239)*$E$240+(F36/$F$239)*$F$240+(G36/$G$239)*$G$240+(H36/$H$239)*$H$240+(I36/$I$239)*$I$240+(J36/$J$239)*$J$240+(K36/$K$239)*$K$240+(L36/$L$239)*$L$240+(M36/$M$239)*$M$240+(N36/$N$239)*$N$240+(O36/$O$239)*$O$240+(P36/$P$239)*$P$240+(Q36/$Q$239)*$Q$240+(R36/$R$239)*$R$240+(S36/$S$239)*$S$240 -> 1.575742625e-11
A37: SHRIMP | B37: retail | C37: SHRIMP retail | D37: =VLOOKUP($A37,retail,D$1,FALSE) -> 8.860453361 | E37: 1.053876495e-05 | F37: 1.406880873e-06 | G37: 4.32259631e-08 | H37: 6.005818712e-07 | I37: 0.1188650107 | J37: 0.03180885754 | K37: 0.05696425005 | L37: 0.1505953894 | M37: 0.01174701804 | N37: 0.1020173283 | O37: 11.52977502 | P37: 346.4598096 | Q37: 1.368699549 | R37: 98.47138104 | S37: 7.704872807e-06 | T37: =(D37/$D$239)*$D$240+(E37/$E$239)*$E$240+(F37/$F$239)*$F$240+(G37/$G$239)*$G$240+(H37/$H$239)*$H$240+(I37/$I$239)*$I$240+(J37/$J$239)*$J$240+(K37/$K$239)*$K$240+(L37/$L$239)*$L$240+(M37/$M$239)*$M$240+(N37/$N$239)*$N$240+(O37/$O$239)*$O$240+(P37/$P$239)*$P$240+(Q37/$Q$239)*$Q$240+(R37/$R$239)*$R$240+(S37/$S$239)*$S$240 -> 1.631272442e-11
A38: SHRIMP | B38: use | C38: SHRIMP use | D38: =VLOOKUP($A38,use,D$1,FALSE) -> 11.20138349 | E38: 1.302946403e-05 | F38: 1.849277272e-06 | G38: 5.775300573e-08 | H38: 7.528777238e-07 | I38: 0.1562778123 | J38: 0.03991888676 | K38: 0.07182962793 | L38: 0.1913806047 | M38: 0.01498701527 | N38: 0.1391893073 | O38: 20.95381867 | P38: 433.6980369 | Q38: 3.045826677 | R38: 123.4474609 | S38: 1.031430068e-05 | T38: 2.123326484e-11
A40: Dairy | B40: MILK
A41: MILK | B41: agriculture | C41: =CONCATENATE(A41," ", B41) -> MILK agriculture | D41: =VLOOKUP($A41,primary,D$1,FALSE) -> 1.261842431 | E41: 4.191707151e-09 | F41: 2.073141222e-06 | G41: 1.482563545e-08 | H41: 1.602679361e-07 | I41: 0.006699729261 | J41: 0.001085865236 | K41: 0.02264203753 | L41: 0.1001700008 | M41: 0.0001713463862 | N41: 0.00726920803 | O41: 3.97919639 | P41: 103.0480272 | Q41: 0.1224651117 | R41: 2.961455299 | S41: 1.935142011e-08 | T41: =(D41/$D$239)*$D$240+(E41/$E$239)*$E$240+(F41/$F$239)*$F$240+(G41/$G$239)*$G$240+(H41/$H$239)*$H$240+(I41/$I$239)*$I$240+(J41/$J$239)*$J$240+(K41/$K$239)*$K$240+(L41/$L$239)*$L$240+(M41/$M$239)*$M$240+(N41/$N$239)*$N$240+(O41/$O$239)*$O$240+(P41/$P$239)*$P$240+(Q41/$Q$239)*$Q$240+(R41/$R$239)*$R$240+(S41/$S$239)*$S$240 -> 3.255671519e-12
A42: MILK | B42: manufacturing | C42: =CONCATENATE(A42," ", B42) -> MILK manufacturing | D42: =VLOOKUP($A42,manufacturing,D$1,FALSE) -> 1.502570778 | E42: 2.023558206e-08 | F42: 2.208094254e-06 | G42: 1.805116118e-08 | H42: 1.742397388e-07 | I42: 0.02025117742 | J42: 0.001496764924 | K42: 0.02474265875 | L42: 0.107156798 | M42: 0.0001967068257 | N42: 0.007804549518 | O42: 4.762965551 | P42: 111.9365493 | Q42: 0.4855684262 | R42: 5.49002575 | S42: 8.049087086e-07 | T42: =(D42/$D$239)*$D$240+(E42/$E$239)*$E$240+(F42/$F$239)*$F$240+(G42/$G$239)*$G$240+(H42/$H$239)*$H$240+(I42/$I$239)*$I$240+(J42/$J$239)*$J$240+(K42/$K$239)*$K$240+(L42/$L$239)*$L$240+(M42/$M$239)*$M$240+(N42/$N$239)*$N$240+(O42/$O$239)*$O$240+(P42/$P$239)*$P$240+(Q42/$Q$239)*$Q$240+(R42/$R$239)*$R$240+(S42/$S$239)*$S$240 -> 3.753698462e-12
A43: MILK | B43: retail | C43: MILK retail | D43: =VLOOKUP($A43,retail,D$1,FALSE) -> 1.656262554 | E43: 1.440255826e-06 | F43: 2.225071572e-06 | G43: 1.883725196e-08 | H43: 1.840780154e-07 | I43: 0.02698399589 | J43: 0.002189031387 | K43: 0.02538266411 | L43: 0.1096510838 | M43: 0.0001991548808 | N43: 0.008032293522 | O43: 5.153707892 | P43: 113.7734103 | Q43: 0.5256348707 | R43: 6.998805078 | S43: 1.036816054e-06 | T43: =(D43/$D$239)*$D$240+(E43/$E$239)*$E$240+(F43/$F$239)*$F$240+(G43/$G$239)*$G$240+(H43/$H$239)*$H$240+(I43/$I$239)*$I$240+(J43/$J$239)*$J$240+(K43/$K$239)*$K$240+(L43/$L$239)*$L$240+(M43/$M$239)*$M$240+(N43/$N$239)*$N$240+(O43/$O$239)*$O$240+(P43/$P$239)*$P$240+(Q43/$Q$239)*$Q$240+(R43/$R$239)*$R$240+(S43/$S$239)*$S$240 -> 3.993431467e-12
A44: MILK | B44: use | C44: MILK use | D44: =VLOOKUP($A44,use,D$1,FALSE) -> 1.940059662 | E44: 1.572106984e-06 | F44: 2.478192027e-06 | G44: 2.381118596e-08 | H44: 2.062520369e-07 | I44: 0.03685470494 | J44: 0.002775107538 | K44: 0.02821627254 | L44: 0.1208215941 | M44: 0.0007055309986 | N44: 0.01260928178 | O44: 9.821168455 | P44: 129.3667092 | Q44: 2.139563396 | R44: 9.163878416 | S44: 1.911474882e-06 | T44: 5.050725837e-12
A46: Dairy | B46: CHEESE
A47: CHEESE | B47: agriculture | C47: =CONCATENATE(A47," ", B47) -> CHEESE agriculture | D47: =VLOOKUP($A47,primary,D$1,FALSE) -> 11.61184243 | E47: 3.794170715e-08 | F47: 1.931314122e-05 | G47: 1.335256354e-07 | H47: 1.500267936e-06 | I47: 0.06178972926 | J47: 0.01001586524 | K47: 0.2110420375 | L47: 0.9371700008 | M47: 0.001563346386 | N47: 0.06771920803 | O47: 29.42919639 | P47: 962.0480272 | Q47: 1.140465112 | R47: 27.6914553 | S47: 1.863514201e-07 | T47: =(D47/$D$239)*$D$240+(E47/$E$239)*$E$240+(F47/$F$239)*$F$240+(G47/$G$239)*$G$240+(H47/$H$239)*$H$240+(I47/$I$239)*$I$240+(J47/$J$239)*$J$240+(K47/$K$239)*$K$240+(L47/$L$239)*$L$240+(M47/$M$239)*$M$240+(N47/$N$239)*$N$240+(O47/$O$239)*$O$240+(P47/$P$239)*$P$240+(Q47/$Q$239)*$Q$240+(R47/$R$239)*$R$240+(S47/$S$239)*$S$240 -> 3.007766015e-11
A48: CHEESE | B48: manufacturing | C48: =CONCATENATE(A48," ", B48) -> CHEESE manufacturing | D48: =VLOOKUP($A48,manufacturing,D$1,FALSE) -> 14.40199734 | E48: 5.070578312e-07 | F48: 2.029821785e-05 | G48: 1.472385341e-07 | H48: 1.588981799e-06 | I48: 0.2096108075 | J48: 0.01464603496 | K48: 0.2272284119 | L48: 0.9890686226 | M48: 0.001665398069 | N48: 0.07159094511 | O48: 31.64357657 | P48: 973.8509608 | Q48: 2.584829131 | R48: 61.5558086 | S48: 2.09411028e-06 | T48: =(D48/$D$239)*$D$240+(E48/$E$239)*$E$240+(F48/$F$239)*$F$240+(G48/$G$239)*$G$240+(H48/$H$239)*$H$240+(I48/$I$239)*$I$240+(J48/$J$239)*$J$240+(K48/$K$239)*$K$240+(L48/$L$239)*$L$240+(M48/$M$239)*$M$240+(N48/$N$239)*$N$240+(O48/$O$239)*$O$240+(P48/$P$239)*$P$240+(Q48/$Q$239)*$Q$240+(R48/$R$239)*$R$240+(S48/$S$239)*$S$240 -> 3.426385665e-11
A49: CHEESE | B49: retail | C49: CHEESE retail | D49: =VLOOKUP($A49,retail,D$1,FALSE) -> 15.45350141 | E49: 2.180719549e-05 | F49: 2.032938361e-05 | G49: 1.486991514e-07 | H49: 1.60114208e-06 | I49: 0.2177479731 | J49: 0.0154754469 | K49: 0.2280972484 | L49: 0.9921337662 | M49: 0.001671568844 | N49: 0.07187360434 | O49: 32.83722449 | P49: 975.9776158 | Q49: 2.634880954 | R49: 63.41750803 | S49: 4.163480231e-06 | T49: =(D49/$D$239)*$D$240+(E49/$E$239)*$E$240+(F49/$F$239)*$F$240+(G49/$G$239)*$G$240+(H49/$H$239)*$H$240+(I49/$I$239)*$I$240+(J49/$J$239)*$J$240+(K49/$K$239)*$K$240+(L49/$L$239)*$L$240+(M49/$M$239)*$M$240+(N49/$N$239)*$N$240+(O49/$O$239)*$O$240+(P49/$P$239)*$P$240+(Q49/$Q$239)*$Q$240+(R49/$R$239)*$R$240+(S49/$S$239)*$S$240 -> 3.531469764e-11
A50: CHEESE | B50: use | C50: CHEESE use | D50: =VLOOKUP($A50,use,D$1,FALSE) -> 16.80461536 | E50: 2.340152002e-05 | F50: 2.18553424e-05 | G50: 1.636460235e-07 | H50: 1.733578203e-06 | I50: 0.2446204632 | J50: 0.017513364 | K50: 0.2466647768 | L50: 1.071432764 | M50: 0.003842914613 | N50: 0.09845558444 | O50: 37.9980521 | P50: 1053.120569 | Q50: 4.494363655 | R50: 70.51532523 | S50: 6.112213188e-06 | T50: 3.949863599e-11
A52: Dairy | B52: BUTTER
A53: BUTTER | B53: agriculture | C53: =CONCATENATE(A53," ", B53) -> BUTTER agriculture | D53: =VLOOKUP($A53,primary,D$1,FALSE) -> 28.01184243 | E53: 9.134170715e-08 | F53: 4.651314122e-05 | G53: 3.225256354e-07 | H53: 3.610267936e-06 | I53: 0.1490897293 | J53: 0.02411586524 | K53: 0.5080420375 | L53: 2.260170001 | M53: 0.003773346386 | N53: 0.163019208 | O53: 69.52919639 | P53: 2320.048027 | Q53: 2.750465112 | R53: 66.7914553 | S53: 4.493514201e-07 | T53: =(D53/$D$239)*$D$240+(E53/$E$239)*$E$240+(F53/$F$239)*$F$240+(G53/$G$239)*$G$240+(H53/$H$239)*$H$240+(I53/$I$239)*$I$240+(J53/$J$239)*$J$240+(K53/$K$239)*$K$240+(L53/$L$239)*$L$240+(M53/$M$239)*$M$240+(N53/$N$239)*$N$240+(O53/$O$239)*$O$240+(P53/$P$239)*$P$240+(Q53/$Q$239)*$Q$240+(R53/$R$239)*$R$240+(S53/$S$239)*$S$240 -> 7.243660812e-11
A54: BUTTER | B54: manufacturing | C54: =CONCATENATE(A54," ", B54) -> BUTTER manufacturing | D54: =VLOOKUP($A54,manufacturing,D$1,FALSE) -> 29.73581599 | E54: 2.542546188e-07 | F54: 4.828104634e-05 | G54: 3.410234564e-07 | H54: 3.782910297e-06 | I54: 0.2028371288 | J54: 0.02758153392 | K54: 0.5304684327 | L54: 2.351635079 | M54: 0.003939803509 | N54: 0.1697898218 | O54: 72.79798072 | P54: 2414.764847 | Q54: 3.467222914 | R54: 80.45394332 | S54: 5.13064914e-06 | T54: =(D54/$D$239)*$D$240+(E54/$E$239)*$E$240+(F54/$F$239)*$F$240+(G54/$G$239)*$G$240+(H54/$H$239)*$H$240+(I54/$I$239)*$I$240+(J54/$J$239)*$J$240+(K54/$K$239)*$K$240+(L54/$L$239)*$L$240+(M54/$M$239)*$M$240+(N54/$N$239)*$N$240+(O54/$O$239)*$O$240+(P54/$P$239)*$P$240+(Q54/$Q$239)*$Q$240+(R54/$R$239)*$R$240+(S54/$S$239)*$S$240 -> 7.632296821e-11
A55: BUTTER | B55: retail | C55: BUTTER retail | D55: =VLOOKUP($A55,retail,D$1,FALSE) -> 30.77732007 | E55: 2.155439228e-05 | F55: 4.83105121e-05 | G55: 3.424100737e-07 | H55: 3.793970577e-06 | I55: 0.2103242943 | J55: 0.02832394587 | K55: 0.5312542691 | L55: 2.354380222 | M55: 0.003945864284 | N55: 0.170043481 | O55: 73.96162864 | P55: 2416.691502 | Q55: 3.515974736 | R55: 82.16564275 | S55: 5.498019091e-06 | T55: =(D55/$D$239)*$D$240+(E55/$E$239)*$E$240+(F55/$F$239)*$F$240+(G55/$G$239)*$G$240+(H55/$H$239)*$H$240+(I55/$I$239)*$I$240+(J55/$J$239)*$J$240+(K55/$K$239)*$K$240+(L55/$L$239)*$L$240+(M55/$M$239)*$M$240+(N55/$N$239)*$N$240+(O55/$O$239)*$O$240+(P55/$P$239)*$P$240+(Q55/$Q$239)*$Q$240+(R55/$R$239)*$R$240+(S55/$S$239)*$S$240 -> 7.732516854e-11
A56: BUTTER | B56: use | C56: BUTTER use | D56: =VLOOKUP($A56,use,D$1,FALSE) -> 33.26911258 | E56: 2.313730796e-05 | F56: 5.182672017e-05 | G56: 3.719028818e-07 | H56: 4.078183789e-06 | I56: 0.2400650102 | J56: 0.03113522898 | K56: 0.5703875963 | L56: 2.525549905 | M56: 0.004365122797 | N56: 0.1831535836 | O56: 81.66628703 | P56: 2597.655933 | Q56: 5.488572107 | R56: 91.46642974 | S56: 8.192347978e-06 | T56: 8.35913396e-11
A58: Eggs | B58: EGGS
A59: EGGS | B59: agriculture | C59: =CONCATENATE(A59," ", B59) -> EGGS agriculture | D59: =VLOOKUP($A59,primary,D$1,FALSE) -> 4.93 | E59: 5.68e-08 | F59: 7.67e-06 | G59: 7.49e-08 | H59: 1.05e-06 | I59: 0.0908 | J59: 0.00679 | K59: 0.136 | L59: 0.6 | M59: 0.000765 | N59: 0.0313 | O59: 17.4 | P59: 725 | Q59: 1.27 | R59: 20.6 | S59: 1.47e-07 | T59: =(D59/$D$239)*$D$240+(E59/$E$239)*$E$240+(F59/$F$239)*$F$240+(G59/$G$239)*$G$240+(H59/$H$239)*$H$240+(I59/$I$239)*$I$240+(J59/$J$239)*$J$240+(K59/$K$239)*$K$240+(L59/$L$239)*$L$240+(M59/$M$239)*$M$240+(N59/$N$239)*$N$240+(O59/$O$239)*$O$240+(P59/$P$239)*$P$240+(Q59/$Q$239)*$Q$240+(R59/$R$239)*$R$240+(S59/$S$239)*$S$240 -> 1.587865707e-11
A60: EGGS | B60: manufacturing | C60: =CONCATENATE(A60," ", B60) -> EGGS manufacturing | D60: =VLOOKUP($A60,manufacturing,D$1,FALSE) -> 5.198775437 | E60: 1.152678915e-06 | F60: 7.7831547e-06 | G60: 7.702070648e-08 | H60: 1.056671303e-06 | I60: 0.1027007286 | J60: 0.007175731261 | K60: 0.1382798239 | L60: 0.6078080494 | M60: 0.0007841968467 | N60: 0.03176713186 | O60: 18.00145819 | P60: 714.4624816 | Q60: 1.253824649 | R60: 23.42997424 | S60: 1.538752437e-06 | T60: =(D60/$D$239)*$D$240+(E60/$E$239)*$E$240+(F60/$F$239)*$F$240+(G60/$G$239)*$G$240+(H60/$H$239)*$H$240+(I60/$I$239)*$I$240+(J60/$J$239)*$J$240+(K60/$K$239)*$K$240+(L60/$L$239)*$L$240+(M60/$M$239)*$M$240+(N60/$N$239)*$N$240+(O60/$O$239)*$O$240+(P60/$P$239)*$P$240+(Q60/$Q$239)*$Q$240+(R60/$R$239)*$R$240+(S60/$S$239)*$S$240 -> 1.632487702e-11
A61: EGGS | B61: retail | C61: EGGS retail | D61: =VLOOKUP($A61,retail,D$1,FALSE) -> 5.312309644 | E61: 1.238540866e-06 | F61: 7.81397324e-06 | G61: 7.835143271e-08 | H61: 1.067177516e-06 | I61: 0.1097232764 | J61: 0.007915862959 | K61: 0.1389828667 | L61: 0.610592336 | M61: 0.0007899512881 | N61: 0.03202508389 | O61: 19.33439692 | P61: 716.4373698 | Q61: 1.294256205 | R61: 24.98020887 | S61: 1.770011203e-06 | T61: =(D61/$D$239)*$D$240+(E61/$E$239)*$E$240+(F61/$F$239)*$F$240+(G61/$G$239)*$G$240+(H61/$H$239)*$H$240+(I61/$I$239)*$I$240+(J61/$J$239)*$J$240+(K61/$K$239)*$K$240+(L61/$L$239)*$L$240+(M61/$M$239)*$M$240+(N61/$N$239)*$N$240+(O61/$O$239)*$O$240+(P61/$P$239)*$P$240+(Q61/$Q$239)*$Q$240+(R61/$R$239)*$R$240+(S61/$S$239)*$S$240 -> 1.656653127e-11
A62: EGGS | B62: use | C62: EGGS use | D62: =VLOOKUP($A62,use,D$1,FALSE) -> 6.559503991 | E62: 1.414755908e-06 | F62: 8.788441772e-06 | G62: 9.293962016e-08 | H62: 1.204808301e-06 | I62: 0.1580835887 | J62: 0.01014628247 | K62: 0.1576541337 | L62: 0.6876853102 | M62: 0.001764728949 | N62: 0.04717164607 | O62: 25.47888184 | P62: 806.2552861 | Q62: 2.887143066 | R62: 35.13081799 | S62: 3.265451617e-06 | T62: 1.999154126e-11
A64: Legumes | B64: BEANS
A65: BEANS | B65: agriculture | C65: =CONCATENATE(A65," ", B65) -> BEANS agriculture | D65: =VLOOKUP($A65,primary,D$1,FALSE) -> 1.15 | E65: 1.72e-08 | F65: 9.94e-07 | G65: 3.8e-08 | H65: 4.14e-07 | I65: 0.005 | J65: 0.000891 | K65: 0.0589 | L65: 0.262 | M65: 0.00314 | N65: 0.0357 | O65: 1.56 | P65: 421 | Q65: 0.791 | R65: 4.19 | S65: 1.08e-06 | T65: =(D65/$D$239)*$D$240+(E65/$E$239)*$E$240+(F65/$F$239)*$F$240+(G65/$G$239)*$G$240+(H65/$H$239)*$H$240+(I65/$I$239)*$I$240+(J65/$J$239)*$J$240+(K65/$K$239)*$K$240+(L65/$L$239)*$L$240+(M65/$M$239)*$M$240+(N65/$N$239)*$N$240+(O65/$O$239)*$O$240+(P65/$P$239)*$P$240+(Q65/$Q$239)*$Q$240+(R65/$R$239)*$R$240+(S65/$S$239)*$S$240 -> 6.004730842e-12
A66: BEANS | B66: manufacturing | C66: =CONCATENATE(A66," ", B66) -> BEANS manufacturing | D66: =VLOOKUP($A66,manufacturing,D$1,FALSE) -> 1.393723957 | E66: 3.345204083e-08 | F66: 1.078152815e-06 | G66: 4.200606083e-08 | H66: 4.434429115e-07 | I66: 0.0184175628 | J66: 0.00155927855 | K66: 0.06304858275 | L66: 0.2781643245 | M66: 0.003318273212 | N66: 0.03780046847 | O66: 3.202487805 | P66: 445.3108529 | Q66: 0.8981783635 | R66: 6.876519247 | S66: 1.551182587e-06 | T66: =(D66/$D$239)*$D$240+(E66/$E$239)*$E$240+(F66/$F$239)*$F$240+(G66/$G$239)*$G$240+(H66/$H$239)*$H$240+(I66/$I$239)*$I$240+(J66/$J$239)*$J$240+(K66/$K$239)*$K$240+(L66/$L$239)*$L$240+(M66/$M$239)*$M$240+(N66/$N$239)*$N$240+(O66/$O$239)*$O$240+(P66/$P$239)*$P$240+(Q66/$Q$239)*$Q$240+(R66/$R$239)*$R$240+(S66/$S$239)*$S$240 -> 6.651150213e-12
A67: BEANS | B67: retail | C67: BEANS retail | D67: =VLOOKUP($A67,retail,D$1,FALSE) -> 1.477007509 | E67: 5.129252859e-08 | F67: 1.09500745e-06 | G67: 4.277124238e-08 | H67: 4.518594646e-07 | I67: 0.02419319973 | J67: 0.002146811475 | K67: 0.06359559347 | L67: 0.2803028961 | M67: 0.003320939323 | N67: 0.03799595647 | O67: 3.690972488 | P67: 446.794575 | Q67: 0.9358112525 | R67: 8.154077904 | S67: 1.751997278e-06 | T67: =(D67/$D$239)*$D$240+(E67/$E$239)*$E$240+(F67/$F$239)*$F$240+(G67/$G$239)*$G$240+(H67/$H$239)*$H$240+(I67/$I$239)*$I$240+(J67/$J$239)*$J$240+(K67/$K$239)*$K$240+(L67/$L$239)*$L$240+(M67/$M$239)*$M$240+(N67/$N$239)*$N$240+(O67/$O$239)*$O$240+(P67/$P$239)*$P$240+(Q67/$Q$239)*$Q$240+(R67/$R$239)*$R$240+(S67/$S$239)*$S$240 -> 6.821257801e-12
A68: BEANS | B68: use | C68: BEANS use | D68: =VLOOKUP($A68,use,D$1,FALSE) -> 2.681909135 | E68: 7.451945938e-08 | F68: 1.205008066e-06 | G68: 4.91401498e-08 | H68: 4.937093828e-07 | I68: 0.03644372285 | J68: 0.004213411727 | K68: 0.06990623178 | L68: 0.3043541948 | M68: 0.004219145686 | N68: 0.04976834223 | O68: 6.350570268 | P68: 476.5392513 | Q68: 2.645520981 | R68: 17.95560713 | S68: 2.904012404e-06 | T68: 8.706571214e-12
A70: Legumes | B70: TOFU
A71: TOFU | B71: agriculture | C71: =CONCATENATE(A71," ", B71) -> TOFU agriculture | D71: =VLOOKUP($A71,primary,D$1,FALSE) -> 1.26 | E71: 3e-10 | F71: 1.65e-06 | G71: 1.83e-08 | H71: 7.3e-08 | I71: 0.000475 | J71: 0.000539 | K71: 0.0102 | L71: 0.0445 | M71: 0.000182 | N71: 0.00441 | O71: 3.27 | P71: 205 | Q71: 0.576 | R71: 1.17 | S71: 1.69e-08 | T71: =(D71/$D$239)*$D$240+(E71/$E$239)*$E$240+(F71/$F$239)*$F$240+(G71/$G$239)*$G$240+(H71/$H$239)*$H$240+(I71/$I$239)*$I$240+(J71/$J$239)*$J$240+(K71/$K$239)*$K$240+(L71/$L$239)*$L$240+(M71/$M$239)*$M$240+(N71/$N$239)*$N$240+(O71/$O$239)*$O$240+(P71/$P$239)*$P$240+(Q71/$Q$239)*$Q$240+(R71/$R$239)*$R$240+(S71/$S$239)*$S$240 -> 2.433097211e-12
A72: TOFU | B72: manufacturing | C72: =CONCATENATE(A72," ", B72) -> TOFU manufacturing | D72: =VLOOKUP($A72,manufacturing,D$1,FALSE) -> 1.714281852 | E72: 4.448519872e-08 | F72: 1.806287552e-06 | G72: 2.243200819e-08 | H72: 8.874975357e-08 | I72: 0.01971703648 | J72: 0.002403436445 | K72: 0.01337079328 | L72: 0.05363827184 | M72: 0.0002071632124 | N72: 0.005271463202 | O72: 5.399656226 | P72: 198.7511687 | Q72: 0.6121309951 | R72: 6.294519247 | S72: 1.963129955e-06 | T72: =(D72/$D$239)*$D$240+(E72/$E$239)*$E$240+(F72/$F$239)*$F$240+(G72/$G$239)*$G$240+(H72/$H$239)*$H$240+(I72/$I$239)*$I$240+(J72/$J$239)*$J$240+(K72/$K$239)*$K$240+(L72/$L$239)*$L$240+(M72/$M$239)*$M$240+(N72/$N$239)*$N$240+(O72/$O$239)*$O$240+(P72/$P$239)*$P$240+(Q72/$Q$239)*$Q$240+(R72/$R$239)*$R$240+(S72/$S$239)*$S$240 -> 3.178435319e-12
A73: TOFU | B73: retail | C73: TOFU retail | D73: =VLOOKUP($A73,retail,D$1,FALSE) -> 2.757665403 | E73: 2.134452569e-05 | F73: 1.828342187e-06 | G73: 2.352718975e-08 | H73: 1.007263067e-07 | I73: 0.02773267342 | J73: 0.003210969369 | K73: 0.014191804 | L73: 0.05653684349 | M73: 0.0002110293228 | N73: 0.005536951211 | O73: 5.955140909 | P73: 200.8348908 | Q73: 0.6617638841 | R73: 8.152077904 | S73: 2.353944647e-06 | T73: =(D73/$D$239)*$D$240+(E73/$E$239)*$E$240+(F73/$F$239)*$F$240+(G73/$G$239)*$G$240+(H73/$H$239)*$H$240+(I73/$I$239)*$I$240+(J73/$J$239)*$J$240+(K73/$K$239)*$K$240+(L73/$L$239)*$L$240+(M73/$M$239)*$M$240+(N73/$N$239)*$N$240+(O73/$O$239)*$O$240+(P73/$P$239)*$P$240+(Q73/$Q$239)*$Q$240+(R73/$R$239)*$R$240+(S73/$S$239)*$S$240 -> 4.170429071e-12
A74: TOFU | B74: use | C74: TOFU use | D74: =VLOOKUP($A74,use,D$1,FALSE) -> 3.201402711 | E74: 2.247491563e-05 | F74: 2.055214481e-06 | G74: 3.115177792e-08 | H74: 1.517510938e-07 | I74: 0.03653791654 | J74: 0.004503106481 | K74: 0.02189413006 | L74: 0.06539011581 | M74: 0.000733933986 | N74: 0.01485534848 | O74: 9.694902361 | P74: 229.5532873 | Q74: 3.557171478 | R74: 19.88350276 | S74: 3.331374534e-06 | T74: 5.865449146e-12
A76: Cereal products | B76: BREAD
A77: BREAD | B77: agriculture | C77: =CONCATENATE(A77," ", B77) -> BREAD agriculture | D77: =VLOOKUP($A77,primary,D$1,FALSE) -> 0.249 | E77: 3.61e-09 | F77: 1.79e-06 | G77: 8.71e-09 | H77: 7.6e-08 | I77: 0.00211 | J77: 0.000473 | K77: 0.0106 | L77: 0.0471 | M77: 0.000104 | N77: 0.00617 | O77: 1.63 | P77: 99.9 | Q77: 0.00888 | R77: 1.54 | S77: 5.73e-08 | T77: =(D77/$D$239)*$D$240+(E77/$E$239)*$E$240+(F77/$F$239)*$F$240+(G77/$G$239)*$G$240+(H77/$H$239)*$H$240+(I77/$I$239)*$I$240+(J77/$J$239)*$J$240+(K77/$K$239)*$K$240+(L77/$L$239)*$L$240+(M77/$M$239)*$M$240+(N77/$N$239)*$N$240+(O77/$O$239)*$O$240+(P77/$P$239)*$P$240+(Q77/$Q$239)*$Q$240+(R77/$R$239)*$R$240+(S77/$S$239)*$S$240 -> 1.952154515e-12
A78: BREAD | B78: manufacturing | C78: =CONCATENATE(A78," ", B78) -> BREAD manufacturing | D78: =VLOOKUP($A78,manufacturing,D$1,FALSE) -> 0.8186502726 | E78: 5.495135662e-08 | F78: 1.947679131e-06 | G78: 1.452242925e-08 | H78: 9.500091147e-08 | I78: 0.07117019438 | J78: 0.002000504866 | K78: 0.01425537749 | L78: 0.05518258763 | M78: 0.0001641474229 | N78: 0.007041631623 | O78: 3.411693068 | P78: 112.3265898 | Q78: 0.161642574 | R78: 12.85804556 | S78: 1.12837206e-06 | T78: =(D78/$D$239)*$D$240+(E78/$E$239)*$E$240+(F78/$F$239)*$F$240+(G78/$G$239)*$G$240+(H78/$H$239)*$H$240+(I78/$I$239)*$I$240+(J78/$J$239)*$J$240+(K78/$K$239)*$K$240+(L78/$L$239)*$L$240+(M78/$M$239)*$M$240+(N78/$N$239)*$N$240+(O78/$O$239)*$O$240+(P78/$P$239)*$P$240+(Q78/$Q$239)*$Q$240+(R78/$R$239)*$R$240+(S78/$S$239)*$S$240 -> 3.146167858e-12
A79: BREAD | B79: retail | C79: BREAD retail | D79: =VLOOKUP($A79,retail,D$1,FALSE) -> 0.9029173762 | E79: 7.223233213e-08 | F79: 1.967788401e-06 | G79: 1.541879236e-08 | H79: 1.032240178e-07 | I79: 0.07680146824 | J79: 0.002573570715 | K79: 0.01479839893 | L79: 0.05729973093 | M79: 0.0001677296436 | N79: 0.00723660764 | O79: 4.158662434 | P79: 113.7740339 | Q79: 0.1991083521 | R79: 14.10316288 | S79: 1.323001443e-06 | T79: =(D79/$D$239)*$D$240+(E79/$E$239)*$E$240+(F79/$F$239)*$F$240+(G79/$G$239)*$G$240+(H79/$H$239)*$H$240+(I79/$I$239)*$I$240+(J79/$J$239)*$J$240+(K79/$K$239)*$K$240+(L79/$L$239)*$L$240+(M79/$M$239)*$M$240+(N79/$N$239)*$N$240+(O79/$O$239)*$O$240+(P79/$P$239)*$P$240+(Q79/$Q$239)*$Q$240+(R79/$R$239)*$R$240+(S79/$S$239)*$S$240 -> 3.323528105e-12
A80: BREAD | B80: use | C80: BREAD use | D80: =VLOOKUP($A80,use,D$1,FALSE) -> 1.468826159 | E80: 1.135130818e-07 | F80: 2.887874148e-06 | G80: 2.721756255e-08 | H80: 1.501010088e-07 | I80: 0.1109212626 | J80: 0.004039464691 | K80: 0.02128935333 | L80: 0.08217566955 | M80: 0.0007260245243 | N80: 0.01938217343 | O80: 20.10811456 | P80: 160.3065686 | Q80: 1.586340058 | R80: 20.54534988 | S80: 2.556632742e-06 | T80: 5.735138818e-12
A82: Cereal products | B82: PASTA
A83: PASTA | B83: agriculture | C83: =CONCATENATE(A83," ", B83) -> PASTA agriculture | D83: =VLOOKUP($A83,primary,D$1,FALSE) -> 0.677 | E83: 8.8e-08 | F83: 2.31e-07 | G83: 9.36e-09 | H83: 1.29e-07 | I83: 0.0257 | J83: 0.00174 | K83: 0.0172 | L83: 0.0714 | M83: 0.00028 | N83: 0.0149 | O83: 0.931 | P83: 540 | Q83: 1.44 | R83: 6.66 | S83: 3.39e-06 | T83: =(D83/$D$239)*$D$240+(E83/$E$239)*$E$240+(F83/$F$239)*$F$240+(G83/$G$239)*$G$240+(H83/$H$239)*$H$240+(I83/$I$239)*$I$240+(J83/$J$239)*$J$240+(K83/$K$239)*$K$240+(L83/$L$239)*$L$240+(M83/$M$239)*$M$240+(N83/$N$239)*$N$240+(O83/$O$239)*$O$240+(P83/$P$239)*$P$240+(Q83/$Q$239)*$Q$240+(R83/$R$239)*$R$240+(S83/$S$239)*$S$240 -> 2.440178541e-12
A84: PASTA | B84: manufacturing | C84: =CONCATENATE(A84," ", B84) -> PASTA manufacturing | D84: =VLOOKUP($A84,manufacturing,D$1,FALSE) -> 1.339062218 | E84: 1.552350691e-07 | F84: 3.075297251e-07 | G84: 1.331748484e-08 | H84: 1.399901852e-07 | I84: 0.08408367583 | J84: 0.003329516636 | K84: 0.02092569361 | L84: 0.08217279737 | M84: 0.0003106693253 | N84: 0.01654867856 | O84: 3.388309441 | P84: 530.8570478 | Q84: 6.877010993 | R84: 15.86905548 | S84: 5.794411656e-06 | T84: =(D84/$D$239)*$D$240+(E84/$E$239)*$E$240+(F84/$F$239)*$F$240+(G84/$G$239)*$G$240+(H84/$H$239)*$H$240+(I84/$I$239)*$I$240+(J84/$J$239)*$J$240+(K84/$K$239)*$K$240+(L84/$L$239)*$L$240+(M84/$M$239)*$M$240+(N84/$N$239)*$N$240+(O84/$O$239)*$O$240+(P84/$P$239)*$P$240+(Q84/$Q$239)*$Q$240+(R84/$R$239)*$R$240+(S84/$S$239)*$S$240 -> 4.11278733e-12
A85: PASTA | B85: retail | C85: PASTA retail | D85: =VLOOKUP($A85,retail,D$1,FALSE) -> 1.529829321 | E85: 1.926160447e-07 | F85: 3.286389949e-07 | G85: 1.568784795e-08 | H85: 1.478332916e-07 | I85: 0.09493494969 | J85: 0.004528582485 | K85: 0.02212971505 | L85: 0.08650994067 | M85: 0.000316001546 | N85: 0.01694365458 | O85: 4.024278807 | P85: 532.7444919 | Q85: 13.97727677 | R85: 18.7541728 | S85: 6.328041039e-06 | T85: =(D85/$D$239)*$D$240+(E85/$E$239)*$E$240+(F85/$F$239)*$F$240+(G85/$G$239)*$G$240+(H85/$H$239)*$H$240+(I85/$I$239)*$I$240+(J85/$J$239)*$J$240+(K85/$K$239)*$K$240+(L85/$L$239)*$L$240+(M85/$M$239)*$M$240+(N85/$N$239)*$N$240+(O85/$O$239)*$O$240+(P85/$P$239)*$P$240+(Q85/$Q$239)*$Q$240+(R85/$R$239)*$R$240+(S85/$S$239)*$S$240 -> 5.196763046e-12
A86: PASTA | B86: use | C86: PASTA use | D86: =VLOOKUP($A86,use,D$1,FALSE) -> 3.067767581 | E86: 3.361004457e-07 | F86: 6.988389017e-07 | G86: 3.080362458e-08 | H86: 2.760838983e-07 | I86: 0.2257126659 | J86: 0.00864234465 | K86: 0.04054393309 | L86: 0.1260274515 | M86: 0.001073755004 | N86: 0.02946904 | O86: 20.6582797 | P86: 731.2144026 | Q86: 22.02214743 | R86: 44.35325453 | S86: 9.460210423e-06 | T86: 9.922478455e-12
A88: Cereal products | B88: RICE
A89: RICE | B89: agriculture | C89: =CONCATENATE(A89," ", B89) -> RICE agriculture | D89: =VLOOKUP($A89,primary,D$1,FALSE) -> 3.4 | E89: 8.82e-08 | F89: 1.46e-08 | G89: 1.11e-09 | H89: 1.04e-07 | I89: 0.0138 | J89: 0.0022 | K89: 0.0141 | L89: 0.0609 | M89: 0.000308 | N89: 0.0032 | O89: 20.8 | P89: 323 | Q89: 56.1 | R89: 5.76 | S89: 6.63e-06 | T89: =(D89/$D$239)*$D$240+(E89/$E$239)*$E$240+(F89/$F$239)*$F$240+(G89/$G$239)*$G$240+(H89/$H$239)*$H$240+(I89/$I$239)*$I$240+(J89/$J$239)*$J$240+(K89/$K$239)*$K$240+(L89/$L$239)*$L$240+(M89/$M$239)*$M$240+(N89/$N$239)*$N$240+(O89/$O$239)*$O$240+(P89/$P$239)*$P$240+(Q89/$Q$239)*$Q$240+(R89/$R$239)*$R$240+(S89/$S$239)*$S$240 -> 9.122115931e-12
A90: RICE | B90: manufacturing | C90: =CONCATENATE(A90," ", B90) -> RICE manufacturing | D90: =VLOOKUP($A90,manufacturing,D$1,FALSE) -> 4.117717242 | E90: 1.398843084e-07 | F90: 9.450705451e-08 | G90: 4.999017298e-09 | H90: 1.272772575e-07 | I90: 0.03827152146 | J90: 0.004253143606 | K90: 0.01846100803 | L90: 0.07463635167 | M90: 0.0003655523373 | N90: 0.00420275565 | O90: 26.45877425 | P90: 350.9858007 | Q90: 62.34884321 | R90: 11.21509619 | S90: 8.565496572e-06 | T90: =(D90/$D$239)*$D$240+(E90/$E$239)*$E$240+(F90/$F$239)*$F$240+(G90/$G$239)*$G$240+(H90/$H$239)*$H$240+(I90/$I$239)*$I$240+(J90/$J$239)*$J$240+(K90/$K$239)*$K$240+(L90/$L$239)*$L$240+(M90/$M$239)*$M$240+(N90/$N$239)*$N$240+(O90/$O$239)*$O$240+(P90/$P$239)*$P$240+(Q90/$Q$239)*$Q$240+(R90/$R$239)*$R$240+(S90/$S$239)*$S$240 -> 1.078964247e-11
A91: RICE | B91: retail | C91: RICE retail | D91: =VLOOKUP($A91,retail,D$1,FALSE) -> 4.205884346 | E91: 1.580652839e-07 | F91: 1.153163243e-07 | G91: 5.925380412e-09 | H91: 1.359403639e-07 | I91: 0.04416279533 | J91: 0.004857209455 | K91: 0.01903102947 | L91: 0.07686349497 | M91: 0.000369194558 | N91: 0.004407731666 | O91: 27.21774362 | P91: 352.5132448 | Q91: 62.38680899 | R91: 12.5202135 | S91: 8.770125955e-06 | T91: =(D91/$D$239)*$D$240+(E91/$E$239)*$E$240+(F91/$F$239)*$F$240+(G91/$G$239)*$G$240+(H91/$H$239)*$H$240+(I91/$I$239)*$I$240+(J91/$J$239)*$J$240+(K91/$K$239)*$K$240+(L91/$L$239)*$L$240+(M91/$M$239)*$M$240+(N91/$N$239)*$N$240+(O91/$O$239)*$O$240+(P91/$P$239)*$P$240+(Q91/$Q$239)*$Q$240+(R91/$R$239)*$R$240+(S91/$S$239)*$S$240 -> 1.097465893e-11
A92: RICE | B92: use | C92: RICE use | D92: =VLOOKUP($A92,use,D$1,FALSE) -> 6.064658771 | E92: 2.29692608e-07 | F92: 3.690039757e-07 | G92: 1.474135582e-08 | H92: 1.926330443e-07 | I92: 0.06723490487 | J92: 0.007102456173 | K92: 0.02671203433 | L92: 0.1069630356 | M92: 0.0007451264486 | N92: 0.008893362577 | O92: 51.48701414 | P92: 485.5018215 | Q92: 86.74545657 | R92: 20.30167726 | S92: 1.271877493e-05 | T92: 1.606113382e-11
A94: Vegetables | B94: TOMATOES
A95: TOMATOES | B95: agriculture | C95: =CONCATENATE(A95," ", B95) -> TOMATOES agriculture | D95: =VLOOKUP($A95,primary,D$1,FALSE) -> 0.132 | E95: 4.02e-09 | F95: 8.6e-09 | G95: 5.67e-10 | H95: 1.74e-08 | I95: 0.00434 | J95: 0.000261 | K95: 0.00251 | L95: 0.0102 | M95: 0.000155 | N95: 0.000458 | O95: 2.86 | P95: 8.45 | Q95: 1.31 | R95: 1.86 | S95: 3.27e-07 | T95: =(D95/$D$239)*$D$240+(E95/$E$239)*$E$240+(F95/$F$239)*$F$240+(G95/$G$239)*$G$240+(H95/$H$239)*$H$240+(I95/$I$239)*$I$240+(J95/$J$239)*$J$240+(K95/$K$239)*$K$240+(L95/$L$239)*$L$240+(M95/$M$239)*$M$240+(N95/$N$239)*$N$240+(O95/$O$239)*$O$240+(P95/$P$239)*$P$240+(Q95/$Q$239)*$Q$240+(R95/$R$239)*$R$240+(S95/$S$239)*$S$240 -> 4.983653904e-13
A96: TOMATOES | B96: manufacturing | C96: =CONCATENATE(A96," ", B96) -> TOMATOES manufacturing | D96: =VLOOKUP($A96,manufacturing,D$1,FALSE) -> 0.3201871147 | E96: 1.701581515e-06 | F96: 4.766123635e-08 | G96: 2.342060825e-09 | H96: 8.560806203e-09 | I96: 0.008386510168 | J96: 0.000446810129 | K96: 0.003014845907 | L96: 0.01160511395 | M96: 0.0001728163703 | N96: 0.0006112474129 | O96: 4.544393068 | P96: -14.11830495 | Q96: 1.300567837 | R96: 3.362413984 | S96: 1.999656271e-06 | T96: =(D96/$D$239)*$D$240+(E96/$E$239)*$E$240+(F96/$F$239)*$F$240+(G96/$G$239)*$G$240+(H96/$H$239)*$H$240+(I96/$I$239)*$I$240+(J96/$J$239)*$J$240+(K96/$K$239)*$K$240+(L96/$L$239)*$L$240+(M96/$M$239)*$M$240+(N96/$N$239)*$N$240+(O96/$O$239)*$O$240+(P96/$P$239)*$P$240+(Q96/$Q$239)*$Q$240+(R96/$R$239)*$R$240+(S96/$S$239)*$S$240 -> 7.472582818e-13
A97: TOMATOES | B97: retail | C97: TOMATOES retail | D97: =VLOOKUP($A97,retail,D$1,FALSE) -> 0.4540226326 | E97: 1.787786392e-06 | F97: 1.010075854e-07 | G97: 4.576876393e-09 | H97: 1.962633799e-08 | I97: 0.01558287949 | J97: 0.001218139374 | K97: 0.00379295313 | L97: 0.01469083045 | M97: 0.0001843174739 | N97: 0.0009031274975 | O97: 7.472239897 | P97: -12.06108435 | Q97: 1.341796728 | R97: 4.898000554 | S97: 2.230803185e-06 | T97: =(D97/$D$239)*$D$240+(E97/$E$239)*$E$240+(F97/$F$239)*$F$240+(G97/$G$239)*$G$240+(H97/$H$239)*$H$240+(I97/$I$239)*$I$240+(J97/$J$239)*$J$240+(K97/$K$239)*$K$240+(L97/$L$239)*$L$240+(M97/$M$239)*$M$240+(N97/$N$239)*$N$240+(O97/$O$239)*$O$240+(P97/$P$239)*$P$240+(Q97/$Q$239)*$Q$240+(R97/$R$239)*$R$240+(S97/$S$239)*$S$240 -> 1.060967402e-12
A98: TOMATOES | B98: use | C98: TOMATOES use | D98: =VLOOKUP($A98,use,D$1,FALSE) -> 0.8094409946 | E98: 2.46609461e-06 | F98: 3.022367318e-07 | G98: 1.154280055e-08 | H98: 3.312040221e-08 | I98: 0.0279332885 | J98: 0.002040139109 | K98: 0.005779916234 | L98: 0.02168483828 | M98: 0.0003998199459 | N98: 0.002201159067 | O98: 21.26859967 | P98: -10.16840419 | Q98: 3.404736777 | R98: 8.087197238 | S98: 3.763846066e-06 | T98: 2.255848759e-12
A100: Tubers | B100: POTATOES
A101: POTATOES | B101: agriculture | C101: =CONCATENATE(A101," ", B101) -> POTATOES agriculture | D101: =VLOOKUP($A101,primary,D$1,FALSE) -> 0.0956 | E101: 3.82e-09 | F101: 7.83e-07 | G101: 7.01e-09 | H101: 2.6e-08 | I101: 0.00313 | J101: 0.000293 | K101: 0.00357 | L101: 0.0155 | M101: 8.7e-05 | N101: 0.00185 | O101: 0.974 | P101: 31.7 | Q101: 0.0198 | R101: 0.997 | S101: 2.61e-07 | T101: =(D101/$D$239)*$D$240+(E101/$E$239)*$E$240+(F101/$F$239)*$F$240+(G101/$G$239)*$G$240+(H101/$H$239)*$H$240+(I101/$I$239)*$I$240+(J101/$J$239)*$J$240+(K101/$K$239)*$K$240+(L101/$L$239)*$L$240+(M101/$M$239)*$M$240+(N101/$N$239)*$N$240+(O101/$O$239)*$O$240+(P101/$P$239)*$P$240+(Q101/$Q$239)*$Q$240+(R101/$R$239)*$R$240+(S101/$S$239)*$S$240 -> 8.425850717e-13
A102: POTATOES | B102: manufacturing | C102: =CONCATENATE(A102," ", B102) -> POTATOES manufacturing | D102: =VLOOKUP($A102,manufacturing,D$1,FALSE) -> 0.2926 | E102: 1.54852e-06 | F102: 7.9231e-07 | G102: 8.428e-09 | H102: 3.173e-08 | I102: 0.01277 | J102: 0.000594 | K102: 0.004315 | L102: 0.016752 | M102: 9.714e-05 | N102: 0.001961 | O102: 1.0706 | P102: 33.616 | Q102: 0.074 | R102: 3.187 | S102: 2.572e-06 | T102: =(D102/$D$239)*$D$240+(E102/$E$239)*$E$240+(F102/$F$239)*$F$240+(G102/$G$239)*$G$240+(H102/$H$239)*$H$240+(I102/$I$239)*$I$240+(J102/$J$239)*$J$240+(K102/$K$239)*$K$240+(L102/$L$239)*$L$240+(M102/$M$239)*$M$240+(N102/$N$239)*$N$240+(O102/$O$239)*$O$240+(P102/$P$239)*$P$240+(Q102/$Q$239)*$Q$240+(R102/$R$239)*$R$240+(S102/$S$239)*$S$240 -> 1.141837761e-12
A103: POTATOES | B103: retail | C103: POTATOES retail | D103: =VLOOKUP($A103,retail,D$1,FALSE) -> 0.4242848625 | E103: 2.203803414e-06 | F103: 8.321924443e-07 | G103: 1.01222709e-08 | H103: 4.095587225e-08 | I103: 0.01895945852 | J103: 0.001232730472 | K103: 0.004960075056 | L103: 0.01927200155 | M103: 0.0001056427725 | N103: 0.002197416059 | O103: 3.15999278 | P103: 35.26205442 | Q103: 0.1132302234 | R103: 4.509910599 | S103: 2.78270284e-06 | T103: =(D103/$D$239)*$D$240+(E103/$E$239)*$E$240+(F103/$F$239)*$F$240+(G103/$G$239)*$G$240+(H103/$H$239)*$H$240+(I103/$I$239)*$I$240+(J103/$J$239)*$J$240+(K103/$K$239)*$K$240+(L103/$L$239)*$L$240+(M103/$M$239)*$M$240+(N103/$N$239)*$N$240+(O103/$O$239)*$O$240+(P103/$P$239)*$P$240+(Q103/$Q$239)*$Q$240+(R103/$R$239)*$R$240+(S103/$S$239)*$S$240 -> 1.411699463e-12
A104: POTATOES | B104: use | C104: POTATOES use | D104: =VLOOKUP($A104,use,D$1,FALSE) -> 1.129792649 | E104: 2.879778163e-06 | F104: 1.238152631e-06 | G104: 1.939658586e-08 | H104: 6.356863527e-08 | I104: 0.04820970466 | J104: 0.002516793392 | K104: 0.008110824563 | L104: 0.02896042597 | M104: 0.0004514099284 | N104: 0.006247347757 | O104: 14.12751308 | P104: 52.35988963 | Q104: 1.433722427 | R104: 11.99262368 | S104: 4.629713257e-06 | T104: 3.05615608e-12
A106: Oils | B106: SUNFLOWER OIL
A107: SUNFLOWER OIL | B107: agriculture | C107: =CONCATENATE(A107," ", B107) -> SUNFLOWER OIL agriculture | D107: =VLOOKUP($A107,primary,D$1,FALSE) -> 5.233835518 | E107: 2.354048776e-07 | F107: 1.453754635e-05 | G107: 3.725018156e-07 | H107: 2.717655318e-07 | I107: 0.08145636932 | J107: 0.01104532925 | K107: 0.03152010722 | L107: 0.1314857165 | M107: 0.003109561104 | N107: 0.06725488008 | O107: 47.55484683 | P107: 3220.137221 | Q107: 2.391328891 | R107: 34.77558657 | S107: 1.819814691e-05 | T107: =(D107/$D$239)*$D$240+(E107/$E$239)*$E$240+(F107/$F$239)*$F$240+(G107/$G$239)*$G$240+(H107/$H$239)*$H$240+(I107/$I$239)*$I$240+(J107/$J$239)*$J$240+(K107/$K$239)*$K$240+(L107/$L$239)*$L$240+(M107/$M$239)*$M$240+(N107/$N$239)*$N$240+(O107/$O$239)*$O$240+(P107/$P$239)*$P$240+(Q107/$Q$239)*$Q$240+(R107/$R$239)*$R$240+(S107/$S$239)*$S$240 -> 2.152325472e-11
A108: SUNFLOWER OIL | B108: manufacturing | C108: =CONCATENATE(A108," ", B108) -> SUNFLOWER OIL manufacturing | D108: =VLOOKUP($A108,manufacturing,D$1,FALSE) -> 7.530376711 | E108: 2.999637251e-07 | F108: 1.723251818e-05 | G108: 4.443919101e-07 | H108: 3.364251288e-07 | I108: 0.1205754241 | J108: 0.01795000595 | K108: 0.04036381457 | L108: 0.1645352877 | M108: 0.003986860165 | N108: 0.08081537509 | O108: 58.11868808 | P108: 3803.933806 | Q108: 2.990435569 | R108: 50.44371551 | S108: 2.268707594e-05 | T108: =(D108/$D$239)*$D$240+(E108/$E$239)*$E$240+(F108/$F$239)*$F$240+(G108/$G$239)*$G$240+(H108/$H$239)*$H$240+(I108/$I$239)*$I$240+(J108/$J$239)*$J$240+(K108/$K$239)*$K$240+(L108/$L$239)*$L$240+(M108/$M$239)*$M$240+(N108/$N$239)*$N$240+(O108/$O$239)*$O$240+(P108/$P$239)*$P$240+(Q108/$Q$239)*$Q$240+(R108/$R$239)*$R$240+(S108/$S$239)*$S$240 -> 2.669633316e-11
A109: SUNFLOWER OIL | B109: retail | C109: SUNFLOWER OIL retail | D109: =VLOOKUP($A109,retail,D$1,FALSE) -> 7.613460263 | E109: 3.177042129e-07 | F109: 1.724927281e-05 | G109: 4.451560917e-07 | H109: 3.44821682e-07 | I109: 0.126331061 | J109: 0.01853553888 | K109: 0.04090982529 | L109: 0.1666738594 | M109: 0.003989526275 | N109: 0.0810108631 | O109: 58.60717276 | P109: 3805.417528 | Q109: 3.028068458 | R109: 51.72127416 | S109: 2.288689064e-05 | T109: =(D109/$D$239)*$D$240+(E109/$E$239)*$E$240+(F109/$F$239)*$F$240+(G109/$G$239)*$G$240+(H109/$H$239)*$H$240+(I109/$I$239)*$I$240+(J109/$J$239)*$J$240+(K109/$K$239)*$K$240+(L109/$L$239)*$L$240+(M109/$M$239)*$M$240+(N109/$N$239)*$N$240+(O109/$O$239)*$O$240+(P109/$P$239)*$P$240+(Q109/$Q$239)*$Q$240+(R109/$R$239)*$R$240+(S109/$S$239)*$S$240 -> 2.686608252e-11
A110: SUNFLOWER OIL | B110: use | C110: SUNFLOWER OIL use | D110: =VLOOKUP($A110,use,D$1,FALSE) -> 8.538614474 | E110: 3.404247838e-07 | F110: 1.819220115e-05 | G110: 4.710748818e-07 | H110: 3.674554532e-07 | I110: 0.1366980112 | J110: 0.01991144309 | K110: 0.0435765262 | L110: 0.1768260231 | M110: 0.004205545224 | N110: 0.08575013456 | O110: 64.04306753 | P110: 4007.481873 | Q110: 3.998170062 | R110: 58.88651229 | S110: 2.440545525e-05 | T110: 2.881105587e-11
A112: Oils | B112: OLIVE OIL
A113: OLIVE OIL | B113: agriculture | C113: =CONCATENATE(A113," ", B113) -> OLIVE OIL agriculture | D113: =VLOOKUP($A113,primary,D$1,FALSE) -> 1.12 | E113: 8.8e-08 | F113: 2.23e-07 | G113: 7.8e-09 | H113: 1.27e-07 | I113: 0.0624 | J113: 0.0055 | K113: 0.0173 | L113: 0.0648 | M113: 0.000242 | N113: 0.0101 | O113: 4.16 | P113: 1160 | Q113: 26.3 | R113: 15.8 | S113: 6.88e-06 | T113: =(D113/$D$239)*$D$240+(E113/$E$239)*$E$240+(F113/$F$239)*$F$240+(G113/$G$239)*$G$240+(H113/$H$239)*$H$240+(I113/$I$239)*$I$240+(J113/$J$239)*$J$240+(K113/$K$239)*$K$240+(L113/$L$239)*$L$240+(M113/$M$239)*$M$240+(N113/$N$239)*$N$240+(O113/$O$239)*$O$240+(P113/$P$239)*$P$240+(Q113/$Q$239)*$Q$240+(R113/$R$239)*$R$240+(S113/$S$239)*$S$240 -> 6.010891013e-12
A114: OLIVE OIL | B114: manufacturing | C114: =CONCATENATE(A114," ", B114) -> OLIVE OIL manufacturing | D114: =VLOOKUP($A114,manufacturing,D$1,FALSE) -> 2.023 | E114: 2.272e-07 | F114: 2.709e-07 | G114: 1.142e-08 | H114: 1.3385e-07 | I114: 0.1337 | J114: 0.006958 | K114: 0.019639 | L114: 0.06827 | M114: 0.0002634 | N114: 0.010534 | O114: 4.5604 | P114: 1149.94 | Q114: 26.5015 | R114: 30.53 | S114: 1.3891e-05 | T114: =(D114/$D$239)*$D$240+(E114/$E$239)*$E$240+(F114/$F$239)*$F$240+(G114/$G$239)*$G$240+(H114/$H$239)*$H$240+(I114/$I$239)*$I$240+(J114/$J$239)*$J$240+(K114/$K$239)*$K$240+(L114/$L$239)*$L$240+(M114/$M$239)*$M$240+(N114/$N$239)*$N$240+(O114/$O$239)*$O$240+(P114/$P$239)*$P$240+(Q114/$Q$239)*$Q$240+(R114/$R$239)*$R$240+(S114/$S$239)*$S$240 -> 7.309846931e-12
A115: OLIVE OIL | B115: retail | C115: OLIVE OIL retail | D115: =VLOOKUP($A115,retail,D$1,FALSE) -> 2.163 | E115: 2.588e-07 | F115: 2.943e-07 | G115: 1.249e-08 | H115: 1.4895e-07 | I115: 0.14342 | J115: 0.008008 | K115: 0.020585 | L115: 0.07204 | M115: 0.00026598 | N115: 0.010877 | O115: 4.9664 | P115: 1152.56 | Q115: 26.5469 | R115: 32.75 | S115: 1.4246e-05 | T115: =(D115/$D$239)*$D$240+(E115/$E$239)*$E$240+(F115/$F$239)*$F$240+(G115/$G$239)*$G$240+(H115/$H$239)*$H$240+(I115/$I$239)*$I$240+(J115/$J$239)*$J$240+(K115/$K$239)*$K$240+(L115/$L$239)*$L$240+(M115/$M$239)*$M$240+(N115/$N$239)*$N$240+(O115/$O$239)*$O$240+(P115/$P$239)*$P$240+(Q115/$Q$239)*$Q$240+(R115/$R$239)*$R$240+(S115/$S$239)*$S$240 -> 7.585323878e-12
A116: OLIVE OIL | B116: use | C116: OLIVE OIL use | D116: =VLOOKUP($A116,use,D$1,FALSE) -> 2.696055949 | E116: 3.131472002e-07 | F116: 4.617077935e-07 | G116: 1.883692841e-08 | H116: 1.783371249e-07 | I116: 0.1726342815 | J116: 0.009629026836 | K116: 0.02435593109 | L116: 0.08467079709 | M116: 0.0003230178068 | N116: 0.01287118849 | O116: 13.68765047 | P116: 1340.35767 | Q116: 32.28854043 | R116: 39.7854236 | S116: 1.722840107e-05 | T116: 9.438580482e-12
A118: Fruits | B118: APPLES
A119: APPLES | B119: agriculture | C119: =CONCATENATE(A119," ", B119) -> APPLES agriculture | D119: =VLOOKUP($A119,primary,D$1,FALSE) -> 0.0676 | E119: 1.98e-09 | F119: 4.14e-09 | G119: 1.9e-10 | H119: 9.18e-09 | I119: 0.00259 | J119: 0.000309 | K119: 0.00112 | L119: 0.00472 | M119: 5.07e-06 | N119: 0.000724 | O119: 2.87 | P119: 41.9 | Q119: 4.29 | R119: 0.888 | S119: 1.24e-07 | T119: =(D119/$D$239)*$D$240+(E119/$E$239)*$E$240+(F119/$F$239)*$F$240+(G119/$G$239)*$G$240+(H119/$H$239)*$H$240+(I119/$I$239)*$I$240+(J119/$J$239)*$J$240+(K119/$K$239)*$K$240+(L119/$L$239)*$L$240+(M119/$M$239)*$M$240+(N119/$N$239)*$N$240+(O119/$O$239)*$O$240+(P119/$P$239)*$P$240+(Q119/$Q$239)*$Q$240+(R119/$R$239)*$R$240+(S119/$S$239)*$S$240 -> 6.875918913e-13
A120: APPLES | B120: manufacturing | C120: =CONCATENATE(A120," ", B120) -> APPLES manufacturing | D120: =VLOOKUP($A120,manufacturing,D$1,FALSE) -> 0.9296015022 | E120: 1.494436137e-05 | F120: 8.609838069e-08 | G120: 4.475327473e-09 | H120: 1.780111491e-08 | I120: 0.02678294586 | J120: 0.001069812197 | K120: 0.002823553923 | L120: 0.00864425265 | M120: 3.905058865e-05 | N120: 0.001151868385 | O120: 8.159170875 | P120: 51.70311282 | Q120: 5.098957395 | R120: 4.759835123 | S120: 5.991163199e-07 | T120: =(D120/$D$239)*$D$240+(E120/$E$239)*$E$240+(F120/$F$239)*$F$240+(G120/$G$239)*$G$240+(H120/$H$239)*$H$240+(I120/$I$239)*$I$240+(J120/$J$239)*$J$240+(K120/$K$239)*$K$240+(L120/$L$239)*$L$240+(M120/$M$239)*$M$240+(N120/$N$239)*$N$240+(O120/$O$239)*$O$240+(P120/$P$239)*$P$240+(Q120/$Q$239)*$Q$240+(R120/$R$239)*$R$240+(S120/$S$239)*$S$240 -> 1.891124729e-12
A121: APPLES | B121: retail | C121: APPLES retail | D121: =VLOOKUP($A121,retail,D$1,FALSE) -> 1.04083702 | E121: 1.496196625e-05 | F121: 1.362447298e-07 | G121: 6.573143041e-09 | H121: 2.66266467e-08 | I121: 0.03261931517 | J121: 0.001679141442 | K121: 0.003461661146 | L121: 0.01114996915 | M121: 5.028169222e-05 | N121: 0.001390748469 | O121: 11.0300177 | P121: 53.26033341 | Q121: 5.137486286 | R121: 5.975421693 | S121: 7.912632345e-07 | T121: =(D121/$D$239)*$D$240+(E121/$E$239)*$E$240+(F121/$F$239)*$F$240+(G121/$G$239)*$G$240+(H121/$H$239)*$H$240+(I121/$I$239)*$I$240+(J121/$J$239)*$J$240+(K121/$K$239)*$K$240+(L121/$L$239)*$L$240+(M121/$M$239)*$M$240+(N121/$N$239)*$N$240+(O121/$O$239)*$O$240+(P121/$P$239)*$P$240+(Q121/$Q$239)*$Q$240+(R121/$R$239)*$R$240+(S121/$S$239)*$S$240 -> 2.16349899e-12
A122: APPLES | B122: use | C122: APPLES use | D122: =VLOOKUP($A122,use,D$1,FALSE) -> 1.654799002 | E122: 2.053702092e-05 | F122: 3.503430066e-07 | G122: 1.429716358e-08 | H122: 4.261302047e-08 | I122: 0.05092388478 | J122: 0.00268411506 | K122: 0.005321169068 | L122: 0.01687768972 | M122: 0.0001228124196 | N122: 0.002885449289 | O122: 26.23735332 | P122: 78.8554354 | Q122: 8.43375399 | R122: 9.496041187 | S122: 1.756728492e-06 | T122: 3.739339283e-12
A124: Fruits | B124: ORANGES
A125: ORANGES | B125: agriculture | C125: =CONCATENATE(A125," ", B125) -> ORANGES agriculture | D125: =VLOOKUP($A125,primary,D$1,FALSE) -> 0.211 | E125: 8.03e-09 | F125: 8.19e-09 | G125: 7.63e-10 | H125: 3.21e-08 | I125: 0.0107 | J125: 0.000584 | K125: 0.00445 | L125: 0.0186 | M125: 6.93e-05 | N125: 0.00319 | O125: 5.19 | P125: 53.3 | Q125: 7.21 | R125: 2.81 | S125: 2.12e-07 | T125: =(D125/$D$239)*$D$240+(E125/$E$239)*$E$240+(F125/$F$239)*$F$240+(G125/$G$239)*$G$240+(H125/$H$239)*$H$240+(I125/$I$239)*$I$240+(J125/$J$239)*$J$240+(K125/$K$239)*$K$240+(L125/$L$239)*$L$240+(M125/$M$239)*$M$240+(N125/$N$239)*$N$240+(O125/$O$239)*$O$240+(P125/$P$239)*$P$240+(Q125/$Q$239)*$Q$240+(R125/$R$239)*$R$240+(S125/$S$239)*$S$240 -> 1.424695768e-12
A126: ORANGES | B126: manufacturing | C126: =CONCATENATE(A126," ", B126) -> ORANGES manufacturing | D126: =VLOOKUP($A126,manufacturing,D$1,FALSE) -> 0.8456387948 | E126: 7.438309694e-06 | F126: 1.292908726e-07 | G126: 6.31628892e-09 | H126: 3.573882946e-08 | I126: 0.0273459233 | J126: 0.001395173113 | K126: 0.006887518057 | L126: 0.02652679125 | M126: 0.0001212052589 | N126: 0.004354050211 | O126: 13.31771707 | P126: 46.15555149 | Q126: 8.961897227 | R126: 6.449466425 | S126: 2.021617287e-06 | T126: =(D126/$D$239)*$D$240+(E126/$E$239)*$E$240+(F126/$F$239)*$F$240+(G126/$G$239)*$G$240+(H126/$H$239)*$H$240+(I126/$I$239)*$I$240+(J126/$J$239)*$J$240+(K126/$K$239)*$K$240+(L126/$L$239)*$L$240+(M126/$M$239)*$M$240+(N126/$N$239)*$N$240+(O126/$O$239)*$O$240+(P126/$P$239)*$P$240+(Q126/$Q$239)*$Q$240+(R126/$R$239)*$R$240+(S126/$S$239)*$S$240 -> 2.605281913e-12
A127: ORANGES | B127: retail | C127: ORANGES retail | D127: =VLOOKUP($A127,retail,D$1,FALSE) -> 0.9625743127 | E127: 7.457214572e-06 | F127: 1.804372217e-07 | G127: 8.457104488e-09 | H127: 4.519436125e-08 | I127: 0.03355229261 | J127: 0.002047502358 | K127: 0.00756462528 | L127: 0.02919250776 | M127: 0.0001325163625 | N127: 0.004606930296 | O127: 16.2055639 | P127: 47.82277209 | Q127: 9.001126117 | R127: 7.755052995 | S127: 2.228764201e-06 | T127: =(D127/$D$239)*$D$240+(E127/$E$239)*$E$240+(F127/$F$239)*$F$240+(G127/$G$239)*$G$240+(H127/$H$239)*$H$240+(I127/$I$239)*$I$240+(J127/$J$239)*$J$240+(K127/$K$239)*$K$240+(L127/$L$239)*$L$240+(M127/$M$239)*$M$240+(N127/$N$239)*$N$240+(O127/$O$239)*$O$240+(P127/$P$239)*$P$240+(Q127/$Q$239)*$Q$240+(R127/$R$239)*$R$240+(S127/$S$239)*$S$240 -> 2.888710165e-12
A128: ORANGES | B128: use | C128: ORANGES use | D128: =VLOOKUP($A128,use,D$1,FALSE) -> 1.564642751 | E128: 1.0242677e-05 | F128: 4.111837089e-07 | G128: 1.694447284e-08 | H128: 6.820713644e-08 | I128: 0.05217168922 | J128: 0.00320241124 | K128: 0.01097107776 | L128: 0.04172339974 | M128: 0.00027055818 | N128: 0.007492821342 | O128: 33.33586799 | P128: 71.21430354 | Q128: 13.68460145 | R128: 11.93963639 | S128: 3.728229105e-06 | T128: 4.750001636e-12
A130: Fruits | B130: BANANAS
A131: BANANAS | B131: agriculture | C131: =CONCATENATE(A131," ", B131) -> BANANAS agriculture | D131: =VLOOKUP($A131,primary,D$1,FALSE) -> 0.139 | E131: 1.93e-09 | F131: 6.24e-09 | G131: 1.64e-10 | H131: 2.95e-08 | I131: 0.000913 | J131: 0.000202 | K131: 0.00409 | L131: 0.018 | M131: 6.08e-05 | N131: 0.000792 | O131: 0.474 | P131: 40 | Q131: 4.05 | R131: 0.978 | S131: 2.69e-07 | T131: =(D131/$D$239)*$D$240+(E131/$E$239)*$E$240+(F131/$F$239)*$F$240+(G131/$G$239)*$G$240+(H131/$H$239)*$H$240+(I131/$I$239)*$I$240+(J131/$J$239)*$J$240+(K131/$K$239)*$K$240+(L131/$L$239)*$L$240+(M131/$M$239)*$M$240+(N131/$N$239)*$N$240+(O131/$O$239)*$O$240+(P131/$P$239)*$P$240+(Q131/$Q$239)*$Q$240+(R131/$R$239)*$R$240+(S131/$S$239)*$S$240 -> 7.742540154e-13
A132: BANANAS | B132: manufacturing | C132: =CONCATENATE(A132," ", B132) -> BANANAS manufacturing | D132: =VLOOKUP($A132,manufacturing,D$1,FALSE) -> 0.7712818515 | E132: 4.058226251e-06 | F132: 7.512439424e-08 | G132: 4.098323983e-09 | H132: 3.684501673e-08 | I132: 0.02549598385 | J132: 0.002964399603 | K132: 0.008375477486 | L132: 0.02904848237 | M132: 8.246163346e-05 | N132: 0.001807131623 | O132: 2.440656226 | P132: 16.11432663 | Q132: 4.599699416 | R132: 9.428203458 | S132: 2.769024692e-06 | T132: =(D132/$D$239)*$D$240+(E132/$E$239)*$E$240+(F132/$F$239)*$F$240+(G132/$G$239)*$G$240+(H132/$H$239)*$H$240+(I132/$I$239)*$I$240+(J132/$J$239)*$J$240+(K132/$K$239)*$K$240+(L132/$L$239)*$L$240+(M132/$M$239)*$M$240+(N132/$N$239)*$N$240+(O132/$O$239)*$O$240+(P132/$P$239)*$P$240+(Q132/$Q$239)*$Q$240+(R132/$R$239)*$R$240+(S132/$S$239)*$S$240 -> 1.777360779e-12
A133: BANANAS | B133: retail | C133: BANANAS retail | D133: =VLOOKUP($A133,retail,D$1,FALSE) -> 0.9081173695 | E133: 4.145031129e-06 | F133: 1.288707433e-07 | G133: 6.350139551e-09 | H133: 4.811054851e-08 | I133: 0.03284235317 | J133: 0.003752728848 | K133: 0.009169584709 | L133: 0.03219419887 | M133: 9.399273703e-05 | N133: 0.002104011708 | O133: 5.374503055 | P133: 18.22154723 | Q133: 4.641228307 | R133: 11.00379003 | S133: 3.006171606e-06 | T133: =(D133/$D$239)*$D$240+(E133/$E$239)*$E$240+(F133/$F$239)*$F$240+(G133/$G$239)*$G$240+(H133/$H$239)*$H$240+(I133/$I$239)*$I$240+(J133/$J$239)*$J$240+(K133/$K$239)*$K$240+(L133/$L$239)*$L$240+(M133/$M$239)*$M$240+(N133/$N$239)*$N$240+(O133/$O$239)*$O$240+(P133/$P$239)*$P$240+(Q133/$Q$239)*$Q$240+(R133/$R$239)*$R$240+(S133/$S$239)*$S$240 -> 2.095699659e-12
A134: BANANAS | B134: use | C134: BANANAS use | D134: =VLOOKUP($A134,use,D$1,FALSE) -> 1.569841868 | E134: 5.698816485e-06 | F134: 3.402877989e-07 | G134: 1.41672603e-08 | H134: 7.215339333e-08 | I134: 0.04930983539 | J134: 0.005572942228 | K134: 0.01318026819 | L134: 0.04600794585 | M134: 0.0002306277006 | N134: 0.004292462511 | O134: 18.39614571 | P134: 29.35855682 | Q134: 7.364566021 | R134: 16.23776579 | S134: 4.760751582e-06 | T134: 3.650219785e-12
A136: Sugar | B136: SUGAR
A137: SUGAR | B137: agriculture | C137: =CONCATENATE(A137," ", B137) -> SUGAR agriculture | D137: =VLOOKUP($A137,primary,D$1,FALSE) -> 0.449 | E137: 1.89e-08 | F137: 2.46e-06 | G137: 1.88e-08 | H137: 2.22e-07 | I137: 0.002 | J137: 0.000722 | K137: 0.0313 | L137: 0.14 | M137: 0.000209 | N137: 0.0157 | O137: 2.34 | P137: 122 | Q137: 0.0318 | R137: 2.07 | S137: 1.51e-06 | T137: =(D137/$D$239)*$D$240+(E137/$E$239)*$E$240+(F137/$F$239)*$F$240+(G137/$G$239)*$G$240+(H137/$H$239)*$H$240+(I137/$I$239)*$I$240+(J137/$J$239)*$J$240+(K137/$K$239)*$K$240+(L137/$L$239)*$L$240+(M137/$M$239)*$M$240+(N137/$N$239)*$N$240+(O137/$O$239)*$O$240+(P137/$P$239)*$P$240+(Q137/$Q$239)*$Q$240+(R137/$R$239)*$R$240+(S137/$S$239)*$S$240 -> 3.726773549e-12
A138: SUGAR | B138: manufacturing | C138: =CONCATENATE(A138," ", B138) -> SUGAR manufacturing | D138: =VLOOKUP($A138,manufacturing,D$1,FALSE) -> 0.77 | E138: 2.191e-08 | F138: 2.46344e-06 | G138: 1.9175e-08 | H138: 2.27882e-07 | I138: 0.00532 | J138: 0.0016449 | K138: 0.0322301 | L138: 0.14359 | M138: 0.000210912 | N138: 0.0160307 | O138: 2.3802 | P138: 122.2801 | Q138: 0.10301 | R138: 7.114 | S138: 1.6995e-06 | T138: =(D138/$D$239)*$D$240+(E138/$E$239)*$E$240+(F138/$F$239)*$F$240+(G138/$G$239)*$G$240+(H138/$H$239)*$H$240+(I138/$I$239)*$I$240+(J138/$J$239)*$J$240+(K138/$K$239)*$K$240+(L138/$L$239)*$L$240+(M138/$M$239)*$M$240+(N138/$N$239)*$N$240+(O138/$O$239)*$O$240+(P138/$P$239)*$P$240+(Q138/$Q$239)*$Q$240+(R138/$R$239)*$R$240+(S138/$S$239)*$S$240 -> 4.039026722e-12
A139: SUGAR | B139: retail | C139: SUGAR retail | D139: =VLOOKUP($A139,retail,D$1,FALSE) -> 0.8482 | E139: 3.931e-08 | F139: 2.47624e-06 | G139: 1.9777e-08 | H139: 2.36032e-07 | I139: 0.01096 | J139: 0.0022149 | K139: 0.0327541 | L139: 0.14564 | M139: 0.000212592 | N139: 0.0162167 | O139: 2.5982 | P139: 123.7201 | Q139: 0.14031 | R139: 8.374 | S139: 1.8965e-06 | T139: =(D139/$D$239)*$D$240+(E139/$E$239)*$E$240+(F139/$F$239)*$F$240+(G139/$G$239)*$G$240+(H139/$H$239)*$H$240+(I139/$I$239)*$I$240+(J139/$J$239)*$J$240+(K139/$K$239)*$K$240+(L139/$L$239)*$L$240+(M139/$M$239)*$M$240+(N139/$N$239)*$N$240+(O139/$O$239)*$O$240+(P139/$P$239)*$P$240+(Q139/$Q$239)*$Q$240+(R139/$R$239)*$R$240+(S139/$S$239)*$S$240 -> 4.194092727e-12
A140: SUGAR | B140: use | C140: SUGAR use | D140: =VLOOKUP($A140,use,D$1,FALSE) -> 1.19961673 | E140: 5.902105178e-08 | F140: 3.137209199e-06 | G140: 2.832523997e-08 | H140: 2.897953177e-07 | I140: 0.01830474968 | J140: 0.00297861346 | K140: 0.03998330012 | L140: 0.1769953139 | M140: 0.0002758864213 | N140: 0.01985694321 | O140: 13.16849917 | P140: 153.5800023 | Q140: 1.151202228 | R140: 11.19923931 | S140: 2.911956913e-06 | T140: 5.688203393e-12
A142: Confectionery | B142: BISCUITS
A143: BISCUITS | B143: agriculture | C143: =CONCATENATE(A143," ", B143) -> BISCUITS agriculture | D143: =VLOOKUP($A143,primary,D$1,FALSE) -> 1.4 | E143: 9.51e-09 | F143: 2.65e-06 | G143: 2.41e-08 | H143: 2.32e-07 | I143: 0.00693 | J143: 0.00121 | K143: 0.0319 | L143: 0.142 | M143: 0.000249 | N143: 0.0152 | O143: 7.2 | P143: 230 | Q143: 0.563 | R143: 3.62 | S143: 4.24e-07 | T143: =(D143/$D$239)*$D$240+(E143/$E$239)*$E$240+(F143/$F$239)*$F$240+(G143/$G$239)*$G$240+(H143/$H$239)*$H$240+(I143/$I$239)*$I$240+(J143/$J$239)*$J$240+(K143/$K$239)*$K$240+(L143/$L$239)*$L$240+(M143/$M$239)*$M$240+(N143/$N$239)*$N$240+(O143/$O$239)*$O$240+(P143/$P$239)*$P$240+(Q143/$Q$239)*$Q$240+(R143/$R$239)*$R$240+(S143/$S$239)*$S$240 -> 4.545321782e-12
A144: BISCUITS | B144: manufacturing | C144: =CONCATENATE(A144," ", B144) -> BISCUITS manufacturing | D144: =VLOOKUP($A144,manufacturing,D$1,FALSE) -> 2.799171105 | E144: 1.318245874e-07 | F144: 2.809089007e-06 | G144: 3.162918893e-08 | H144: 2.464267884e-07 | I144: 0.09576137661 | J144: 0.003929947519 | K144: 0.03795870487 | L144: 0.1544395546 | M144: 0.0003642654594 | N144: 0.01649552346 | O144: 8.513162508 | P144: 204.3684347 | Q144: 1.294835051 | R144: 24.82849019 | S144: 4.090710123e-06 | T144: =(D144/$D$239)*$D$240+(E144/$E$239)*$E$240+(F144/$F$239)*$F$240+(G144/$G$239)*$G$240+(H144/$H$239)*$H$240+(I144/$I$239)*$I$240+(J144/$J$239)*$J$240+(K144/$K$239)*$K$240+(L144/$L$239)*$L$240+(M144/$M$239)*$M$240+(N144/$N$239)*$N$240+(O144/$O$239)*$O$240+(P144/$P$239)*$P$240+(Q144/$Q$239)*$Q$240+(R144/$R$239)*$R$240+(S144/$S$239)*$S$240 -> 6.51960255e-12
A145: BISCUITS | B145: retail | C145: BISCUITS retail | D145: =VLOOKUP($A145,retail,D$1,FALSE) -> 2.895438208 | E145: 1.519055629e-07 | F145: 2.831298277e-06 | G145: 3.261755204e-08 | H145: 2.559898948e-07 | I145: 0.1021926505 | J145: 0.004596013368 | K145: 0.03858372632 | L145: 0.1568966979 | M145: 0.0003680276801 | N145: 0.01672149948 | O145: 9.296131874 | P145: 206.0458789 | Q145: 1.333900829 | R145: 26.2536075 | S145: 4.315339506e-06 | T145: =(D145/$D$239)*$D$240+(E145/$E$239)*$E$240+(F145/$F$239)*$F$240+(G145/$G$239)*$G$240+(H145/$H$239)*$H$240+(I145/$I$239)*$I$240+(J145/$J$239)*$J$240+(K145/$K$239)*$K$240+(L145/$L$239)*$L$240+(M145/$M$239)*$M$240+(N145/$N$239)*$N$240+(O145/$O$239)*$O$240+(P145/$P$239)*$P$240+(Q145/$Q$239)*$Q$240+(R145/$R$239)*$R$240+(S145/$S$239)*$S$240 -> 6.720286124e-12
A146: BISCUITS | B146: use | C146: BISCUITS use | D146: =VLOOKUP($A146,use,D$1,FALSE) -> 3.234437054 | E146: 1.756317053e-07 | F146: 3.065412536e-06 | G146: 3.740619406e-08 | H146: 2.810017035e-07 | I146: 0.1146681605 | J146: 0.00533218582 | K146: 0.04207847899 | L146: 0.169751136 | M146: 0.000757445372 | N146: 0.02594180879 | O146: 12.51271188 | P146: 224.7178047 | Q146: 2.663217822 | R146: 29.25952684 | S146: 5.320886416e-06 | T146: 7.849757827e-12
A148: Confectionery | B148: CHOCOLATE
A149: CHOCOLATE | B149: agriculture | C149: =CONCATENATE(A149," ", B149) -> CHOCOLATE agriculture | D149: =VLOOKUP($A149,primary,D$1,FALSE) -> 0.164 | E149: 1.73e-08 | F149: 5.03e-07 | G149: 3.43e-09 | H149: 4.32e-08 | I149: 0.00516 | J149: 0.000589 | K149: 0.00606 | L149: 0.0207 | M149: 5.09e-05 | N149: 0.00232 | O149: 49.5 | P149: 66.8 | Q149: 0.307 | R149: 2.4 | S149: 7.05e-06 | T149: =(D149/$D$239)*$D$240+(E149/$E$239)*$E$240+(F149/$F$239)*$F$240+(G149/$G$239)*$G$240+(H149/$H$239)*$H$240+(I149/$I$239)*$I$240+(J149/$J$239)*$J$240+(K149/$K$239)*$K$240+(L149/$L$239)*$L$240+(M149/$M$239)*$M$240+(N149/$N$239)*$N$240+(O149/$O$239)*$O$240+(P149/$P$239)*$P$240+(Q149/$Q$239)*$Q$240+(R149/$R$239)*$R$240+(S149/$S$239)*$S$240 -> 2.128832005e-12
A150: CHOCOLATE | B150: manufacturing | C150: =CONCATENATE(A150," ", B150) -> CHOCOLATE manufacturing | D150: =VLOOKUP($A150,manufacturing,D$1,FALSE) -> 1.602123957 | E150: 2.137025671e-07 | F150: 6.525875521e-07 | G150: 1.468463977e-08 | H150: 1.088976483e-07 | I150: 0.08185072069 | J150: 0.006969804866 | K150: 0.01540847749 | L150: 0.04497406132 | M150: 0.0001182374229 | N150: 0.004575936887 | O150: 54.33365623 | P150: 57.37748452 | Q150: 0.9399836266 | R150: 26.56925609 | S150: 1.500376153e-05 | T150: =(D150/$D$239)*$D$240+(E150/$E$239)*$E$240+(F150/$F$239)*$F$240+(G150/$G$239)*$G$240+(H150/$H$239)*$H$240+(I150/$I$239)*$I$240+(J150/$J$239)*$J$240+(K150/$K$239)*$K$240+(L150/$L$239)*$L$240+(M150/$M$239)*$M$240+(N150/$N$239)*$N$240+(O150/$O$239)*$O$240+(P150/$P$239)*$P$240+(Q150/$Q$239)*$Q$240+(R150/$R$239)*$R$240+(S150/$S$239)*$S$240 -> 4.56214712e-12
A151: CHOCOLATE | B151: retail | C151: CHOCOLATE retail | D151: =VLOOKUP($A151,retail,D$1,FALSE) -> 1.692207509 | E151: 2.330430549e-07 | F151: 6.70542187e-07 | G151: 1.550182133e-08 | H151: 1.180842015e-07 | I151: 0.08807635763 | J151: 0.00761033779 | K151: 0.01600248821 | L151: 0.04730263297 | M151: 0.0001210035333 | N151: 0.004789424895 | O151: 54.84314091 | P151: 58.99120658 | Q151: 0.9785165157 | R151: 27.95681475 | S151: 1.522157623e-05 | T151: =(D151/$D$239)*$D$240+(E151/$E$239)*$E$240+(F151/$F$239)*$F$240+(G151/$G$239)*$G$240+(H151/$H$239)*$H$240+(I151/$I$239)*$I$240+(J151/$J$239)*$J$240+(K151/$K$239)*$K$240+(L151/$L$239)*$L$240+(M151/$M$239)*$M$240+(N151/$N$239)*$N$240+(O151/$O$239)*$O$240+(P151/$P$239)*$P$240+(Q151/$Q$239)*$Q$240+(R151/$R$239)*$R$240+(S151/$S$239)*$S$240 -> 4.74560015e-12
A152: CHOCOLATE | B152: use | C152: CHOCOLATE use | D152: =VLOOKUP($A152,use,D$1,FALSE) -> 1.954571866 | E152: 2.634962507e-07 | F152: 7.584979889e-07 | G152: 1.942349715e-08 | H152: 1.326315359e-07 | I152: 0.09963739463 | J152: 0.008482031925 | K152: 0.01776492925 | L152: 0.05269050291 | M152: 0.001149931729 | N152: 0.01037383829 | O152: 60.6196383 | P152: 67.9204046 | Q152: 2.414849962 | R152: 31.00549694 | S152: 1.694961969e-05 | T152: 5.842061121e-12
A154: Nuts | B154: ALMONDS
A155: ALMONDS | B155: agriculture | C155: =CONCATENATE(A155," ", B155) -> ALMONDS agriculture | D155: =VLOOKUP($A155,primary,D$1,FALSE) -> 4.26 | E155: 1.91e-07 | F155: 6.16e-08 | G155: 6.36e-09 | H155: 6.87e-07 | I155: 0.0758 | J155: 0.0186 | K155: 0.0835 | L155: 0.371 | M155: 0.00443 | N155: 0.0192 | O155: 36.6 | P155: 1150 | Q155: 326 | R155: 44 | S155: 1.43e-05 | T155: =(D155/$D$239)*$D$240+(E155/$E$239)*$E$240+(F155/$F$239)*$F$240+(G155/$G$239)*$G$240+(H155/$H$239)*$H$240+(I155/$I$239)*$I$240+(J155/$J$239)*$J$240+(K155/$K$239)*$K$240+(L155/$L$239)*$L$240+(M155/$M$239)*$M$240+(N155/$N$239)*$N$240+(O155/$O$239)*$O$240+(P155/$P$239)*$P$240+(Q155/$Q$239)*$Q$240+(R155/$R$239)*$R$240+(S155/$S$239)*$S$240 -> 4.553433441e-11
A156: ALMONDS | B156: manufacturing | C156: =CONCATENATE(A156," ", B156) -> ALMONDS manufacturing | D156: =VLOOKUP($A156,manufacturing,D$1,FALSE) -> 5.008169339 | E156: 2.627990899e-07 | F156: 1.310516344e-07 | G156: 1.077528289e-08 | H156: 7.65374215e-07 | I156: 0.1118054346 | J156: 0.0226778075 | K156: 0.09408781667 | L156: 0.4107261215 | M156: 0.004811237111 | N156: 0.0216375325 | O156: 42.20556229 | P156: 1247.918882 | Q156: 352.5293018 | R156: 53.46274587 | S156: 1.622047047e-05 | T156: =(D156/$D$239)*$D$240+(E156/$E$239)*$E$240+(F156/$F$239)*$F$240+(G156/$G$239)*$G$240+(H156/$H$239)*$H$240+(I156/$I$239)*$I$240+(J156/$J$239)*$J$240+(K156/$K$239)*$K$240+(L156/$L$239)*$L$240+(M156/$M$239)*$M$240+(N156/$N$239)*$N$240+(O156/$O$239)*$O$240+(P156/$P$239)*$P$240+(Q156/$Q$239)*$Q$240+(R156/$R$239)*$R$240+(S156/$S$239)*$S$240 -> 5.001146218e-11
A157: ALMONDS | B157: retail | C157: ALMONDS retail | D157: =VLOOKUP($A157,retail,D$1,FALSE) -> 5.094836442 | E157: 2.806800654e-07 | F157: 1.516609042e-07 | G157: 1.169064601e-08 | H157: 7.738673213e-07 | I157: 0.1176067084 | J157: 0.02326987334 | K157: 0.09464683811 | L157: 0.4129132648 | M157: 0.004814859332 | N157: 0.02183850852 | O157: 42.95953166 | P157: 1249.416326 | Q157: 352.5670676 | R157: 54.73786318 | S157: 1.642109985e-05 | T157: =(D157/$D$239)*$D$240+(E157/$E$239)*$E$240+(F157/$F$239)*$F$240+(G157/$G$239)*$G$240+(H157/$H$239)*$H$240+(I157/$I$239)*$I$240+(J157/$J$239)*$J$240+(K157/$K$239)*$K$240+(L157/$L$239)*$L$240+(M157/$M$239)*$M$240+(N157/$N$239)*$N$240+(O157/$O$239)*$O$240+(P157/$P$239)*$P$240+(Q157/$Q$239)*$Q$240+(R157/$R$239)*$R$240+(S157/$S$239)*$S$240 -> 5.019348137e-11
A158: ALMONDS | B158: use | C158: ALMONDS use | D158: =VLOOKUP($A158,use,D$1,FALSE) -> 5.664248635 | E158: 3.244919543e-07 | F158: 2.404579552e-07 | G158: 1.63930201e-08 | H158: 8.40331081e-07 | I158: 0.1338550456 | J158: 0.02564569535 | K158: 0.1029741829 | L158: 0.4480885985 | M158: 0.007589726522 | N158: 0.04865213218 | O158: 48.90973877 | P158: 1335.413175 | Q158: 376.5432814 | R158: 60.17823224 | S158: 1.867498128e-05 | T158: 5.520210264e-11
A160: Drinks | B160: COFFEE
A161: COFFEE | B161: agriculture | C161: =CONCATENATE(A161," ", B161) -> COFFEE agriculture | D161: =VLOOKUP($A161,primary,D$1,FALSE) -> 2.68 | E161: 4.27e-08 | F161: 6.99e-08 | G161: 3.77e-09 | H161: 5.44e-07 | I161: 0.0218 | J161: 0.00621 | K161: 0.0732 | L161: 0.324 | M161: 0.000377 | N161: 0.0578 | O161: 111 | P161: 984 | Q161: 0.126 | R161: 20.7 | S161: 5.28e-06 | T161: =(D161/$D$239)*$D$240+(E161/$E$239)*$E$240+(F161/$F$239)*$F$240+(G161/$G$239)*$G$240+(H161/$H$239)*$H$240+(I161/$I$239)*$I$240+(J161/$J$239)*$J$240+(K161/$K$239)*$K$240+(L161/$L$239)*$L$240+(M161/$M$239)*$M$240+(N161/$N$239)*$N$240+(O161/$O$239)*$O$240+(P161/$P$239)*$P$240+(Q161/$Q$239)*$Q$240+(R161/$R$239)*$R$240+(S161/$S$239)*$S$240 -> 9.641767788e-12
A162: COFFEE | B162: manufacturing | C162: =CONCATENATE(A162," ", B162) -> COFFEE manufacturing | D162: =VLOOKUP($A162,manufacturing,D$1,FALSE) -> 9.783 | E162: 7.767e-07 | F162: 5.765e-07 | G162: 6.388e-08 | H162: 7.051e-07 | I162: 0.9181 | J162: 0.023771 | K162: 0.11385 | L162: 0.38546 | M162: 0.0010081 | N162: 0.063426 | O162: 113.831 | P162: 1062.471 | Q162: 2.0533 | R162: 168.88 | S162: 2.292e-05 | T162: =(D162/$D$239)*$D$240+(E162/$E$239)*$E$240+(F162/$F$239)*$F$240+(G162/$G$239)*$G$240+(H162/$H$239)*$H$240+(I162/$I$239)*$I$240+(J162/$J$239)*$J$240+(K162/$K$239)*$K$240+(L162/$L$239)*$L$240+(M162/$M$239)*$M$240+(N162/$N$239)*$N$240+(O162/$O$239)*$O$240+(P162/$P$239)*$P$240+(Q162/$Q$239)*$Q$240+(R162/$R$239)*$R$240+(S162/$S$239)*$S$240 -> 2.297283838e-11
A163: COFFEE | B163: retail | C163: COFFEE retail | D163: =VLOOKUP($A163,retail,D$1,FALSE) -> 9.885 | E163: 7.995e-07 | F163: 5.933e-07 | G163: 6.4663e-08 | H163: 7.159e-07 | I163: 0.9253 | J163: 0.024525 | K163: 0.114535 | L163: 0.38817 | M163: 0.00101013 | N163: 0.063672 | O163: 114.121 | P163: 1064.361 | Q163: 2.0937 | R163: 170.5 | S163: 2.3177e-05 | T163: =(D163/$D$239)*$D$240+(E163/$E$239)*$E$240+(F163/$F$239)*$F$240+(G163/$G$239)*$G$240+(H163/$H$239)*$H$240+(I163/$I$239)*$I$240+(J163/$J$239)*$J$240+(K163/$K$239)*$K$240+(L163/$L$239)*$L$240+(M163/$M$239)*$M$240+(N163/$N$239)*$N$240+(O163/$O$239)*$O$240+(P163/$P$239)*$P$240+(Q163/$Q$239)*$Q$240+(R163/$R$239)*$R$240+(S163/$S$239)*$S$240 -> 2.317385349e-11
A164: COFFEE | B164: use | C164: COFFEE use | D164: =VLOOKUP($A164,use,D$1,FALSE) -> 19.98429598 | E164: 1.626840164e-06 | F164: 1.331916352e-06 | G164: 1.559470234e-07 | H164: 1.175674086e-06 | I164: 2.048466966 | J164: 0.04756106799 | K164: 0.1968543072 | L164: 0.612274025 | M164: 0.002547612762 | N164: 0.1015208089 | O164: 169.9794004 | P164: 1703.653975 | Q164: 27.92951027 | R164: 356.9250213 | S164: 4.659561942e-05 | T164: 4.698684698e-11
A166: Drinks | B166: TEA
A167: TEA | B167: agriculture | C167: =CONCATENATE(A167," ", B167) -> TEA agriculture | D167: =VLOOKUP($A167,primary,D$1,FALSE) -> 1.79 | E167: 4e-08 | F167: 2.96e-08 | G167: 1.97e-09 | H167: 4.87e-07 | I167: 0.0169 | J167: 0.00307 | K167: 0.0674 | L167: 0.299 | M167: 0.0209 | N167: 0.0149 | O167: 0.513 | P167: 753 | Q167: 1.55 | R167: 16.4 | S167: 1.48e-06 | T167: =(D167/$D$239)*$D$240+(E167/$E$239)*$E$240+(F167/$F$239)*$F$240+(G167/$G$239)*$G$240+(H167/$H$239)*$H$240+(I167/$I$239)*$I$240+(J167/$J$239)*$J$240+(K167/$K$239)*$K$240+(L167/$L$239)*$L$240+(M167/$M$239)*$M$240+(N167/$N$239)*$N$240+(O167/$O$239)*$O$240+(P167/$P$239)*$P$240+(Q167/$Q$239)*$Q$240+(R167/$R$239)*$R$240+(S167/$S$239)*$S$240 -> 1.039993917e-11
A168: TEA | B168: manufacturing | C168: =CONCATENATE(A168," ", B168) -> TEA manufacturing | D168: =VLOOKUP($A168,manufacturing,D$1,FALSE) -> 6.928577982 | E168: 5.99178348e-07 | F168: 3.699400745e-06 | G168: 6.703430877e-08 | H168: 1.998185261e-06 | I168: 0.488285126 | J168: 0.03671172705 | K168: 0.1120669414 | L168: 0.441301511 | M168: 0.02366873426 | N168: 0.02645245708 | O168: 9.347697397 | P168: 2328.228024 | Q168: 2.614512106 | R168: 100.434487 | S168: 3.0346988e-05 | T168: =(D168/$D$239)*$D$240+(E168/$E$239)*$E$240+(F168/$F$239)*$F$240+(G168/$G$239)*$G$240+(H168/$H$239)*$H$240+(I168/$I$239)*$I$240+(J168/$J$239)*$J$240+(K168/$K$239)*$K$240+(L168/$L$239)*$L$240+(M168/$M$239)*$M$240+(N168/$N$239)*$N$240+(O168/$O$239)*$O$240+(P168/$P$239)*$P$240+(Q168/$Q$239)*$Q$240+(R168/$R$239)*$R$240+(S168/$S$239)*$S$240 -> 2.658999716e-11
A169: TEA | B169: retail | C169: TEA retail | D169: =VLOOKUP($A169,retail,D$1,FALSE) -> 7.085345086 | E169: 6.330593235e-07 | F169: 3.732010015e-06 | G169: 6.848467188e-08 | H169: 2.014538367e-06 | I169: 0.4987363999 | J169: 0.0378507929 | K169: 0.1131009629 | L169: 0.4454386543 | M169: 0.02367336648 | N169: 0.0268314331 | O169: 10.31366676 | P169: 2331.055468 | Q169: 2.661377884 | R169: 102.7996044 | S169: 3.072661738e-05 | T169: =(D169/$D$239)*$D$240+(E169/$E$239)*$E$240+(F169/$F$239)*$F$240+(G169/$G$239)*$G$240+(H169/$H$239)*$H$240+(I169/$I$239)*$I$240+(J169/$J$239)*$J$240+(K169/$K$239)*$K$240+(L169/$L$239)*$L$240+(M169/$M$239)*$M$240+(N169/$N$239)*$N$240+(O169/$O$239)*$O$240+(P169/$P$239)*$P$240+(Q169/$Q$239)*$Q$240+(R169/$R$239)*$R$240+(S169/$S$239)*$S$240 -> 2.690863042e-11
A170: TEA | B170: use | C170: TEA use | D170: =VLOOKUP($A170,use,D$1,FALSE) -> 17.78094107 | E170: 1.20585656e-06 | F170: 6.236290836e-06 | G170: 1.841010543e-07 | H170: 3.259047612e-06 | I170: 0.9745718404 | J170: 0.06781980287 | K170: 0.1893570588 | L170: 0.716799652 | M170: 0.03696288143 | N170: 0.04786502468 | O170: 18.80752859 | P170: 3881.962524 | Q170: 91.69620183 | R170: 250.2469456 | S170: 5.758756829e-05 | T170: 5.868525855e-11
A172: Drinks | B172: BEER
A173: BEER | B173: agriculture | C173: =CONCATENATE(A173," ", B173) -> BEER agriculture | D173: =VLOOKUP($A173,primary,D$1,FALSE) -> 0.107 | E173: 3.6e-09 | F173: 8.76e-07 | G173: 4.22e-09 | H173: 3.63e-08 | I173: 0.000869 | J173: 0.000208 | K173: 0.00505 | L173: 0.0225 | M173: 4.77e-05 | N173: 0.00291 | O173: 0.797 | P173: 46.4 | Q173: 0.00278 | R173: 0.648 | S173: 2.77e-07 | T173: =(D173/$D$239)*$D$240+(E173/$E$239)*$E$240+(F173/$F$239)*$F$240+(G173/$G$239)*$G$240+(H173/$H$239)*$H$240+(I173/$I$239)*$I$240+(J173/$J$239)*$J$240+(K173/$K$239)*$K$240+(L173/$L$239)*$L$240+(M173/$M$239)*$M$240+(N173/$N$239)*$N$240+(O173/$O$239)*$O$240+(P173/$P$239)*$P$240+(Q173/$Q$239)*$Q$240+(R173/$R$239)*$R$240+(S173/$S$239)*$S$240 -> 9.399453969e-13
A174: BEER | B174: manufacturing | C174: =CONCATENATE(A174," ", B174) -> BEER manufacturing | D174: =VLOOKUP($A174,manufacturing,D$1,FALSE) -> 0.872 | E174: 1.242e-07 | F174: 9.038e-07 | G174: 7.27e-09 | H174: 4.1794e-08 | I174: 0.040769 | J174: 0.001424 | K174: 0.007018 | L174: 0.02741 | M174: 0.00016158 | N174: 0.003407 | O174: 1.0587 | P174: 41.75 | Q174: 0.75998 | R174: 13.818 | S174: 1.844e-06 | T174: =(D174/$D$239)*$D$240+(E174/$E$239)*$E$240+(F174/$F$239)*$F$240+(G174/$G$239)*$G$240+(H174/$H$239)*$H$240+(I174/$I$239)*$I$240+(J174/$J$239)*$J$240+(K174/$K$239)*$K$240+(L174/$L$239)*$L$240+(M174/$M$239)*$M$240+(N174/$N$239)*$N$240+(O174/$O$239)*$O$240+(P174/$P$239)*$P$240+(Q174/$Q$239)*$Q$240+(R174/$R$239)*$R$240+(S174/$S$239)*$S$240 -> 1.958043828e-12
A175: BEER | B175: retail | C175: BEER retail | D175: =VLOOKUP($A175,retail,D$1,FALSE) -> 0.989 | E175: 1.504e-07 | F175: 9.232e-07 | G175: 8.166e-09 | H175: 5.4294e-08 | I175: 0.048949 | J175: 0.002293 | K175: 0.007804 | L175: 0.02846 | M175: 0.00016382 | N175: 0.003691 | O175: 1.3937 | P175: 43.92 | Q175: 0.80228 | R175: 15.668 | S175: 2.139e-06 | T175: =(D175/$D$239)*$D$240+(E175/$E$239)*$E$240+(F175/$F$239)*$F$240+(G175/$G$239)*$G$240+(H175/$H$239)*$H$240+(I175/$I$239)*$I$240+(J175/$J$239)*$J$240+(K175/$K$239)*$K$240+(L175/$L$239)*$L$240+(M175/$M$239)*$M$240+(N175/$N$239)*$N$240+(O175/$O$239)*$O$240+(P175/$P$239)*$P$240+(Q175/$Q$239)*$Q$240+(R175/$R$239)*$R$240+(S175/$S$239)*$S$240 -> 2.181811112e-12
A176: BEER | B176: use | C176: BEER use | D176: =VLOOKUP($A176,use,D$1,FALSE) -> 1.518921189 | E176: 1.790132311e-07 | F176: 1.039883028e-06 | G176: 1.101542333e-08 | H176: 6.518909667e-08 | I176: 0.06214866978 | J176: 0.002831892778 | K176: 0.009158262111 | L176: 0.03266257422 | M176: 0.0002622238922 | N176: 0.004552142411 | O176: 1.700592056 | P176: 54.890256 | Q176: 2.387582222 | R176: 18.91929789 | S176: 2.966822667e-06 | T176: 2.910694181e-12
A178: Drinks | B178: WINE
A179: WINE | B179: agriculture | C179: =CONCATENATE(A179," ", B179) -> WINE agriculture | D179: =VLOOKUP($A179,primary,D$1,FALSE) -> 0.484 | E179: 4.49e-08 | F179: 1.94e-06 | G179: 5.71e-08 | H179: 3.99e-08 | I179: 0.0175 | J179: 0.0027 | K179: 0.0059 | L179: 0.0231 | M179: 9.56e-05 | N179: 0.00549 | O179: 38.9 | P179: 219 | Q179: 68.6 | R179: 6.02 | S179: 6.36e-06 | T179: =(D179/$D$239)*$D$240+(E179/$E$239)*$E$240+(F179/$F$239)*$F$240+(G179/$G$239)*$G$240+(H179/$H$239)*$H$240+(I179/$I$239)*$I$240+(J179/$J$239)*$J$240+(K179/$K$239)*$K$240+(L179/$L$239)*$L$240+(M179/$M$239)*$M$240+(N179/$N$239)*$N$240+(O179/$O$239)*$O$240+(P179/$P$239)*$P$240+(Q179/$Q$239)*$Q$240+(R179/$R$239)*$R$240+(S179/$S$239)*$S$240 -> 1.090047464e-11
A180: WINE | B180: manufacturing | C180: =CONCATENATE(A180," ", B180) -> WINE manufacturing | D180: =VLOOKUP($A180,manufacturing,D$1,FALSE) -> 1.541178502 | E180: 1.641738851e-07 | F180: 2.000237871e-06 | G180: 6.238254615e-08 | H180: 5.312405585e-08 | I180: 0.1043434571 | J180: 0.005176544072 | K180: 0.009901266315 | L180: 0.03007642982 | M180: 0.0001378278435 | N180: 0.006265202544 | O180: 39.50362095 | P180: 215.8256847 | Q180: 68.93050887 | R180: 22.65629111 | S180: 8.277542293e-06 | T180: =(D180/$D$239)*$D$240+(E180/$E$239)*$E$240+(F180/$F$239)*$F$240+(G180/$G$239)*$G$240+(H180/$H$239)*$H$240+(I180/$I$239)*$I$240+(J180/$J$239)*$J$240+(K180/$K$239)*$K$240+(L180/$L$239)*$L$240+(M180/$M$239)*$M$240+(N180/$N$239)*$N$240+(O180/$O$239)*$O$240+(P180/$P$239)*$P$240+(Q180/$Q$239)*$Q$240+(R180/$R$239)*$R$240+(S180/$S$239)*$S$240 -> 1.241105903e-11
A181: WINE | B181: retail | C181: WINE retail | D181: =VLOOKUP($A181,retail,D$1,FALSE) -> 1.724181732 | E181: 2.046740971e-07 | F181: 2.024838396e-06 | G181: 6.366275515e-08 | H181: 6.982429885e-08 | I181: 0.1164435463 | J181: 0.006946555572 | K181: 0.01207128142 | L181: 0.03655646502 | M181: 0.0001405780105 | N181: 0.006851205674 | O181: 39.9186246 | P181: 218.4957103 | Q181: 68.95312487 | R181: 25.46633201 | S181: 8.633557893e-06 | T181: =(D181/$D$239)*$D$240+(E181/$E$239)*$E$240+(F181/$F$239)*$F$240+(G181/$G$239)*$G$240+(H181/$H$239)*$H$240+(I181/$I$239)*$I$240+(J181/$J$239)*$J$240+(K181/$K$239)*$K$240+(L181/$L$239)*$L$240+(M181/$M$239)*$M$240+(N181/$N$239)*$N$240+(O181/$O$239)*$O$240+(P181/$P$239)*$P$240+(Q181/$Q$239)*$Q$240+(R181/$R$239)*$R$240+(S181/$S$239)*$S$240 -> 1.27758648e-11
A182: WINE | B182: use | C182: WINE use | D182: =VLOOKUP($A182,use,D$1,FALSE) -> 1.980940865 | E182: 2.391149113e-07 | F182: 2.275981149e-06 | G182: 7.208399365e-08 | H182: 8.010864644e-08 | I182: 0.1332194961 | J182: 0.007884573667 | K182: 0.01356606606 | L182: 0.04126293227 | M182: 0.0002137772149 | N182: 0.007875375491 | O182: 44.91208432 | P182: 250.1455201 | Q182: 78.79462787 | R182: 29.09615087 | S182: 9.509895498e-06 | T182: 1.45640514e-11
A184: Drinks | B184: MINERAL WATER
A185: MINERAL WATER | B185: agriculture | C185: =CONCATENATE(A185," ", B185) -> MINERAL WATER agriculture | D185: =VLOOKUP($A185,primary,D$1,FALSE) -> 0 | E185: 0 | F185: 0 | G185: 0 | H185: 0 | I185: 0 | J185: 0 | K185: 0 | L185: 0 | M185: 0 | N185: 0 | O185: 0 | P185: 0 | Q185: 0 | R185: 0 | S185: 0 | T185: =(D185/$D$239)*$D$240+(E185/$E$239)*$E$240+(F185/$F$239)*$F$240+(G185/$G$239)*$G$240+(H185/$H$239)*$H$240+(I185/$I$239)*$I$240+(J185/$J$239)*$J$240+(K185/$K$239)*$K$240+(L185/$L$239)*$L$240+(M185/$M$239)*$M$240+(N185/$N$239)*$N$240+(O185/$O$239)*$O$240+(P185/$P$239)*$P$240+(Q185/$Q$239)*$Q$240+(R185/$R$239)*$R$240+(S185/$S$239)*$S$240 -> 0
A186: MINERAL WATER | B186: manufacturing | C186: =CONCATENATE(A186," ", B186) -> MINERAL WATER manufacturing | D186: =VLOOKUP($A186,manufacturing,D$1,FALSE) -> 0.0776 | E186: 5.26e-09 | F186: 5.75e-09 | G186: 6.32e-10 | H186: 1.702e-09 | I186: 0.00647 | J186: 0.0001625 | K186: 0.000332 | L186: 0.00056 | M186: 4.71e-06 | N186: 5.36e-05 | O186: 0.084 | P186: 1.159 | Q186: 0.07106 | R186: 1.1773 | S186: 2.08e-07 | T186: =(D186/$D$239)*$D$240+(E186/$E$239)*$E$240+(F186/$F$239)*$F$240+(G186/$G$239)*$G$240+(H186/$H$239)*$H$240+(I186/$I$239)*$I$240+(J186/$J$239)*$J$240+(K186/$K$239)*$K$240+(L186/$L$239)*$L$240+(M186/$M$239)*$M$240+(N186/$N$239)*$N$240+(O186/$O$239)*$O$240+(P186/$P$239)*$P$240+(Q186/$Q$239)*$Q$240+(R186/$R$239)*$R$240+(S186/$S$239)*$S$240 -> 1.23418561e-13
A187: MINERAL WATER | B187: retail | C187: MINERAL WATER retail | D187: =VLOOKUP($A187,retail,D$1,FALSE) -> 0.1573 | E187: 2.296e-08 | F187: 1.875e-08 | G187: 1.245e-09 | H187: 1.0012e-08 | I187: 0.0122 | J187: 0.0007435 | K187: 0.000866 | L187: 0.00265 | M187: 6.42e-06 | N187: 0.0002436 | O187: 0.307 | P187: 2.629 | Q187: 0.10856 | R187: 2.4573 | S187: 4.08e-07 | T187: =(D187/$D$239)*$D$240+(E187/$E$239)*$E$240+(F187/$F$239)*$F$240+(G187/$G$239)*$G$240+(H187/$H$239)*$H$240+(I187/$I$239)*$I$240+(J187/$J$239)*$J$240+(K187/$K$239)*$K$240+(L187/$L$239)*$L$240+(M187/$M$239)*$M$240+(N187/$N$239)*$N$240+(O187/$O$239)*$O$240+(P187/$P$239)*$P$240+(Q187/$Q$239)*$Q$240+(R187/$R$239)*$R$240+(S187/$S$239)*$S$240 -> 2.812264688e-13
A188: MINERAL WATER | B188: use | C188: MINERAL WATER use | D188: =VLOOKUP($A188,use,D$1,FALSE) -> 0.2569100778 | E188: 3.502323111e-08 | F188: 3.283858333e-08 | G188: 3.135423333e-09 | H188: 1.544687444e-08 | I188: 0.01876644756 | J188: 0.001058226111 | K188: 0.001323373222 | L188: 0.003740796444 | M188: 1.496500333e-05 | N188: 0.0003986979667 | O188: 0.4541476111 | P188: 9.041367111 | Q188: 1.676782222 | R188: 3.830742333 | S188: 9.514893333e-07 | T188: 6.207066051e-13
A190: Pre-prepared | B190: MEAT BASED DISHES
A191: MEAT BASED DISHES | B191: agriculture | C191: =CONCATENATE(A191," ", B191) -> MEAT BASED DISHES agriculture | D191: =VLOOKUP($A191,primary,D$1,FALSE) -> 3.57 | E191: 1.35e-07 | F191: 1.41e-06 | G191: 3.88e-08 | H191: 3.62e-07 | I191: 0.101 | J191: 0.00891 | K191: 0.0438 | L191: 0.166 | M191: 0.000699 | N191: 0.013 | O191: 14.4 | P191: 364 | Q191: 0.694 | R191: 27 | S191: 4.57e-06 | T191: =(D191/$D$239)*$D$240+(E191/$E$239)*$E$240+(F191/$F$239)*$F$240+(G191/$G$239)*$G$240+(H191/$H$239)*$H$240+(I191/$I$239)*$I$240+(J191/$J$239)*$J$240+(K191/$K$239)*$K$240+(L191/$L$239)*$L$240+(M191/$M$239)*$M$240+(N191/$N$239)*$N$240+(O191/$O$239)*$O$240+(P191/$P$239)*$P$240+(Q191/$Q$239)*$Q$240+(R191/$R$239)*$R$240+(S191/$S$239)*$S$240 -> 6.790575671e-12
A192: MEAT BASED DISHES | B192: manufacturing | C192: =CONCATENATE(A192," ", B192) -> MEAT BASED DISHES manufacturing | D192: =VLOOKUP($A192,manufacturing,D$1,FALSE) -> 5.101825604 | E192: 3.179031084e-07 | F192: 1.548862815e-06 | G192: 5.155895028e-08 | H192: 3.981775251e-07 | I192: 0.2235723163 | J192: 0.01167420956 | K192: 0.0509512634 | L192: 0.1809832323 | M192: 0.0008055972571 | N192: 0.01426307619 | O192: 16.25718629 | P192: 375.8209787 | Q192: 3.824483959 | R192: 49.84580169 | S192: 7.770397878e-06 | T192: =(D192/$D$239)*$D$240+(E192/$E$239)*$E$240+(F192/$F$239)*$F$240+(G192/$G$239)*$G$240+(H192/$H$239)*$H$240+(I192/$I$239)*$I$240+(J192/$J$239)*$J$240+(K192/$K$239)*$K$240+(L192/$L$239)*$L$240+(M192/$M$239)*$M$240+(N192/$N$239)*$N$240+(O192/$O$239)*$O$240+(P192/$P$239)*$P$240+(Q192/$Q$239)*$Q$240+(R192/$R$239)*$R$240+(S192/$S$239)*$S$240 -> 9.407474376e-12
A193: MEAT BASED DISHES | B193: retail | C193: MEAT BASED DISHES retail | D193: =VLOOKUP($A193,retail,D$1,FALSE) -> 5.512209156 | E193: 2.997943596e-06 | F193: 1.58351745e-06 | G193: 5.424913184e-08 | H193: 4.125540783e-07 | I193: 0.2594979532 | J193: 0.01284874249 | K193: 0.05276327413 | L193: 0.185201804 | M193: 0.0008292533674 | N193: 0.0146495642 | O193: 16.86267097 | P193: 380.2747008 | Q193: 3.920016848 | R193: 55.82336035 | S193: 8.443212569e-06 | T193: =(D193/$D$239)*$D$240+(E193/$E$239)*$E$240+(F193/$F$239)*$F$240+(G193/$G$239)*$G$240+(H193/$H$239)*$H$240+(I193/$I$239)*$I$240+(J193/$J$239)*$J$240+(K193/$K$239)*$K$240+(L193/$L$239)*$L$240+(M193/$M$239)*$M$240+(N193/$N$239)*$N$240+(O193/$O$239)*$O$240+(P193/$P$239)*$P$240+(Q193/$Q$239)*$Q$240+(R193/$R$239)*$R$240+(S193/$S$239)*$S$240 -> 1.010109082e-11
A194: MEAT BASED DISHES | B194: use | C194: MEAT BASED DISHES use | D194: =VLOOKUP($A194,use,D$1,FALSE) -> 8.222080927 | E194: 4.063007992e-06 | F194: 2.357344387e-06 | G194: 8.470188036e-08 | H194: 5.7312565e-07 | I194: 0.4416211017 | J194: 0.01914437783 | K194: 0.0750766851 | L194: 0.2563642427 | M194: 0.001187392385 | N194: 0.03340703763 | O194: 36.61367102 | P194: 519.6382905 | Q194: 6.955243643 | R194: 89.62960545 | S194: 1.405519284e-05 | T194: 1.591101113e-11
A196: Average | B196: AVERAGE BASKET
A197: UNSPECIFIED/UNKOWN | B197: agriculture | C197: =CONCATENATE("UNKNOWN/OTHER"," ", B197) -> UNKNOWN/OTHER agriculture | D197: =VLOOKUP($A197,primary,D$1,FALSE) -> 2.3004174 | E197: 2.867549301e-08 | F197: 2.44519094e-06 | G197: 3.167129418e-08 | H197: 3.116409158e-07 | I197: 0.01628919114 | J197: 0.003364823979 | K197: 0.04252338688 | L197: 0.1878207636 | M197: 0.000531558654 | N197: 0.01632739095 | O197: 8.688172754 | P197: 313.4448595 | Q197: 4.962906878 | R197: 7.867286009 | S197: 9.411485036e-07 | T197: =(D197/$D$239)*$D$240+(E197/$E$239)*$E$240+(F197/$F$239)*$F$240+(G197/$G$239)*$G$240+(H197/$H$239)*$H$240+(I197/$I$239)*$I$240+(J197/$J$239)*$J$240+(K197/$K$239)*$K$240+(L197/$L$239)*$L$240+(M197/$M$239)*$M$240+(N197/$N$239)*$N$240+(O197/$O$239)*$O$240+(P197/$P$239)*$P$240+(Q197/$Q$239)*$Q$240+(R197/$R$239)*$R$240+(S197/$S$239)*$S$240 -> 6.139368584e-12
A198: UNSPECIFIED/UNKOWN | B198: manufacturing | C198: =CONCATENATE("UNKNOWN/OTHER"," ", B198) -> UNKNOWN/OTHER manufacturing | D198: =VLOOKUP($A198,manufacturing,D$1,FALSE) -> 2.943730027 | E198: 1.078768593e-06 | F198: 2.577790261e-06 | G198: 3.594835865e-08 | H198: 3.329057125e-07 | I198: 0.05061027308 | J198: 0.004651236527 | K198: 0.04609295298 | L198: 0.1989595033 | M198: 0.0005859533209 | N198: 0.01732360401 | O198: 10.02530984 | P198: 323.3983032 | Q198: 5.476610293 | R198: 15.57466931 | S198: 2.30849754e-06 | T198: =(D198/$D$239)*$D$240+(E198/$E$239)*$E$240+(F198/$F$239)*$F$240+(G198/$G$239)*$G$240+(H198/$H$239)*$H$240+(I198/$I$239)*$I$240+(J198/$J$239)*$J$240+(K198/$K$239)*$K$240+(L198/$L$239)*$L$240+(M198/$M$239)*$M$240+(N198/$N$239)*$N$240+(O198/$O$239)*$O$240+(P198/$P$239)*$P$240+(Q198/$Q$239)*$Q$240+(R198/$R$239)*$R$240+(S198/$S$239)*$S$240 -> 7.14661103e-12
A199: UNSPECIFIED/UNKOWN | B199: retail | C199: =CONCATENATE("UNKNOWN/OTHER"," ", B199) -> UNKNOWN/OTHER retail | D199: =VLOOKUP($A199,retail,D$1,FALSE) -> 3.165121272 | E199: 4.795304757e-06 | F199: 2.604318081e-06 | G199: 3.716628495e-08 | H199: 3.431886046e-07 | I199: 0.05773378886 | J199: 0.005394226263 | K199: 0.04683866851 | L199: 0.2015067327 | M199: 0.000590942522 | N199: 0.01757761961 | O199: 11.05493936 | P199: 325.2221601 | Q199: 5.613780976 | R199: 17.16430389 | S199: 2.614586892e-06 | T199: =(D199/$D$239)*$D$240+(E199/$E$239)*$E$240+(F199/$F$239)*$F$240+(G199/$G$239)*$G$240+(H199/$H$239)*$H$240+(I199/$I$239)*$I$240+(J199/$J$239)*$J$240+(K199/$K$239)*$K$240+(L199/$L$239)*$L$240+(M199/$M$239)*$M$240+(N199/$N$239)*$N$240+(O199/$O$239)*$O$240+(P199/$P$239)*$P$240+(Q199/$Q$239)*$Q$240+(R199/$R$239)*$R$240+(S199/$S$239)*$S$240 -> 7.499584429e-12
A200: UNSPECIFIED/UNKOWN | B200: use | C200: =CONCATENATE("UNKNOWN/OTHER"," ", B200) -> UNKNOWN/OTHER use | D200: =VLOOKUP($A200,use,D$1,FALSE) -> 4.081677436 | E200: 5.65859682e-06 | F200: 3.192024167e-06 | G200: 4.895002434e-08 | H200: 4.15859077e-07 | I200: 0.08359350663 | J200: 0.007035532984 | K200: 0.05676564262 | L200: 0.240892146 | M200: 0.001078723684 | N200: 0.02669913001 | O200: 20.45099915 | P200: 391.3197515 | Q200: 8.312867948 | R200: 23.96968469 | S200: 3.979818575e-06 | T200: 9.910314319e-12
A202: CEREAL PRODUCTS | B202: CEREAL PRODUCTS
A203: CEREAL PRODUCTS | B203: agriculture | C203: =CONCATENATE(A203," ", B203) -> CEREAL PRODUCTS agriculture | D203: =(D77*$C276+D83*$D276+D89*$E276)/SUM($C276,$D276,$E276) -> 0.8528512971 | E203: 3.143946e-08 | F203: 1.239727784e-06 | G203: 7.521676888e-09 | H203: 8.920682813e-08 | I203: 0.00785694353 | J203: 0.0009685058584 | K203: 0.01224686902 | L203: 0.05331878087 | M203: 0.0001667286744 | N203: 0.007056515934 | O203: 4.777291576 | P203: 207.9676474 | Q203: 9.771870728 | R203: 3.073379505 | S203: 1.705754403e-06 | T203: 3.248753508e-12
A204: CEREAL PRODUCTS | B204: manufacturing | C204: =CONCATENATE(A204," ", B204) -> CEREAL PRODUCTS manufacturing | D204: =(D78*$C277+D84*$D277+D90*$E277)/SUM($C277,$D277,$E277) -> 1.462399981 | E204: 8.537224968e-08 | F204: 1.371252915e-06 | G204: 1.271150592e-08 | H204: 1.076579263e-07 | I204: 0.06763591327 | J204: 0.002595247187 | K204: 0.01603340323 | L204: 0.06279121358 | M204: 0.0002217367502 | N204: 0.008074282755 | O204: 7.32572711 | P204: 219.6013923 | Q204: 11.8031046 | R204: 13.05865529 | S204: 3.136276763e-06 | T204: 4.599537495e-12
A205: CEREAL PRODUCTS | B205: retail | C205: CEREAL PRODUCTS retail | D205: =(D79*$C278+D85*$D278+D91*$E278)/SUM($C278,$D278,$E278) -> 1.540493 | E205: 1.052440003e-07 | F205: 1.406813001e-06 | G205: 1.391340788e-08 | H205: 1.156051919e-07 | I205: 0.07434428539 | J205: 0.003254743232 | K205: 0.01664663389 | L205: 0.06510384199 | M205: 0.0002240003621 | N205: 0.008308763221 | O205: 7.897182738 | P205: 218.8838898 | Q205: 12.51522471 | R205: 14.57977455 | S205: 3.327878346e-06 | T205: 4.866944055e-12
A206: CEREAL PRODUCTS | B206: use | C206: CEREAL PRODUCTS use | D206: =(D80*$C279+D86*$D279+D92*$E279)/SUM($C279,$D279,$E279) -> 2.470750814 | E206: 1.676175858e-07 | F206: 2.131379356e-06 | G206: 2.574981763e-08 | H206: 1.769370166e-07 | I206: 0.1219315978 | J206: 0.005265987065 | K206: 0.02521511438 | L206: 0.09314437608 | M206: 0.0007840692371 | N206: 0.01926538735 | O206: 25.31130534 | P206: 303.5141453 | Q206: 18.69960299 | R206: 24.26649859 | S206: 5.304096835e-06 | T206: 8.080241077e-12
A208: Dairy | B208: Dairy
A209: Dairy | B209: agriculture | C209: =CONCATENATE(A209," ", B209) -> Dairy agriculture | D209: =SUM(D41*$F276,D47*$G276,D53*$H276)/SUM($F276:$H276) -> 4.023167301 | E209: =SUM(E41*$F276,E47*$G276,E53*$H276)/SUM($F276:$H276) -> 1.319255484e-08 | F209: =SUM(F41*$F276,F47*$G276,F53*$H276)/SUM($F276:$H276) -> 6.667468291e-06 | G209: 4.653476193e-08 | H209: 5.171833237e-07 | I209: 0.0213977865 | J209: 0.003466125244 | K209: 0.07283837512 | L209: 0.3233324532 | M209: 0.0005429162046 | N209: 0.02337540341 | O209: 10.7590676 | P209: 332.0861787 | Q209: 0.3939261885 | R209: 9.555484925 | S209: 6.383432182e-08 | T209: 1.040535248e-11
A210: Dairy | B210: manufacturing | C210: =CONCATENATE(A210," ", B210) -> Dairy manufacturing | D210: =SUM(D42*$F277,D48*$G277,D54*$H277)/SUM($F277:$H277) -> 4.71751536 | E210: 1.046723063e-07 | F210: =SUM(F42*$F277,F48*$G277,F54*$H277)/SUM($F277:$H277) -> 7.004194229e-06 | G210: 5.203322743e-08 | H210: 5.49564948e-07 | I210: 0.0571572121 | J210: 0.004654383598 | K210: 0.07798353361 | L210: 0.3408994314 | M210: 0.0005862031886 | N210: 0.02469492842 | O210: 11.87071774 | P210: 345.2263465 | Q210: 0.9371976355 | R210: 17.34472593 | S210: 1.192954703e-06 | T210: 1.161475043e-11
A211: Dairy | B211: retail | C211: Dairy retail | D211: 5.094131698 | E211: 5.48613083e-06 | F211: =SUM(F43*$F278,F49*$G278,F55*$H278)/SUM($F278:$H278) -> 7.09034224e-06 | G211: 5.342097436e-08 | H211: 5.650141434e-07 | I211: 0.06465165436 | J211: 0.005413786257 | K211: 0.07940271776 | L211: 0.3467301201 | M211: 0.0005947819867 | N211: 0.02516622059 | O211: 12.51848991 | P211: 350.3427474 | Q211: 0.9854493302 | R211: 19.08123631 | S211: 1.719706474e-06 | T211: 1.212274105e-11
A212: Dairy | B212: use | C212: Dairy use | D212: 5.666825473 | E212: 5.938050848e-06 | F212: =SUM(F44*$F279,F50*$G279,F56*$H279)/SUM($F279:$H279) -> 7.721679624e-06 | G212: 6.128699567e-08 | H212: 6.187442152e-07 | I212: 0.07831601501 | J212: 0.006347803216 | K212: 0.0866874964 | L212: 0.3773234646 | M212: 0.001358386728 | N212: 0.03366174994 | O212: 17.44977152 | P212: 384.5772943 | Q212: 2.65684782 | R212: 22.41683017 | S212: 2.848144757e-06 | T212: 1.395621318e-11
A214: Fish | B214: Fish and seafood
A215: Fish and seafood | B215: agriculture | C215: =CONCATENATE(A215," ", B215) -> Fish and seafood agriculture | D215: =SUM(D23*$I276,D29*$J276,D35*$K276)/SUM($I276:$K276) -> 3.63187801 | E215: =SUM(E23*$I276,E29*$J276,E35*$K276)/SUM($I276:$K276) -> 4.853490369e-07 | F215: 1.255857624e-06 | G215: 1.965781701e-08 | H215: 1.913789727e-07 | I215: 0.03851573034 | J215: 0.03128515249 | K215: 0.03487038523 | L215: 0.1507102729 | M215: 0.003573573515 | N215: 0.04083844302 | O215: 5.530272873 | P215: 144.4227127 | Q215: 12.01674238 | R215: 36.37800963 | S215: 9.411797753e-07 | T215: 8.413468915e-12
A216: Fish and seafood | B216: manufacturing | C216: =CONCATENATE(A216," ", B216) -> Fish and seafood manufacturing | D216: =SUM(D24*$I277,D30*$J277,D36*$K277)/SUM($I277:$K277) -> 4.620439812 | E216: 3.437411815e-06 | F216: 1.424644943e-06 | G216: 2.651672781e-08 | H216: 2.226001297e-07 | I216: 0.09416910548 | J216: 0.03593142844 | K216: 0.04136637434 | L216: 0.1701693935 | M216: 0.003842769773 | N216: 0.04438075419 | O216: 8.222736942 | P216: 139.6522879 | Q216: 12.88210154 | R216: 49.37499071 | S216: 3.379455238e-06 | T216: 1.018136069e-11
A217: Fish and seafood | B217: retail | C217: Fish and seafood retail | D217: 5.106642179 | E217: 1.195668471e-05 | F217: 1.475726465e-06 | G217: 2.871665476e-08 | H217: 2.344232175e-07 | I217: 0.1021049342 | J217: 0.03674585397 | K217: 0.04221624853 | L217: 0.1733685447 | M217: 0.003853900031 | N217: 0.04468179554 | O217: 10.8970726 | P217: 141.8121668 | Q217: 12.92787732 | R217: 51.09972809 | S217: 3.685241715e-06 | T217: 1.079412278e-11
A218: Fish and seafood | B218: use | C218: Fish and seafood use | D218: 6.934794307 | E218: 1.478373986e-05 | F218: 1.981717717e-06 | G218: 4.19238301e-08 | H218: 3.153583412e-07 | I218: 0.137098793 | J218: 0.04648010997 | K218: 0.05587313467 | L218: 0.2234180714 | M218: 0.005689115929 | N218: 0.07401143577 | O218: 20.23844546 | P218: 192.4458681 | Q218: 17.86764695 | R218: 72.90112854 | S218: 5.69951149e-06 | T218: 1.515478423e-11
A220: Fruit | B220: Fruit
A221: Fruit | B221: agriculture | C221: =CONCATENATE(A221," ", B221) -> Fruit agriculture | D221: =SUM(D119*$L276,D125*$M276,D131*$N276)/SUM($L276:$N276) -> 0.1328726811 | E221: =SUM(E119*$L276,E125*$M276,E131*$N276)/SUM($L276:$N276) -> 3.976799936e-09 | F221: 6.00411039e-09 | G221: 3.738616769e-10 | H221: 2.181481482e-08 | I221: 0.004868704452 | J221: 0.000373874288 | K221: 0.002960074053 | L221: 0.01261235828 | M221: 4.017717081e-05 | N221: 0.001559750476 | O221: 3.048146188 | P221: 45.21616192 | Q221: 5.200380676 | R221: 1.548530656 | S221: 1.890692071e-07 | T221: 9.538021518e-13
A222: Fruit | B222: manufacturing | C222: =CONCATENATE(A222," ", B222) -> Fruit manufacturing | D222: =SUM(D120*$L277,D126*$M277,D132*$N277)/SUM($L277:$N277) -> 0.8625803354 | E222: 9.760525088e-06 | F222: 9.772943868e-08 | G222: 4.993499156e-09 | H222: 2.846588878e-08 | I222: 0.02665176011 | J222: 0.001646217974 | K222: 0.005545642373 | L222: 0.01962698596 | M222: 7.706507448e-05 | N222: 0.002377275161 | O222: 8.458627435 | P222: 41.06300124 | Q222: 6.25839096 | R222: 6.475003887 | S222: 1.607935553e-06 | T222: 2.100167775e-12
A223: Fruit | B223: retail | C223: Fruit retail | D223: 0.9802844029 | E223: 9.678133388e-06 | F223: 1.479087016e-07 | G223: 7.095389458e-09 | H223: 3.825489723e-08 | I223: 0.0329692069 | J223: 0.002360680434 | K223: 0.006294074583 | L223: 0.0224952961 | M223: 8.770439731e-05 | N223: 0.002581687387 | O223: 11.08458874 | P223: 41.98753427 | Q223: 6.197860673 | R223: 7.90254878 | S223: 1.842486008e-06 | T223: 2.369470366e-12
A224: Fruit | B224: use | C224: Fruit use | D224: 1.603635643 | E224: 1.328899566e-05 | F224: 3.66427501e-07 | G224: 1.508122309e-08 | H224: 5.862152942e-08 | I224: 0.05086847826 | J224: 0.003635186891 | K224: 0.00922124696 | L224: 0.03254225136 | M224: 0.0001980613374 | N224: 0.004696966528 | O224: 26.28910379 | P224: 62.94355518 | Q224: 9.766812082 | R224: 12.09763932 | S224: 3.189241206e-06 | T224: 4.027851945e-12
A226: Meat | B226: Meat
A227: Meat | B227: agriculture | C227: =CONCATENATE(A227," ", B227) -> Meat agriculture | D227: =SUM(D5*$O276,D11*$P276,D17*$Q276)/SUM($O276:$Q276) -> 9.853416418 | E227: =SUM(E5*$O276,E11*$P276,E17*$Q276)/SUM($O276:$Q276) -> 2.984642373e-08 | F227: 5.126742075e-06 | G227: 1.08556272e-07 | H227: 1.325855595e-06 | I227: 0.04820950962 | J227: 0.01121445814 | K227: 0.1779236521 | L227: 0.7885040639 | M227: 0.001799929558 | N227: 0.06078118396 | O227: 18.9239366 | P227: 1176.201165 | Q227: 2.388641154 | R227: 27.30903549 | S227: 2.146481983e-07 | T227: 1.971667778e-11
A228: Meat | B228: manufacturing | C228: =CONCATENATE(A228," ", B228) -> Meat manufacturing | D228: =SUM(D6*$O277,D12*$P277,D18*$Q277)/SUM($O277:$Q277) -> 11.16306212 | E228: =SUM(E6*$O277,E12*$P277,E18*$Q277)/SUM($O277:$Q277) -> 1.082035033e-06 | F228: 5.429204488e-06 | G228: 1.159545199e-07 | H228: 1.408155381e-06 | I228: 0.06529011859 | J228: 0.01270165837 | K228: 0.1887368409 | L228: 0.8347091087 | M228: 0.001902530626 | N228: 0.06432901468 | O228: 21.49978381 | P228: 1239.520261 | Q228: 2.715287946 | R228: 32.53693647 | S228: 3.732394155e-07 | T228: 2.14053453e-11
A229: Meat | B229: retail | C229: Meat retail | D229: 11.78133717 | E229: =SUM(E7*$O278,E13*$P278,E19*$Q278)/SUM($O278:$Q278) -> 2.107970443e-05 | F229: 5.461923028e-06 | G229: 1.175082461e-07 | H229: 1.419961594e-06 | I229: 0.07295266632 | J229: 0.01347879006 | K229: 0.1895858838 | L229: 0.8375933953 | M229: 0.001909365068 | N229: 0.06459596672 | O229: 22.83072254 | P229: 1241.495149 | Q229: 2.767819503 | R229: 34.3271711 | S229: 8.064981813e-07 | T229: 2.223741343e-11
A230: Meat | B230: use | C230: Meat use | D230: 14.32547975 | E230: =SUM(E8*$O279,E14*$P279,E20*$Q279)/SUM($O279:$Q279) -> 2.470482662e-05 | F230: 6.582825424e-06 | G230: 1.451758212e-07 | H230: 1.692701914e-06 | I230: 0.1057041604 | J230: 0.01716059306 | K230: 0.2264738006 | L230: 0.9917898682 | M230: 0.003158754993 | N230: 0.09821167391 | O230: 34.1798303 | P230: 1472.006882 | Q230: 5.046489399 | R230: 46.68562047 | S230: 2.535808475e-06 | T230: 2.796300748e-11
A232: Vegetables | B232: Vegetables
A233: Vegetables | B233: agriculture | C233: =CONCATENATE(A233," ", B233) -> Vegetables agriculture | D233: =SUM(D95*$R276,D101*$S276)/SUM($R276:$S276) -> 0.1022319824 | E233: =SUM(E95*$R276,E101*$S276)/SUM($R276:$S276) -> 3.856439464e-09 | F233: 6.419063972e-07 | G233: 5.836102683e-09 | H233: 2.443310307e-08 | I233: 0.003350458754 | J233: 0.0002871696858 | K233: 0.003376870843 | L233: 0.01453435422 | M233: 9.93894176e-05 | N233: 0.001596381334 | O233: 1.317624141 | P233: 27.46391237 | Q233: 0.2548709792 | R233: 1.154236285 | S233: 2.73025023e-07 | T233: 7.798691691e-13
A234: Vegetables | B234: manufacturing | C234: =CONCATENATE(A234," ", B234) -> Vegetables manufacturing | D234: =SUM(D96*$R277,D102*$S277)/SUM($R277:$S277) -> 0.2976262983 | E234: 1.576407397e-06 | F234: 6.566369927e-07 | G234: 7.319158207e-09 | H234: 2.750863504e-08 | I234: 0.01197133991 | J234: 0.0005671824003 | K234: 0.004078115412 | L234: 0.01581425117 | M234: 0.0001109280317 | N234: 0.001715078699 | O234: 1.703515779 | P234: 24.91893768 | Q234: 0.2974773698 | R234: 3.218959957 | S234: 2.467720508e-06 | T234: 1.069946438e-12
A235: Vegetables | B235: retail | C235: Vegetables retail | D235: 0.4294794191 | E235: 2.13113408e-06 | F235: 7.044699859e-07 | G235: 9.153608308e-09 | H235: 3.723005583e-08 | I235: 0.01836964191 | J235: 0.001230181717 | K235: 0.004756203655 | L235: 0.0184717683 | M235: 0.0001193855711 | N235: 0.001971331349 | O235: 3.913250724 | P235: 26.99570761 | Q235: 0.3278346868 | R235: 4.577701668 | S235: 2.686297697e-06 | T235: 1.350434024e-12
A236: Vegetables | B236: use | C236: Vegetables use | D236: 1.076425951 | E236: 2.810863503e-06 | F236: 1.0822404e-06 | G236: 1.808824054e-08 | H236: 5.849632915e-08 | I236: 0.0448318998 | J236: 0.002437388573 | K236: 0.007722523523 | L236: 0.02774840135 | M236: 0.0004428156634 | N236: 0.005573301824 | O236: 15.31713144 | P236: 41.9434347 | Q236: 1.762069498 | R236: 11.34202703 | S236: 4.48547029e-06 | T236: 2.922834593e-12
B239: Normalisation factors | D239: =VLOOKUP(D2,normalisation,4,FALSE) -> 5.546652007e+13 | E239: 333481861 | F239: 3274782.609 | G239: 265544.3645 | H239: 4105966.484 | I239: 9.541009009e+11 | J239: 280000000000 | K239: 383000000000 | L239: 1220000000000 | M239: 1.112807395e+10 | N239: 1.347814028e+11 | O239: 8.146933333e+13 | P239: 1.540232569e+16 | Q239: 7.908694197e+13 | R239: 4.482621603e+14 | S239: 438856295.7
B240: Weighting | D240: =VLOOKUP(D2,normalisation,6,FALSE) -> 21.06 | E240: 6.31 | F240: 1.84 | G240: 2.13 | H240: 8.96 | I240: 5.01 | J240: 4.78 | K240: 6.2 | L240: 3.71 | M240: 2.8 | N240: 2.96 | O240: 1.92 | P240: 7.94 | Q240: 8.51 | R240: 8.32 | S240: 7.55
... 271 more rows

Sheet EoL emissions (hidden)
A1: Impacts per kg of biowaste (BoP)
B2: IPCC GWP 100a | C2: Ozone depletion | D2: Human toxicity, non-cancer effects | E2: Human toxicity, cancer effects | F2: Particulate matter | G2: Ionizing radiation HH | H2: Photochemical ozone formation | I2: Acidification | J2: Terrestrial eutrophication | K2: Freshwater eutrophication | L2: Marine eutrophication | M2: Freshwater ecotoxicity | N2: Land use | O2: Water scarcity | P2: ADP Fossil | Q2: ADP (ultimate) | R2: Single point
B3: kg CO2 eq | C3: kg CFC11 eq | D3: CTUh | E3: CTUh | F3: Death | G3: kBq U235 eq | H3: kg NMVOC eq | I3: molc H+ eq | J3: molc N eq | K3: kg P eq | L3: kg N eq | M3: CTUe | N3: Pt | O3: m3 water eq | P3: MJ | Q3: kg Sb eq | R3: Pt
A4: Processing & retail (mix) | B4: =SUMPRODUCT(B7:B10,$E$52:$E$55) -> 0.3383551792 | C4: =SUMPRODUCT(C7:C10,$E$52:$E$55) -> 4.048775736e-09 | D4: =SUMPRODUCT(D7:D10,$E$52:$E$55) -> 3.754634906e-07 | E4: =SUMPRODUCT(E7:E10,$E$52:$E$55) -> 1.501815568e-08 | F4: 7.655317851e-09 | G4: 0.002563693183 | H4: 0.0004532924501 | I4: 0.001201072229 | J4: 0.004857165017 | K4: 9.561103571e-05 | L4: 0.0005488008455 | M4: 26.54846829 | N4: 1.37220596 | O4: 0.01328890606 | P4: -0.2441343007 | Q4: -1.853085399e-08 | R4: 1.191160038e-12
A5: Household (mix) | B5: =SUMPRODUCT(B7:B10,$E$46:$E$49) -> 0.4454685757 | C5: =SUMPRODUCT(C7:C10,$E$46:$E$49) -> 3.751199837e-09 | D5: 7.888440697e-07 | E5: 1.691845505e-08 | F5: 4.200673019e-09 | G5: 0.002197876184 | H5: 0.0003640317434 | I5: 0.0005419089219 | J5: 0.002067407806 | K5: 4.728371016e-05 | L5: 0.0009857949794 | M5: 57.22428175 | N5: 0.9278586118 | O5: 0.02177736379 | P5: 0.149492689 | Q5: 1.452311384e-08 | R5: 2.17813279e-12
A6: Wastewater (wasted drinks) | B6: 0.000323 | C6: 2.12e-11 | D6: 5.25e-11 | E6: 2.09e-11 | F6: 2.43e-11 | G6: 8.92e-06 | H6: 1.15e-06 | I6: 1.51e-06 | J6: 3.52e-06 | K6: 1.67e-08 | L6: 3.13e-07 | M6: 0.000365 | N6: 0.00256 | O6: -0.0384 | P6: 0.00409 | Q6: 1.56e-09 | R6: =(B6/$B$35)*$B$36+(C6/$C$35)*$C$36+(D6/$D$35)*$D$36+(E6/$E$35)*$E$36+(F6/$F$35)*$F$36+(G6/$G$35)*$G$36+(H6/$H$35)*$H$36+(I6/$I$35)*$I$36+(J6/$J$35)*$J$36+(K6/$K$35)*$K$36+(L6/$L$35)*$L$36+(M6/$M$35)*$M$36+(N6/$N$35)*$N$36+(O6/$O$35)*$O$36+(P6/$P$35)*$P$36+(Q6/$Q$35)*$Q$36 -> -3.533381148e-15
A7: Anaerobic digestion | B7: 0.46015782 | C7: 1.1346326e-08 | D7: 2.4619743e-07 | E7: 5.1754339e-08 | F7: 1.9972316e-08 | G7: 0.0083372557 | H7: 0.0011706432 | I7: 0.0022231843 | J7: 0.0063885089 | K7: 0.00056859671 | L7: 0.00047271214 | M7: 13.897479 | N7: 6.4807806 | O7: 0.032026542 | P7: -2.9891056 | Q7: 2.2456932e-07 | R7: 1.327304682e-12
A8: Composting | B8: 0.22169807 | C8: 2.0603889e-09 | D8: -1.4292765e-09 | E8: 1.4836581e-09 | F8: 8.1002821e-09 | G8: 0.0012330446 | H8: 0.00034077319 | I8: 0.0017309969 | J8: 0.0080041385 | K8: 6.4056417e-07 | L8: 0.0001458222 | M8: 0.0001907032 | N8: 0.32938802 | O8: -0.0075158514 | P8: 0.15874387 | Q8: -1.4579331e-07 | R8: 1.808107178e-13
A9: Incineration | B9: 0.034317711 | C9: 3.2650776e-09 | D9: 8.6503023e-08 | E9: 9.2031345e-09 | F9: 2.7910843e-09 | G9: 0.0012653303 | H9: 0.00026453561 | I9: 0.00025654583 | J9: 0.0010507003 | K9: 3.4332849e-05 | L9: 0.00013402041 | M9: 2.3054808 | N9: 0.22396425 | O9: 0.048861493 | P9: 0.26539432 | Q9: 4.6813947e-08 | R9: 2.371349514e-13
A10: Landfill | B10: 0.76169718 | C10: 3.7962566e-09 | D10: 1.507635e-06 | E10: 2.2767506e-08 | F10: 2.3223084e-09 | G10: 0.0024432419 | H10: 0.00035127434 | I10: 0.00019281329 | J10: 0.00048159306 | K10: 1.716838e-05 | L10: 0.0018076468 | M10: 112.15189 | N10: 0.98266324 | O10: 0.012995402 | P10: 0.38887445 | Q10: 2.1829915e-08 | R10: 4.044094275e-12
A14: Waste treatment | B14: impacts per tonne
B15: IPCC GWP 100a | C15: Ozone depletion | D15: Human toxicity, non-cancer effects | E15: Human toxicity, cancer effects | F15: Particulate matter | G15: Ionizing radiation HH | H15: Photochemical ozone formation | I15: Acidification | J15: Terrestrial eutrophication | K15: Freshwater eutrophication | L15: Marine eutrophication | M15: Freshwater ecotoxicity | N15: Land use | O15: Water scarcity | P15: ADP Fossil | Q15: ADP (ultimate) | R15: Single point
B16: kg CO2 eq | C16: kg CFC11 eq | D16: CTUh | E16: CTUh | F16: Death | G16: kBq U235 eq | H16: kg NMVOC eq | I16: molc H+ eq | J16: molc N eq | K16: kg P eq | L16: kg N eq | M16: CTUe | N16: Pt | O16: m3 water eq | P16: MJ | Q16: kg Sb eq | R16: Pt
A17: Anaerobic Digestion | B17: =B7*10^3 -> 460.15782 | C17: =C7*10^3 -> 1.1346326e-05 | D17: 0.00024619743 | E17: 5.1754339e-05 | F17: 1.9972316e-05 | G17: 8.3372557 | H17: 1.1706432 | I17: 2.2231843 | J17: 6.3885089 | K17: 0.56859671 | L17: 0.47271214 | M17: 13897.479 | N17: 6480.7806 | O17: 32.026542 | P17: -2989.1056 | Q17: 0.00022456932 | R17: =R7*10^3 -> 1.327304682e-09
A18: Composting | B18: =B8*10^3 -> 221.69807 | C18: 2.0603889e-06 | D18: -1.4292765e-06 | E18: 1.4836581e-06 | F18: 8.1002821e-06 | G18: 1.2330446 | H18: 0.34077319 | I18: 1.7309969 | J18: 8.0041385 | K18: 0.00064056417 | L18: 0.1458222 | M18: 0.1907032 | N18: 329.38802 | O18: -7.5158514 | P18: 158.74387 | Q18: -0.00014579331 | R18: =R8*10^3 -> 1.808107178e-10
A19: Incineration | B19: =B9*10^3 -> 34.317711 | C19: 3.2650776e-06 | D19: 8.6503023e-05 | E19: 9.2031345e-06 | F19: 2.7910843e-06 | G19: 1.2653303 | H19: 0.26453561 | I19: 0.25654583 | J19: 1.0507003 | K19: 0.034332849 | L19: 0.13402041 | M19: 2305.4808 | N19: 223.96425 | O19: 48.861493 | P19: 265.39432 | Q19: 4.6813947e-05 | R19: =R9*10^3 -> 2.371349514e-10
A20: Landfill | B20: =B10*10^3 -> 761.69718 | C20: 3.7962566e-06 | D20: 0.001507635 | E20: 2.2767506e-05 | F20: 2.3223084e-06 | G20: 2.4432419 | H20: 0.35127434 | I20: 0.19281329 | J20: 0.48159306 | K20: 0.01716838 | L20: 1.8076468 | M20: 112151.89 | N20: 982.66324 | O20: 12.995402 | P20: 388.87445 | Q20: 2.1829915e-05 | R20: =R10*10^3 -> 4.044094275e-09
A21: Other/Unknown use | B21: =B5*10^3 -> 445.4685757 | C21: =C5*10^3 -> 3.751199837e-06 | D21: 0.0007888440697 | E21: 1.691845505e-05 | F21: 4.200673019e-06 | G21: 2.197876184 | H21: 0.3640317434 | I21: 0.5419089219 | J21: 2.067407806 | K21: 0.04728371016 | L21: 0.9857949794 | M21: 57224.28175 | N21: 927.8586118 | O21: 21.77736379 | P21: 149.492689 | Q21: 1.452311384e-05 | R21: =R5*10^3 -> 2.17813279e-09
A22: Other/Unknown | B22: =B4*10^3 -> 338.3551792 | C22: =C4*10^3 -> 4.048775736e-06 | D22: 0.0003754634906 | E22: 1.501815568e-05 | F22: 7.655317851e-06 | G22: 2.563693183 | H22: 0.4532924501 | I22: 1.201072229 | J22: 4.857165017 | K22: 0.09561103571 | L22: 0.5488008455 | M22: 26548.46829 | N22: 1372.20596 | O22: 13.28890606 | P22: -244.1343007 | Q22: -1.853085399e-05 | R22: =R4*10^3 -> 1.191160038e-09 | S22: other phases
B25: COST of waste management
B26: Euro per tonne (including collection)
A27: Anaerobic Digestion | B27: 193
A28: Composting | B28: 170
A29: Incineration | B29: 208
A30: Landfill | B30: 114
A31: Other/Unknown use | B31: =SUMPRODUCT(B27:B30,E46:E49) -> 154.8009387
A32: Other/Unknown | B32: =SUMPRODUCT(B27:B30,E52:E55) -> 168.5106632
B34: IPCC GWP 100a | C34: Ozone depletion | D34: Human toxicity, non-cancer effects | E34: Human toxicity, cancer effects | F34: Particulate matter | G34: Ionizing radiation HH | H34: Photochemical ozone formation | I34: Acidification | J34: Terrestrial eutrophication | K34: Freshwater eutrophication | L34: Marine eutrophication | M34: Freshwater ecotoxicity | N34: Land use | O34: Water scarcity | P34: ADP Fossil | Q34: ADP (ultimate)
A35: Normalisation factors | B35: =VLOOKUP(B34,normalisation,4,FALSE) -> 5.546652007e+13 | C35: 333481861 | D35: 3274782.609 | E35: 265544.3645 | F35: 4105966.484 | G35: 9.541009009e+11 | H35: 280000000000 | I35: 383000000000 | J35: 1220000000000 | K35: 1.112807395e+10 | L35: 1.347814028e+11 | M35: 8.146933333e+13 | N35: 1.540232569e+16 | O35: 7.908694197e+13 | P35: 4.482621603e+14 | Q35: 438856295.7
A36: Weighting | B36: =VLOOKUP(B34,normalisation,6,FALSE) -> 21.06 | C36: 6.31 | D36: 1.84 | E36: 2.13 | F36: 8.96 | G36: 5.01 | H36: 4.78 | I36: 6.2 | J36: 3.71 | K36: 2.8 | L36: 2.96 | M36: 1.92 | N36: 7.94 | O36: 8.51 | P36: 8.32 | Q36: 7.55
A42: Shares of waste treatment considered in the BoP | D42: Updated based on Sara EPFN calculations
A45: Household | D45: Household
A46: Anaerobic Digestion | B46: 0.005 | D46: Anaerobic Digestion | E46: 0.04962325324
A47: Composting | B47: 0.093 | D47: Composting | E47: 0.1488697597
A48: Incineration | B48: 0.333 | D48: Incineration | E48: 0.3036595229
A49: Landfill | B49: 0.569 | D49: Landfill | E49: 0.4978474642
A51: Industry | D51: Industry
A52: Anaerobic Digestion | B52: 0.04 | D52: Anaerobic Digestion | E52: 0.1499509426
A53: Composting | B53: 0.83 | D53: Composting | E53: 0.4498528279
A54: Incineration | B54: 0.05 | D54: Incineration | E54: 0.1858806422
A55: Landfill | B55: 0.08 | D55: Landfill | E55: 0.2143155873
A60: Other/Unknown use | B60: household | U60: Other/Unknown | V60: Processing and retail
A62: Waste treatment | B62: impacts per tonne | U62: Waste treatment | V62: impacts per tonne
B63: IPCC GWP 100a | C63: Ozone depletion | D63: Human toxicity, non-cancer effects | E63: Human toxicity, cancer effects | F63: Particulate matter | G63: Ionizing radiation HH | H63: Photochemical ozone formation | I63: Acidification | J63: Terrestrial eutrophication | K63: Freshwater eutrophication | L63: Marine eutrophication | M63: Freshwater ecotoxicity | N63: Land use | O63: Water scarcity | P63: ADP Fossil | Q63: ADP (ultimate) | R63: Single point | V63: IPCC GWP 100a | W63: Ozone depletion | X63: Human toxicity, non-cancer effects | Y63: Human toxicity, cancer effects | Z63: Particulate matter | AA63: Ionizing radiation HH | AB63: Photochemical ozone formation | AC63: Acidification | AD63: Terrestrial eutrophication | AE63: Freshwater eutrophication | AF63: Marine eutrophication | AG63: Freshwater ecotoxicity | AH63: Land use | AI63: Water scarcity | AJ63: ADP Fossil | AK63: ADP (ultimate) | AL63: Single point
B64: kg CO2 eq | C64: kg CFC11 eq | D64: CTUh | E64: CTUh | F64: Death | G64: kBq U235 eq | H64: kg NMVOC eq | I64: molc H+ eq | J64: molc N eq | K64: kg P eq | L64: kg N eq | M64: CTUe | N64: Pt | O64: m3 water eq | P64: MJ | Q64: kg Sb eq | R64: Pt | V64: kg CO2 eq | W64: kg CFC11 eq | X64: CTUh | Y64: CTUh | Z64: Death | AA64: kBq U235 eq | AB64: kg NMVOC eq | AC64: molc H+ eq | AD64: molc N eq | AE64: kg P eq | AF64: kg N eq | AG64: CTUe | AH64: Pt | AI64: m3 water eq | AJ64: MJ | AK64: kg Sb eq | AL64: Pt
A65: Austria | B65: =SUMPRODUCT(B$17:B$20,$B$102:$B$105) -> 116.2300731 | C65: =SUMPRODUCT(C$17:C$20,$B$102:$B$105) -> 3.611401628e-06 | D65: 9.093141127e-05 | E65: 1.080474881e-05 | F65: 5.319474653e-06 | G65: 1.809120284 | H65: 0.3520937499 | I65: 0.7447574456 | J65: 3.049619663 | K65: 0.06731744904 | L65: 0.1772275989 | M65: 3620.928528 | N65: 733.3517333 | O65: 34.3242464 | P65: -6.937046757 | Q65: 1.599522469e-05 | R65: 3.407905046e-10 | U65: Austria | V65: =SUMPRODUCT(B$17:B$20,$B$110:$B$113) -> 148.194068 | W65: =SUMPRODUCT(C$17:C$20,$B$110:$B$113) -> 3.760966726e-06 | X65: 8.482654049e-05 | Y65: 1.143346322e-05 | Z65: 6.436036899e-06 | AA65: 2.042014699 | AB65: 0.3901765824 | AC65: 0.9602047056 | AD65: 3.933487477 | AE65: 0.08194640763 | AF65: 0.1867757837 | AG65: 3577.78479 | AH65: 953.4661708 | AI65: 28.12304337 | AJ65: -127.6150216 | AK65: 2.559386088e-06 | AL65: 3.648767326e-10
A66: Belgium | B66: =SUMPRODUCT(B$17:B$20,$C$102:$C$105) -> 73.0862928 | C66: =SUMPRODUCT(C$17:C$20,$C$102:$C$105) -> 3.383858787e-06 | D66: 0.0001131112163 | E66: 9.949497017e-06 | F66: 3.581156342e-06 | G66: 1.457937717 | H66: 0.2937224551 | I66: 0.4095774496 | J66: 1.671801909 | K66: 0.04444388441 | L66: 0.1773528207 | M66: 4669.453848 | N66: 398.2718918 | O66: 43.63484006 | P66: 181.5909112 | Q66: 3.663914539e-05 | R66: 3.373988635e-10 | U66: Belgium | V66: =SUMPRODUCT(B$17:B$20,$C$110:$C$113) -> 202.4831211 | W66: =SUMPRODUCT(C$17:C$20,$C$110:$C$113) -> 4.006976751e-06 | X66: 7.881250559e-05 | Y66: 1.249922597e-05 | Z66: 8.260220694e-06 | AA66: 2.426066962 | AB66: 0.4526811713 | AC66: 1.312266298 | AD66: 5.376953928 | AE66: 0.105815703 | AF66: 0.2070580898 | AG66: 3813.873846 | AH66: 1315.453974 | AI66: 17.88444248 | AJ66: -324.5694316 | AK66: -1.947690445e-05 | AL66: 4.148826018e-10
A67: Bulgaria | B67: =SUMPRODUCT(B$17:B$20,$D$102:$D$105) -> 761.69718 | C67: =SUMPRODUCT(C$17:C$20,$D$102:$D$105) -> 3.7962566e-06 | D67: 0.001507635 | E67: 2.2767506e-05 | F67: 2.3223084e-06 | G67: 2.4432419 | H67: 0.35127434 | I67: 0.19281329 | J67: 0.48159306 | K67: 0.01716838 | L67: 1.8076468 | M67: 112151.89 | N67: 982.66324 | O67: 12.995402 | P67: 388.87445 | Q67: 2.1829915e-05 | R67: =SUMPRODUCT(R$17:R$20,$D$102:$D$105) -> 4.044094275e-09 | U67: Bulgaria | V67: =SUMPRODUCT(B$17:B$20,$D$110:$D$113) -> 715.2315702 | W67: =SUMPRODUCT(C$17:C$20,$D$110:$D$113) -> 3.852600489e-06 | X67: 0.001367820492 | Y67: 2.192434785e-05 | Z67: 3.165565172e-06 | AA67: 2.497543689 | AB67: 0.3702445264 | AC67: 0.352977913 | AD67: 1.167986786 | AE67: 0.02926712064 | AF67: 1.654962261 | AG67: 101651.5604 | AH67: 1067.779845 | AI67: 11.97863375 | AJ67: 290.795321 | AK67: 1.460168504e-05 | AL67: 3.698479321e-09
A68: Croatia | B68: =SUMPRODUCT(B$17:B$20,$E$102:$E$105) -> 445.4685757 | C68: =SUMPRODUCT(C$17:C$20,$E$102:$E$105) -> 3.751199837e-06 | D68: 0.0007888440697 | E68: 1.691845505e-05 | F68: 4.200673019e-06 | G68: 2.197876184 | H68: 0.3640317434 | I68: 0.5419089219 | J68: 2.067407806 | K68: 0.04728371016 | L68: 0.9857949794 | M68: 57224.28175 | N68: 927.8586118 | O68: 21.77736379 | P68: 149.492689 | Q68: 1.452311384e-05 | R68: =SUMPRODUCT(R$17:R$20,$E$102:$E$105) -> 2.17813279e-09 | U68: Croatia | V68: =SUMPRODUCT(B$17:B$20,$E$110:$E$113) -> 703.4270355 | W68: =SUMPRODUCT(C$17:C$20,$E$110:$E$113) -> 3.830280457e-06 | X68: 0.001352197782 | Y68: 2.170067095e-05 | Z68: 3.049750984e-06 | AA68: 2.458768351 | AB68: 0.3651172339 | AC68: 0.3303246825 | AD68: 1.078577821 | AE68: 0.02787606105 | AF68: 1.634747217 | AG68: 100397.4705 | AH68: 1035.195501 | AI68: 13.06268468 | AJ68: 302.4780972 | AK68: 1.634624535e-05 | AL68: 3.652239703e-09
A69: Cyprus | B69: =SUMPRODUCT(B$17:B$20,$F$102:$F$105) -> 690.0715973 | C69: =SUMPRODUCT(C$17:C$20,$F$102:$F$105) -> 3.883539554e-06 | D69: 0.00129188073 | E69: 2.146790993e-05 | F69: 3.62604393e-06 | G69: 2.527564172 | H69: 0.3806332289 | I69: 0.4404470039 | J69: 1.542749961 | K69: 0.03587072388 | L69: 1.572069233 | M69: 95949.29198 | N69: 1114.505017 | O69: 11.41231372 | P69: 237.2580667 | Q69: 1.064572259e-05 | R69: =SUMPRODUCT(R$17:R$20,$F$102:$F$105) -> 3.510849273e-09 | U69: Cyprus | V69: =SUMPRODUCT(B$17:B$20,$F$110:$F$113) -> 441.8879781 | W69: =SUMPRODUCT(C$17:C$20,$F$110:$F$113) -> 4.070606399e-06 | X69: 0.0006069497501 | Y69: 1.693495737e-05 | Z69: 7.104121017e-06 | AA69: 2.65418427 | AB69: 0.4510377739 | AC69: 1.099019122 | AD69: 4.388945338 | AE69: 0.08661407907 | AF69: 0.814284696 | AG69: 44258.54515 | AH69: 1400.624039 | AI69: 10.15430795 | AJ69: -172.8335318 | AK69: -1.68305839e-05 | AL69: 1.794041515e-09
A70: Czech Republic | B70: =SUMPRODUCT(B$17:B$20,$G$102:$G$105) -> 660.9924013 | C70: =SUMPRODUCT(C$17:C$20,$G$102:$G$105) -> 3.735005955e-06 | D70: 0.001304205785 | E70: 2.0892714e-05 | F70: 2.497936183e-06 | G70: 2.297798493 | H70: 0.3426024823 | I70: 0.2228879474 | J70: 0.6488832622 | K70: 0.02104265658 | L70: 1.56970381 | M70: 96469.57299 | N70: 895.8086527 | O70: 17.51066779 | P70: 359.4999191 | Q70: 2.408756847e-05 | R70: =SUMPRODUCT(R$17:R$20,$G$102:$G$105) -> 3.503081342e-09 | U70: Czech Republic | V70: =SUMPRODUCT(B$17:B$20,$G$110:$G$113) -> 514.7303713 | W70: =SUMPRODUCT(C$17:C$20,$G$110:$G$113) -> 3.751140658e-06 | X70: 0.0009516688702 | Y70: 1.819697292e-05 | Z70: 3.699824944e-06 | AA70: 2.237370828 | AB70: 0.3585420564 | AC70: 0.448282765 | AD70: 1.648590458 | AE70: 0.03947779138 | AF70: 1.170834183 | AG70: 69637.82584 | AH70: 925.1719692 | AI70: 20.21767389 | AJ70: 211.8415187 | AK70: 1.709388795e-05 | AL70: 2.598087517e-09
A71: Denmark | B71: =SUMPRODUCT(B$17:B$20,$H$102:$H$105) -> 82.62869656 | C71: =SUMPRODUCT(C$17:C$20,$H$102:$H$105) -> 3.359365325e-06 | D71: 0.0001488427193 | E71: 1.011931036e-05 | F71: 3.29156105e-06 | G71: 1.428242149 | H71: 0.2863180426 | I71: 0.3543415557 | J71: 1.437792103 | K71: 0.04038432889 | L71: 0.2152607967 | M71: 7324.456225 | N71: 361.6704363 | O71: 44.31715556 | P71: 214.6431679 | Q71: 3.938669897e-05 | R71: =SUMPRODUCT(R$17:R$20,$H$102:$H$105) -> 4.230372227e-10 | U71: Denmark | V71: =SUMPRODUCT(B$17:B$20,$H$110:$H$113) -> 98.90688573 | W71: =SUMPRODUCT(C$17:C$20,$H$110:$H$113) -> 3.465419392e-06 | X71: 0.0001295020293 | Y71: 1.044722187e-05 | Z71: 4.129432596e-06 | AA71: 1.589733811 | AB71: 0.313826678 | AC71: 0.5157357891 | AD71: 2.10310944 | AE71: 0.05147662778 | AF71: 0.204970737 | AG71: 6149.366579 | AH71: 517.9895125 | AI71: 40.06401382 | AJ71: 123.3284595 | AK71: 2.962304532e-05 | AL71: 4.013966691e-10
A72: Estonia | B72: =SUMPRODUCT(B$17:B$20,$I$102:$I$105) -> 692.7671373 | C72: =SUMPRODUCT(C$17:C$20,$I$102:$I$105) -> 3.880286378e-06 | D72: 0.001299983206 | E72: 2.151682679e-05 | F72: 3.577264244e-06 | G72: 2.52443617 | H72: 0.3795369262 | I72: 0.4311822728 | J72: 1.50304225 | K72: 0.03517073684 | L72: 1.580918876 | M72: 96557.83699 | N72: 1109.590089 | O72: 11.470733 | P72: 242.9323805 | Q72: 1.106353597e-05 | R72: =SUMPRODUCT(R$17:R$20,$I$102:$I$105) -> 3.530881423e-09 | U72: Estonia | V72: =SUMPRODUCT(B$17:B$20,$I$110:$I$113) -> 379.8574216 | W72: =SUMPRODUCT(C$17:C$20,$I$110:$I$113) -> 4.261741735e-06 | X72: 0.0003573425051 | Y72: 1.583933607e-05 | Z72: 9.274168831e-06 | AA72: 2.893019662 | AB72: 0.5078356689 | AC72: 1.513264449 | AD72: 6.139937329 | AE72: 0.1168929024 | AF72: 0.5516815864 | AG72: 25768.2291 | AH72: 1685.777812 | AI72: 4.549458546 | AJ72: -419.5754273 | AK72: -3.781072074e-05 | AL72: 1.201138379e-09
A73: Finland | B73: =SUMPRODUCT(B$17:B$20,$J$102:$J$105) -> 421.0093895 | C73: =SUMPRODUCT(C$17:C$20,$J$102:$J$105) -> 3.969138247e-06 | D73: 0.0006129869421 | E73: 1.652331103e-05 | F73: 6.340795835e-06 | G73: 2.496644586 | H73: 0.4251378348 | I73: 0.9517661384 | J73: 3.784438921 | K73: 0.07659867538 | L73: 0.8099612052 | M73: 44432.32843 | N73: 1251.263448 | O73: 14.34315044 | P73: -90.23773419 | Q73: -7.685558365e-06 | R73: =SUMPRODUCT(R$17:R$20,$J$102:$J$105) -> 1.782589971e-09 | U73: Finland | V73: =SUMPRODUCT(B$17:B$20,$J$110:$J$113) -> 384.4320738 | W73: =SUMPRODUCT(C$17:C$20,$J$110:$J$113) -> 4.056715188e-06 | X73: 0.0004794503117 | Y73: 1.587076196e-05 | Z73: 7.394007607e-06 | AA73: 2.601417025 | AB73: 0.4518067519 | AC73: 1.15258269 | AD73: 4.635995878 | AE73: 0.09139050067 | AF73: 0.6678540385 | AG73: 34498.80723 | AH73: 1382.225044 | AI73: 11.95894887 | AJ73: -210.6276201 | AK73: -1.760053597e-05 | AL73: 1.461485443e-09
A74: France | B74: =SUMPRODUCT(B$17:B$20,$K$102:$K$105) -> 341.7633094 | C74: =SUMPRODUCT(C$17:C$20,$K$102:$K$105) -> 3.527205688e-06 | D74: 0.0006667529976 | E74: 1.494619052e-05 | F74: 2.931793373e-06 | G74: 1.81717827 | H74: 0.3114100163 | I74: 0.2946407039 | J74: 1.080977724 | K74: 0.03166171032 | L74: 0.8223516413 | M74: 47283.66068 | N74: 600.3024201 | O74: 32.32359089 | P74: 280.0100985 | Q74: 3.257737102e-05 | R74: =SUMPRODUCT(R$17:R$20,$K$102:$K$105) -> 1.803571488e-09 | U74: France | V74: =SUMPRODUCT(B$17:B$20,$K$110:$K$113) -> 289.9177329 | W74: =SUMPRODUCT(C$17:C$20,$K$110:$K$113) -> 3.94577719e-06 | X74: 0.0003175576482 | Y74: 1.409739282e-05 | Z74: 7.07727745e-06 | AA74: 2.388208881 | AB74: 0.4291549094 | AC74: 1.088385669 | AD74: 4.408114281 | AE74: 0.08851217652 | AF74: 0.4716392343 | AG74: 21842.93391 | AH74: 1221.614976 | AI74: 18.15527993 | AJ74: -184.7942536 | AK74: -1.025683083e-05 | AL74: 1.014374032e-09
A75: Germany | B75: =SUMPRODUCT(B$17:B$20,$L$102:$L$105) -> 107.0008115 | C75: =SUMPRODUCT(C$17:C$20,$L$102:$L$105) -> 3.585091744e-06 | D75: 8.352861248e-05 | E75: 1.062757822e-05 | F75: 5.149112698e-06 | G75: 1.766091073 | H75: 0.3456796418 | I75: 0.7117281169 | J75: 2.915924999 | K75: 0.06515016281 | L75: 0.1659144557 | M75: 2982.256835 | N75: 694.7669034 | O75: 35.49642217 | P75: 11.04786617 | Q75: 1.822515255e-05 | R75: =SUMPRODUCT(R$17:R$20,$L$102:$L$105) -> 3.146897401e-10 | U75: Germany | V75: =SUMPRODUCT(B$17:B$20,$L$110:$L$113) -> 178.3487157 | W75: =SUMPRODUCT(C$17:C$20,$L$110:$L$113) -> 3.912526647e-06 | X75: 7.338554361e-05 | Y75: 1.202929397e-05 | Z75: 7.583640696e-06 | AA75: 2.276737772 | AB75: 0.4289440245 | AC75: 1.1815443 | AD75: 4.842648909 | AE75: 0.09702221033 | AF75: 0.1904794983 | AG75: 3133.448775 | AH75: 1176.600276 | AI75: 21.8895463 | AJ75: -251.9131557 | AK75: -1.113844687e-05 | AL75: 3.757308701e-10
A76: Greece | B76: =SUMPRODUCT(B$17:B$20,$M$102:$M$105) -> 761.69718 | C76: =SUMPRODUCT(C$17:C$20,$M$102:$M$105) -> 3.7962566e-06 | D76: 0.001507635 | E76: 2.2767506e-05 | F76: 2.3223084e-06 | G76: 2.4432419 | H76: 0.35127434 | I76: 0.19281329 | J76: 0.48159306 | K76: 0.01716838 | L76: 1.8076468 | M76: 112151.89 | N76: 982.66324 | O76: 12.995402 | P76: 388.87445 | Q76: 2.1829915e-05 | R76: =SUMPRODUCT(R$17:R$20,$M$102:$M$105) -> 4.044094275e-09 | U76: Greece | V76: =SUMPRODUCT(B$17:B$20,$M$110:$M$113) -> 325.1769902 | W76: =SUMPRODUCT(C$17:C$20,$M$110:$M$113) -> 4.225609136e-06 | X76: 0.0002484464379 | Y76: 1.482062271e-05 | Z76: 9.343630569e-06 | AA76: 2.809921662 | AB76: 0.5023464788 | AC76: 1.52462346 | AD76: 6.210071416 | AE76: 0.1186461763 | AF76: 0.423941514 | AG76: 17364.00884 | AH76: 1634.363724 | AI76: 7.106488503 | AJ76: -432.6529666 | AK76: -3.630385461e-05 | AL76: 9.106422227e-10
A77: Hungary | B77: =SUMPRODUCT(B$17:B$20,$N$102:$N$105) -> 659.8802005 | C77: =SUMPRODUCT(C$17:C$20,$N$102:$N$105) -> 3.7327016e-06 | D77: 0.001302843232 | E77: 2.087158751e-05 | F77: 2.485209904e-06 | G77: 2.293856135 | H77: 0.3420647145 | I77: 0.2204053608 | J77: 0.6390090911 | K77: 0.02088704768 | L77: 1.567901303 | M77: 96359.18612 | N77: 892.440596 | O77: 17.62018494 | P77: 360.8018633 | Q77: 2.427162438e-05 | R77: =SUMPRODUCT(R$17:R$20,$N$102:$N$105) -> 3.498953239e-09 | U77: Hungary | V77: =SUMPRODUCT(B$17:B$20,$N$110:$N$113) -> 366.290548 | W77: =SUMPRODUCT(C$17:C$20,$N$110:$N$113) -> 3.954013401e-06 | X77: 0.0004925907072 | Y77: 1.550932122e-05 | Z77: 6.599797142e-06 | AA77: 2.443671143 | AB77: 0.4253555599 | AC77: 0.9995008253 | AD77: 4.006072749 | AE77: 0.08091656295 | AF77: 0.6714671545 | AG77: 35210.65338 | AH77: 1230.936312 | AI77: 16.13127368 | AJ77: -124.3378051 | AK77: -8.233563652e-06 | AL77: 1.468026495e-09
A78: Iceland | B78: =SUMPRODUCT(B$17:B$20,$O$102:$O$105) -> 580.2596045 | C78: =SUMPRODUCT(C$17:C$20,$O$102:$O$105) -> 3.837120626e-06 | D78: 0.001058990441 | E78: 1.942883942e-05 | F78: 4.001079227e-06 | G78: 2.398200241 | H78: 0.3767081011 | I78: 0.5084641153 | J78: 1.871851068 | K78: 0.04257804373 | L78: 1.302279439 | M78: 78062.74858 | N78: 1049.938912 | O78: 15.58947926 | P78: 184.8753171 | Q78: 1.111634756e-05 | R78: =SUMPRODUCT(R$17:R$20,$O$102:$O$105) -> 2.897798031e-09 | U78: Iceland | V78: =SUMPRODUCT(B$17:B$20,$O$110:$O$113) -> 349.9055015 | W78: =SUMPRODUCT(C$17:C$20,$O$110:$O$113) -> 4.291834259e-06 | X78: 0.000270599549 | Y78: 1.529422263e-05 | Z78: 9.761635769e-06 | AA78: 2.919086992 | AB78: 0.5183732225 | AC78: 1.605740356 | AD78: 6.537551753 | AE78: 0.1239328962 | AF78: 0.4564177244 | AG78: 19239.93837 | AH78: 1731.430164 | AI78: 4.122216462 | AJ78: -476.5765139 | AK78: -4.186139763e-05 | AL78: 9.854184317e-10
A79: Ireland | B79: =SUMPRODUCT(B$17:B$20,$P$102:$P$105) -> 700.0420018 | C79: =SUMPRODUCT(C$17:C$20,$P$102:$P$105) -> 3.867526146e-06 | D79: 0.001324012453 | E79: 2.164781685e-05 | F79: 3.409755098e-06 | G79: 2.510282217 | H79: 0.3754974384 | I79: 0.3992957663 | J79: 1.367215922 | K79: 0.03279647073 | L79: 1.606820898 | M79: 98353.79126 | N79: 1090.435575 | O79: 11.77424885 | P79: 262.2231633 | Q79: 1.258022479e-05 | R79: =SUMPRODUCT(R$17:R$20,$P$102:$P$105) -> 3.589461217e-09 | U79: Ireland | V79: =SUMPRODUCT(B$17:B$20,$P$110:$P$113) -> 390.731748 | W79: =SUMPRODUCT(C$17:C$20,$P$110:$P$113) -> 4.226516788e-06 | X79: 0.0004020331185 | Y79: 1.60309608e-05 | Z79: 8.878270737e-06 | AA79: 2.848685344 | AB79: 0.4974122587 | AC79: 1.437674612 | AD79: 5.820608983 | AE79: 0.1113754919 | AF79: 0.5985884297 | AG79: 29075.9714 | AH79: 1633.246824 | AI79: 5.594965627 | AJ79: -374.6039351 | AK79: -3.396486918e-05 | AL79: 1.307026754e-09
A80: Italy | B80: =SUMPRODUCT(B$17:B$20,$Q$102:$Q$105) -> 476.7699069 | C80: =SUMPRODUCT(C$17:C$20,$Q$102:$Q$105) -> 3.984315293e-06 | D80: 0.0007358031768 | E80: 1.755654308e-05 | F80: 6.074740223e-06 | G80: 2.550288201 | H80: 0.424851961 | I80: 0.9027151391 | J80: 3.556888486 | K80: 0.07216985946 | L80: 0.9512112702 | M80: 53838.65088 | N80: 1271.628735 | O80: 12.52962461 | P80: -55.25299615 | Q80: -7.104078813e-06 | R80: =SUMPRODUCT(R$17:R$20,$Q$102:$Q$105) -> 2.103409202e-09 | U80: Italy | V80: =SUMPRODUCT(B$17:B$20,$Q$110:$Q$113) -> 267.4584711 | W80: =SUMPRODUCT(C$17:C$20,$Q$110:$Q$113) -> 4.317383601e-06 | X80: 6.293981379e-05 | Y80: 1.377890458e-05 | Z80: 1.058737268e-05 | AA80: 2.908636508 | AB80: 0.5318258248 | AC80: 1.761244664 | AD80: 7.219561042 | AE80: 0.1363300156 | AF80: 0.2232346193 | AG80: 3480.163283 | AH80: 1772.329794 | AI80: 5.045215553 | AJ80: -576.2494964 | AK80: -4.741205586e-05 | AL80: 4.566105042e-10
A81: Latvia | B81: =SUMPRODUCT(B$17:B$20,$R$102:$R$105) -> 760.485044 | C81: =SUMPRODUCT(C$17:C$20,$R$102:$R$105) -> 3.797727001e-06 | D81: 0.001503987385 | E81: 2.274551091e-05 | F81: 2.344311375e-06 | G81: 2.444659278 | H81: 0.3517693657 | I81: 0.1969924522 | J81: 0.4995029546 | K81: 0.01748406643 | L81: 1.803663469 | M81: 111877.9486 | N81: 984.8845018 | O81: 12.96885685 | P81: 386.3153137 | Q81: 2.16412981e-05 | R81: =SUMPRODUCT(R$17:R$20,$R$102:$R$105) -> 4.03507766e-09 | U81: Latvia | V81: =SUMPRODUCT(B$17:B$20,$R$110:$R$113) -> 388.1351774 | W81: =SUMPRODUCT(C$17:C$20,$R$110:$R$113) -> 4.251649047e-06 | X81: 0.0003822801272 | Y81: 1.598952876e-05 | Z81: 9.123447586e-06 | AA81: 2.883266784 | AB81: 0.5044411978 | AC81: 1.484636106 | AD81: 6.017260641 | AE81: 0.1147308162 | AF81: 0.5789099879 | AG81: 27640.96929 | AH81: 1670.532872 | AI81: 4.73261411 | AJ81: -402.0477415 | AK81: -3.651763655e-05 | AL81: 1.262771549e-09
A82: Lithuania | B82: =SUMPRODUCT(B$17:B$20,$S$102:$S$105) -> 754.2609642 | C82: =SUMPRODUCT(C$17:C$20,$S$102:$S$105) -> 3.805321785e-06 | D82: 0.001485233396 | E82: 2.263258195e-05 | F82: 2.457693815e-06 | G82: 2.452001188 | H82: 0.3543233253 | I82: 0.2185286838 | J82: 0.5917876324 | K82: 0.01911048543 | L82: 1.783187251 | M82: 110469.5939 | N82: 996.3561873 | O82: 12.83091976 | P82: 373.130129 | Q82: 2.066843135e-05 | R82: =SUMPRODUCT(R$17:R$20,$S$102:$S$105) -> 3.988728554e-09 | U82: Lithuania | V82: =SUMPRODUCT(B$17:B$20,$S$110:$S$113) -> 495.604774 | W82: =SUMPRODUCT(C$17:C$20,$S$110:$S$113) -> 4.120638901e-06 | X82: 0.0007060314718 | Y82: 1.793947706e-05 | Z82: 7.166846527e-06 | AA82: 2.756678215 | AB82: 0.460377124 | AC82: 1.112995168 | AD82: 4.424719482 | AE82: 0.08666333833 | AF82: 0.9324031981 | AG82: 51953.76851 | AH82: 1472.642201 | AI82: 7.10968328 | AJ82: -174.5094518 | AK82: -1.97318132e-05 | AL82: 2.062925584e-09
A83: Luxembourg | B83: =SUMPRODUCT(B$17:B$20,$T$102:$T$105) -> 227.1401658 | C83: =SUMPRODUCT(C$17:C$20,$T$102:$T$105) -> 3.818498524e-06 | D83: 0.0002391340423 | E83: 1.290564072e-05 | F83: 6.38408002e-06 | G83: 2.169687523 | H83: 0.3995582691 | I83: 0.9530805449 | J83: 3.870857612 | K83: 0.0800688757 | L83: 0.3684834336 | M83: 15504.57801 | N83: 1035.634424 | O83: 24.23470453 | P83: -114.0935337 | Q83: -1.405553121e-07 | R83: =SUMPRODUCT(R$17:R$20,$T$102:$T$105) -> 7.782006856e-10 | U83: Luxembourg | V83: =SUMPRODUCT(B$17:B$20,$T$110:$T$113) -> 224.0214531 | W83: =SUMPRODUCT(C$17:C$20,$T$110:$T$113) -> 3.786065231e-06 | X83: 0.0002494192464 | Y83: 1.283968386e-05 | Z83: 6.114411559e-06 | AA83: 2.121362974 | AB83: 0.3909986709 | AC83: 0.9012123895 | AD83: 3.656158806 | AE83: 0.07646727535 | AF83: 0.376597231 | AG83: 16197.14491 | AH83: 987.7593851 | AI83: 25.49346295 | AJ83: -84.49552862 | AK83: 2.914212172e-06 | AL83: 7.960914094e-10
A84: Malta | B84: =SUMPRODUCT(B$17:B$20,$U$102:$U$105) -> 761.69718 | C84: =SUMPRODUCT(C$17:C$20,$U$102:$U$105) -> 3.7962566e-06 | D84: 0.001507635 | E84: 2.2767506e-05 | F84: 2.3223084e-06 | G84: 2.4432419 | H84: 0.35127434 | I84: 0.19281329 | J84: 0.48159306 | K84: 0.01716838 | L84: 1.8076468 | M84: 112151.89 | N84: 982.66324 | O84: 12.995402 | P84: 388.87445 | Q84: 2.1829915e-05 | R84: =SUMPRODUCT(R$17:R$20,$U$102:$U$105) -> 4.044094275e-09 | U84: Malta | V84: =SUMPRODUCT(B$17:B$20,$U$110:$U$113) -> 613.1597187 | W84: =SUMPRODUCT(C$17:C$20,$U$110:$U$113) -> 3.688073578e-06 | X84: 0.001217270298 | Y84: 1.999761336e-05 | Z84: 2.420636086e-06 | AA84: 2.203115752 | AB84: 0.3336398471 | AC84: 0.2063269382 | AD84: 0.5998874805 | AE84: 0.02070868385 | AF84: 1.465730875 | AG84: 89709.12774 | AH84: 828.1569919 | AI84: 20.30900952 | AJ84: 363.370433 | AK84: 2.690367714e-05 | AL84: 3.266351422e-09
A85: Netherlands | B85: =SUMPRODUCT(B$17:B$20,$V$102:$V$105) -> 161.1451314 | C85: =SUMPRODUCT(C$17:C$20,$V$102:$V$105) -> 3.787497236e-06 | D85: 0.0001008572196 | E85: 1.16793932e-05 | F85: 6.581501952e-06 | G85: 2.087487332 | H85: 0.396356467 | I85: 0.9885899832 | J85: 4.046288409 | K85: 0.08372151674 | L85: 0.2079185852 | M85: 4874.86627 | N85: 992.2378033 | O85: 26.85885644 | P85: -142.4731988 | Q85: 4.45723028e-07 | R85: =SUMPRODUCT(R$17:R$20,$V$102:$V$105) -> 4.132899597e-10 | U85: Netherlands | V85: =SUMPRODUCT(B$17:B$20,$B$110:$B$113) -> 148.194068 | W85: =SUMPRODUCT(C$17:C$20,$B$110:$B$113) -> 3.760966726e-06 | X85: 8.482654049e-05 | Y85: 1.143346322e-05 | Z85: 6.436036899e-06 | AA85: 2.042014699 | AB85: 0.3901765824 | AC85: 0.9602047056 | AD85: 3.933487477 | AE85: 0.08194640763 | AF85: 0.1867757837 | AG85: 3577.78479 | AH85: 953.4661708 | AI85: 28.12304337 | AJ85: -127.6150216 | AK85: 2.559386088e-06 | AL85: 3.648767326e-10
A86: Norway | B86: =SUMPRODUCT(B$17:B$20,$W$102:$W$105) -> 168.6861941 | C86: =SUMPRODUCT(C$17:C$20,$W$102:$W$105) -> 3.647876098e-06 | D86: 0.0001944137883 | E86: 1.178249108e-05 | F86: 5.269160266e-06 | G86: 1.891437795 | H86: 0.3578515453 | I86: 0.7369930273 | J86: 2.995383681 | K86: 0.065856292 | L86: 0.2988528511 | M86: 11613.37602 | N86: 785.3551622 | O86: 31.80484785 | P86: 3.79853814 | Q86: 1.437256818e-05 | R86: =SUMPRODUCT(R$17:R$20,$W$102:$W$105) -> 6.174142946e-10 | U86: Norway | V86: =SUMPRODUCT(B$17:B$20,$W$110:$W$113) -> 274.9561932 | W86: =SUMPRODUCT(C$17:C$20,$W$110:$W$113) -> 4.128397366e-06 | X86: 0.0001832060579 | Y86: 1.386843667e-05 | Z86: 8.830606224e-06 | AA86: 2.641722395 | AB86: 0.479921058 | AC86: 1.424350672 | AD86: 5.813461467 | AE86: 0.1124533727 | AF86: 0.3390822728 | AG86: 12115.63031 | AH86: 1492.402446 | AI86: 11.80103615 | AJ86: -380.6980842 | AK86: -2.866151583e-05 | AL86: 7.164795446e-10
A87: Poland | B87: =SUMPRODUCT(B$17:B$20,$X$102:$X$105) -> 716.2912699 | C87: =SUMPRODUCT(C$17:C$20,$X$102:$X$105) -> 3.833625657e-06 | D87: 0.001380616959 | E87: 2.193900243e-05 | F87: 2.986963179e-06 | G87: 2.470920024 | H87: 0.3650088651 | I87: 0.3187382505 | J87: 1.024955897 | K87: 0.02683527147 | L87: 1.667413531 | M87: 102573.5845 | N87: 1039.662713 | O87: 12.65001939 | P87: 310.7053284 | Q87: 1.649566585e-05 | R87: =SUMPRODUCT(R$17:R$20,$X$102:$X$105) -> 3.72643157e-09 | U87: Poland | V87: =SUMPRODUCT(B$17:B$20,$X$110:$X$113) -> 283.1449268 | W87: =SUMPRODUCT(C$17:C$20,$X$110:$X$113) -> 4.335030362e-06 | X87: 9.022475716e-05 | Y87: 1.407303102e-05 | Z87: 1.063304346e-05 | AA87: 2.942923937 | AB87: 0.5353774828 | AC87: 1.770575759 | AD87: 7.251870206 | AE87: 0.1367144325 | AF87: 0.2561883361 | AG87: 5610.183479 | AH87: 1797.853353 | AI87: 4.044866533 | AJ87: -579.7722428 | AK87: -4.855605688e-05 | AL87: 5.316856792e-10
A88: Portugal | B88: =SUMPRODUCT(B$17:B$20,$Y$102:$Y$105) -> 564.1659733 | C88: =SUMPRODUCT(C$17:C$20,$Y$102:$Y$105) -> 3.769106006e-06 | D88: 0.001058104644 | E88: 1.91141717e-05 | F88: 3.50457782e-06 | G88: 2.291401342 | H88: 0.3595130884 | I88: 0.4125934264 | J88: 1.479324432 | K88: 0.03610096546 | L88: 1.293775671 | M88: 77803.17981 | N88: 949.900497 | O88: 18.44460548 | P88: 238.3523465 | Q88: 1.716858659e-05 | R88: =SUMPRODUCT(R$17:R$20,$Y$102:$Y$105) -> 2.877399565e-09 | U88: Portugal | V88: =SUMPRODUCT(B$17:B$20,$Y$110:$Y$113) -> 425.4849644 | W88: =SUMPRODUCT(C$17:C$20,$Y$110:$Y$113) -> 3.757208807e-06 | X88: 0.0007386110288 | Y88: 1.655112292e-05 | Z88: 4.399161063e-06 | AA88: 2.195079556 | AB88: 0.3672425218 | AC88: 0.5792825981 | AD88: 2.23139123 | AE88: 0.05026614965 | AF88: 0.92936892 | AG88: 53411.49667 | AH88: 937.5000753 | AI88: 22.00781299 | AJ88: 125.5173676 | AK88: 1.319569569e-05 | AL88: 2.050168112e-09
A89: Romania | B89: =SUMPRODUCT(B$17:B$20,$Z$102:$Z$105) -> 702.5704174 | C89: =SUMPRODUCT(C$17:C$20,$Z$102:$Z$105) -> 3.86530368e-06 | D89: 0.001331162314 | E89: 2.169391523e-05 | F89: 3.371468461e-06 | G89: 2.508537798 | H89: 0.3746941942 | I89: 0.3920388678 | J89: 1.335939454 | K89: 0.03224091766 | L89: 1.614701533 | M89: 98892.61937 | N89: 1087.052077 | O89: 11.79866921 | P89: 266.7174364 | Q89: 1.289110006e-05 | R89: =SUMPRODUCT(R$17:R$20,$Z$102:$Z$105) -> 3.607310808e-09 | U89: Romania | V89: =SUMPRODUCT(B$17:B$20,$Z$110:$Z$113) -> 602.0811771 | W89: =SUMPRODUCT(C$17:C$20,$Z$110:$Z$113) -> 3.821527061e-06 | X89: 0.001118749076 | Y89: 1.98276207e-05 | Z89: 3.70296551e-06 | AA89: 2.388293104 | AB89: 0.3707497296 | AC89: 0.4520362451 | AD89: 1.627750528 | AE89: 0.03822054616 | AF89: 1.368474577 | AG89: 82574.70029 | AH89: 1026.046 | AI89: 15.6687857 | AJ89: 220.0791618 | AK89: 1.344869859e-05 | AL89: 3.047779285e-09
A90: Slovakia | B90: =SUMPRODUCT(B$17:B$20,$AA$102:$AA$105) -> 674.4884376 | C90: =SUMPRODUCT(C$17:C$20,$AA$102:$AA$105) -> 3.735823308e-06 | D90: 0.001335482891 | E90: 2.114205448e-05 | F90: 2.407810762e-06 | G90: 2.306683701 | H90: 0.3417578398 | I90: 0.2060775784 | J90: 0.5732428628 | K90: 0.01962264996 | L90: 1.60533944 | M90: 98856.43736 | N90: 896.5116583 | O90: 17.17638153 | P90: 370.8208228 | Q90: 2.450747669e-05 | R90: =SUMPRODUCT(R$17:R$20,$AA$102:$AA$105) -> 3.583971383e-09 | U90: Slovakia | V90: =SUMPRODUCT(B$17:B$20,$AA$110:$AA$113) -> 248.3117202 | W90: =SUMPRODUCT(C$17:C$20,$AA$110:$AA$113) -> 4.143030269e-06 | X90: 0.0001126334581 | Y90: 1.338037897e-05 | Z90: 9.154903578e-06 | AA90: 2.647494925 | AB90: 0.4859997414 | AC90: 1.485629831 | AD90: 6.079778501 | AE90: 0.1172368377 | AF90: 0.2604914818 | AG90: 6776.512945 | AH90: 1515.054833 | AI90: 11.86568732 | AJ90: -419.279585 | AK90: -3.10785726e-05 | AL90: 5.383502195e-10
A91: Slovenia | B91: =SUMPRODUCT(B$17:B$20,$AB$102:$AB$105) -> 720.1623782 | C91: =SUMPRODUCT(C$17:C$20,$AB$102:$AB$105) -> 3.846889968e-06 | D91: 0.001382511385 | E91: 2.201389101e-05 | F91: 3.078500333e-06 | G91: 2.49216669 | H91: 0.3683043732 | I91: 0.3364459944 | J91: 1.097082156 | K91: 0.02801596247 | L91: 1.671028585 | M91: 102755.4661 | N91: 1059.144863 | O91: 12.07669047 | P91: 300.9349291 | Q91: 1.534247641e-05 | R91: =SUMPRODUCT(R$17:R$20,$AB$102:$AB$105) -> 3.734850392e-09 | U91: Slovenia | V91: =SUMPRODUCT(B$17:B$20,$AB$110:$AB$113) -> 545.5797881 | W91: =SUMPRODUCT(C$17:C$20,$AB$110:$AB$113) -> 4.059716418e-06 | X91: 0.0008565812309 | Y91: 1.884623279e-05 | Z91: 6.256990193e-06 | AA91: 2.697811506 | AB91: 0.4398864484 | AC91: 0.9401751201 | AD91: 3.684157955 | AE91: 0.07361143815 | AF91: 1.096783355 | AG91: 63259.6228 | AH91: 1380.618886 | AI91: 8.215084521 | AJ91: -68.69989923 | AK91: -1.19260739e-05 | AL91: 2.43501036e-09
A92: Spain | B92: =SUMPRODUCT(B$17:B$20,$AC$102:$AC$105) -> 628.0350267 | C92: =SUMPRODUCT(C$17:C$20,$AC$102:$AC$105) -> 3.808465172e-06 | D92: 0.001186845176 | E92: 2.030333615e-05 | F92: 3.397810407e-06 | G92: 2.384380351 | H92: 0.3651521757 | I92: 0.3944060193 | J92: 1.376917548 | K92: 0.03370630861 | L92: 1.444424066 | M92: 87729.44579 | N92: 1005.744183 | O92: 15.56214253 | P92: 256.4700234 | Q92: 1.568661712e-05 | R92: =SUMPRODUCT(R$17:R$20,$AC$102:$AC$105) -> 3.219939423e-09 | U92: Spain | V92: =SUMPRODUCT(B$17:B$20,$AC$110:$AC$113) -> 352.2935845 | W92: =SUMPRODUCT(C$17:C$20,$AC$110:$AC$113) -> 4.260988036e-06 | X92: 0.0002929659228 | Y92: 1.533032848e-05 | Z92: 9.466486946e-06 | AA92: 2.876186769 | AB92: 0.5098093438 | AC92: 1.549180555 | AD92: 6.301015733 | AE92: 0.1199046661 | AF92: 0.4784363644 | AG92: 20858.05083 | AH92: 1685.696894 | AI92: 5.198642309 | AJ92: -443.6116201 | AK92: -3.875782726e-05 | AL92: 1.034892526e-09
A93: Sweden | B93: =SUMPRODUCT(B$17:B$20,$AD$102:$AD$105) -> 74.41609261 | C93: =SUMPRODUCT(C$17:C$20,$AD$102:$AD$105) -> 3.429774287e-06 | D93: 9.129880057e-05 | E93: 9.985918047e-06 | F93: 3.985210374e-06 | G93: 1.524587206 | H93: 0.3060840231 | I93: 0.487172803 | J93: 1.994386563 | K93: 0.04989003594 | L93: 0.1576247879 | M93: 3136.122335 | N93: 466.1638999 | O93: 41.92240238 | P93: 136.914548 | Q93: 3.220028071e-05 | R93: =SUMPRODUCT(R$17:R$20,$AD$102:$AD$105) -> 2.933668525e-10 | U93: Sweden | V93: =SUMPRODUCT(B$17:B$20,$AD$110:$AD$113) -> 159.1970795 | W93: =SUMPRODUCT(C$17:C$20,$AD$110:$AD$113) -> 3.823472597e-06 | X93: 7.6739317e-05 | Y93: 1.165273646e-05 | Z93: 6.919681396e-06 | AA93: 2.137999416 | AB93: 0.4062781991 | AC93: 1.053424236 | AD93: 4.317099021 | AE93: 0.08832530648 | AF93: 0.1844747553 | AG93: 3137.699679 | AH93: 1045.544229 | AI93: 25.58456433 | AJ93: -180.1666687 | AK93: -3.142910411e-06 | AL93: 3.606641844e-10
A94: Switzerland | B94: 445.4685757 | C94: 3.751199837e-06 | D94: 0.0007888440697 | E94: 1.691845505e-05 | F94: 4.200673019e-06 | G94: 2.197876184 | H94: 0.3640317434 | I94: 0.5419089219 | J94: 2.067407806 | K94: 0.04728371016 | L94: 0.9857949794 | M94: 57224.28175 | N94: 927.8586118 | O94: 21.77736379 | P94: 149.492689 | Q94: 1.452311384e-05 | R94: 2.17813279e-09 | U94: Switzerland | V94: 338.3551792 | W94: 4.048775736e-06 | X94: 0.0003754634906 | Y94: 1.501815568e-05 | Z94: 7.655317851e-06 | AA94: 2.563693183 | AB94: 0.4532924501 | AC94: 1.201072229 | AD94: 4.857165017 | AE94: 0.09561103571 | AF94: 0.5488008455 | AG94: 26548.46829 | AH94: 1372.20596 | AI94: 13.28890606 | AJ94: -244.1343007 | AK94: -1.853085399e-05 | AL94: 1.191160038e-09
A95: United Kingdom | B95: =SUMPRODUCT(B$17:B$20,$AF$102:$AF$105) -> 553.3040781 | C95: =SUMPRODUCT(C$17:C$20,$AF$102:$AF$105) -> 3.721207831e-06 | D95: 0.001058589705 | E95: 1.890128092e-05 | F95: 3.151516973e-06 | G95: 2.216459575 | H95: 0.3473665003 | I95: 0.3444410326 | J95: 1.200044129 | K95: 0.03148646865 | L95: 1.289047229 | M95: 77704.92255 | N95: 879.4323879 | O95: 20.4446424 | P95: 276.4369518 | Q95: 2.144824771e-05 | R95: =SUMPRODUCT(R$17:R$20,$AF$102:$AF$105) -> 2.865894361e-09 | U95: United Kingdom | V95: =SUMPRODUCT(B$17:B$20,$AF$110:$AF$113) -> 428.2397267 | W95: =SUMPRODUCT(C$17:C$20,$AF$110:$AF$113) -> 3.797200893e-06 | X95: 0.0007233650089 | Y95: 1.661231616e-05 | Z95: 4.739556871e-06 | AA95: 2.25404313 | AB95: 0.3778831934 | AC95: 0.6447118525 | AD95: 2.502716146 | AE95: 0.05482994659 | AF95: 0.9164504847 | AG95: 52362.06062 | AH95: 996.5736393 | AI95: 20.48028996 | AJ95: 88.04036732 | AK95: 9.388599138e-06 | AL95: 2.021495131e-09
A98: Share of different waste treatment options in each european country (calculated from Eurostat, see file "waste_treatment")
A100: Household
B101: Austria | C101: Belgium | D101: Bulgaria | E101: Croatia | F101: Cyprus | G101: Czech Republic | H101: Denmark | I101: Estonia | J101: Finland | K101: France | L101: Germany | M101: Greece | N101: Hungary | O101: Iceland | P101: Ireland | Q101: Italy | R101: Latvia | S101: Lithuania | T101: Luxembourg | U101: Malta | V101: Netherlands | W101: Norway | X101: Poland | Y101: Portugal | Z101: Romania | AA101: Slovakia | AB101: Slovenia | AC101: Spain | AD101: Sweden | AE101: Switzerland | AF101: United Kingdom
A102: AD | B102: 0.07648950686 | C102: 0.02415302994 | D102: 0 | E102: 0.04962325324 | F102: 0.03726638829 | G102: 0.003281213096 | H102: 0.01575353833 | I102: 0.03587235313 | J102: 0.1125755373 | K102: 0.01004130088 | L102: 0.07126481946 | M102: 0 | N102: 0.002882847638 | O102: 0.04628282149 | P102: 0.03104740021 | Q102: 0.1057562828 | R102: 0.000628876578 | S102: 0.003869931712 | T102: 0.1101556878 | U102: 0 | V102: 0.114745625 | W102: 0.07600032027 | X102: 0.01882890928 | Y102: 0.03126237341 | Z102: 0.02996111947 | AA102: 0.0008682254162 | AB102: 0.02161540916 | AC102: 0.02931824814 | AD102: 0.03615197596 | AF102: 0.02059249188
A103: Composting | B103: 0.2294685206 | C103: 0.07245908982 | D103: 0 | E103: 0.1488697597 | F103: 0.1117991649 | G103: 0.009843639288 | H103: 0.04726061499 | I103: 0.1076170594 | J103: 0.3377266119 | K103: 0.03012390265 | L103: 0.2137944584 | M103: 0 | N103: 0.008648542914 | O103: 0.1388484645 | P103: 0.09314220063 | Q103: 0.3172688483 | R103: 0.001886629734 | S103: 0.01160979514 | T103: 0.3304670635 | U103: 0 | V103: 0.344236875 | W103: 0.2280009608 | X103: 0.05648672783 | Y103: 0.09378712023 | Z103: 0.0898833584 | AA103: 0.002604676248 | AB103: 0.06484622749 | AC103: 0.08795474442 | AD103: 0.1084559279 | AF103: 0.06177747565
A104: Incineration | B104: 0.6853227708 | C104: 0.8828953543 | D104: 0 | E104: 0.3036595229 | F104: 2.316571012e-05 | G104: 0.1297806873 | H104: 0.8919656234 | I104: 0 | J104: 0.1709833319 | K104: 0.5507979805 | L104: 0.7118133316 | M104: 0 | N104: 0.132362111 | O104: 0.1271735591 | P104: 0.002744729126 | Q104: 0.1123384684 | R104: 5.123230778e-06 | S104: 0 | T104: 0.4439069732 | U104: 0 | V104: 0.5225114763 | W104: 0.6144984854 | X104: 0.01268315987 | Y104: 0.1889789511 | Z104: 0.002138323014 | AA104: 0.1176008109 | AB104: 0 | AC104: 0.106307735 | AD104: 0.8493692295 | AF104: 0.2320987605
A105: Landfill | B105: 0.008719201813 | C105: 0.02049252595 | D105: 1 | E105: 0.4978474642 | F105: 0.8509112811 | G105: 0.8570944604 | H105: 0.04502022324 | I105: 0.8565105875 | J105: 0.3787145189 | K105: 0.409036816 | L105: 0.003127390568 | M105: 1 | N105: 0.8561064985 | O105: 0.6876951549 | P105: 0.87306567 | Q105: 0.4646364005 | R105: 0.9974793705 | S105: 0.9845202732 | T105: 0.1154702754 | U105: 1 | V105: 0.01850602368 | W105: 0.08150023354 | X105: 0.912001203 | Y105: 0.6859715552 | Z105: 0.8780171991 | AA105: 0.8789262874 | AB105: 0.9135383633 | AC105: 0.7764192725 | AD105: 0.006022866618 | AF105: 0.685531272
A108: Processing and retail
B109: Austria | C109: Belgium | D109: Bulgaria | E109: Croatia | F109: Cyprus | G109: Czech Republic | H109: Denmark | I109: Estonia | J109: Finland | K109: France | L109: Germany | M109: Greece | N109: Hungary | O109: Iceland | P109: Ireland | Q109: Italy | R109: Latvia | S109: Lithuania | T109: Luxembourg | U109: Malta | V109: Netherlands | W109: Norway | X109: Poland | Y109: Portugal | Z109: Romania | AA109: Slovakia | AB109: Slovenia | AC109: Spain | AD109: Sweden | AE109: Switzerland | AF109: United Kingdom
A110: AD | B110: 0.1101876419 | C110: 0.165281469 | D110: 0.02410127962 | E110: 0.02044385285 | F110: 0.1355943003 | G110: 0.03610411524 | H110: 0.04089351527 | I110: 0.1987158301 | J110: 0.1430873724 | K110: 0.1318965039 | L110: 0.144771093 | M110: 0.1997299405 | N110: 0.1192056417 | O110: 0.2125891773 | P110: 0.1871916477 | Q110: 0.2354841086 | R110: 0.1944075152 | S110: 0.1384789618 | T110: 0.1021048968 | U110: 7.702973348e-05 | V110: 0.1181997251 | W110: 0.183568099 | X110: 0.237137075 | Y110: 0.05512350888 | Z110: 0.03786540631 | AA110: 0.1926693202 | AB110: 0.1124711243 | AC110: 0.2038884818 | AD110: 0.1247298737 | AF110: 0.06526325055
A111: Composting | B111: 0.3305629257 | C111: 0.495844407 | D111: 0.07230383887 | E111: 0.06133155856 | F111: 0.4067829008 | G111: 0.1083123457 | H111: 0.1226805458 | I111: 0.5961474902 | J111: 0.4292621172 | K111: 0.3956895118 | L111: 0.4343132789 | M111: 0.5991898215 | N111: 0.3576169251 | O111: 0.637767532 | P111: 0.561574943 | Q111: 0.7064523259 | R111: 0.5832225457 | S111: 0.4154368855 | T111: 0.3063146904 | U111: 0.0002310892004 | V111: 0.3545991753 | W111: 0.550704297 | X111: 0.7114112251 | Y111: 0.1653705266 | Z111: 0.1135962189 | AA111: 0.5780079606 | AB111: 0.3374133729 | AC111: 0.6116654455 | AD111: 0.3741896211 | AF111: 0.1957897517
A112: Incineration | B112: 0.552357514 | C112: 0.3321782678 | D112: 0.0002118793813 | E112: 0.02610264931 | F112: 0.08147023866 | G112: 0.2441523774 | H112: 0.8031734867 | I112: 0 | J112: 0.1406658761 | K112: 0.3001672233 | L112: 0.4195409831 | M112: 0.07249555874 | N112: 0.2286957838 | O112: 0.004528275052 | P112: 0.01549371888 | Q112: 0.05739418842 | R112: 1.140159844e-06 | S112: 0 | T112: 0.4694625516 | U112: 0.2040055461 | V112: 0.5092890762 | W112: 0.1842341655 | X112: 0.03146179403 | Y112: 0.3166027922 | Z112: 0.1194097979 | AA112: 0.196822014 | AB112: 0 | AC112: 0.02422998969 | AD112: 0.4988140129 | AF112: 0.2860291384
A113: Landfill | B113: 0.006891918346 | C113: 0.006695856166 | D113: 0.9033830021 | E113: 0.8921219393 | F113: 0.3761525603 | G113: 0.6114311616 | H113: 0.0332524522 | I113: 0.2051366797 | J113: 0.2869846343 | K113: 0.1722467609 | L113: 0.001374645085 | M113: 0.1285846792 | N113: 0.2944816493 | O113: 0.1451150156 | P113: 0.2357396905 | Q113: 0.0006693770997 | R113: 0.222368799 | S113: 0.4460841527 | T113: 0.1221178612 | U113: 0.7956863349 | V113: 0.01791202333 | W113: 0.08149343853 | X113: 0.0199899059 | Y113: 0.4629031723 | Z113: 0.7291285768 | AA113: 0.03250070517 | AB113: 0.5501155029 | AC113: 0.160216083 | AD113: 0.002266492254 | AF113: 0.4529178593

Sheet Food cost (hidden)
B1: Food cost | D1: Cost in Euros for 1 kg
D4: Austria | E4: Belgium | F4: Bulgaria | G4: Croatia | H4: Cyprus | I4: Czech Republic | J4: Denmark | K4: Estonia | L4: Finland | M4: France | N4: Germany | O4: Greece | P4: Hungary | Q4: Iceland | R4: Ireland | S4: Italy | T4: Latvia | U4: Lithuania | V4: Luxembourg | W4: Malta | X4: Netherlands | Y4: Norway | Z4: Poland | AA4: Portugal | AB4: Romania | AC4: Slovakia | AD4: Slovenia | AE4: Spain | AF4: Sweden | AG4: Switzerland | AH4: United Kingdom | AI4: Unknown
A5: Agriculture | B5: UNKOWN/OTHER | C5: =CONCATENATE(B5," ","agriculture") -> UNKOWN/OTHER agriculture | D5: 1.252863655 | E5: 1.140175139 | F5: 1.097249622 | G5: 1.331337857 | H5: 1.291511902 | I5: 1.154730934 | J5: 1.273816464 | K5: 1.107968403 | L5: 1.287997161 | M5: 1.253210493 | N5: 1.215018054 | O5: 1.260993149 | P5: 1.127593081 | Q5: 1.218175794 | R5: 1.10048816 | S5: 1.594024357 | T5: 1.094369344 | U5: 1.142020652 | V5: 1.274855899 | W5: 1.326844446 | X5: 1.139005234 | Y5: 1.218175794 | Z5: 1.043360057 | AA5: 1.21263504 | AB5: 1.147487459 | AC5: 1.189599583 | AD5: 1.273883581 | AE5: 1.318158233 | AF5: 1.283207328 | AG5: 1.218175794 | AH5: 1.270886545 | AI5: 1.218175794
B6: ALMONDS | C6: =CONCATENATE(B6," ","agriculture") -> ALMONDS agriculture | D6: 1.957171429 | E6: 1.957171429 | F6: 1.957171429 | G6: 2.8055 | H6: 1.165 | I6: 1.957171429 | J6: 1.957171429 | K6: 1.957171429 | L6: 1.957171429 | M6: 1.957171429 | N6: 1.957171429 | O6: 3.6736 | P6: 1.6048 | Q6: 1.957171429 | R6: 1.957171429 | S6: 1.5809 | T6: 1.957171429 | U6: 1.957171429 | V6: 1.957171429 | W6: 1.957171429 | X6: 1.957171429 | Y6: 1.957171429 | Z6: 1.957171429 | AA6: 1.0156 | AB6: 1.957171429 | AC6: 1.957171429 | AD6: 1.957171429 | AE6: 1.8548 | AF6: 1.957171429 | AG6: 1.957171429 | AH6: 1.957171429 | AI6: 1.957171429
B7: APPLES | C7: APPLES agriculture | D7: 0.3904 | E7: 0.3942 | F7: 0.2392 | G7: 0.2982 | H7: 0.703 | I7: 0.3461 | J7: 0.4371 | K7: 0.533296 | L7: 1.637 | M7: 0.533296 | N7: 0.4168 | O7: 0.6033 | P7: 0.258 | Q7: 0.533296 | R7: 0.533296 | S7: 0.4418 | T7: 0.3335 | U7: 0.4007 | V7: 1.38 | W7: 0.4483 | X7: 0.4821 | Y7: 0.533296 | Z7: 0.1859 | AA7: 0.5759 | AB7: 0.6006 | AC7: 0.3333 | AD7: 0.4611 | AE7: 0.3773 | AF7: 0.6719 | AG7: 0.533296 | AH7: 0.9167 | AI7: 0.533296
B8: BANANAS | C8: BANANAS agriculture | D8: 0.6570509756 | E8: 0.6570509756 | F8: 0.6570509756 | G8: 0.6570509756 | H8: 0.6570509756 | I8: 0.6570509756 | J8: 0.6570509756 | K8: 0.6570509756 | L8: 0.6570509756 | M8: 0.6570509756 | N8: 0.6570509756 | O8: 0.6570509756 | P8: 0.6570509756 | Q8: 0.6570509756 | R8: 0.6570509756 | S8: 0.6570509756 | T8: 0.6570509756 | U8: 0.6570509756 | V8: 0.6570509756 | W8: 0.6570509756 | X8: 0.6570509756 | Y8: 0.6570509756 | Z8: 0.6570509756 | AA8: 0.6570509756 | AB8: 0.6570509756 | AC8: 0.6570509756 | AD8: 0.6570509756 | AE8: 0.6570509756 | AF8: 0.6570509756 | AG8: 0.6570509756 | AH8: 0.6570509756 | AI8: 0.6570509756
B9: BEANS | C9: BEANS agriculture | D9: 2.454593625 | E9: 2.454593625 | F9: 2.454593625 | G9: 2.454593625 | H9: 2.454593625 | I9: 2.454593625 | J9: 2.454593625 | K9: 2.454593625 | L9: 2.454593625 | M9: 2.454593625 | N9: 2.454593625 | O9: 2.454593625 | P9: 2.454593625 | Q9: 2.454593625 | R9: 2.454593625 | S9: 2.454593625 | T9: 2.454593625 | U9: 2.454593625 | V9: 2.454593625 | W9: 2.454593625 | X9: 2.454593625 | Y9: 2.454593625 | Z9: 2.454593625 | AA9: 2.454593625 | AB9: 2.454593625 | AC9: 2.454593625 | AD9: 2.454593625 | AE9: 2.454593625 | AF9: 2.454593625 | AG9: 2.454593625 | AH9: 2.454593625 | AI9: 2.454593625
B10: BEEF | C10: BEEF agriculture | D10: 3.400939333 | E10: 2.925911278 | F10: 2.068586333 | G10: 3.125733778 | H10: 3.505084472 | I10: 2.852172444 | J10: 3.486202361 | K10: 2.925106833 | L10: 3.335973 | M10: 3.624629917 | N10: 3.530478806 | O10: 3.546955639 | P10: 2.197604417 | Q10: 3.505084472 | R10: 3.643113222 | S10: 3.633751667 | T10: 2.279983972 | U10: 2.708076518 | V10: 3.5303245 | W10: 2.701038917 | X10: 2.941353528 | Y10: 3.505084472 | Z10: 3.076499333 | AA10: 3.162008639 | AB10: 2.475967361 | AC10: 2.661443022 | AD10: 3.005938889 | AE10: 3.303294833 | AF10: 4.455433278 | AG10: 3.505084472 | AH10: 3.800331694 | AI10: 3.505084472
B11: BEER | C11: BEER agriculture
B12: BISCUITS | C12: BISCUITS agriculture
B13: BREAD | C13: BREAD agriculture
B14: BUTTER | C14: BUTTER agriculture | D14: 5.082395563 | E14: 4.560356667 | F14: 5.082395563 | G14: 4.392941429 | H14: 5.082395563 | I14: 4.565449 | J14: 5.082395563 | K14: 5.28762625 | L14: 5.082395563 | M14: 5.082395563 | N14: 5.472 | O14: 5.082395563 | P14: 5.082395563 | Q14: 5.082395563 | R14: 5.00487 | S14: 4.776708333 | T14: 4.902657083 | U14: 5.082395563 | V14: 5.082395563 | W14: 5.082395563 | X14: 5.201791667 | Y14: 5.082395563 | Z14: 4.621411818 | AA14: 5.082395563 | AB14: 5.082395563 | AC14: 5.316029091 | AD14: 5.082395563 | AE14: 5.772346667 | AF14: 5.082395563 | AG14: 5.082395563 | AH14: 5.139379583 | AI14: 5.082395563
B15: CHEESE | C15: CHEESE agriculture | D15: 4.723234167 | E15: 4.420248974 | F15: 4.420248974 | G15: 3.772312857 | H15: 4.420248974 | I15: 4.2599915 | J15: 4.420248974 | K15: 3.13865425 | L15: 4.420248974 | M15: 4.420248974 | N15: 3.512549167 | O15: 4.420248974 | P15: 4.420248974 | Q15: 4.420248974 | R15: 4.06280327 | S15: 4.420248974 | T15: 3.987678333 | U15: 3.637901667 | V15: 4.420248974 | W15: 4.420248974 | X15: 4.420248974 | Y15: 4.420248974 | Z15: 3.477306061 | AA15: 4.420248974 | AB15: 4.420248974 | AC15: 5.023746818 | AD15: 4.420248974 | AE15: 8.8890125 | AF15: 4.420248974 | AG15: 4.420248974 | AH15: 4.557797097 | AI15: 4.420248974
B16: CHOCOLATE | C16: CHOCOLATE agriculture
B17: COD | C17: COD agriculture | D17: 2.78726 | E17: 2.78726 | F17: 2.78726 | G17: 5.66355 | H17: 2.78726 | I17: 2.78726 | J17: 3.15902 | K17: 2.78726 | L17: 2.8 | M17: 2.78726 | N17: 2.78726 | O17: 1.01623 | P17: 2.78726 | Q17: 2.78726 | R17: 1.58306 | S17: 3.65436 | T17: 2.78726 | U17: 2.78726 | V17: 2.78726 | W17: 2.78726 | X17: 2.93127 | Y17: 2.78726 | Z17: 1.26318 | AA17: 2.78726 | AB17: 2.78726 | AC17: 2.78726 | AD17: 2.78726 | AE17: 2.40539 | AF17: 1.60926 | AG17: 2.78726 | AH17: 3.05615 | AI17: 2.78726
B18: COFFEE | C18: COFFEE agriculture
B19: EGGS | C19: EGGS agriculture | D19: 1.753009167 | E19: 1.289624 | F19: 1.2626075 | G19: 1.605611833 | H19: 1.7641 | I19: 1.28843175 | J19: 1.720754667 | K19: 1.149768333 | L19: 1.3492125 | M19: 1.364483083 | N19: 1.524000417 | O19: 1.375834417 | P19: 1.588432417 | Q19: 1.394990333 | R19: 1.362178 | S19: 1.83930975 | T19: 1.21707925 | U19: 1.111126583 | V19: 1.394990333 | W19: 1.664727167 | X19: 1.267668583 | Y19: 1.394990333 | Z19: 1.47872025 | AA19: 1.296752833 | AB19: 1.273519583 | AC19: 1.290734333 | AD19: 1.410507 | AE19: 1.141066 | AF19: 1.917074583 | AG19: 1.394990333 | AH19: 1.047303917 | AI19: 1.394990333
B20: MEAT BASED DISHES | C20: MEAT BASED DISHES agriculture
B21: MILK | C21: MILK agriculture | D21: 0.373425 | E21: 0.3505416667 | F21: 0.3051916667 | G21: 0.3137833333 | H21: 0.5588416667 | I21: 0.3158916667 | J21: 0.3678916667 | K21: 0.3267833333 | L21: 0.3763166667 | M21: 0.3439916667 | N21: 0.3640833333 | O21: 0.3878833333 | P21: 0.3047666667 | Q21: 0.3485958333 | R21: 0.364175 | S21: 0.3702416667 | T21: 0.3061416667 | U21: 0.2975666667 | V21: 0.3542416667 | W21: 0.480875 | X21: 0.3795833333 | Y21: 0.3485958333 | Z21: 0.32365 | AA21: 0.2968166667 | AB21: 0.2918916667 | AC21: 0.3098583333 | AD21: 0.3032 | AE21: 0.30955 | AF21: 0.379425 | AG21: 0.3485958333 | AH21: 0.3157272727 | AI21: 0.3485958333
B22: MINERAL WATER | C22: MINERAL WATER agriculture
B23: OLIVE OIL | C23: OLIVE OIL agriculture | D23: 3.66306575 | E23: 3.66306575 | F23: 3.66306575 | G23: 3.66306575 | H23: 3.66306575 | I23: 3.66306575 | J23: 3.66306575 | K23: 3.66306575 | L23: 3.66306575 | M23: 3.66306575 | N23: 3.66306575 | O23: 3.488879639 | P23: 3.66306575 | Q23: 3.66306575 | R23: 3.66306575 | S23: 3.710451389 | T23: 3.66306575 | U23: 3.66306575 | V23: 3.66306575 | W23: 3.66306575 | X23: 3.66306575 | Y23: 3.66306575 | Z23: 3.66306575 | AA23: 3.627651515 | AB23: 3.66306575 | AC23: 3.66306575 | AD23: 3.66306575 | AE23: 3.683251131 | AF23: 3.66306575 | AG23: 3.66306575 | AH23: 3.66306575 | AI23: 3.66306575
B24: ORANGES | C24: ORANGES agriculture | D24: 0.511007 | E24: 0.511007 | F24: 0.511007 | G24: 0.511007 | H24: 0.511007 | I24: 0.511007 | J24: 0.511007 | K24: 0.511007 | L24: 0.511007 | M24: 0.511007 | N24: 0.511007 | O24: 0.385 | P24: 0.511007 | Q24: 0.511007 | R24: 0.511007 | S24: 0.802404 | T24: 0.511007 | U24: 0.511007 | V24: 0.511007 | W24: 0.511007 | X24: 0.511007 | Y24: 0.511007 | Z24: 0.511007 | AA24: 0.44 | AB24: 0.511007 | AC24: 0.511007 | AD24: 0.511007 | AE24: 0.416624 | AF24: 0.511007 | AG24: 0.511007 | AH24: 0.511007 | AI24: 0.511007
B25: PASTA | C25: PASTA agriculture
B26: PORK | C26: PORK agriculture | D26: 1.786784583 | E26: 1.5111035 | F26: 1.62028125 | G26: 1.676572417 | H26: 1.62028125 | I26: 1.654405417 | J26: 1.545974 | K26: 1.6084175 | L26: 1.590794333 | M26: 1.570452667 | N26: 1.705847083 | O26: 1.88723875 | P26: 1.7266705 | Q26: 1.62028125 | R26: 1.601527167 | S26: 1.62028125 | T26: 1.571469667 | U26: 1.655127667 | V26: 1.708996 | W26: 2.18 | X26: 1.471285083 | Y26: 1.62028125 | Z26: 1.62281825 | AA26: 1.744677833 | AB26: 1.7194815 | AC26: 1.727413917 | AD26: 1.796390333 | AE26: 1.6011755 | AF26: 1.811472083 | AG26: 1.62028125 | AH26: 1.805974333 | AI26: 1.62028125
B27: POTATOES | C27: POTATOES agriculture | D27: 0.1885 | E27: 0.0996 | F27: 0.1976 | G27: 0.1439 | H27: 0.359 | I27: 0.1657 | J27: 0.2558 | K27: 0.2249692308 | L27: 0.1774 | M27: 0.437 | N27: 0.1284 | O27: 0.4789 | P27: 0.216 | Q27: 0.2249692308 | R27: 0.2249692308 | S27: 0.3634 | T27: 0.1362 | U27: 0.1152 | V27: 0.312 | W27: 0.3271 | X27: 0.115 | Y27: 0.2249692308 | Z27: 0.1222 | AA27: 0.1956 | AB27: 0.2699 | AC27: 0.2472 | AD27: 0.1311 | AE27: 0.1983 | AF27: 0.2722 | AG27: 0.2249692308 | AH27: 0.196 | AI27: 0.2249692308
B28: POULTRY | C28: POULTRY agriculture | D28: 1.825374417 | E28: 1.66199625 | F28: 1.466636833 | G28: 1.848677167 | H28: 2.5395 | I28: 1.807649333 | J28: 2.41045325 | K28: 1.614195571 | L28: 2.556461833 | M28: 2.3 | N28: 2.688396083 | O28: 2.0440085 | P28: 1.44906275 | Q28: 1.82050725 | R28: 0.9739085 | S28: 2.0620075 | T28: 1.586813833 | U28: 1.435305083 | V28: 1.82050725 | W28: 2.227522833 | X28: 1.71 | Y28: 1.82050725 | Z28: 1.234289833 | AA28: 1.526114667 | AB28: 1.4803255 | AC28: 1.510239 | AD28: 1.92437325 | AE28: 1.654531 | AF28: 2.47963275 | AG28: 1.82050725 | AH28: 1.491107667 | AI28: 1.82050725
B29: RICE | C29: RICE agriculture | D29: 0.3206333333 | E29: 0.3206333333 | F29: 0.3357 | G29: 0.3206333333 | H29: 0.3206333333 | I29: 0.3206333333 | J29: 0.3206333333 | K29: 0.3206333333 | L29: 0.3206333333 | M29: 0.3206333333 | N29: 0.3206333333 | O29: 0.2293 | P29: 0.243 | Q29: 0.3206333333 | R29: 0.3206333333 | S29: 0.5646 | T29: 0.3206333333 | U29: 0.3206333333 | V29: 0.3206333333 | W29: 0.3206333333 | X29: 0.3206333333 | Y29: 0.3206333333 | Z29: 0.3206333333 | AA29: 0.2744 | AB29: 0.3206333333 | AC29: 0.3206333333 | AD29: 0.3206333333 | AE29: 0.2768 | AF29: 0.3206333333 | AG29: 0.3206333333 | AH29: 0.3206333333 | AI29: 0.3206333333
B30: SALMON | C30: SALMON agriculture | D30: 6.14233 | E30: 6.14233 | F30: 6.14233 | G30: 12.53919 | H30: 6.14233 | I30: 6.14233 | J30: 6.14233 | K30: 6.14233 | L30: 5.35038 | M30: 6.14233 | N30: 6.14233 | O30: 5.92577 | P30: 6.14233 | Q30: 6.14233 | R30: 4.01244 | S30: 38.07066 | T30: 6.14233 | U30: 6.14233 | V30: 6.14233 | W30: 6.14233 | X30: 6.14233 | Y30: 6.14233 | Z30: 6.70625 | AA30: 9.7299 | AB30: 6.14233 | AC30: 6.14233 | AD30: 6.14233 | AE30: 6.14233 | AF30: 3.97111 | AG30: 6.14233 | AH30: 12.9705 | AI30: 6.14233
B31: SHRIMP | C31: SHRIMP agriculture | D31: 9.785798125 | E31: 9.785798125 | F31: 6.89143 | G31: 20.87294 | H31: 3.0585 | I31: 9.785798125 | J31: 9.785798125 | K31: 6.89143 | L31: 9.785798125 | M31: 3.05962 | N31: 2.21009 | O31: 9.785798125 | P31: 9.785798125 | Q31: 9.785798125 | R31: 8.27167 | S31: 11.39146 | T31: 9.56697 | U31: 24 | V31: 9.785798125 | W31: 9.785798125 | X31: 6.1046 | Y31: 9.785798125 | Z31: 9.785798125 | AA31: 21.35156 | AB31: 9.785798125 | AC31: 9.785798125 | AD31: 14.715 | AE31: 10.85502 | AF31: 2.29408 | AG31: 9.785798125 | AH31: 5.0384 | AI31: 9.785798125
B32: SUGAR | C32: SUGAR agriculture | D32: 0.47375 | E32: 0.47375 | F32: 0.47375 | G32: 0.47375 | H32: 0.47375 | I32: 0.47375 | J32: 0.47375 | K32: 0.47375 | L32: 0.47375 | M32: 0.47375 | N32: 0.47375 | O32: 0.47375 | P32: 0.47375 | Q32: 0.47375 | R32: 0.47375 | S32: 0.47375 | T32: 0.47375 | U32: 0.47375 | V32: 0.47375 | W32: 0.47375 | X32: 0.47375 | Y32: 0.47375 | Z32: 0.47375 | AA32: 0.47375 | AB32: 0.47375 | AC32: 0.47375 | AD32: 0.47375 | AE32: 0.47375 | AF32: 0.47375 | AG32: 0.47375 | AH32: 0.47375 | AI32: 0.47375
B33: SUNFLOWER OIL | C33: SUNFLOWER OIL agriculture
B34: TEA | C34: TEA agriculture
B35: TOFU | C35: TOFU agriculture
B36: TOMATOES | C36: TOMATOES agriculture | D36: 1.037204417 | E36: 1.047347167 | F36: 0.8780529091 | G36: 0.7529822 | H36: 1.037204417 | I36: 0.9614458571 | J36: 1.037204417 | K36: 1.037204417 | L36: 1.037204417 | M36: 1.1105 | N36: 1.037204417 | O36: 0.70696725 | P36: 0.610696 | Q36: 1.037204417 | R36: 1.037204417 | S36: 1.642488583 | T36: 1.037204417 | U36: 1.037204417 | V36: 1.037204417 | W36: 1.037204417 | X36: 0.7335515556 | Y36: 1.037204417 | Z36: 0.6017707143 | AA36: 0.5811110833 | AB36: 0.6052756667 | AC36: 1.037204417 | AD36: 1.037204417 | AE36: 0.7787305 | AF36: 1.037204417 | AG36: 1.037204417 | AH36: 1.037204417 | AI36: 1.037204417
B37: WINE | C37: WINE agriculture | D37: 0.7262 | E37: 0.7262 | F37: 0.7262 | G37: 1.0318 | H37: 0.233 | I37: 0.7262 | J37: 0.7262 | K37: 0.7262 | L37: 0.7262 | M37: 0.663 | N37: 0.7262 | O37: 0.8397 | P37: 0.7262 | Q37: 0.7262 | R37: 0.7262 | S37: 0.7262 | T37: 0.7262 | U37: 0.7262 | V37: 0.7262 | W37: 0.7262 | X37: 0.7262 | Y37: 0.7262 | Z37: 0.7262 | AA37: 0.4126 | AB37: 0.7176 | AC37: 0.7262 | AD37: 1.5732 | AE37: 0.3387 | AF37: 0.7262 | AG37: 0.7262 | AH37: 0.7262 | AI37: 0.7262
A38: Manufacturing | B38: UNKOWN/OTHER | C38: =CONCATENATE(B38," ","manufacturing") -> UNKOWN/OTHER manufacturing | D38: 1.252863655 | E38: 1.140175139 | F38: 1.097249622 | G38: 1.331337857 | H38: 1.291511902 | I38: 1.154730934 | J38: 1.273816464 | K38: 1.107968403 | L38: 1.287997161 | M38: 1.253210493 | N38: 1.215018054 | O38: 1.260993149 | P38: 1.127593081 | Q38: 1.218175794 | R38: 1.10048816 | S38: 1.594024357 | T38: 1.094369344 | U38: 1.142020652 | V38: 1.274855899 | W38: 1.326844446 | X38: 1.139005234 | Y38: 1.218175794 | Z38: 1.043360057 | AA38: 1.21263504 | AB38: 1.147487459 | AC38: 1.189599583 | AD38: 1.273883581 | AE38: 1.318158233 | AF38: 1.283207328 | AG38: 1.218175794 | AH38: 1.270886545 | AI38: 1.218175794
B39: ALMONDS | C39: =CONCATENATE(B39," ","manufacturing") -> ALMONDS manufacturing | D39: 1.957171429 | E39: 1.957171429 | F39: 1.957171429 | G39: 2.8055 | H39: 1.165 | I39: 1.957171429 | J39: 1.957171429 | K39: 1.957171429 | L39: 1.957171429 | M39: 1.957171429 | N39: 1.957171429 | O39: 3.6736 | P39: 1.6048 | Q39: 1.957171429 | R39: 1.957171429 | S39: 1.5809 | T39: 1.957171429 | U39: 1.957171429 | V39: 1.957171429 | W39: 1.957171429 | X39: 1.957171429 | Y39: 1.957171429 | Z39: 1.957171429 | AA39: 1.0156 | AB39: 1.957171429 | AC39: 1.957171429 | AD39: 1.957171429 | AE39: 1.8548 | AF39: 1.957171429 | AG39: 1.957171429 | AH39: 1.957171429 | AI39: 1.957171429
B40: APPLES | C40: APPLES manufacturing | D40: 0.3904 | E40: 0.3942 | F40: 0.2392 | G40: 0.2982 | H40: 0.703 | I40: 0.3461 | J40: 0.4371 | K40: 0.533296 | L40: 1.637 | M40: 0.533296 | N40: 0.4168 | O40: 0.6033 | P40: 0.258 | Q40: 0.533296 | R40: 0.533296 | S40: 0.4418 | T40: 0.3335 | U40: 0.4007 | V40: 1.38 | W40: 0.4483 | X40: 0.4821 | Y40: 0.533296 | Z40: 0.1859 | AA40: 0.5759 | AB40: 0.6006 | AC40: 0.3333 | AD40: 0.4611 | AE40: 0.3773 | AF40: 0.6719 | AG40: 0.533296 | AH40: 0.9167 | AI40: 0.533296
B41: BANANAS | C41: BANANAS manufacturing | D41: 0.6570509756 | E41: 0.6570509756 | F41: 0.6570509756 | G41: 0.6570509756 | H41: 0.6570509756 | I41: 0.6570509756 | J41: 0.6570509756 | K41: 0.6570509756 | L41: 0.6570509756 | M41: 0.6570509756 | N41: 0.6570509756 | O41: 0.6570509756 | P41: 0.6570509756 | Q41: 0.6570509756 | R41: 0.6570509756 | S41: 0.6570509756 | T41: 0.6570509756 | U41: 0.6570509756 | V41: 0.6570509756 | W41: 0.6570509756 | X41: 0.6570509756 | Y41: 0.6570509756 | Z41: 0.6570509756 | AA41: 0.6570509756 | AB41: 0.6570509756 | AC41: 0.6570509756 | AD41: 0.6570509756 | AE41: 0.6570509756 | AF41: 0.6570509756 | AG41: 0.6570509756 | AH41: 0.6570509756 | AI41: 0.6570509756
B42: BEANS | C42: BEANS manufacturing | D42: 2.454593625 | E42: 2.454593625 | F42: 2.454593625 | G42: 2.454593625 | H42: 2.454593625 | I42: 2.454593625 | J42: 2.454593625 | K42: 2.454593625 | L42: 2.454593625 | M42: 2.454593625 | N42: 2.454593625 | O42: 2.454593625 | P42: 2.454593625 | Q42: 2.454593625 | R42: 2.454593625 | S42: 2.454593625 | T42: 2.454593625 | U42: 2.454593625 | V42: 2.454593625 | W42: 2.454593625 | X42: 2.454593625 | Y42: 2.454593625 | Z42: 2.454593625 | AA42: 2.454593625 | AB42: 2.454593625 | AC42: 2.454593625 | AD42: 2.454593625 | AE42: 2.454593625 | AF42: 2.454593625 | AG42: 2.454593625 | AH42: 2.454593625 | AI42: 2.454593625
B43: BEEF | C43: BEEF manufacturing | D43: 3.400939333 | E43: 2.925911278 | F43: 2.068586333 | G43: 3.125733778 | H43: 3.505084472 | I43: 2.852172444 | J43: 3.486202361 | K43: 2.925106833 | L43: 3.335973 | M43: 3.624629917 | N43: 3.530478806 | O43: 3.546955639 | P43: 2.197604417 | Q43: 3.505084472 | R43: 3.643113222 | S43: 3.633751667 | T43: 2.279983972 | U43: 2.708076518 | V43: 3.5303245 | W43: 2.701038917 | X43: 2.941353528 | Y43: 3.505084472 | Z43: 3.076499333 | AA43: 3.162008639 | AB43: 2.475967361 | AC43: 2.661443022 | AD43: 3.005938889 | AE43: 3.303294833 | AF43: 4.455433278 | AG43: 3.505084472 | AH43: 3.800331694 | AI43: 3.505084472
B44: BEER | C44: BEER manufacturing
B45: BISCUITS | C45: BISCUITS manufacturing
B46: BREAD | C46: BREAD manufacturing
B47: BUTTER | C47: BUTTER manufacturing | D47: 5.082395563 | E47: 4.560356667 | F47: 5.082395563 | G47: 4.392941429 | H47: 5.082395563 | I47: 4.565449 | J47: 5.082395563 | K47: 5.28762625 | L47: 5.082395563 | M47: 5.082395563 | N47: 5.472 | O47: 5.082395563 | P47: 5.082395563 | Q47: 5.082395563 | R47: 5.00487 | S47: 4.776708333 | T47: 4.902657083 | U47: 5.082395563 | V47: 5.082395563 | W47: 5.082395563 | X47: 5.201791667 | Y47: 5.082395563 | Z47: 4.621411818 | AA47: 5.082395563 | AB47: 5.082395563 | AC47: 5.316029091 | AD47: 5.082395563 | AE47: 5.772346667 | AF47: 5.082395563 | AG47: 5.082395563 | AH47: 5.139379583 | AI47: 5.082395563
B48: CHEESE | C48: CHEESE manufacturing | D48: 4.723234167 | E48: 4.420248974 | F48: 4.420248974 | G48: 3.772312857 | H48: 4.420248974 | I48: 4.2599915 | J48: 4.420248974 | K48: 3.13865425 | L48: 4.420248974 | M48: 4.420248974 | N48: 3.512549167 | O48: 4.420248974 | P48: 4.420248974 | Q48: 4.420248974 | R48: 4.06280327 | S48: 4.420248974 | T48: 3.987678333 | U48: 3.637901667 | V48: 4.420248974 | W48: 4.420248974 | X48: 4.420248974 | Y48: 4.420248974 | Z48: 3.477306061 | AA48: 4.420248974 | AB48: 4.420248974 | AC48: 5.023746818 | AD48: 4.420248974 | AE48: 8.8890125 | AF48: 4.420248974 | AG48: 4.420248974 | AH48: 4.557797097 | AI48: 4.420248974
B49: CHOCOLATE | C49: CHOCOLATE manufacturing
B50: COD | C50: COD manufacturing | D50: 2.78726 | E50: 2.78726 | F50: 2.78726 | G50: 5.66355 | H50: 2.78726 | I50: 2.78726 | J50: 3.15902 | K50: 2.78726 | L50: 2.8 | M50: 2.78726 | N50: 2.78726 | O50: 1.01623 | P50: 2.78726 | Q50: 2.78726 | R50: 1.58306 | S50: 3.65436 | T50: 2.78726 | U50: 2.78726 | V50: 2.78726 | W50: 2.78726 | X50: 2.93127 | Y50: 2.78726 | Z50: 1.26318 | AA50: 2.78726 | AB50: 2.78726 | AC50: 2.78726 | AD50: 2.78726 | AE50: 2.40539 | AF50: 1.60926 | AG50: 2.78726 | AH50: 3.05615 | AI50: 2.78726
B51: COFFEE | C51: COFFEE manufacturing
B52: EGGS | C52: EGGS manufacturing | D52: 1.753009167 | E52: 1.289624 | F52: 1.2626075 | G52: 1.605611833 | H52: 1.7641 | I52: 1.28843175 | J52: 1.720754667 | K52: 1.149768333 | L52: 1.3492125 | M52: 1.364483083 | N52: 1.524000417 | O52: 1.375834417 | P52: 1.588432417 | Q52: 1.394990333 | R52: 1.362178 | S52: 1.83930975 | T52: 1.21707925 | U52: 1.111126583 | V52: 1.394990333 | W52: 1.664727167 | X52: 1.267668583 | Y52: 1.394990333 | Z52: 1.47872025 | AA52: 1.296752833 | AB52: 1.273519583 | AC52: 1.290734333 | AD52: 1.410507 | AE52: 1.141066 | AF52: 1.917074583 | AG52: 1.394990333 | AH52: 1.047303917 | AI52: 1.394990333
B53: MEAT BASED DISHES | C53: MEAT BASED DISHES manufacturing
B54: MILK | C54: MILK manufacturing | D54: 0.373425 | E54: 0.3505416667 | F54: 0.3051916667 | G54: 0.3137833333 | H54: 0.5588416667 | I54: 0.3158916667 | J54: 0.3678916667 | K54: 0.3267833333 | L54: 0.3763166667 | M54: 0.3439916667 | N54: 0.3640833333 | O54: 0.3878833333 | P54: 0.3047666667 | Q54: 0.3485958333 | R54: 0.364175 | S54: 0.3702416667 | T54: 0.3061416667 | U54: 0.2975666667 | V54: 0.3542416667 | W54: 0.480875 | X54: 0.3795833333 | Y54: 0.3485958333 | Z54: 0.32365 | AA54: 0.2968166667 | AB54: 0.2918916667 | AC54: 0.3098583333 | AD54: 0.3032 | AE54: 0.30955 | AF54: 0.379425 | AG54: 0.3485958333 | AH54: 0.3157272727 | AI54: 0.3485958333
B55: MINERAL WATER | C55: MINERAL WATER manufacturing
B56: OLIVE OIL | C56: OLIVE OIL manufacturing | D56: 3.66306575 | E56: 3.66306575 | F56: 3.66306575 | G56: 3.66306575 | H56: 3.66306575 | I56: 3.66306575 | J56: 3.66306575 | K56: 3.66306575 | L56: 3.66306575 | M56: 3.66306575 | N56: 3.66306575 | O56: 3.488879639 | P56: 3.66306575 | Q56: 3.66306575 | R56: 3.66306575 | S56: 3.710451389 | T56: 3.66306575 | U56: 3.66306575 | V56: 3.66306575 | W56: 3.66306575 | X56: 3.66306575 | Y56: 3.66306575 | Z56: 3.66306575 | AA56: 3.627651515 | AB56: 3.66306575 | AC56: 3.66306575 | AD56: 3.66306575 | AE56: 3.683251131 | AF56: 3.66306575 | AG56: 3.66306575 | AH56: 3.66306575 | AI56: 3.66306575
B57: ORANGES | C57: ORANGES manufacturing | D57: 0.511007 | E57: 0.511007 | F57: 0.511007 | G57: 0.511007 | H57: 0.511007 | I57: 0.511007 | J57: 0.511007 | K57: 0.511007 | L57: 0.511007 | M57: 0.511007 | N57: 0.511007 | O57: 0.385 | P57: 0.511007 | Q57: 0.511007 | R57: 0.511007 | S57: 0.802404 | T57: 0.511007 | U57: 0.511007 | V57: 0.511007 | W57: 0.511007 | X57: 0.511007 | Y57: 0.511007 | Z57: 0.511007 | AA57: 0.44 | AB57: 0.511007 | AC57: 0.511007 | AD57: 0.511007 | AE57: 0.416624 | AF57: 0.511007 | AG57: 0.511007 | AH57: 0.511007 | AI57: 0.511007
B58: PASTA | C58: PASTA manufacturing
B59: PORK | C59: PORK manufacturing | D59: 1.786784583 | E59: 1.5111035 | F59: 1.62028125 | G59: 1.676572417 | H59: 1.62028125 | I59: 1.654405417 | J59: 1.545974 | K59: 1.6084175 | L59: 1.590794333 | M59: 1.570452667 | N59: 1.705847083 | O59: 1.88723875 | P59: 1.7266705 | Q59: 1.62028125 | R59: 1.601527167 | S59: 1.62028125 | T59: 1.571469667 | U59: 1.655127667 | V59: 1.708996 | W59: 2.18 | X59: 1.471285083 | Y59: 1.62028125 | Z59: 1.62281825 | AA59: 1.744677833 | AB59: 1.7194815 | AC59: 1.727413917 | AD59: 1.796390333 | AE59: 1.6011755 | AF59: 1.811472083 | AG59: 1.62028125 | AH59: 1.805974333 | AI59: 1.62028125
B60: POTATOES | C60: POTATOES manufacturing | D60: 0.1885 | E60: 0.0996 | F60: 0.1976 | G60: 0.1439 | H60: 0.359 | I60: 0.1657 | J60: 0.2558 | K60: 0.2249692308 | L60: 0.1774 | M60: 0.437 | N60: 0.1284 | O60: 0.4789 | P60: 0.216 | Q60: 0.2249692308 | R60: 0.2249692308 | S60: 0.3634 | T60: 0.1362 | U60: 0.1152 | V60: 0.312 | W60: 0.3271 | X60: 0.115 | Y60: 0.2249692308 | Z60: 0.1222 | AA60: 0.1956 | AB60: 0.2699 | AC60: 0.2472 | AD60: 0.1311 | AE60: 0.1983 | AF60: 0.2722 | AG60: 0.2249692308 | AH60: 0.196 | AI60: 0.2249692308
B61: POULTRY | C61: POULTRY manufacturing | D61: 1.825374417 | E61: 1.66199625 | F61: 1.466636833 | G61: 1.848677167 | H61: 2.5395 | I61: 1.807649333 | J61: 2.41045325 | K61: 1.614195571 | L61: 2.556461833 | M61: 2.3 | N61: 2.688396083 | O61: 2.0440085 | P61: 1.44906275 | Q61: 1.82050725 | R61: 0.9739085 | S61: 2.0620075 | T61: 1.586813833 | U61: 1.435305083 | V61: 1.82050725 | W61: 2.227522833 | X61: 1.71 | Y61: 1.82050725 | Z61: 1.234289833 | AA61: 1.526114667 | AB61: 1.4803255 | AC61: 1.510239 | AD61: 1.92437325 | AE61: 1.654531 | AF61: 2.47963275 | AG61: 1.82050725 | AH61: 1.491107667 | AI61: 1.82050725
B62: RICE | C62: RICE manufacturing | D62: 0.3206333333 | E62: 0.3206333333 | F62: 0.3357 | G62: 0.3206333333 | H62: 0.3206333333 | I62: 0.3206333333 | J62: 0.3206333333 | K62: 0.3206333333 | L62: 0.3206333333 | M62: 0.3206333333 | N62: 0.3206333333 | O62: 0.2293 | P62: 0.243 | Q62: 0.3206333333 | R62: 0.3206333333 | S62: 0.5646 | T62: 0.3206333333 | U62: 0.3206333333 | V62: 0.3206333333 | W62: 0.3206333333 | X62: 0.3206333333 | Y62: 0.3206333333 | Z62: 0.3206333333 | AA62: 0.2744 | AB62: 0.3206333333 | AC62: 0.3206333333 | AD62: 0.3206333333 | AE62: 0.2768 | AF62: 0.3206333333 | AG62: 0.3206333333 | AH62: 0.3206333333 | AI62: 0.3206333333
B63: SALMON | C63: SALMON manufacturing | D63: 6.14233 | E63: 6.14233 | F63: 6.14233 | G63: 12.53919 | H63: 6.14233 | I63: 6.14233 | J63: 6.14233 | K63: 6.14233 | L63: 5.35038 | M63: 6.14233 | N63: 6.14233 | O63: 5.92577 | P63: 6.14233 | Q63: 6.14233 | R63: 4.01244 | S63: 38.07066 | T63: 6.14233 | U63: 6.14233 | V63: 6.14233 | W63: 6.14233 | X63: 6.14233 | Y63: 6.14233 | Z63: 6.70625 | AA63: 9.7299 | AB63: 6.14233 | AC63: 6.14233 | AD63: 6.14233 | AE63: 6.14233 | AF63: 3.97111 | AG63: 6.14233 | AH63: 12.9705 | AI63: 6.14233
B64: SHRIMP | C64: SHRIMP manufacturing | D64: 9.785798125 | E64: 9.785798125 | F64: 6.89143 | G64: 20.87294 | H64: 3.0585 | I64: 9.785798125 | J64: 9.785798125 | K64: 6.89143 | L64: 9.785798125 | M64: 3.05962 | N64: 2.21009 | O64: 9.785798125 | P64: 9.785798125 | Q64: 9.785798125 | R64: 8.27167 | S64: 11.39146 | T64: 9.56697 | U64: 24 | V64: 9.785798125 | W64: 9.785798125 | X64: 6.1046 | Y64: 9.785798125 | Z64: 9.785798125 | AA64: 21.35156 | AB64: 9.785798125 | AC64: 9.785798125 | AD64: 14.715 | AE64: 10.85502 | AF64: 2.29408 | AG64: 9.785798125 | AH64: 5.0384 | AI64: 9.785798125
B65: SUGAR | C65: SUGAR manufacturing | D65: 0.47375 | E65: 0.47375 | F65: 0.47375 | G65: 0.47375 | H65: 0.47375 | I65: 0.47375 | J65: 0.47375 | K65: 0.47375 | L65: 0.47375 | M65: 0.47375 | N65: 0.47375 | O65: 0.47375 | P65: 0.47375 | Q65: 0.47375 | R65: 0.47375 | S65: 0.47375 | T65: 0.47375 | U65: 0.47375 | V65: 0.47375 | W65: 0.47375 | X65: 0.47375 | Y65: 0.47375 | Z65: 0.47375 | AA65: 0.47375 | AB65: 0.47375 | AC65: 0.47375 | AD65: 0.47375 | AE65: 0.47375 | AF65: 0.47375 | AG65: 0.47375 | AH65: 0.47375 | AI65: 0.47375
B66: SUNFLOWER OIL | C66: SUNFLOWER OIL manufacturing
B67: TEA | C67: TEA manufacturing
B68: TOFU | C68: TOFU manufacturing
B69: TOMATOES | C69: TOMATOES manufacturing | D69: 1.037204417 | E69: 1.047347167 | F69: 0.8780529091 | G69: 0.7529822 | H69: 1.037204417 | I69: 0.9614458571 | J69: 1.037204417 | K69: 1.037204417 | L69: 1.037204417 | M69: 1.1105 | N69: 1.037204417 | O69: 0.70696725 | P69: 0.610696 | Q69: 1.037204417 | R69: 1.037204417 | S69: 1.642488583 | T69: 1.037204417 | U69: 1.037204417 | V69: 1.037204417 | W69: 1.037204417 | X69: 0.7335515556 | Y69: 1.037204417 | Z69: 0.6017707143 | AA69: 0.5811110833 | AB69: 0.6052756667 | AC69: 1.037204417 | AD69: 1.037204417 | AE69: 0.7787305 | AF69: 1.037204417 | AG69: 1.037204417 | AH69: 1.037204417 | AI69: 1.037204417
B70: WINE | C70: WINE manufacturing | D70: 0.7262 | E70: 0.7262 | F70: 0.7262 | G70: 1.0318 | H70: 0.233 | I70: 0.7262 | J70: 0.7262 | K70: 0.7262 | L70: 0.7262 | M70: 0.663 | N70: 0.7262 | O70: 0.8397 | P70: 0.7262 | Q70: 0.7262 | R70: 0.7262 | S70: 0.7262 | T70: 0.7262 | U70: 0.7262 | V70: 0.7262 | W70: 0.7262 | X70: 0.7262 | Y70: 0.7262 | Z70: 0.7262 | AA70: 0.4126 | AB70: 0.7176 | AC70: 0.7262 | AD70: 1.5732 | AE70: 0.3387 | AF70: 0.7262 | AG70: 0.7262 | AH70: 0.7262 | AI70: 0.7262
A71: Retail | B71: UNKOWN/OTHER | C71: =CONCATENATE(B71," ","retail") -> UNKOWN/OTHER retail | D71: 1.484169822 | E71: 1.325872901 | F71: 1.07379465 | G71: 1.322498062 | H71: 1.412711282 | I71: 1.147242692 | J71: 1.445606393 | K71: 1.332594044 | L71: 1.765764645 | M71: 1.63322702 | N71: 1.196823867 | O71: 1.486405612 | P71: 1.086249645 | Q71: 1.850564992 | R71: 1.323412489 | S71: 1.434072362 | T71: 1.233108952 | U71: 1.152600901 | V71: 1.39056925 | W71: 1.39312567 | X71: 1.15132534 | Y71: 1.810421729 | Z71: 1.072266131 | AA71: 1.33625132 | AB71: 1.0956854 | AC71: 1.191835108 | AD71: 1.327533208 | AE71: 1.141819471 | AF71: 1.527822153 | AG71: 1.363394447 | AH71: 1.727880977 | AI71: 1.363394447
B72: ALMONDS | C72: =CONCATENATE(B72," ","retail") -> ALMONDS retail | D72: 1.957171429 | E72: 1.957171429 | F72: 1.957171429 | G72: 2.8055 | H72: 1.165 | I72: 1.957171429 | J72: 1.957171429 | K72: 1.957171429 | L72: 1.957171429 | M72: 1.957171429 | N72: 1.957171429 | O72: 3.6736 | P72: 1.6048 | Q72: 1.957171429 | R72: 1.957171429 | S72: 1.5809 | T72: 1.957171429 | U72: 1.957171429 | V72: 1.957171429 | W72: 1.957171429 | X72: 1.957171429 | Y72: 1.957171429 | Z72: 1.957171429 | AA72: 1.0156 | AB72: 1.957171429 | AC72: 1.957171429 | AD72: 1.957171429 | AE72: 1.8548 | AF72: 1.957171429 | AG72: 1.957171429 | AH72: 1.957171429 | AI72: 1.957171429
B73: APPLES | C73: APPLES retail | D73: 0.3904 | E73: 0.3942 | F73: 0.2392 | G73: 0.2982 | H73: 0.703 | I73: 0.3461 | J73: 0.4371 | K73: 0.533296 | L73: 1.637 | M73: 0.533296 | N73: 0.4168 | O73: 0.6033 | P73: 0.258 | Q73: 0.533296 | R73: 0.533296 | S73: 0.4418 | T73: 0.3335 | U73: 0.4007 | V73: 1.38 | W73: 0.4483 | X73: 0.4821 | Y73: 0.533296 | Z73: 0.1859 | AA73: 0.5759 | AB73: 0.6006 | AC73: 0.3333 | AD73: 0.4611 | AE73: 0.3773 | AF73: 0.6719 | AG73: 0.533296 | AH73: 0.9167 | AI73: 0.533296
B74: BANANAS | C74: BANANAS retail | D74: 0.6570509756 | E74: 0.6570509756 | F74: 0.6570509756 | G74: 0.6570509756 | H74: 0.6570509756 | I74: 0.6570509756 | J74: 0.6570509756 | K74: 0.6570509756 | L74: 0.6570509756 | M74: 0.6570509756 | N74: 0.6570509756 | O74: 0.6570509756 | P74: 0.6570509756 | Q74: 0.6570509756 | R74: 0.6570509756 | S74: 0.6570509756 | T74: 0.6570509756 | U74: 0.6570509756 | V74: 0.6570509756 | W74: 0.6570509756 | X74: 0.6570509756 | Y74: 0.6570509756 | Z74: 0.6570509756 | AA74: 0.6570509756 | AB74: 0.6570509756 | AC74: 0.6570509756 | AD74: 0.6570509756 | AE74: 0.6570509756 | AF74: 0.6570509756 | AG74: 0.6570509756 | AH74: 0.6570509756 | AI74: 0.6570509756
B75: BEANS | C75: BEANS retail | D75: 0.909481581 | E75: 0.909481581 | F75: 0.9084944625 | G75: 1.089066667 | H75: 0.909481581 | I75: 0.909481581 | J75: 0.909481581 | K75: 0.909481581 | L75: 0.909481581 | M75: 0.9573043183 | N75: 0.7637657129 | O75: 0.909481581 | P75: 0.811160515 | Q75: 0.909481581 | R75: 0.909481581 | S75: 0.7347444137 | T75: 0.909481581 | U75: 1.350437318 | V75: 0.909481581 | W75: 0.909481581 | X75: 0.909481581 | Y75: 0.909481581 | Z75: 0.963471449 | AA75: 0.909481581 | AB75: 0.4832693512 | AC75: 0.909481581 | AD75: 0.909481581 | AE75: 0.9943240129 | AF75: 0.909481581 | AG75: 0.909481581 | AH75: 0.9482591715 | AI75: 0.909481581
B76: BEEF | C76: BEEF retail | D76: 4.902540135 | E76: 5.191006835 | F76: 3.036226402 | G76: 5.020621167 | H76: 4.673598154 | I76: 3.973474329 | J76: 3.831345005 | K76: 2.762478842 | L76: 5.737274875 | M76: 7.342220705 | N76: 4.173074403 | O76: 4.333891673 | P76: 2.598135732 | Q76: 4.673598154 | R76: 4.909149136 | S76: 3.650720456 | T76: 2.895860691 | U76: 3.564678074 | V76: 4.673598154 | W76: 4.673598154 | X76: 2.48973082 | Y76: 10.75514414 | Z76: 3.528455721 | AA76: 6.689945239 | AB76: 3.188176712 | AC76: 4.563605079 | AD76: 4.053986071 | AE76: 5.240000824 | AF76: 6.437209292 | AG76: 4.673598154 | AH76: 6.644599639 | AI76: 4.673598154
B77: BEER | C77: BEER retail | D77: 1.027153405 | E77: 1.100932164 | F77: 0.435167796 | G77: 0.8252646829 | H77: 0.8830277969 | I77: 0.5358237097 | J77: 0.8472977286 | K77: 0.5642972912 | L77: 0.5716464436 | M77: 1.089223427 | N77: 0.666889534 | O77: 0.9192579346 | P77: 0.4279776535 | Q77: 2.842832033 | R77: 0.8830277969 | S77: 1.544136553 | T77: 0.6881168092 | U77: 0.6709112435 | V77: 0.8830277969 | W77: 0.8830277969 | X77: 0.8797994962 | Y77: 1.322926331 | Z77: 0.4508128386 | AA77: 0.9014917174 | AB77: 0.6043294154 | AC77: 0.7441377746 | AD77: 0.8830277969 | AE77: 0.9226971843 | AF77: 0.7163454316 | AG77: 0.8830277969 | AH77: 0.7762263235 | AI77: 0.8830277969
B78: BISCUITS | C78: BISCUITS retail | D78: 3.746744755 | E78: 2.374769619 | F78: 1.965482155 | G78: 1.939794432 | H78: 2.688240573 | I78: 1.984690404 | J78: 4.524106989 | K78: 3.151626168 | L78: 3.499503829 | M78: 5.301162971 | N78: 2.910416647 | O78: 2.688240573 | P78: 0.705206665 | Q78: 2.688240573 | R78: 2.688240573 | S78: 2.834614851 | T78: 1.695008603 | U78: 2.21166189 | V78: 2.688240573 | W78: 2.688240573 | X78: 2.179263566 | Y78: 2.688240573 | Z78: 2.180569761 | AA78: 3.721788297 | AB78: 1.311420069 | AC78: 1.916629978 | AD78: 3.721573707 | AE78: 1.865039639 | AF78: 3.113320571 | AG78: 2.688240573 | AH78: 2.975137604 | AI78: 2.688240573
B79: BREAD | C79: BREAD retail | D79: 2.099795729 | E79: 1.438474099 | F79: 0.4719705336 | G79: 1.383532417 | H79: 1.362507095 | I79: 0.8993966115 | J79: 1.446995034 | K79: 0.9773696765 | L79: 2.464592681 | M79: 1.246378704 | N79: 2.021813607 | O79: 1.551257285 | P79: 0.8168146811 | Q79: 1.362507095 | R79: 1.238380379 | S79: 2.333651014 | T79: 1.013078277 | U79: 0.8581257939 | V79: 1.362507095 | W79: 1.362507095 | X79: 1.480643187 | Y79: 2.068075462 | Z79: 0.9670350393 | AA79: 1.423863576 | AB79: 0.6460258754 | AC79: 0.9036277813 | AD79: 1.584930248 | AE79: 1.422208995 | AF79: 1.362507095 | AG79: 1.362507095 | AH79: 1.304640693 | AI79: 1.362507095
B80: BUTTER | C80: BUTTER retail | D80: 3.834069639 | E80: 3.83660632 | F80: 4.092176 | G80: 4.353210619 | H80: 3.83660632 | I80: 3.438853287 | J80: 4.850939873 | K80: 3.557671151 | L80: 3.119462478 | M80: 4.146546099 | N80: 3.285408243 | O80: 6.727845437 | P80: 3.464528018 | Q80: 3.83660632 | R80: 2.969937041 | S80: 4.117271644 | T80: 3.062577299 | U80: 2.524592326 | V80: 3.83660632 | W80: 3.83660632 | X80: 3.83660632 | Y80: 3.83660632 | Z80: 3.236355757 | AA80: 3.376085321 | AB80: 4.480258828 | AC80: 3.809688555 | AD80: 4.610274907 | AE80: 3.900301248 | AF80: 3.83660632 | AG80: 3.83660632 | AH80: 3.447285278 | AI80: 3.83660632
B81: CHEESE | C81: CHEESE retail | D81: 2.988786114 | E81: 3.954604646 | F81: 3.427613179 | G81: 4.955790323 | H81: 3.954604646 | I81: 3.35140642 | J81: 4.130054015 | K81: 3.781646601 | L81: 6.803355254 | M81: 3.40132227 | N81: 3.376358187 | O81: 3.954604646 | P81: 3.078840962 | Q81: 3.954604646 | R81: 2.635666754 | S81: 4.188798888 | T81: 3.954604646 | U81: 3.504489075 | V81: 3.954604646 | W81: 3.954604646 | X81: 4.370758652 | Y81: 3.954604646 | Z81: 3.954604646 | AA81: 5.073630795 | AB81: 4.421490892 | AC81: 3.954604646 | AD81: 3.954604646 | AE81: 3.049413076 | AF81: 3.954604646 | AG81: 3.954604646 | AH81: 4.643462172 | AI81: 3.954604646
B82: CHOCOLATE | C82: CHOCOLATE retail | D82: 8.058030645 | E82: 3.271588641 | F82: 6.036342657 | G82: 4.413791734 | H82: 5.819042755 | I82: 5.819042755 | J82: 7.609760726 | K82: 8.234273115 | L82: 8.357455431 | M82: 5.668657495 | N82: 5.878219267 | O82: 6.624899467 | P82: 7.729433993 | Q82: 5.819042755 | R82: 5.819042755 | S82: 3.900321312 | T82: 5.819042755 | U82: 4.408706805 | V82: 5.819042755 | W82: 5.819042755 | X82: 6.545108696 | Y82: 5.819042755 | Z82: 3.549377018 | AA82: 5.819042755 | AB82: 2.803885373 | AC82: 6.684622887 | AD82: 5.819042755 | AE82: 3.684040854 | AF82: 5.819042755 | AG82: 5.819042755 | AH82: 7.103296224 | AI82: 5.819042755
B83: COD | C83: COD retail | D83: 4.855413102 | E83: 4.855413102 | F83: 3.364904241 | G83: 0.6078789205 | H83: 4.855413102 | I83: 3.295366696 | J83: 7.92990061 | K83: 9.543990493 | L83: 7.959060762 | M83: 7.077454659 | N83: 3.773423767 | O83: 6.58217463 | P83: 5.85425 | Q83: 5.062827488 | R83: 1.500722553 | S83: 4.845457041 | T83: 4.855413102 | U83: 5.348838597 | V83: 4.855413102 | W83: 4.855413102 | X83: 4.408552276 | Y83: 1.171861483 | Z83: 5.292381146 | AA83: 4.590324603 | AB83: 4.855413102 | AC83: 4.855413102 | AD83: 4.855413102 | AE83: 4.571804191 | AF83: 4.855413102 | AG83: 4.855413102 | AH83: 4.327087875 | AI83: 4.855413102
B84: COFFEE | C84: COFFEE retail | D84: 7.95748499 | E84: 7.799415222 | F84: 3.807775838 | G84: 6.66407896 | H84: 6.238225002 | I84: 6.238225002 | J84: 5.247472231 | K84: 6.238225002 | L84: 6.587147236 | M84: 8.988263904 | N84: 3.136682209 | O84: 8.306123065 | P84: 4.726025448 | Q84: 6.238225002 | R84: 6.238225002 | S84: 7.492881048 | T84: 4.563415769 | U84: 7.791240124 | V84: 6.238225002 | W84: 6.238225002 | X84: 4.201911124 | Y84: 7.201726425 | Z84: 4.430657182 | AA84: 7.310465334 | AB84: 5.259148062 | AC84: 6.238225002 | AD84: 6.238225002 | AE84: 7.045528911 | AF84: 4.191809492 | AG84: 6.238225002 | AH84: 8.293472472 | AI84: 6.238225002
B85: EGGS | C85: EGGS retail | D85: 1.753009167 | E85: 1.289624 | F85: 1.2626075 | G85: 1.605611833 | H85: 1.7641 | I85: 1.28843175 | J85: 1.720754667 | K85: 1.149768333 | L85: 1.3492125 | M85: 1.364483083 | N85: 1.524000417 | O85: 1.375834417 | P85: 1.588432417 | Q85: 1.394990333 | R85: 1.362178 | S85: 1.83930975 | T85: 1.21707925 | U85: 1.111126583 | V85: 1.394990333 | W85: 1.664727167 | X85: 1.267668583 | Y85: 1.394990333 | Z85: 1.47872025 | AA85: 1.296752833 | AB85: 1.273519583 | AC85: 1.290734333 | AD85: 1.410507 | AE85: 1.141066 | AF85: 1.917074583 | AG85: 1.394990333 | AH85: 1.047303917 | AI85: 1.394990333
B86: MEAT BASED DISHES | C86: MEAT BASED DISHES retail | D86: 3.644910809 | E86: 3.757488102 | F86: 2.738566747 | G86: 3.62851146 | H86: 3.644910809 | I86: 2.256206646 | J86: 3.644910809 | K86: 2.773798872 | L86: 4.336296615 | M86: 3.801074975 | N86: 3.739737109 | O86: 5.655558069 | P86: 1.597056454 | Q86: 3.644910809 | R86: 1.806236968 | S86: 3.749290249 | T86: 4.235899506 | U86: 3.657071929 | V86: 3.644910809 | W86: 3.644910809 | X86: 2.990932566 | Y86: 6.921735847 | Z86: 2.270667033 | AA86: 3.700849885 | AB86: 3.644910809 | AC86: 3.644910809 | AD86: 3.457800524 | AE86: 3.340982776 | AF86: 5.047197723 | AG86: 3.644910809 | AH86: 4.725077742 | AI86: 3.644910809
B87: MILK | C87: MILK retail | D87: 0.373425 | E87: 0.3505416667 | F87: 0.3051916667 | G87: 0.3137833333 | H87: 0.5588416667 | I87: 0.3158916667 | J87: 0.3678916667 | K87: 0.3267833333 | L87: 0.3763166667 | M87: 0.3439916667 | N87: 0.3640833333 | O87: 0.3878833333 | P87: 0.3047666667 | Q87: 0.3485958333 | R87: 0.364175 | S87: 0.3702416667 | T87: 0.3061416667 | U87: 0.2975666667 | V87: 0.3542416667 | W87: 0.480875 | X87: 0.3795833333 | Y87: 0.3485958333 | Z87: 0.32365 | AA87: 0.2968166667 | AB87: 0.2918916667 | AC87: 0.3098583333 | AD87: 0.3032 | AE87: 0.30955 | AF87: 0.379425 | AG87: 0.3485958333 | AH87: 0.3157272727 | AI87: 0.3485958333
B88: MINERAL WATER | C88: MINERAL WATER retail | D88: 0.2039825319 | E88: 0.2713978605 | F88: 0.155997137 | G88: 0.3493835192 | H88: 0.2713978605 | I88: 0.1572551533 | J88: 0.3133962535 | K88: 0.2473168445 | L88: 0.5000864342 | M88: 0.3665457127 | N88: 0.1724234141 | O88: 0.1449629671 | P88: 0.1065580045 | Q88: 0.2713978605 | R88: 0.3234800464 | S88: 0.1501069767 | T88: 0.195340292 | U88: 0.2289198269 | V88: 0.2713978605 | W88: 0.2713978605 | X88: 0.2987387635 | Y88: 1.113919779 | Z88: 0.1269820417 | AA88: 0.2713978605 | AB88: 0.1753232197 | AC88: 0.1771845453 | AD88: 0.3696114951 | AE88: 0.137599176 | AF88: 0.2713978605 | AG88: 0.2713978605 | AH88: 0.2270366564 | AI88: 0.2713978605
B89: OLIVE OIL | C89: OLIVE OIL retail | D89: 4.878691755 | E89: 4.878691755 | F89: 4.878691755 | G89: 6.530715484 | H89: 4.878691755 | I89: 4.878691755 | J89: 6.861137615 | K89: 4.878691755 | L89: 6.423833614 | M89: 4.878691755 | N89: 4.878691755 | O89: 4.065662522 | P89: 4.878691755 | Q89: 4.878691755 | R89: 4.878691755 | S89: 4.440713264 | T89: 4.878691755 | U89: 4.878691755 | V89: 4.878691755 | W89: 4.878691755 | X89: 4.878691755 | Y89: 4.878691755 | Z89: 4.878691755 | AA89: 3.477179754 | AB89: 4.878691755 | AC89: 4.878691755 | AD89: 4.878691755 | AE89: 2.35160003 | AF89: 4.878691755 | AG89: 4.878691755 | AH89: 4.878691755 | AI89: 4.878691755
B90: ORANGES | C90: ORANGES retail | D90: 0.511007 | E90: 0.511007 | F90: 0.511007 | G90: 0.511007 | H90: 0.511007 | I90: 0.511007 | J90: 0.511007 | K90: 0.511007 | L90: 0.511007 | M90: 0.511007 | N90: 0.511007 | O90: 0.385 | P90: 0.511007 | Q90: 0.511007 | R90: 0.511007 | S90: 0.802404 | T90: 0.511007 | U90: 0.511007 | V90: 0.511007 | W90: 0.511007 | X90: 0.511007 | Y90: 0.511007 | Z90: 0.511007 | AA90: 0.44 | AB90: 0.511007 | AC90: 0.511007 | AD90: 0.511007 | AE90: 0.416624 | AF90: 0.511007 | AG90: 0.511007 | AH90: 0.511007 | AI90: 0.511007
B91: PASTA | C91: PASTA retail | D91: 1.700365156 | E91: 0.8776878427 | F91: 0.6070812108 | G91: 1.233161346 | H91: 0.8776878427 | I91: 0.5813845449 | J91: 0.8776878427 | K91: 0.8776878427 | L91: 0.9063402464 | M91: 0.8776878427 | N91: 0.8776878427 | O91: 0.8664228433 | P91: 0.7077280859 | Q91: 0.8776878427 | R91: 0.8776878427 | S91: 1.087162687 | T91: 0.8776878427 | U91: 0.5526378887 | V91: 0.8776878427 | W91: 0.8776878427 | X91: 0.8776878427 | Y91: 0.8776878427 | Z91: 0.8776878427 | AA91: 0.8776878427 | AB91: 0.7358380939 | AC91: 0.8017720985 | AD91: 0.8776878427 | AE91: 0.7523599109 | AF91: 0.8776878427 | AG91: 0.8776878427 | AH91: 0.8776878427 | AI91: 0.8776878427
B92: PORK | C92: PORK retail | D92: 2.276410742 | E92: 2.287901082 | F92: 2.183093087 | G92: 2.156874613 | H92: 2.542138461 | I92: 2.259374003 | J92: 2.131341032 | K92: 2.619007355 | L92: 3.717868766 | M92: 2.344725003 | N92: 1.770785135 | O92: 3.205875786 | P92: 2.613992043 | Q92: 2.542138461 | R92: 3.066592265 | S92: 2.196392958 | T92: 2.649248426 | U92: 2.496221435 | V92: 2.542138461 | W92: 2.542138461 | X92: 0.6357355825 | Y92: 5.587764561 | Z92: 1.933770596 | AA92: 2.334175237 | AB92: 2.101777028 | AC92: 2.174762349 | AD92: 2.187916307 | AE92: 1.934631036 | AF92: 3.936733854 | AG92: 2.542138461 | AH92: 3.292629702 | AI92: 2.542138461
B93: POTATOES | C93: POTATOES retail | D93: 0.1885 | E93: 0.0996 | F93: 0.1976 | G93: 0.1439 | H93: 0.359 | I93: 0.1657 | J93: 0.2558 | K93: 0.2249692308 | L93: 0.1774 | M93: 0.437 | N93: 0.1284 | O93: 0.4789 | P93: 0.216 | Q93: 0.2249692308 | R93: 0.2249692308 | S93: 0.3634 | T93: 0.1362 | U93: 0.1152 | V93: 0.312 | W93: 0.3271 | X93: 0.115 | Y93: 0.2249692308 | Z93: 0.1222 | AA93: 0.1956 | AB93: 0.2699 | AC93: 0.2472 | AD93: 0.1311 | AE93: 0.1983 | AF93: 0.2722 | AG93: 0.2249692308 | AH93: 0.196 | AI93: 0.2249692308
B94: POULTRY | C94: POULTRY retail | D94: 2.958143402 | E94: 1.450773418 | F94: 1.560304735 | G94: 2.18651861 | H94: 2.122916603 | I94: 1.670554815 | J94: 2.689666617 | K94: 1.570659063 | L94: 3.395069082 | M94: 3.204584494 | N94: 1.961629221 | O94: 1.925383698 | P94: 1.358906458 | Q94: 8.126423254 | R94: 2.122916603 | S94: 1.691281286 | T94: 2.122916603 | U94: 1.372234487 | V94: 2.122916603 | W94: 2.122916603 | X94: 1.68441246 | Y94: 0.3750202237 | Z94: 1.163646319 | AA94: 1.50591461 | AB94: 1.587314653 | AC94: 1.503091081 | AD94: 2.122916603 | AE94: 1.466474762 | AF94: 2.431856767 | AG94: 2.122916603 | AH94: 2.110134955 | AI94: 2.122916603
B95: RICE | C95: RICE retail | D95: 0.9298414864 | E95: 1.121716381 | F95: 0.4934612066 | G95: 0.9298414864 | H95: 0.9298414864 | I95: 0.9298414864 | J95: 1.363854742 | K95: 0.9298414864 | L95: 1.030332752 | M95: 0.900583932 | N95: 0.9298414864 | O95: 0.6880091402 | P95: 0.6613998339 | Q95: 0.9298414864 | R95: 0.9298414864 | S95: 0.9363656913 | T95: 0.9298414864 | U95: 0.9298414864 | V95: 0.9298414864 | W95: 0.9298414864 | X95: 0.9298414864 | Y95: 0.9298414864 | Z95: 0.8738047307 | AA95: 0.6933416383 | AB95: 0.9298414864 | AC95: 0.9298414864 | AD95: 0.9298414864 | AE95: 0.6122416583 | AF95: 0.9298414864 | AG95: 0.9298414864 | AH95: 1.782986131 | AI95: 0.9298414864
B96: SALMON | C96: SALMON retail | D96: 16.52164855 | E96: 16.52164855 | F96: 16.52164855 | G96: 16.52164855 | H96: 16.52164855 | I96: 16.52164855 | J96: 13.36738877 | K96: 20.261375 | L96: 13.20239677 | M96: 23.59550989 | N96: 12.93446458 | O96: 16.52164855 | P96: 16.52164855 | Q96: 23.85753286 | R96: 19.33216884 | S96: 22.66174402 | T96: 16.52164855 | U96: 8.479815919 | V96: 16.52164855 | W96: 16.52164855 | X96: 16.52164855 | Y96: 10.34618281 | Z96: 12.14868246 | AA96: 16.52164855 | AB96: 16.52164855 | AC96: 16.52164855 | AD96: 16.52164855 | AE96: 17.08140166 | AF96: 16.52164855 | AG96: 16.52164855 | AH96: 17.51276758 | AI96: 16.52164855
B97: SHRIMP | C97: SHRIMP retail | D97: 10.42500263 | E97: 10.42500263 | F97: 8.269067905 | G97: 27.811 | H97: 10.42500263 | I97: 10.42500263 | J97: 13.12051831 | K97: 5.488046229 | L97: 10.42500263 | M97: 11.99740813 | N97: 10.42500263 | O97: 5.259475267 | P97: 10.42500263 | Q97: 12.62319618 | R97: 8.687018808 | S97: 7.149184149 | T97: 10.42500263 | U97: 7.277379428 | V97: 10.42500263 | W97: 10.42500263 | X97: 7.706692161 | Y97: 10.099297 | Z97: 10.42500263 | AA97: 5.010446183 | AB97: 10.42500263 | AC97: 10.42500263 | AD97: 10.42500263 | AE97: 7.089849513 | AF97: 18.32945434 | AG97: 10.42500263 | AH97: 10.88200845 | AI97: 10.42500263
B98: SUGAR | C98: SUGAR retail | D98: 0.5002382123 | E98: 0.5002382123 | F98: 0.5002382123 | G98: 0.5200338249 | H98: 0.5002382123 | I98: 0.4414034705 | J98: 0.465404703 | K98: 0.5002382123 | L98: 0.5288962621 | M98: 0.4397605277 | N98: 0.502495985 | O98: 0.5002382123 | P98: 0.5002382123 | Q98: 0.5002382123 | R98: 0.5002382123 | S98: 0.5486000818 | T98: 0.5002382123 | U98: 0.4856593586 | V98: 0.5002382123 | W98: 0.5002382123 | X98: 0.5002382123 | Y98: 0.5002382123 | Z98: 0.5512598599 | AA98: 0.5062664079 | AB98: 0.5270523867 | AC98: 0.5002382123 | AD98: 0.5002382123 | AE98: 0.4860256794 | AF98: 0.5002382123 | AG98: 0.5002382123 | AH98: 0.5002382123 | AI98: 0.5002382123
B99: SUNFLOWER OIL | C99: SUNFLOWER OIL retail | D99: 1.797575406 | E99: 1.044729872 | F99: 0.8642036497 | G99: 0.9601084798 | H99: 1.044729872 | I99: 1.044729872 | J99: 0.1746748802 | K99: 1.044729872 | L99: 3.125920965 | M99: 0.9465375773 | N99: 0.685527982 | O99: 1.006746029 | P99: 0.9148162654 | Q99: 1.044729872 | R99: 1.044729872 | S99: 0.9516472541 | T99: 1.044729872 | U99: 1.044729872 | V99: 1.044729872 | W99: 1.044729872 | X99: 0.8558340543 | Y99: 1.044729872 | Z99: 0.7719363905 | AA99: 0.8483034282 | AB99: 0.872055456 | AC99: 1.044729872 | AD99: 1.044729872 | AE99: 0.9161561946 | AF99: 1.044729872 | AG99: 1.044729872 | AH99: 1.023633944 | AI99: 1.044729872
B100: TEA | C100: TEA retail | D100: 12.25409382 | E100: 12.25409382 | F100: 12.25409382 | G100: 18.90371667 | H100: 12.25409382 | I100: 9.544281879 | J100: 10.2707876 | K100: 12.25409382 | L100: 12.25409382 | M100: 22.33011584 | N100: 7.245571481 | O100: 12.25409382 | P100: 17.20231746 | Q100: 12.25409382 | R100: 12.25409382 | S100: 10.46279373 | T100: 12.25409382 | U100: 12.19576585 | V100: 12.25409382 | W100: 12.25409382 | X100: 12.25409382 | Y100: 12.25409382 | Z100: 5.23679923 | AA100: 12.25409382 | AB100: 8.469289287 | AC100: 16.61913002 | AD100: 12.25409382 | AE100: 14.06316387 | AF100: 12.25409382 | AG100: 12.25409382 | AH100: 6.759486735 | AI100: 12.25409382
B101: TOFU | C101: TOFU retail | D101: 1.28 | E101: 1.28 | F101: 1.28 | G101: 1.28 | H101: 1.28 | I101: 1.28 | J101: 1.28 | K101: 1.28 | L101: 1.28 | M101: 1.28 | N101: 1.28 | O101: 1.28 | P101: 1.28 | Q101: 1.28 | R101: 1.28 | S101: 1.28 | T101: 1.28 | U101: 1.28 | V101: 1.28 | W101: 1.28 | X101: 1.28 | Y101: 1.28 | Z101: 1.28 | AA101: 1.28 | AB101: 1.28 | AC101: 1.28 | AD101: 1.28 | AE101: 1.28 | AF101: 1.28 | AG101: 1.28 | AH101: 1.28 | AI101: 1.28
B102: TOMATOES | C102: TOMATOES retail | D102: 1.037204417 | E102: 1.047347167 | F102: 0.8780529091 | G102: 0.7529822 | H102: 1.037204417 | I102: 0.9614458571 | J102: 1.037204417 | K102: 1.037204417 | L102: 1.037204417 | M102: 1.1105 | N102: 1.037204417 | O102: 0.70696725 | P102: 0.610696 | Q102: 1.037204417 | R102: 1.037204417 | S102: 1.642488583 | T102: 1.037204417 | U102: 1.037204417 | V102: 1.037204417 | W102: 1.037204417 | X102: 0.7335515556 | Y102: 1.037204417 | Z102: 0.6017707143 | AA102: 0.5811110833 | AB102: 0.6052756667 | AC102: 1.037204417 | AD102: 1.037204417 | AE102: 0.7787305 | AF102: 1.037204417 | AG102: 1.037204417 | AH102: 1.037204417 | AI102: 1.037204417
B103: WINE | C103: WINE retail | D103: 3.306600926 | E103: 2.797653728 | F103: 2.739040423 | G103: 2.243778508 | H103: 2.797653728 | I103: 2.727790202 | J103: 2.797653728 | K103: 2.797653728 | L103: 2.797653728 | M103: 3.360915524 | N103: 2.495298013 | O103: 3.53093011 | P103: 1.593589782 | Q103: 2.797653728 | R103: 2.797653728 | S103: 2.24387837 | T103: 2.797653728 | U103: 2.797653728 | V103: 2.797653728 | W103: 2.797653728 | X103: 2.797653728 | Y103: 2.797653728 | Z103: 2.797653728 | AA103: 2.013123522 | AB103: 1.610975835 | AC103: 1.367344583 | AD103: 2.056028382 | AE103: 1.591659004 | AF103: 2.797653728 | AG103: 2.797653728 | AH103: 9.083852734 | AI103: 2.797653728
A104: Use | B104: UNKOWN/OTHER | C104: =CONCATENATE(B104," ","use") -> UNKOWN/OTHER use | D104: 2.859140159 | E104: 2.859140159 | F104: 2.391240446 | G104: 2.863872093 | H104: 3.465348513 | I104: 2.625225349 | J104: 2.859140159 | K104: 2.859140159 | L104: 3.345139202 | M104: 2.859140159 | N104: 2.799401931 | O104: 2.859140159 | P104: 2.859140159 | Q104: 2.859140159 | R104: 2.859140159 | S104: 3.518385603 | T104: 2.859140159 | U104: 2.57419022 | V104: 2.859140159 | W104: 3.219147388 | X104: 3.175950244 | Y104: 5.866867556 | Z104: 2.263824133 | AA104: 2.859140159 | AB104: 2.46213944 | AC104: 2.657487511 | AD104: 2.88007471 | AE104: 2.858322895 | AF104: 2.859140159 | AG104: 2.859140159 | AH104: 2.859140159 | AI104: 2.859140159
B105: ALMONDS | C105: =CONCATENATE(B105," ","use") -> ALMONDS use | D105: 12.52 | E105: 12.52 | F105: 12.52 | G105: 12.52 | H105: 12.52 | I105: 12.52 | J105: 12.52 | K105: 12.52 | L105: 12.52 | M105: 12.52 | N105: 12.52 | O105: 12.52 | P105: 12.52 | Q105: 12.52 | R105: 12.52 | S105: 12.52 | T105: 12.52 | U105: 12.52 | V105: 12.52 | W105: 12.52 | X105: 12.52 | Y105: 12.52 | Z105: 12.52 | AA105: 12.52 | AB105: 12.52 | AC105: 12.52 | AD105: 12.52 | AE105: 12.52 | AF105: 12.52 | AG105: 12.52 | AH105: 12.52 | AI105: 12.52
B106: APPLES | C106: APPLES use | D106: 1.366666667 | E106: 1.366666667 | F106: 0.92 | G106: 1.06 | H106: 1.67 | I106: 1.1 | J106: 1.366666667 | K106: 1.366666667 | L106: 2.09 | M106: 1.366666667 | N106: 1.94 | O106: 1.366666667 | P106: 1.366666667 | Q106: 1.366666667 | R106: 1.366666667 | S106: 1.81 | T106: 1.366666667 | U106: 1.28 | V106: 1.366666667 | W106: 1.78 | X106: 1.31 | Y106: 2.8 | Z106: 0.65 | AA106: 1.366666667 | AB106: 0.79 | AC106: 1.09 | AD106: 1.17 | AE106: 1.84 | AF106: 1.366666667 | AG106: 1.366666667 | AH106: 1.366666667 | AI106: 1.366666667
B107: BANANAS | C107: BANANAS use | D107: 1.398461538 | E107: 1.398461538 | F107: 1.39 | G107: 1.44 | H107: 1.34 | I107: 1.17 | J107: 1.398461538 | K107: 1.398461538 | L107: 1.7 | M107: 1.398461538 | N107: 1.398461538 | O107: 1.398461538 | P107: 1.398461538 | Q107: 1.398461538 | R107: 1.398461538 | S107: 1.79 | T107: 1.398461538 | U107: 1.32 | V107: 1.398461538 | W107: 1.48 | X107: 1.48 | Y107: 2.67 | Z107: 1.17 | AA107: 1.398461538 | AB107: 1.23 | AC107: 1.36 | AD107: 1.31 | AE107: 1.398461538 | AF107: 1.398461538 | AG107: 1.398461538 | AH107: 1.398461538 | AI107: 1.398461538
B108: BEANS | C108: BEANS use | D108: 2.811267712 | E108: 2.811267712 | F108: 2.811267712 | G108: 2.811267712 | H108: 2.811267712 | I108: 2.811267712 | J108: 2.811267712 | K108: 2.811267712 | L108: 2.811267712 | M108: 2.811267712 | N108: 2.811267712 | O108: 2.811267712 | P108: 2.811267712 | Q108: 2.811267712 | R108: 2.811267712 | S108: 2.811267712 | T108: 2.811267712 | U108: 2.811267712 | V108: 2.811267712 | W108: 2.811267712 | X108: 2.811267712 | Y108: 2.811267712 | Z108: 2.811267712 | AA108: 2.811267712 | AB108: 2.811267712 | AC108: 2.811267712 | AD108: 2.811267712 | AE108: 2.811267712 | AF108: 2.811267712 | AG108: 2.811267712 | AH108: 2.811267712 | AI108: 2.811267712
B109: BEEF | C109: BEEF use | D109: 6.490833333 | E109: 6.490833333 | F109: 6.490833333 | G109: 7.16 | H109: 7.48 | I109: 3.75 | J109: 6.490833333 | K109: 6.490833333 | L109: 10.17 | M109: 6.490833333 | N109: 7.45 | O109: 6.490833333 | P109: 6.490833333 | Q109: 6.490833333 | R109: 6.490833333 | S109: 10.37 | T109: 6.490833333 | U109: 4.31 | V109: 6.490833333 | W109: 6.99 | X109: 5.9 | Y109: 11.04 | Z109: 3.15 | AA109: 6.490833333 | AB109: 4.13 | AC109: 6.490833333 | AD109: 7.03 | AE109: 6.490833333 | AF109: 6.490833333 | AG109: 6.490833333 | AH109: 6.490833333 | AI109: 6.490833333
B110: BEER | C110: BEER use | D110: 1.756153846 | E110: 1.756153846 | F110: 1.09 | G110: 1.72 | H110: 3.19 | I110: 1.54 | J110: 1.756153846 | K110: 1.756153846 | L110: 1.756153846 | M110: 1.756153846 | N110: 1.63 | O110: 1.756153846 | P110: 1.756153846 | Q110: 1.756153846 | R110: 1.756153846 | S110: 1.81 | T110: 1.756153846 | U110: 1.35 | V110: 1.756153846 | W110: 2.67 | X110: 1.65 | Y110: 1.756153846 | Z110: 1.27 | AA110: 1.756153846 | AB110: 1.61 | AC110: 1.32 | AD110: 1.98 | AE110: 1.756153846 | AF110: 1.756153846 | AG110: 1.756153846 | AH110: 1.756153846 | AI110: 1.756153846
B111: BISCUITS | C111: BISCUITS use | D111: 5.15084621 | E111: 5.15084621 | F111: 5.15084621 | G111: 5.15084621 | H111: 5.15084621 | I111: 5.15084621 | J111: 5.15084621 | K111: 5.15084621 | L111: 5.15084621 | M111: 5.15084621 | N111: 5.15084621 | O111: 5.15084621 | P111: 5.15084621 | Q111: 5.15084621 | R111: 5.15084621 | S111: 5.15084621 | T111: 5.15084621 | U111: 5.15084621 | V111: 5.15084621 | W111: 5.15084621 | X111: 5.15084621 | Y111: 5.15084621 | Z111: 5.15084621 | AA111: 5.15084621 | AB111: 5.15084621 | AC111: 5.15084621 | AD111: 5.15084621 | AE111: 5.15084621 | AF111: 5.15084621 | AG111: 5.15084621 | AH111: 5.15084621 | AI111: 5.15084621
B112: BREAD | C112: BREAD use | D112: 1.821538462 | E112: 1.821538462 | F112: 0.69 | G112: 1.59 | H112: 2.07 | I112: 0.82 | J112: 1.821538462 | K112: 1.821538462 | L112: 3.84 | M112: 1.821538462 | N112: 1.821538462 | O112: 1.821538462 | P112: 1.821538462 | Q112: 1.821538462 | R112: 1.821538462 | S112: 2.91 | T112: 1.821538462 | U112: 1.6 | V112: 1.821538462 | W112: 2.09 | X112: 1.59 | Y112: 2.18 | Z112: 1.05 | AA112: 1.821538462 | AB112: 0.98 | AC112: 1.821538462 | AD112: 1.66 | AE112: 2.79 | AF112: 1.821538462 | AG112: 1.821538462 | AH112: 1.821538462 | AI112: 1.821538462
B113: BUTTER | C113: BUTTER use | D113: 7.569230769 | E113: 7.569230769 | F113: 8.72 | G113: 8.56 | H113: 10.4 | I113: 5.68 | J113: 7.569230769 | K113: 7.569230769 | L113: 4.96 | M113: 7.569230769 | N113: 7.569230769 | O113: 7.569230769 | P113: 7.569230769 | Q113: 7.569230769 | R113: 7.569230769 | S113: 8.76 | T113: 7.569230769 | U113: 6.68 | V113: 7.569230769 | W113: 10.88 | X113: 5.12 | Y113: 11.24 | Z113: 4.92 | AA113: 7.569230769 | AB113: 7.96 | AC113: 8.04 | AD113: 7.72 | AE113: 7.569230769 | AF113: 7.569230769 | AG113: 7.569230769 | AH113: 7.569230769 | AI113: 7.569230769
B114: CHEESE | C114: CHEESE use | D114: 8.364230769 | E114: 8.364230769 | F114: 8.364230769 | G114: 8.06 | H114: 11.17 | I114: 8.33 | J114: 8.364230769 | K114: 8.364230769 | L114: 8.364230769 | M114: 8.364230769 | N114: 5.12 | O114: 8.364230769 | P114: 8.364230769 | Q114: 8.364230769 | R114: 8.364230769 | S114: 11.99 | T114: 8.364230769 | U114: 8.93 | V114: 8.364230769 | W114: 15.43 | X114: 6.855 | Y114: 17.64 | Z114: 6.785 | AA114: 8.364230769 | AB114: 7.71 | AC114: 8.795 | AD114: 9.56 | AE114: 8.364230769 | AF114: 8.364230769 | AG114: 8.364230769 | AH114: 8.364230769 | AI114: 8.364230769
B115: CHOCOLATE | C115: CHOCOLATE use | D115: 9.969230769 | E115: 9.969230769 | F115: 8.03 | G115: 10.61 | H115: 14.51 | I115: 9.96 | J115: 9.969230769 | K115: 9.969230769 | L115: 11.7 | M115: 9.969230769 | N115: 9.969230769 | O115: 9.969230769 | P115: 9.969230769 | Q115: 9.969230769 | R115: 9.969230769 | S115: 11.63 | T115: 9.969230769 | U115: 8.9 | V115: 9.969230769 | W115: 11.23 | X115: 8.84 | Y115: 23.78 | Z115: 8.83 | AA115: 9.969230769 | AB115: 8 | AC115: 9.91 | AD115: 7.45 | AE115: 9.969230769 | AF115: 9.969230769 | AG115: 9.969230769 | AH115: 9.969230769 | AI115: 9.969230769
B116: COD | C116: COD use | D116: 28 | E116: 28 | F116: 28 | G116: 28 | H116: 28 | I116: 28 | J116: 28 | K116: 28 | L116: 28 | M116: 28 | N116: 28 | O116: 28 | P116: 28 | Q116: 28 | R116: 28 | S116: 28 | T116: 28 | U116: 28 | V116: 28 | W116: 28 | X116: 28 | Y116: 28 | Z116: 28 | AA116: 28 | AB116: 28 | AC116: 28 | AD116: 28 | AE116: 28 | AF116: 28 | AG116: 28 | AH116: 28 | AI116: 28
B117: COFFEE | C117: COFFEE use | D117: 10.06846154 | E117: 10.06846154 | F117: 9.28 | G117: 10.57 | H117: 9.41 | I117: 11.43 | J117: 10.06846154 | K117: 10.06846154 | L117: 7.78 | M117: 10.06846154 | N117: 10.06846154 | O117: 10.06846154 | P117: 10.06846154 | Q117: 10.06846154 | R117: 10.06846154 | S117: 11.57 | T117: 10.06846154 | U117: 12.03 | V117: 10.06846154 | W117: 10.06846154 | X117: 10.39 | Y117: 13.54 | Z117: 9.86 | AA117: 10.06846154 | AB117: 10.78 | AC117: 11.13 | AD117: 9.52 | AE117: 7.14 | AF117: 10.06846154 | AG117: 10.06846154 | AH117: 10.06846154 | AI117: 10.06846154
B118: EGGS | C118: EGGS use | D118: 2.819230769 | E118: 2.819230769 | F118: 2.283333333 | G118: 3.15 | H118: 4.083333333 | I118: 1.9 | J118: 2.819230769 | K118: 2.819230769 | L118: 2.819230769 | M118: 2.819230769 | N118: 2.819230769 | O118: 2.819230769 | P118: 2.819230769 | Q118: 2.819230769 | R118: 2.819230769 | S118: 4.166666667 | T118: 2.819230769 | U118: 2.016666667 | V118: 2.819230769 | W118: 2.966666667 | X118: 3.266666667 | Y118: 6.816666667 | Z118: 2.016666667 | AA118: 2.819230769 | AB118: 2.416666667 | AC118: 2.983333333 | AD118: 3 | AE118: 2.4 | AF118: 2.819230769 | AG118: 2.819230769 | AH118: 2.819230769 | AI118: 2.819230769
B119: MEAT BASED DISHES | C119: MEAT BASED DISHES use | D119: 7 | E119: 7 | F119: 7 | G119: 7 | H119: 7 | I119: 7 | J119: 7 | K119: 7 | L119: 7 | M119: 7 | N119: 7 | O119: 7 | P119: 7 | Q119: 7 | R119: 7 | S119: 7 | T119: 7 | U119: 7 | V119: 7 | W119: 7 | X119: 7 | Y119: 7 | Z119: 7 | AA119: 7 | AB119: 7 | AC119: 7 | AD119: 7 | AE119: 7 | AF119: 7 | AG119: 7 | AH119: 7 | AI119: 7
B120: MILK | C120: MILK use | D120: 0.9384615385 | E120: 0.9384615385 | F120: 1.06 | G120: 0.81 | H120: 1.32 | I120: 0.77 | J120: 0.9384615385 | K120: 0.9384615385 | L120: 0.9384615385 | M120: 0.9384615385 | N120: 0.9384615385 | O120: 0.9384615385 | P120: 0.9384615385 | Q120: 0.9384615385 | R120: 0.9384615385 | S120: 1.43 | T120: 0.9384615385 | U120: 0.82 | V120: 0.9384615385 | W120: 0.83 | X120: 0.93 | Y120: 1.87 | Z120: 0.63 | AA120: 0.9384615385 | AB120: 1.02 | AC120: 0.92 | AD120: 0.88 | AE120: 0.78 | AF120: 0.9384615385 | AG120: 0.9384615385 | AH120: 0.9384615385 | AI120: 0.9384615385
B121: MINERAL WATER | C121: MINERAL WATER use | D121: 0.3481818182 | E121: 0.3481818182 | F121: 0.23 | G121: 0.46 | H121: 0.32 | I121: 0.3481818182 | J121: 0.3481818182 | K121: 0.3481818182 | L121: 0.3481818182 | M121: 0.3481818182 | N121: 0.3481818182 | O121: 0.3481818182 | P121: 0.3481818182 | Q121: 0.3481818182 | R121: 0.3481818182 | S121: 0.25 | T121: 0.3481818182 | U121: 0.38 | V121: 0.3481818182 | W121: 0.56 | X121: 0.44 | Y121: 1.34 | Z121: 0.29 | AA121: 0.3481818182 | AB121: 0.27 | AC121: 0.36 | AD121: 0.27 | AE121: 0.3481818182 | AF121: 0.3481818182 | AG121: 0.3481818182 | AH121: 0.3481818182 | AI121: 0.3481818182
B122: OLIVE OIL | C122: OLIVE OIL use | D122: 7.803846154 | E122: 7.803846154 | F122: 9.13 | G122: 8.16 | H122: 5.4 | I122: 10.48 | J122: 7.803846154 | K122: 7.803846154 | L122: 7.803846154 | M122: 7.803846154 | N122: 7.803846154 | O122: 7.803846154 | P122: 7.803846154 | Q122: 7.803846154 | R122: 7.803846154 | S122: 5.5 | T122: 7.803846154 | U122: 8.2 | V122: 7.803846154 | W122: 7.45 | X122: 5.96 | Y122: 11.09 | Z122: 9.03 | AA122: 7.803846154 | AB122: 8.16 | AC122: 10.79 | AD122: 9.56 | AE122: 3.63 | AF122: 7.803846154 | AG122: 7.803846154 | AH122: 7.803846154 | AI122: 7.803846154
B123: ORANGES | C123: ORANGES use | D123: 1.96 | E123: 1.96 | F123: 1.96 | G123: 1.96 | H123: 1.96 | I123: 1.96 | J123: 1.96 | K123: 1.96 | L123: 1.96 | M123: 1.96 | N123: 1.96 | O123: 1.96 | P123: 1.96 | Q123: 1.96 | R123: 1.96 | S123: 1.96 | T123: 1.96 | U123: 1.96 | V123: 1.96 | W123: 1.96 | X123: 1.96 | Y123: 1.96 | Z123: 1.96 | AA123: 1.96 | AB123: 1.96 | AC123: 1.96 | AD123: 1.96 | AE123: 1.96 | AF123: 1.96 | AG123: 1.96 | AH123: 1.96 | AI123: 1.96
B124: PASTA | C124: PASTA use | D124: 1.946363636 | E124: 1.946363636 | F124: 2.05 | G124: 2.61 | H124: 2.07 | I124: 1.28 | J124: 1.946363636 | K124: 1.946363636 | L124: 1.946363636 | M124: 1.946363636 | N124: 1.946363636 | O124: 1.946363636 | P124: 1.946363636 | Q124: 1.946363636 | R124: 1.946363636 | S124: 1.51 | T124: 1.946363636 | U124: 2.24 | V124: 1.946363636 | W124: 1.64 | X124: 1.98 | Y124: 5.07 | Z124: 1.946363636 | AA124: 1.946363636 | AB124: 1.82 | AC124: 2.43 | AD124: 1.78 | AE124: 1.946363636 | AF124: 1.946363636 | AG124: 1.946363636 | AH124: 1.946363636 | AI124: 1.946363636
B125: PORK | C125: PORK use | D125: 5.390909091 | E125: 5.390909091 | F125: 3.78 | G125: 5.07 | H125: 5.61 | I125: 5.390909091 | J125: 5.390909091 | K125: 5.390909091 | L125: 5.390909091 | M125: 5.390909091 | N125: 5.390909091 | O125: 5.390909091 | P125: 5.390909091 | Q125: 5.390909091 | R125: 5.390909091 | S125: 8.63 | T125: 5.390909091 | U125: 3.61 | V125: 5.390909091 | W125: 5.52 | X125: 9.19 | Y125: 15.41 | Z125: 2.89 | AA125: 5.390909091 | AB125: 4.62 | AC125: 4.32 | AD125: 6.06 | AE125: 5.390909091 | AF125: 5.390909091 | AG125: 5.390909091 | AH125: 5.390909091 | AI125: 5.390909091
B126: POTATOES | C126: POTATOES use | D126: 0.6264285714 | E126: 0.6264285714 | F126: 0.46 | G126: 0.62 | H126: 0.71 | I126: 0.49 | J126: 0.6264285714 | K126: 0.6264285714 | L126: 0.88 | M126: 0.6264285714 | N126: 0.6264285714 | O126: 0.6264285714 | P126: 0.6264285714 | Q126: 0.6264285714 | R126: 0.6264285714 | S126: 1.04 | T126: 0.6264285714 | U126: 0.36 | V126: 0.6264285714 | W126: 0.64 | X126: 1.09 | Y126: 2.32 | Z126: 0.26 | AA126: 0.6264285714 | AB126: 0.35 | AC126: 0.51 | AD126: 0.54 | AE126: 0.82 | AF126: 0.6264285714 | AG126: 0.6264285714 | AH126: 0.6264285714 | AI126: 0.6264285714
B127: POULTRY | C127: POULTRY use | D127: 7.127692308 | E127: 7.127692308 | F127: 5.12 | G127: 7.35 | H127: 9.03 | I127: 5.51 | J127: 7.127692308 | K127: 7.127692308 | L127: 13.26 | M127: 7.127692308 | N127: 7.127692308 | O127: 7.127692308 | P127: 7.127692308 | Q127: 7.127692308 | R127: 7.127692308 | S127: 9.66 | T127: 7.127692308 | U127: 4.69 | V127: 7.127692308 | W127: 7.26 | X127: 9.05 | Y127: 13.81 | Z127: 3.67 | AA127: 7.127692308 | AB127: 4.63 | AC127: 5.51 | AD127: 7.92 | AE127: 7.127692308 | AF127: 7.127692308 | AG127: 7.127692308 | AH127: 7.127692308 | AI127: 7.127692308
B128: RICE | C128: RICE use | D128: 1.974615385 | E128: 1.974615385 | F128: 1.974615385 | G128: 3.02 | H128: 2.26 | I128: 1.32 | J128: 1.974615385 | K128: 1.974615385 | L128: 2.41 | M128: 1.974615385 | N128: 1.974615385 | O128: 1.974615385 | P128: 1.974615385 | Q128: 1.974615385 | R128: 1.974615385 | S128: 2.59 | T128: 1.974615385 | U128: 1.02 | V128: 1.974615385 | W128: 2.88 | X128: 2.31 | Y128: 3.73 | Z128: 1.65 | AA128: 1.974615385 | AB128: 1.29 | AC128: 1.49 | AD128: 2.14 | AE128: 1.29 | AF128: 1.974615385 | AG128: 1.974615385 | AH128: 1.974615385 | AI128: 1.974615385
B129: SALMON | C129: SALMON use | D129: 13.43125 | E129: 13.43125 | F129: 13.43125 | G129: 13.43125 | H129: 17.72 | I129: 15.76 | J129: 13.43125 | K129: 13.43125 | L129: 13.43125 | M129: 13.43125 | N129: 13.43125 | O129: 13.43125 | P129: 13.43125 | Q129: 13.43125 | R129: 13.43125 | S129: 13.64 | T129: 13.43125 | U129: 11.31 | V129: 13.43125 | W129: 12.28 | X129: 13.43125 | Y129: 13.43125 | Z129: 10.51 | AA129: 13.43125 | AB129: 10.56 | AC129: 13.43125 | AD129: 15.67 | AE129: 13.43125 | AF129: 13.43125 | AG129: 13.43125 | AH129: 13.43125 | AI129: 13.43125
B130: SHRIMP | C130: SHRIMP use | D130: 13.1 | E130: 13.1 | F130: 13.1 | G130: 13.1 | H130: 13.1 | I130: 13.1 | J130: 13.1 | K130: 13.1 | L130: 13.1 | M130: 13.1 | N130: 13.1 | O130: 13.1 | P130: 13.1 | Q130: 13.1 | R130: 13.1 | S130: 13.1 | T130: 13.1 | U130: 13.1 | V130: 13.1 | W130: 13.1 | X130: 13.1 | Y130: 13.1 | Z130: 13.1 | AA130: 13.1 | AB130: 13.1 | AC130: 13.1 | AD130: 13.1 | AE130: 13.1 | AF130: 13.1 | AG130: 13.1 | AH130: 13.1 | AI130: 13.1
B131: SUGAR | C131: SUGAR use | D131: 0.8173333333 | E131: 0.8173333333 | F131: 0.72 | G131: 0.69 | H131: 0.82 | I131: 0.65 | J131: 0.8173333333 | K131: 0.8173333333 | L131: 0.93 | M131: 0.8173333333 | N131: 0.78 | O131: 0.8173333333 | P131: 0.8173333333 | Q131: 0.8173333333 | R131: 0.8173333333 | S131: 1.03 | T131: 0.8173333333 | U131: 0.79 | V131: 0.8173333333 | W131: 1.06 | X131: 0.98 | Y131: 2.15 | Z131: 0.53 | AA131: 0.8173333333 | AB131: 0.66 | AC131: 0.74 | AD131: 0.97 | AE131: 0.91 | AF131: 0.8173333333 | AG131: 0.8173333333 | AH131: 0.8173333333 | AI131: 0.8173333333
B132: SUNFLOWER OIL | C132: SUNFLOWER OIL use | D132: 1.708461538 | E132: 1.708461538 | F132: 1.28 | G132: 1.29 | H132: 2.08 | I132: 1.43 | J132: 1.708461538 | K132: 1.708461538 | L132: 3.61 | M132: 1.708461538 | N132: 1.708461538 | O132: 1.708461538 | P132: 1.708461538 | Q132: 1.708461538 | R132: 1.708461538 | S132: 1.88 | T132: 1.708461538 | U132: 1.35 | V132: 1.708461538 | W132: 1.59 | X132: 1.3 | Y132: 2.96 | Z132: 1.41 | AA132: 1.708461538 | AB132: 1.28 | AC132: 1.7 | AD132: 2.01 | AE132: 1.708461538 | AF132: 1.708461538 | AG132: 1.708461538 | AH132: 1.708461538 | AI132: 1.708461538
B133: TEA | C133: TEA use | D133: 15.15054545 | E133: 15.15054545 | F133: 17.536 | G133: 15.15054545 | H133: 20.864 | I133: 14.08 | J133: 15.15054545 | K133: 15.15054545 | L133: 15.15054545 | M133: 15.15054545 | N133: 15.15054545 | O133: 15.15054545 | P133: 15.15054545 | Q133: 15.15054545 | R133: 15.15054545 | S133: 19.072 | T133: 15.15054545 | U133: 17.28 | V133: 15.15054545 | W133: 10.24 | X133: 14.592 | Y133: 40.832 | Z133: 17.664 | AA133: 15.15054545 | AB133: 15.15054545 | AC133: 14.592 | AD133: 20.736 | AE133: 15.15054545 | AF133: 15.15054545 | AG133: 15.15054545 | AH133: 15.15054545 | AI133: 15.15054545
B134: TOFU | C134: TOFU use | D134: 8 | E134: 8 | F134: 8 | G134: 8 | H134: 8 | I134: 8 | J134: 8 | K134: 8 | L134: 8 | M134: 8 | N134: 8 | O134: 8 | P134: 8 | Q134: 8 | R134: 8 | S134: 8 | T134: 8 | U134: 8 | V134: 8 | W134: 8 | X134: 8 | Y134: 8 | Z134: 8 | AA134: 8 | AB134: 8 | AC134: 8 | AD134: 8 | AE134: 8 | AF134: 8 | AG134: 8 | AH134: 8 | AI134: 8
B135: TOMATOES | C135: TOMATOES use | D135: 1.760769231 | E135: 1.760769231 | F135: 1.04 | G135: 1.88 | H135: 1.32 | I135: 1.58 | J135: 1.760769231 | K135: 1.760769231 | L135: 2.19 | M135: 1.760769231 | N135: 1.760769231 | O135: 1.760769231 | P135: 1.760769231 | Q135: 1.760769231 | R135: 1.760769231 | S135: 2.93 | T135: 1.760769231 | U135: 1.49 | V135: 1.760769231 | W135: 1.89 | X135: 2.12 | Y135: 3.6 | Z135: 1.43 | AA135: 1.760769231 | AB135: 1.2 | AC135: 1.88 | AD135: 1.94 | AE135: 1.760769231 | AF135: 1.760769231 | AG135: 1.760769231 | AH135: 1.760769231 | AI135: 1.760769231
B136: WINE | C136: WINE use | D136: 3.825 | E136: 3.825 | F136: 1.633333333 | G136: 3.52 | H136: 6.546666667 | I136: 4.64 | J136: 3.825 | K136: 3.825 | L136: 3.825 | M136: 3.825 | N136: 3.825 | O136: 3.825 | P136: 3.825 | Q136: 3.825 | R136: 3.825 | S136: 2.173333333 | T136: 3.825 | U136: 6.34 | V136: 3.825 | W136: 3.013333333 | X136: 4.406666667 | Y136: 23.3 | Z136: 5.98 | AA136: 3.825 | AB136: 3.453333333 | AC136: 2.68 | AD136: 1.513333333 | AE136: 3.825 | AF136: 3.825 | AG136: 3.825 | AH136: 3.825 | AI136: 3.825
A137: agriculture | B137: cereal products | C137: cereal products use | D137: =AVERAGE(D12,D13,D25,D29) -> 0.3206333333 | E137: =AVERAGE(E12,E13,E25,E29) -> 0.3206333333 | F137: 0.3357 | G137: 0.3206333333 | H137: 0.3206333333 | I137: 0.3206333333 | J137: 0.3206333333 | K137: 0.3206333333 | L137: 0.3206333333 | M137: 0.3206333333 | N137: 0.3206333333 | O137: 0.2293 | P137: 0.243 | Q137: 0.3206333333 | R137: 0.3206333333 | S137: 0.5646 | T137: 0.3206333333 | U137: 0.3206333333 | V137: 0.3206333333 | W137: 0.3206333333 | X137: 0.3206333333 | Y137: 0.3206333333 | Z137: 0.3206333333 | AA137: 0.2744 | AB137: 0.3206333333 | AC137: 0.3206333333 | AD137: 0.3206333333 | AE137: 0.2768 | AF137: 0.3206333333 | AG137: 0.3206333333 | AH137: 0.3206333333 | AI137: 0.3206333333
B138: dairy | C138: dairy use | D138: =AVERAGE(D14,D15,D21) -> 3.393018243 | E138: =AVERAGE(E14,E15,E21) -> 3.110382436 | F138: 3.269278735 | G138: 2.826345873 | H138: 3.353828735 | I138: 3.047110722 | J138: 3.290178735 | K138: 2.917687944 | L138: 3.292987068 | M138: 3.282212068 | N138: 3.116210833 | O138: 3.296842624 | P138: 3.269137068 | Q138: 3.28374679 | R138: 3.143949423 | S138: 3.189066325 | T138: 3.065492361 | U138: 3.005954632 | V138: 3.285628735 | W138: 3.327839846 | X138: 3.333874658 | Y138: 3.28374679 | Z138: 2.80745596 | AA138: 3.266487068 | AB138: 3.264845401 | AC138: 3.549878081 | AD138: 3.268614846 | AE138: 4.990303056 | AF138: 3.294023179 | AG138: 3.28374679 | AH138: 3.337634651 | AI138: 3.28374679
B139: fish and seafood | C139: fish and seafood use | D139: =AVERAGE(D17,D30,D31) -> 6.238462708 | E139: =AVERAGE(E17,E30,E31) -> 6.238462708 | F139: 5.273673333 | G139: 13.02522667 | H139: 3.99603 | I139: 6.238462708 | J139: 6.362382708 | K139: 5.273673333 | L139: 5.978726042 | M139: 3.996403333 | N139: 3.713226667 | O139: 5.575932708 | P139: 6.238462708 | Q139: 6.238462708 | R139: 4.62239 | S139: 17.70549333 | T139: 6.16552 | U139: 10.97653 | V139: 6.238462708 | W139: 6.238462708 | X139: 5.0594 | Y139: 6.238462708 | Z139: 5.918409375 | AA139: 11.28957333 | AB139: 6.238462708 | AC139: 6.238462708 | AD139: 7.88153 | AE139: 6.46758 | AF139: 2.624816667 | AG139: 6.238462708 | AH139: 7.021683333 | AI139: 6.238462708
B140: fruit | C140: fruit use | D140: =AVERAGE(D7,D8,D24) -> 0.5194859919 | E140: =AVERAGE(E7,E8,E24) -> 0.5207526585 | F140: 0.4690859919 | G140: 0.4887526585 | H140: 0.6236859919 | I140: 0.5047193252 | J140: 0.5350526585 | K140: 0.5671179919 | L140: 0.9350193252 | M140: 0.5671179919 | N140: 0.5282859919 | O140: 0.5484503252 | P140: 0.4753526585 | Q140: 0.5671179919 | R140: 0.5671179919 | S140: 0.6337516585 | T140: 0.5005193252 | U140: 0.5229193252 | V140: 0.8493526585 | W140: 0.5387859919 | X140: 0.5500526585 | Y140: 0.5671179919 | Z140: 0.4513193252 | AA140: 0.5576503252 | AB140: 0.5895526585 | AC140: 0.5004526585 | AD140: 0.5430526585 | AE140: 0.4836583252 | AF140: 0.6133193252 | AG140: 0.5671179919 | AH140: 0.6949193252 | AI140: 0.5671179919
B141: meat | C141: meat use | D141: =AVERAGE(D10,D26,D28) -> 2.337699444 | E141: =AVERAGE(E10,E26,E28) -> 2.033003676 | F141: 1.718501472 | G141: 2.216994454 | H141: 2.554955241 | I141: 2.104742398 | J141: 2.480876537 | K141: 2.049239968 | L141: 2.494409722 | M141: 2.498360861 | N141: 2.641573991 | O141: 2.492734296 | P141: 1.791112556 | Q141: 2.315290991 | R141: 2.07284963 | S141: 2.438680139 | T141: 1.812755824 | U141: 1.932836423 | V141: 2.353275917 | W141: 2.369520583 | X141: 2.040879537 | Y141: 2.315290991 | Z141: 1.977869139 | AA141: 2.144267046 | AB141: 1.891924787 | AC141: 1.966365313 | AD141: 2.242234157 | AE141: 2.186333778 | AF141: 2.915512704 | AG141: 2.315290991 | AH141: 2.365804565 | AI141: 2.315290991
B142: vegetables | C142: vegetables use | D142: =AVERAGE(D27,D36) -> 0.6128522083 | E142: =AVERAGE(E27,E36) -> 0.5734735833 | F142: 0.5378264545 | G142: 0.4484411 | H142: 0.6981022083 | I142: 0.5635729286 | J142: 0.6465022083 | K142: 0.6310868237 | L142: 0.6073022083 | M142: 0.77375 | N142: 0.5828022083 | O142: 0.592933625 | P142: 0.413348 | Q142: 0.6310868237 | R142: 0.6310868237 | S142: 1.002944292 | T142: 0.5867022083 | U142: 0.5762022083 | V142: 0.6746022083 | W142: 0.6821522083 | X142: 0.4242757778 | Y142: 0.6310868237 | Z142: 0.3619853571 | AA142: 0.3883555417 | AB142: 0.4375878333 | AC142: 0.6422022083 | AD142: 0.5841522083 | AE142: 0.48851525 | AF142: 0.6547022083 | AG142: 0.6310868237 | AH142: 0.6166022083 | AI142: 0.6310868237
A143: manufacturing | B143: cereal products | D143: =AVERAGE(D45,D46,D58,D62) -> 0.3206333333 | E143: =AVERAGE(E45,E46,E58,E62) -> 0.3206333333 | F143: 0.3357 | G143: 0.3206333333 | H143: 0.3206333333 | I143: 0.3206333333 | J143: 0.3206333333 | K143: 0.3206333333 | L143: 0.3206333333 | M143: 0.3206333333 | N143: 0.3206333333 | O143: 0.2293 | P143: 0.243 | Q143: 0.3206333333 | R143: 0.3206333333 | S143: 0.5646 | T143: 0.3206333333 | U143: 0.3206333333 | V143: 0.3206333333 | W143: 0.3206333333 | X143: 0.3206333333 | Y143: 0.3206333333 | Z143: 0.3206333333 | AA143: 0.2744 | AB143: 0.3206333333 | AC143: 0.3206333333 | AD143: 0.3206333333 | AE143: 0.2768 | AF143: 0.3206333333 | AG143: 0.3206333333 | AH143: 0.3206333333 | AI143: 0.3206333333
B144: dairy | D144: =AVERAGE(D47,D48,D54) -> 3.393018243 | E144: =AVERAGE(E47,E48,E54) -> 3.110382436 | F144: 3.269278735 | G144: 2.826345873 | H144: 3.353828735 | I144: 3.047110722 | J144: 3.290178735 | K144: 2.917687944 | L144: 3.292987068 | M144: 3.282212068 | N144: 3.116210833 | O144: 3.296842624 | P144: 3.269137068 | Q144: 3.28374679 | R144: 3.143949423 | S144: 3.189066325 | T144: 3.065492361 | U144: 3.005954632 | V144: 3.285628735 | W144: 3.327839846 | X144: 3.333874658 | Y144: 3.28374679 | Z144: 2.80745596 | AA144: 3.266487068 | AB144: 3.264845401 | AC144: 3.549878081 | AD144: 3.268614846 | AE144: 4.990303056 | AF144: 3.294023179 | AG144: 3.28374679 | AH144: 3.337634651 | AI144: 3.28374679
B145: fish and seafood | D145: =AVERAGE(D50,D63,D64) -> 6.238462708 | E145: =AVERAGE(E50,E63,E64) -> 6.238462708 | F145: 5.273673333 | G145: 13.02522667 | H145: 3.99603 | I145: 6.238462708 | J145: 6.362382708 | K145: 5.273673333 | L145: 5.978726042 | M145: 3.996403333 | N145: 3.713226667 | O145: 5.575932708 | P145: 6.238462708 | Q145: 6.238462708 | R145: 4.62239 | S145: 17.70549333 | T145: 6.16552 | U145: 10.97653 | V145: 6.238462708 | W145: 6.238462708 | X145: 5.0594 | Y145: 6.238462708 | Z145: 5.918409375 | AA145: 11.28957333 | AB145: 6.238462708 | AC145: 6.238462708 | AD145: 7.88153 | AE145: 6.46758 | AF145: 2.624816667 | AG145: 6.238462708 | AH145: 7.021683333 | AI145: 6.238462708
B146: fruit | D146: =AVERAGE(D40,D41,D57) -> 0.5194859919 | E146: =AVERAGE(E40,E41,E57) -> 0.5207526585 | F146: 0.4690859919 | G146: 0.4887526585 | H146: 0.6236859919 | I146: 0.5047193252 | J146: 0.5350526585 | K146: 0.5671179919 | L146: 0.9350193252 | M146: 0.5671179919 | N146: 0.5282859919 | O146: 0.5484503252 | P146: 0.4753526585 | Q146: 0.5671179919 | R146: 0.5671179919 | S146: 0.6337516585 | T146: 0.5005193252 | U146: 0.5229193252 | V146: 0.8493526585 | W146: 0.5387859919 | X146: 0.5500526585 | Y146: 0.5671179919 | Z146: 0.4513193252 | AA146: 0.5576503252 | AB146: 0.5895526585 | AC146: 0.5004526585 | AD146: 0.5430526585 | AE146: 0.4836583252 | AF146: 0.6133193252 | AG146: 0.5671179919 | AH146: 0.6949193252 | AI146: 0.5671179919
B147: meat | D147: =AVERAGE(D43,D59,D61) -> 2.337699444 | E147: =AVERAGE(E43,E59,E61) -> 2.033003676 | F147: 1.718501472 | G147: 2.216994454 | H147: 2.554955241 | I147: 2.104742398 | J147: 2.480876537 | K147: 2.049239968 | L147: 2.494409722 | M147: 2.498360861 | N147: 2.641573991 | O147: 2.492734296 | P147: 1.791112556 | Q147: 2.315290991 | R147: 2.07284963 | S147: 2.438680139 | T147: 1.812755824 | U147: 1.932836423 | V147: 2.353275917 | W147: 2.369520583 | X147: 2.040879537 | Y147: 2.315290991 | Z147: 1.977869139 | AA147: 2.144267046 | AB147: 1.891924787 | AC147: 1.966365313 | AD147: 2.242234157 | AE147: 2.186333778 | AF147: 2.915512704 | AG147: 2.315290991 | AH147: 2.365804565 | AI147: 2.315290991
B148: vegetables | D148: =AVERAGE(D60,D69) -> 0.6128522083 | E148: =AVERAGE(E60,E69) -> 0.5734735833 | F148: 0.5378264545 | G148: 0.4484411 | H148: 0.6981022083 | I148: 0.5635729286 | J148: 0.6465022083 | K148: 0.6310868237 | L148: 0.6073022083 | M148: 0.77375 | N148: 0.5828022083 | O148: 0.592933625 | P148: 0.413348 | Q148: 0.6310868237 | R148: 0.6310868237 | S148: 1.002944292 | T148: 0.5867022083 | U148: 0.5762022083 | V148: 0.6746022083 | W148: 0.6821522083 | X148: 0.4242757778 | Y148: 0.6310868237 | Z148: 0.3619853571 | AA148: 0.3883555417 | AB148: 0.4375878333 | AC148: 0.6422022083 | AD148: 0.5841522083 | AE148: 0.48851525 | AF148: 0.6547022083 | AG148: 0.6310868237 | AH148: 0.6166022083 | AI148: 0.6310868237
A149: retail | B149: cereal products | D149: =AVERAGE(D78,D79,D91,D95) -> 2.119186782 | E149: =AVERAGE(E78,E79,E91,E95) -> 1.453161985 | F149: 0.8844987765 | G149: 1.37158242 | H149: 1.464569249 | I149: 1.098828262 | J149: 2.053161152 | K149: 1.484131293 | L149: 1.975192377 | M149: 2.081453362 | N149: 1.684939896 | O149: 1.44848246 | P149: 0.7227873165 | Q149: 1.464569249 | R149: 1.43353757 | S149: 1.797948561 | T149: 1.128904052 | U149: 1.138066765 | V149: 1.464569249 | W149: 1.464569249 | X149: 1.366859021 | Y149: 1.640961341 | Z149: 1.224774343 | AA149: 1.679170338 | AB149: 0.9057813812 | AC149: 1.137967836 | AD149: 1.778508321 | AE149: 1.162962551 | AF149: 1.570839249 | AG149: 1.464569249 | AH149: 1.735113067 | AI149: 1.464569249
B150: dairy | D150: =AVERAGE(D80,D81,D87) -> 2.398760251 | E150: =AVERAGE(E80,E81,E87) -> 2.713917544 | F150: 2.608326949 | G150: 3.207594758 | H150: 2.783350878 | I150: 2.368717124 | J150: 3.116295185 | K150: 2.555367028 | L150: 3.4330448 | M150: 2.630620012 | N150: 2.341949921 | O150: 3.690111139 | P150: 2.282711882 | Q150: 2.713268933 | R150: 1.989926265 | S150: 2.892104066 | T150: 2.441107871 | U150: 2.108882689 | V150: 2.715150878 | W150: 2.757361989 | X150: 2.862316102 | Y150: 2.713268933 | Z150: 2.504870134 | AA150: 2.915510927 | AB150: 3.064547129 | AC150: 2.691383845 | AD150: 2.956026518 | AE150: 2.419754775 | AF150: 2.723545322 | AG150: 2.713268933 | AH150: 2.802158241 | AI150: 2.713268933
B151: fish and seafood | D151: =AVERAGE(D83,D96,D97) -> 10.60068809 | E151: =AVERAGE(E83,E96,E97) -> 10.60068809 | F151: 9.385206898 | G151: 14.98017582 | H151: 10.60068809 | I151: 10.08067262 | J151: 11.47260256 | K151: 11.76447057 | L151: 10.52882005 | M151: 14.22345756 | N151: 9.044296991 | O151: 9.454432815 | P151: 10.93363373 | Q151: 13.84785217 | R151: 9.839970066 | S151: 11.5521284 | T151: 10.60068809 | U151: 7.035344648 | V151: 10.60068809 | W151: 10.60068809 | X151: 9.545630995 | Y151: 7.205780429 | Z151: 9.288688743 | AA151: 8.707473111 | AB151: 10.60068809 | AC151: 10.60068809 | AD151: 10.60068809 | AE151: 9.581018454 | AF151: 13.23550533 | AG151: 10.60068809 | AH151: 10.90728797 | AI151: 10.60068809
B152: fruit | D152: =AVERAGE(D73,D74,D90) -> 0.5194859919 | E152: =AVERAGE(E73,E74,E90) -> 0.5207526585 | F152: 0.4690859919 | G152: 0.4887526585 | H152: 0.6236859919 | I152: 0.5047193252 | J152: 0.5350526585 | K152: 0.5671179919 | L152: 0.9350193252 | M152: 0.5671179919 | N152: 0.5282859919 | O152: 0.5484503252 | P152: 0.4753526585 | Q152: 0.5671179919 | R152: 0.5671179919 | S152: 0.6337516585 | T152: 0.5005193252 | U152: 0.5229193252 | V152: 0.8493526585 | W152: 0.5387859919 | X152: 0.5500526585 | Y152: 0.5671179919 | Z152: 0.4513193252 | AA152: 0.5576503252 | AB152: 0.5895526585 | AC152: 0.5004526585 | AD152: 0.5430526585 | AE152: 0.4836583252 | AF152: 0.6133193252 | AG152: 0.5671179919 | AH152: 0.6949193252 | AI152: 0.5671179919
B153: meat | D153: =AVERAGE(D76,D92,D94) -> 3.379031426 | E153: =AVERAGE(E76,E92,E94) -> 2.976560445 | F153: 2.259874742 | G153: 3.12133813 | H153: 3.112884406 | I153: 2.634467716 | J153: 2.884117552 | K153: 2.317381753 | L153: 4.283404241 | M153: 4.297176734 | N153: 2.63516292 | O153: 3.155050386 | P153: 2.190344744 | Q153: 5.11405329 | R153: 3.366219335 | S153: 2.512798233 | T153: 2.556008573 | U153: 2.477711332 | V153: 3.112884406 | W153: 3.112884406 | X153: 1.603292954 | Y153: 5.572642976 | Z153: 2.208624212 | AA153: 3.510011695 | AB153: 2.292422798 | AC153: 2.747152836 | AD153: 2.788272993 | AE153: 2.880368874 | AF153: 4.268599971 | AG153: 3.112884406 | AH153: 4.015788098 | AI153: 3.112884406
B154: vegetables | D154: =AVERAGE(D93,D102) -> 0.6128522083 | E154: =AVERAGE(E93,E102) -> 0.5734735833 | F154: 0.5378264545 | G154: 0.4484411 | H154: 0.6981022083 | I154: 0.5635729286 | J154: 0.6465022083 | K154: 0.6310868237 | L154: 0.6073022083 | M154: 0.77375 | N154: 0.5828022083 | O154: 0.592933625 | P154: 0.413348 | Q154: 0.6310868237 | R154: 0.6310868237 | S154: 1.002944292 | T154: 0.5867022083 | U154: 0.5762022083 | V154: 0.6746022083 | W154: 0.6821522083 | X154: 0.4242757778 | Y154: 0.6310868237 | Z154: 0.3619853571 | AA154: 0.3883555417 | AB154: 0.4375878333 | AC154: 0.6422022083 | AD154: 0.5841522083 | AE154: 0.48851525 | AF154: 0.6547022083 | AG154: 0.6310868237 | AH154: 0.6166022083 | AI154: 0.6310868237
A155: use | B155: cereal products | D155: =AVERAGE(D111,D112,D124,D128) -> 2.723340923 | E155: =AVERAGE(E111,E112,E124,E128) -> 2.723340923 | F155: 2.466365399 | G155: 3.092711553 | H155: 2.887711553 | I155: 2.142711553 | J155: 2.723340923 | K155: 2.723340923 | L155: 3.336802462 | M155: 2.723340923 | N155: 2.723340923 | O155: 2.723340923 | P155: 2.723340923 | Q155: 2.723340923 | R155: 2.723340923 | S155: 3.040211553 | T155: 2.723340923 | U155: 2.502711553 | V155: 2.723340923 | W155: 2.940211553 | X155: 2.757711553 | Y155: 4.032711553 | Z155: 2.449302462 | AA155: 2.723340923 | AB155: 2.310211553 | AC155: 2.723096168 | AD155: 2.682711553 | AE155: 2.794302462 | AF155: 2.723340923 | AG155: 2.723340923 | AH155: 2.723340923 | AI155: 2.723340923
B156: dairy | D156: =AVERAGE(D113,D114,D120) -> 5.623974359 | E156: =AVERAGE(E113,E114,E120) -> 5.623974359 | F156: 6.048076923 | G156: 5.81 | H156: 7.63 | I156: 4.926666667 | J156: 5.623974359 | K156: 5.623974359 | L156: 4.754230769 | M156: 5.623974359 | N156: 4.542564103 | O156: 5.623974359 | P156: 5.623974359 | Q156: 5.623974359 | R156: 5.623974359 | S156: 7.393333333 | T156: 5.623974359 | U156: 5.476666667 | V156: 5.623974359 | W156: 9.046666667 | X156: 4.301666667 | Y156: 10.25 | Z156: 4.111666667 | AA156: 5.623974359 | AB156: 5.563333333 | AC156: 5.918333333 | AD156: 6.053333333 | AE156: 5.571153846 | AF156: 5.623974359 | AG156: 5.623974359 | AH156: 5.623974359 | AI156: 5.623974359
B157: fish and seafood | D157: =AVERAGE(D116,D129,D130) -> 18.17708333 | E157: =AVERAGE(E116,E129,E130) -> 18.17708333 | F157: 18.17708333 | G157: 18.17708333 | H157: 19.60666667 | I157: 18.95333333 | J157: 18.17708333 | K157: 18.17708333 | L157: 18.17708333 | M157: 18.17708333 | N157: 18.17708333 | O157: 18.17708333 | P157: 18.17708333 | Q157: 18.17708333 | R157: 18.17708333 | S157: 18.24666667 | T157: 18.17708333 | U157: 17.47 | V157: 18.17708333 | W157: 17.79333333 | X157: 18.17708333 | Y157: 18.17708333 | Z157: 17.20333333 | AA157: 18.17708333 | AB157: 17.22 | AC157: 18.17708333 | AD157: 18.92333333 | AE157: 18.17708333 | AF157: 18.17708333 | AG157: 18.17708333 | AH157: 18.17708333 | AI157: 18.17708333
B158: fruit | D158: =AVERAGE(D106,D107,D123) -> 1.575042735 | E158: =AVERAGE(E106,E107,E123) -> 1.575042735 | F158: 1.423333333 | G158: 1.486666667 | H158: 1.656666667 | I158: 1.41 | J158: 1.575042735 | K158: 1.575042735 | L158: 1.916666667 | M158: 1.575042735 | N158: 1.766153846 | O158: 1.575042735 | P158: 1.575042735 | Q158: 1.575042735 | R158: 1.575042735 | S158: 1.853333333 | T158: 1.575042735 | U158: 1.52 | V158: 1.575042735 | W158: 1.74 | X158: 1.583333333 | Y158: 2.476666667 | Z158: 1.26 | AA158: 1.575042735 | AB158: 1.326666667 | AC158: 1.47 | AD158: 1.48 | AE158: 1.732820513 | AF158: 1.575042735 | AG158: 1.575042735 | AH158: 1.575042735 | AI158: 1.575042735
B159: meat | D159: =AVERAGE(D109,D125,D127) -> 6.336478244 | E159: =AVERAGE(E109,E125,E127) -> 6.336478244 | F159: 5.130277778 | G159: 6.526666667 | H159: 7.373333333 | I159: 4.883636364 | J159: 6.336478244 | K159: 6.336478244 | L159: 9.606969697 | M159: 6.336478244 | N159: 6.656200466 | O159: 6.336478244 | P159: 6.336478244 | Q159: 6.336478244 | R159: 6.336478244 | S159: 9.553333333 | T159: 6.336478244 | U159: 4.203333333 | V159: 6.336478244 | W159: 6.59 | X159: 8.046666667 | Y159: 13.42 | Z159: 3.236666667 | AA159: 6.336478244 | AB159: 4.46 | AC159: 5.440277778 | AD159: 7.003333333 | AE159: 6.336478244 | AF159: 6.336478244 | AG159: 6.336478244 | AH159: 6.336478244 | AI159: 6.336478244
B160: vegetables | D160: =AVERAGE(D126,D135) -> 1.193598901 | E160: =AVERAGE(E126,E135) -> 1.193598901 | F160: 0.75 | G160: 1.25 | H160: 1.015 | I160: 1.035 | J160: 1.193598901 | K160: 1.193598901 | L160: 1.535 | M160: 1.193598901 | N160: 1.193598901 | O160: 1.193598901 | P160: 1.193598901 | Q160: 1.193598901 | R160: 1.193598901 | S160: 1.985 | T160: 1.193598901 | U160: 0.925 | V160: 1.193598901 | W160: 1.265 | X160: 1.605 | Y160: 2.96 | Z160: 0.845 | AA160: 1.193598901 | AB160: 0.775 | AC160: 1.195 | AD160: 1.24 | AE160: 1.290384615 | AF160: 1.193598901 | AG160: 1.193598901 | AH160: 1.193598901 | AI160: 1.193598901

Sheet Action impacts (hidden)
A2: Action impact
B4: IPCC GWP 100a | C4: Ozone depletion | D4: Human toxicity, non-cancer effects | E4: Human toxicity, cancer effects | F4: Particulate matter | G4: Ionizing radiation HH | H4: Photochemical ozone formation | I4: Acidification | J4: Terrestrial eutrophication | K4: Freshwater eutrophication | L4: Marine eutrophication | M4: Freshwater ecotoxicity | N4: Land use | O4: Water scarcity | P4: ADP Fossil | Q4: ADP (ultimate)
A5: Action type | B5: kg CO2 eq | C5: kg CFC11 eq | D5: CTUh | E5: CTUh | F5: Death | G5: kBq U235 eq | H5: kg NMVOC eq | I5: molc H+ eq | J5: molc N eq | K5: kg P eq | L5: kg N eq | M5: CTUe | N5: Pt | O5: m3 water eq | P5: MJ | Q5: kg Sb eq
A6: Food redistribution/donations
A7: Gleaning
A8: Production of animal feed
A9: Increasing supply chain efficiency
A10: Changes to packaging and labels
A11: Awareness/Educational campaign/Training
A12: Fiscal incentives/policies/voluntary agreement
A13: Improving logistics in public procurement
B20: IPCC GWP 100a | C20: Ozone depletion | D20: Human toxicity, non-cancer effects | E20: Human toxicity, cancer effects | F20: Particulate matter | G20: Ionizing radiation HH | H20: Photochemical ozone formation | I20: Acidification | J20: Terrestrial eutrophication | K20: Freshwater eutrophication | L20: Marine eutrophication | M20: Freshwater ecotoxicity | N20: Land use | O20: Water scarcity | P20: ADP Fossil | Q20: ADP (ultimate) | R20: Single point
B21: kg CO2 eq | C21: kg CFC11 eq | D21: CTUh | E21: CTUh | F21: Death | G21: kBq U235 eq | H21: kg NMVOC eq | I21: molc H+ eq | J21: molc N eq | K21: kg P eq | L21: kg N eq | M21: CTUe | N21: Pt | O21: m3 water eq | P21: MJ | Q21: kg Sb eq | R21: Pt
A22: Action impact (per 1 unit of paper) | B22: 0.1310733879 | C22: 8.800268529e-09 | D22: 2.121675195e-08 | E22: 1.570565757e-09 | F22: 9.461435052e-09 | G22: 0.007108238068 | H22: 0.0003845959738 | I22: 0.0008361155073 | J22: 0.001310712622 | K22: 7.793390092e-06 | L22: 0.0001255807332 | M22: 0.1466672437 | N22: 11.05109007 | O22: 0.06982647684 | P22: 2.168092578 | Q22: 2.71465885e-07 | R22: =(B22/$B$37)*$B$38+(C22/$C$37)*$C$38+(D22/$D$37)*$D$38+(E22/$E$37)*$E$38+(F22/$F$37)*$F$38+(G22/$G$37)*$G$38+(H22/$H$37)*$H$38+(I22/$I$37)*$I$38+(J22/$J$37)*$J$38+(K22/$K$37)*$K$38+(L22/$L$37)*$L$38+(M22/$M$37)*$M$38+(N22/$N$37)*$N$38+(O22/$O$37)*$O$38+(P22/$P$37)*$P$38+(Q22/$Q$37)*$Q$38 -> 2.228082868e-13
A23: Action impact (per 1 km transport) | B23: 0.3897742263 | C23: 7.733222439e-08 | D23: 2.559552262e-08 | E23: 7.313963034e-09 | F23: 2.532947336e-08 | G23: 0.02298181987 | H23: 0.001393310825 | I23: 0.001713853993 | J23: 0.004261258928 | K23: 2.010939202e-05 | L23: 0.0003856792791 | M23: 0.9372860342 | N23: 3.584194985 | O23: 0.0801936808 | P23: 5.845800716 | Q23: 5.363256178e-06 | R23: =(B23/$B$37)*$B$38+(C23/$C$37)*$C$38+(D23/$D$37)*$D$38+(E23/$E$37)*$E$38+(F23/$F$37)*$F$38+(G23/$G$37)*$G$38+(H23/$H$37)*$H$38+(I23/$I$37)*$I$38+(J23/$J$37)*$J$38+(K23/$K$37)*$K$38+(L23/$L$37)*$L$38+(M23/$M$37)*$M$38+(N23/$N$37)*$N$38+(O23/$O$37)*$O$38+(P23/$P$37)*$P$38+(Q23/$Q$37)*$Q$38 -> 7.098099701e-13
A24: Action impact (per 1 kWh electricity) | B24: 0.0465386407 | C24: 8.476800247e-09 | D24: 1.072437836e-09 | E24: 2.945820986e-11 | F24: 3.942892269e-09 | G24: 0.01339855306 | H24: 0.0001063594242 | I24: 0.0003920928064 | J24: 0.0003485813082 | K24: 2.373858102e-08 | L24: 3.202492432e-05 | M24: 0.002674466962 | N24: 0 | O24: 0.005103945815 | P24: 0.8569070525 | Q24: 1.084656363e-09 | R24: 1.240974041e-13
A25: Total Action impact | B25: =B22*$B$29+B23*$B$31+B24*$B$33 -> 325.9605011 | C25: =C22*$B$29+C23*$B$31+C24*$B$33 -> 4.746638073e-05 | D25: 3.401451326e-05 | E25: 5.227547274e-06 | F25: 2.212617173e-05 | G25: 18.599148 | H25: 1.081251386 | I25: 1.693042504 | J25: 3.441342086 | K25: 0.0178480861 | L25: 0.3184203728 | M25: 615.3102608 | N25: 12843.18756 | O25: 109.9233172 | P25: 5090.992937 | Q25: 0.002953093974 | R25: 5.777132719e-10
A29: Paper used (leaflets, letters) | B29: =Calculator!D37 -> 1000
A31: Transport distances | B31: =Calculator!D39 -> 500
A33: Electricity use | B33: =Calculator!D41 -> 0
B36: IPCC GWP 100a | C36: Ozone depletion | D36: Human toxicity, non-cancer effects | E36: Human toxicity, cancer effects | F36: Particulate matter | G36: Ionizing radiation HH | H36: Photochemical ozone formation | I36: Acidification | J36: Terrestrial eutrophication | K36: Freshwater eutrophication | L36: Marine eutrophication | M36: Freshwater ecotoxicity | N36: Land use | O36: Water scarcity | P36: ADP Fossil | Q36: ADP (ultimate)
A37: Normalisation factors | B37: =VLOOKUP(B36,normalisation,4,FALSE) -> 5.546652007e+13 | C37: 333481861 | D37: 3274782.609 | E37: 265544.3645 | F37: 4105966.484 | G37: 9.541009009e+11 | H37: 280000000000 | I37: 383000000000 | J37: 1220000000000 | K37: 1.112807395e+10 | L37: 1.347814028e+11 | M37: 8.146933333e+13 | N37: 1.540232569e+16 | O37: 7.908694197e+13 | P37: 4.482621603e+14 | Q37: 438856295.7
A38: Weighting | B38: =VLOOKUP(B36,normalisation,6,FALSE) -> 21.06 | C38: 6.31 | D38: 1.84 | E38: 2.13 | F38: 8.96 | G38: 5.01 | H38: 4.78 | I38: 6.2 | J38: 3.71 | K38: 2.8 | L38: 2.96 | M38: 1.92 | N38: 7.94 | O38: 8.51 | P38: 8.32 | Q38: 7.55

Sheet Calculation_use (hidden)
C1: Amount | D1: Foodwaste | E1: IPCC GWP 100a | F1: Ozone depletion | G1: Human toxicity, non-cancer effects | H1: Human toxicity, cancer effects | I1: Particulate matter | J1: Ionizing radiation HH | K1: Photochemical ozone formation | L1: Acidification | M1: Terrestrial eutrophication | N1: Freshwater eutrophication | O1: Marine eutrophication | P1: Freshwater ecotoxicity | Q1: Land use | R1: Water scarcity | S1: ADP Fossil | T1: ADP (ultimate)
C2: kg | D2: % | E2: kg CO2 eq | F2: kg CFC11 eq | G2: CTUh | H2: CTUh | I2: Death | J2: kBq U235 eq | K2: kg NMVOC eq | L2: molc H+ eq | M2: molc N eq | N2: kg P eq | O2: kg N eq | P2: CTUe | Q2: Pt | R2: m3 water eq | S2: MJ | T2: kg Sb eq
A3: Meat | B3: PORK
B4: agriculture | C4: =C5/(1-D4) -> 1.232012616 | D4: =Calculation_original!D4 -> 0 | E4: =$C$4*'Emissions per kg'!C4 -> 7.527597083 | F4: =$C$4*'Emissions per kg'!D4 -> 4.213483146e-08 | G4: =$C$4*'Emissions per kg'!E4 -> 2.722747881e-06 | H4: =$C$4*'Emissions per kg'!F4 -> 8.611768185e-08 | I4: =$C$4*'Emissions per kg'!G4 -> 1.117435443e-06 | J4: =$C$4*'Emissions per kg'!H4 -> 0.06825349892 | K4: =$C$4*'Emissions per kg'!I4 -> 0.009301695249 | L4: =$C$4*'Emissions per kg'!J4 -> 0.1552335896 | M4: =$C$4*'Emissions per kg'!K4 -> 0.6886950522 | N4: =$C$4*'Emissions per kg'!L4 -> 0.001638576779 | O4: =$C$4*'Emissions per kg'!M4 -> 0.04829489454 | P4: =$C$4*'Emissions per kg'!N4 -> 20.69781195 | Q4: =$C$4*'Emissions per kg'!O4 -> 968.361916 | R4: =$C$4*'Emissions per kg'!P4 -> 1.490735265 | S4: =$C$4*'Emissions per kg'!Q4 -> 25.74906367 | T4: =$C$4*'Emissions per kg'!R4 -> 2.229942835e-07
B5: processsing | C5: =(C6/(1-D5))/(1-D6) -> 1.232012616 | D5: =Calculation_original!D5 -> 0.05 | E5: =$C$5*'Emissions per kg'!C5 -> 0.4004041001 | F5: =$C$5*'Emissions per kg'!D5 -> 9.917701557e-07 | G5: =$C$5*'Emissions per kg'!E5 -> 1.211068401e-08 | H5: =$C$5*'Emissions per kg'!F5 -> 8.513207175e-10 | I5: =$C$5*'Emissions per kg'!G5 -> 1.070618963e-08 | J5: =$C$5*'Emissions per kg'!H5 -> 0.0170017741 | K5: =$C$5*'Emissions per kg'!I5 -> 0.0008574807806 | L5: =$C$5*'Emissions per kg'!J5 -> 0.001256652868 | M5: =$C$5*'Emissions per kg'!K5 -> 0.004903410211 | N5: =$C$5*'Emissions per kg'!L5 -> 1.848018924e-06 | O5: =$C$5*'Emissions per kg'!M5 -> 0.0003277153558 | P5: =$C$5*'Emissions per kg'!N5 -> 0.1687857284 | Q5: =$C$5*'Emissions per kg'!O5 -> 1.342893751 | R5: =$C$5*'Emissions per kg'!P5 -> 0.2451705105 | S5: =$C$5*'Emissions per kg'!Q5 -> 3.942440371 | T5: =$C$5*'Emissions per kg'!R5 -> 1.44145476e-07
B6: packaging | C6: =C7 -> 1.170411985 | D6: =Calculation_original!D6 -> 0 | E6: =$C$6*'Emissions per kg'!C6 -> 0.05957397004 | F6: =$C$6*'Emissions per kg'!D6 -> 1.860955056e-09 | G6: =$C$6*'Emissions per kg'!E6 -> 1.931179775e-09 | H6: =$C$6*'Emissions per kg'!F6 -> 1.977996255e-10 | I6: =$C$6*'Emissions per kg'!G6 -> 1.486423221e-09 | J6: =$C$6*'Emissions per kg'!H6 -> 0.001404494382 | K6: =$C$6*'Emissions per kg'!I6 -> 8.60252809e-05 | L6: =$C$6*'Emissions per kg'!J6 -> 0.0001603464419 | M6: =$C$6*'Emissions per kg'!K6 -> 0.0003054775281 | N6: =$C$6*'Emissions per kg'!L6 -> 1.264044944e-06 | O6: =$C$6*'Emissions per kg'!M6 -> 2.844101124e-05 | P6: =$C$6*'Emissions per kg'!N6 -> 0.03593164794 | Q6: =$C$6*'Emissions per kg'!O6 -> 0.1825842697 | R6: =$C$6*'Emissions per kg'!P6 -> 0.005770131086 | S6: =$C$6*'Emissions per kg'!Q6 -> 0.389747191 | T6: =$C$6*'Emissions per kg'!R6 -> 1.685393258e-08
B7: retail | C7: =(C8/(1-D8))/(1-D7) -> 1.170411985 | D7: =Calculation_original!D7 -> 0.04 | E7: =$C$7*'Emissions per kg'!C7 -> 0.8239700375 | F7: =$C$7*'Emissions per kg'!D7 -> 1.474719101e-05 | G7: =$C$7*'Emissions per kg'!E7 -> 2.071629213e-08 | H7: =$C$7*'Emissions per kg'!F7 -> 1.115402622e-09 | I7: =$C$7*'Emissions per kg'!G7 -> 1.345973783e-08 | J7: =$C$7*'Emissions per kg'!H7 -> 0.008848314607 | K7: =$C$7*'Emissions per kg'!I7 -> 0.0008883426966 | L7: =$C$7*'Emissions per kg'!J7 -> 0.0009375 | M7: =$C$7*'Emissions per kg'!K7 -> 0.00314840824 | N7: =$C$7*'Emissions per kg'!L7 -> 3.522940075e-06 | O7: =$C$7*'Emissions per kg'!M7 -> 0.0002867509363 | P7: =$C$7*'Emissions per kg'!N7 -> 0.314840824 | Q7: =$C$7*'Emissions per kg'!O7 -> 2.247191011 | R7: =$C$7*'Emissions per kg'!P7 -> 0.06086142322 | S7: =$C$7*'Emissions per kg'!Q7 -> 2.106741573 | T7: =$C$7*'Emissions per kg'!R7 -> 5.079588015e-07
B8: use | C8: 1 | D8: =Calculation_original!D8 -> 0.11 | E8: =$C$8*'Emissions per kg'!C8 -> 0.4898 | F8: =$C$8*'Emissions per kg'!D8 -> 3.2549e-08 | G8: =$C$8*'Emissions per kg'!E8 -> 1.0307e-07 | H8: =$C$8*'Emissions per kg'!F8 -> 5.796e-09 | I8: =$C$8*'Emissions per kg'!G8 -> 3.051e-08 | J8: =$C$8*'Emissions per kg'!H8 -> 0.020121 | K8: =$C$8*'Emissions per kg'!I8 -> 0.0013626 | L8: =$C$8*'Emissions per kg'!J8 -> 0.0045567 | M8: =$C$8*'Emissions per kg'!K8 -> 0.01144 | N8: =$C$8*'Emissions per kg'!L8 -> 0.000940355 | O8: =$C$8*'Emissions per kg'!M8 -> 0.0232784 | P8: =$C$8*'Emissions per kg'!N8 -> 1.1574 | Q8: =$C$8*'Emissions per kg'!O8 -> 18.8697 | R8: =$C$8*'Emissions per kg'!P8 -> 1.81231 | S8: =$C$8*'Emissions per kg'!Q8 -> 6.5009 | T8: =$C$8*'Emissions per kg'!R8 -> 1.59156e-06
B9: end of life P&R | C9: =D5*C5+D7*C7+C6*D6+C4*D4 -> 0.1084171102 | E9: =$C$9*'EoL emissions'!B4 -> 0.03668349075 | F9: =$C$9*'EoL emissions'!C4 -> 4.389565651e-10 | G9: =$C$9*'EoL emissions'!D4 -> 4.070666663e-08 | H9: =$C$9*'EoL emissions'!E4 -> 1.628225039e-09 | I9: =$C$9*'EoL emissions'!F4 -> 8.29967439e-10 | J9: =$C$9*'EoL emissions'!G4 -> 0.0002779482063 | K9: =$C$9*'EoL emissions'!H4 -> 4.914465751e-05 | L9: =$C$9*'EoL emissions'!I4 -> 0.0001302167802 | M9: =$C$9*'EoL emissions'!J4 -> 0.0005265997948 | N9: =$C$9*'EoL emissions'!K4 -> 1.036587219e-05 | O9: =$C$9*'EoL emissions'!L4 -> 5.949940174e-05 | P9: =$C$9*'EoL emissions'!M4 -> 2.878308212 | Q9: =$C$9*'EoL emissions'!N4 -> 0.1487706048 | R9: =$C$9*'EoL emissions'!O4 -> 0.001440744793 | S9: =$C$9*'EoL emissions'!P4 -> -0.02646833538 | T9: =$C$9*'EoL emissions'!Q4 -> -2.009061638e-09
B10: end of life HH | C10: =D8*C8 -> 0.11 | E10: =$C$10*'EoL emissions'!B5 -> 0.04900154333 | F10: =$C$10*'EoL emissions'!C5 -> 4.12631982e-10 | G10: =$C$10*'EoL emissions'!D5 -> 8.677284767e-08 | H10: =$C$10*'EoL emissions'!E5 -> 1.861030056e-09 | I10: =$C$10*'EoL emissions'!F5 -> 4.620740321e-10 | J10: =$C$10*'EoL emissions'!G5 -> 0.0002417663802 | K10: =$C$10*'EoL emissions'!H5 -> 4.004349177e-05 | L10: =$C$10*'EoL emissions'!I5 -> 5.960998141e-05 | M10: =$C$10*'EoL emissions'!J5 -> 0.0002274148586 | N10: =$C$10*'EoL emissions'!K5 -> 5.201208117e-06 | O10: =$C$10*'EoL emissions'!L5 -> 0.0001084374477 | P10: =$C$10*'EoL emissions'!M5 -> 6.294670992 | Q10: =$C$10*'EoL emissions'!N5 -> 0.1020644473 | R10: =$C$10*'EoL emissions'!O5 -> 0.002395510017 | S10: =$C$10*'EoL emissions'!P5 -> 0.01644419579 | T10: =$C$10*'EoL emissions'!Q5 -> 1.597542523e-09
A11: PORK | E11: =SUM(E4:E10) -> 9.387030224 | F11: =SUM(F4:F10) -> 1.581635754e-05 | G11: 2.988055551e-06 | H11: 9.756745991e-08 | I11: 1.174889835e-06 | J11: 0.1161487966 | K11: 0.01258533216 | L11: 0.1623346157 | M11: 0.7092463629 | N11: 0.002601133863 | O11: 0.07238413869 | P11: 31.54774935 | Q11: 991.2551201 | R11: 3.618683585 | S11: 38.67886867 | T11: 2.483100974e-06
A12: Meat | B12: BEEF
B13: agriculture | C13: =C14/(1-D13) -> 1.232012616 | D13: =Calculation_original!D13 -> 0 | E13: =$C$13*'Emissions per kg'!C11 -> 34.86595703 | F13: =$C$13*'Emissions per kg'!D11 -> 1.527695644e-08 | G13: =$C$13*'Emissions per kg'!E11 -> 2.476345358e-05 | H13: =$C$13*'Emissions per kg'!F11 -> 3.991720875e-07 | I13: =$C$13*'Emissions per kg'!G11 -> 4.422925291e-06 | J13: =$C$13*'Emissions per kg'!H11 -> 0.02451705105 | K13: =$C$13*'Emissions per kg'!I11 -> 0.03806918983 | L13: =$C$13*'Emissions per kg'!J11 -> 0.5950620934 | M13: =$C$13*'Emissions per kg'!K11 -> 2.636506998 | N13: =$C$13*'Emissions per kg'!L11 -> 0.005248373743 | O13: =$C$13*'Emissions per kg'!M11 -> 0.2328503844 | P13: =$C$13*'Emissions per kg'!N11 -> 45.58446678 | Q13: =$C$13*'Emissions per kg'!O11 -> 4090.281884 | R13: =$C$13*'Emissions per kg'!P11 -> 10.8786714 | S13: =$C$13*'Emissions per kg'!Q11 -> 75.52237335 | T13: =$C$13*'Emissions per kg'!R11 -> 4.287403903e-07
B14: processsing | C14: =(C15/(1-D14))/(1-D15) -> 1.232012616 | D14: =Calculation_original!D14 -> 0.05 | E14: =$C$14*'Emissions per kg'!C12 -> 0.5827419673 | F14: =$C$14*'Emissions per kg'!D12 -> 3.030751035e-06 | G14: =$C$14*'Emissions per kg'!E12 -> 1.786418293e-08 | H14: =$C$14*'Emissions per kg'!F12 -> 1.065690913e-09 | I14: =$C$14*'Emissions per kg'!G12 -> 2.303863592e-08 | J14: =$C$14*'Emissions per kg'!H12 -> 0.008895131086 | K14: =$C$14*'Emissions per kg'!I12 -> 0.001355213877 | L14: =$C$14*'Emissions per kg'!J12 -> 0.002735068007 | M14: =$C$14*'Emissions per kg'!K12 -> 0.006270944214 | N14: =$C$14*'Emissions per kg'!L12 -> 3.683717721e-06 | O14: =$C$14*'Emissions per kg'!M12 -> 0.0004755568697 | P14: =$C$14*'Emissions per kg'!N12 -> 0.1995860438 | Q14: =$C$14*'Emissions per kg'!O12 -> 1.626256653 | R14: =$C$14*'Emissions per kg'!P12 -> 0.2574906367 | S14: =$C$14*'Emissions per kg'!Q12 -> 5.223733491 | T14: =$C$14*'Emissions per kg'!R12 -> 2.057461068e-07
B15: packaging | C15: =C16 -> 1.170411985 | D15: =Calculation_original!D15 -> 0 | E15: =$C$15*'Emissions per kg'!C13 -> 0.05957397004 | F15: =$C$15*'Emissions per kg'!D13 -> 1.860955056e-09 | G15: =$C$15*'Emissions per kg'!E13 -> 1.931179775e-09 | H15: =$C$15*'Emissions per kg'!F13 -> 1.977996255e-10 | I15: =$C$15*'Emissions per kg'!G13 -> 1.486423221e-09 | J15: =$C$15*'Emissions per kg'!H13 -> 0.001404494382 | K15: =$C$15*'Emissions per kg'!I13 -> 8.60252809e-05 | L15: =$C$15*'Emissions per kg'!J13 -> 0.0001603464419 | M15: =$C$15*'Emissions per kg'!K13 -> 0.0003054775281 | N15: =$C$15*'Emissions per kg'!L13 -> 1.264044944e-06 | O15: =$C$15*'Emissions per kg'!M13 -> 2.844101124e-05 | P15: =$C$15*'Emissions per kg'!N13 -> 0.03593164794 | Q15: =$C$15*'Emissions per kg'!O13 -> 0.1825842697 | R15: =$C$15*'Emissions per kg'!P13 -> 0.005770131086 | S15: =$C$15*'Emissions per kg'!Q13 -> 0.389747191 | T15: =$C$15*'Emissions per kg'!R13 -> 1.685393258e-08
B16: retail | C16: =(C17/(1-D17))/(1-D16) -> 1.170411985 | D16: =Calculation_original!D16 -> 0.04 | E16: =$C$16*'Emissions per kg'!C14 -> 1.486423221 | F16: =$C$16*'Emissions per kg'!D14 -> 3.277153558e-05 | G16: =$C$16*'Emissions per kg'!E14 -> 2.071629213e-08 | H16: =$C$16*'Emissions per kg'!F14 -> 1.115402622e-09 | I16: =$C$16*'Emissions per kg'!G14 -> 1.345973783e-08 | J16: =$C$16*'Emissions per kg'!H14 -> 0.008848314607 | K16: =$C$16*'Emissions per kg'!I14 -> 0.0008883426966 | L16: =$C$16*'Emissions per kg'!J14 -> 0.0009375 | M16: =$C$16*'Emissions per kg'!K14 -> 0.00314840824 | N16: =$C$16*'Emissions per kg'!L14 -> 3.522940075e-06 | O16: =$C$16*'Emissions per kg'!M14 -> 0.0002867509363 | P16: =$C$16*'Emissions per kg'!N14 -> 0.314840824 | Q16: =$C$16*'Emissions per kg'!O14 -> 2.247191011 | R16: =$C$16*'Emissions per kg'!P14 -> 0.06086142322 | S16: =$C$16*'Emissions per kg'!Q14 -> 2.106741573 | T16: =$C$16*'Emissions per kg'!R14 -> 5.079588015e-07
B17: use | C17: 1 | D17: =Calculation_original!D17 -> 0.11 | E17: =$C$17*'Emissions per kg'!C15 -> 0.4938 | F17: =$C$17*'Emissions per kg'!D15 -> 3.2649e-08 | G17: =$C$17*'Emissions per kg'!E15 -> 1.2007e-07 | H17: =$C$17*'Emissions per kg'!F15 -> 5.836e-09 | I17: =$C$17*'Emissions per kg'!G15 -> 3.191e-08 | J17: =$C$17*'Emissions per kg'!H15 -> 0.020221 | K17: =$C$17*'Emissions per kg'!I15 -> 0.0013826 | L17: =$C$17*'Emissions per kg'!J15 -> 0.0047667 | M17: =$C$17*'Emissions per kg'!K15 -> 0.01234 | N17: =$C$17*'Emissions per kg'!L15 -> 0.000930355 | O17: =$C$17*'Emissions per kg'!M15 -> 0.0250784 | P17: =$C$17*'Emissions per kg'!N15 -> 1.6574 | Q17: =$C$17*'Emissions per kg'!O15 -> 19.0697 | R17: =$C$17*'Emissions per kg'!P15 -> 1.87231 | S17: =$C$17*'Emissions per kg'!Q15 -> 6.5209 | T17: =$C$17*'Emissions per kg'!R15 -> 1.60156e-06
B18: end of life P&R | C18: =D14*C14+D16*C16+C15*D15+C13*D13 -> 0.1084171102 | E18: =$C$18*'EoL emissions'!B4 -> 0.03668349075 | F18: =$C$18*'EoL emissions'!C4 -> 4.389565651e-10 | G18: =$C$18*'EoL emissions'!D4 -> 4.070666663e-08 | H18: =$C$18*'EoL emissions'!E4 -> 1.628225039e-09 | I18: =$C$18*'EoL emissions'!F4 -> 8.29967439e-10 | J18: =$C$18*'EoL emissions'!G4 -> 0.0002779482063 | K18: =$C$18*'EoL emissions'!H4 -> 4.914465751e-05 | L18: =$C$18*'EoL emissions'!I4 -> 0.0001302167802 | M18: =$C$18*'EoL emissions'!J4 -> 0.0005265997948 | N18: =$C$18*'EoL emissions'!K4 -> 1.036587219e-05 | O18: =$C$18*'EoL emissions'!L4 -> 5.949940174e-05 | P18: =$C$18*'EoL emissions'!M4 -> 2.878308212 | Q18: =$C$18*'EoL emissions'!N4 -> 0.1487706048 | R18: =$C$18*'EoL emissions'!O4 -> 0.001440744793 | S18: =$C$18*'EoL emissions'!P4 -> -0.02646833538 | T18: =$C$18*'EoL emissions'!Q4 -> -2.009061638e-09
B19: end of life HH | C19: =D17*C17 -> 0.11 | E19: =$C$19*'EoL emissions'!B5 -> 0.04900154333 | F19: =$C$19*'EoL emissions'!C5 -> 4.12631982e-10 | G19: =$C$19*'EoL emissions'!D5 -> 8.677284767e-08 | H19: =$C$19*'EoL emissions'!E5 -> 1.861030056e-09 | I19: =$C$19*'EoL emissions'!F5 -> 4.620740321e-10 | J19: =$C$19*'EoL emissions'!G5 -> 0.0002417663802 | K19: =$C$19*'EoL emissions'!H5 -> 4.004349177e-05 | L19: =$C$19*'EoL emissions'!I5 -> 5.960998141e-05 | M19: =$C$19*'EoL emissions'!J5 -> 0.0002274148586 | N19: =$C$19*'EoL emissions'!K5 -> 5.201208117e-06 | O19: =$C$19*'EoL emissions'!L5 -> 0.0001084374477 | P19: =$C$19*'EoL emissions'!M5 -> 6.294670992 | Q19: =$C$19*'EoL emissions'!N5 -> 0.1020644473 | R19: =$C$19*'EoL emissions'!O5 -> 0.002395510017 | S19: =$C$19*'EoL emissions'!P5 -> 0.01644419579 | T19: =$C$19*'EoL emissions'!Q5 -> 1.597542523e-09
A20: BEEF | E20: =SUM(E13:E19) -> 37.57418122 | F20: =SUM(F13:F19) -> 3.585292512e-05 | G20: 2.505151475e-05 | H20: 4.108762358e-07 | I20: 4.494112129e-06 | J20: 0.06440570572 | K20: 0.04187055983 | L20: 0.6038515346 | M20: 2.659325842 | N20: 0.006202766526 | O20: 0.2588874701 | P20: 56.96520451 | Q20: 4113.658451 | R20: 13.07893984 | S20: 89.75347146 | T20: 2.760447712e-06
A21: Meat | B21: POULTRY
B22: agriculture | C22: =C23/(1-D22) -> 1.232012616 | D22: =Calculation_original!D22 -> 0 | E22: =$C$22*'Emissions per kg'!C18 -> 6.874630396 | F22: =$C$22*'Emissions per kg'!D18 -> 4.004041001e-08 | G22: =$C$22*'Emissions per kg'!E18 -> 1.786418293e-06 | H22: =$C$22*'Emissions per kg'!F18 -> 6.160063079e-08 | I22: =$C$22*'Emissions per kg'!G18 -> 9.018332348e-07 | J22: =$C$22*'Emissions per kg'!H18 -> 0.06443425981 | K22: =$C$22*'Emissions per kg'!I18 -> 0.00750295683 | L22: =$C$22*'Emissions per kg'!J18 -> 0.1111275379 | M22: =$C$22*'Emissions per kg'!K18 -> 0.4915730337 | N22: =$C$22*'Emissions per kg'!L18 -> 0.001453774887 | O22: =$C$22*'Emissions per kg'!M18 -> 0.02895229647 | P22: =$C$22*'Emissions per kg'!N18 -> 14.90735265 | Q22: =$C$22*'Emissions per kg'!O18 -> 742.9036073 | R22: =$C$22*'Emissions per kg'!P18 -> 0.8340725409 | S22: =$C$22*'Emissions per kg'!Q18 -> 22.91543465 | T22: =$C$22*'Emissions per kg'!R18 -> 2.402424601e-07
B23: processsing | C23: =(C24/(1-D23))/(1-D24) -> 1.232012616 | D23: =Calculation_original!D23 -> 0.05 | E23: =$C$23*'Emissions per kg'!C19 -> 0.330179381 | F23: =$C$23*'Emissions per kg'!D19 -> 5.876700177e-07 | G23: =$C$23*'Emissions per kg'!E19 -> 1.21969249e-08 | H23: =$C$23*'Emissions per kg'!F19 -> 7.207273802e-10 | I23: =$C$23*'Emissions per kg'!G19 -> 1.013946383e-08 | J23: =$C$23*'Emissions per kg'!H19 -> 0.01663217031 | K23: =$C$23*'Emissions per kg'!I19 -> 0.0008291444904 | L23: =$C$23*'Emissions per kg'!J19 -> 0.001076779026 | M23: =$C$23*'Emissions per kg'!K19 -> 0.004114922137 | N23: =$C$23*'Emissions per kg'!L19 -> 1.478415139e-06 | O23: =$C$23*'Emissions per kg'!M19 -> 0.0003030751035 | P23: =$C$23*'Emissions per kg'!N19 -> 0.1811058545 | Q23: =$C$23*'Emissions per kg'!O19 -> 1.330573625 | R23: =$C$23*'Emissions per kg'!P19 -> 0.1835698798 | S23: =$C$23*'Emissions per kg'!Q19 -> 3.597476838 | T23: =$C$23*'Emissions per kg'!R19 -> 1.503055391e-07
B24: packaging | C24: =C25 -> 1.170411985 | D24: =Calculation_original!D24 -> 0 | E24: =$C$24*'Emissions per kg'!C20 -> 1.486423221 | F24: =$C$24*'Emissions per kg'!D20 -> 1.802434457e-09 | G24: =$C$24*'Emissions per kg'!E20 -> 1.884363296e-09 | H24: =$C$24*'Emissions per kg'!F20 -> 1.966292135e-10 | I24: =$C$24*'Emissions per kg'!G20 -> 1.451310861e-09 | J24: =$C$24*'Emissions per kg'!H20 -> 0.001392790262 | K24: =$C$24*'Emissions per kg'!I20 -> 8.415262172e-05 | L24: =$C$24*'Emissions per kg'!J20 -> 0.000158005618 | M24: =$C$24*'Emissions per kg'!K20 -> 0.0002984550562 | N24: =$C$24*'Emissions per kg'!L20 -> 1.252340824e-06 | O24: =$C$24*'Emissions per kg'!M20 -> 2.773876404e-05 | P24: =$C$24*'Emissions per kg'!N20 -> 0.03522940075 | Q24: =$C$24*'Emissions per kg'!O20 -> 0.1779026217 | R24: =$C$24*'Emissions per kg'!P20 -> 0.005746722846 | S24: =$C$24*'Emissions per kg'!Q20 -> 0.3862359551 | T24: =$C$24*'Emissions per kg'!R20 -> 1.626872659e-08
B25: retail | C25: =(C26/(1-D26))/(1-D25) -> 1.170411985 | D25: =Calculation_original!D25 -> 0.04 | E25: =$C$25*'Emissions per kg'!C21 -> 0.05933988764 | F25: =$C$25*'Emissions per kg'!D21 -> 3.277153558e-05 | G25: =$C$25*'Emissions per kg'!E21 -> 2.071629213e-08 | H25: =$C$25*'Emissions per kg'!F21 -> 1.115402622e-09 | I25: =$C$25*'Emissions per kg'!G21 -> 1.345973783e-08 | J25: =$C$25*'Emissions per kg'!H21 -> 0.008848314607 | K25: =$C$25*'Emissions per kg'!I21 -> 0.0008883426966 | L25: =$C$25*'Emissions per kg'!J21 -> 0.0009375 | M25: =$C$25*'Emissions per kg'!K21 -> 0.00314840824 | N25: =$C$25*'Emissions per kg'!L21 -> 3.522940075e-06 | O25: =$C$25*'Emissions per kg'!M21 -> 0.0002867509363 | P25: =$C$25*'Emissions per kg'!N21 -> 0.314840824 | Q25: =$C$25*'Emissions per kg'!O21 -> 2.247191011 | R25: =$C$25*'Emissions per kg'!P21 -> 0.06086142322 | S25: =$C$25*'Emissions per kg'!Q21 -> 2.106741573 | T25: =$C$25*'Emissions per kg'!R21 -> 5.079588015e-07
B26: use | C26: 1 | D26: =Calculation_original!D26 -> 0.11 | E26: =$C$26*'Emissions per kg'!C22 -> 0.4798 | F26: =$C$26*'Emissions per kg'!D22 -> 3.2249e-08 | G26: =$C$26*'Emissions per kg'!E22 -> 9.417e-08 | H26: =$C$26*'Emissions per kg'!F22 -> 5.726e-09 | I26: =$C$26*'Emissions per kg'!G22 -> 2.901e-08 | J26: =$C$26*'Emissions per kg'!H22 -> 0.019921 | K26: =$C$26*'Emissions per kg'!I22 -> 0.0012926 | L26: =$C$26*'Emissions per kg'!J22 -> 0.0043167 | M26: =$C$26*'Emissions per kg'!K22 -> 0.01024 | N26: =$C$26*'Emissions per kg'!L22 -> 0.000875355 | O26: =$C$26*'Emissions per kg'!M22 -> 0.0196784 | P26: =$C$26*'Emissions per kg'!N22 -> 0.8894 | Q26: =$C$26*'Emissions per kg'!O22 -> 18.6697 | R26: =$C$26*'Emissions per kg'!P22 -> 1.75231 | S26: =$C$26*'Emissions per kg'!Q22 -> 6.4609 | T26: =$C$26*'Emissions per kg'!R22 -> 1.58156e-06
B27: end of life P&R | C27: =D23*C23+D25*C25+C24*D24+C22*D22 -> 0.1084171102 | E27: =$C$27*'EoL emissions'!B4 -> 0.03668349075 | F27: =$C$27*'EoL emissions'!C4 -> 4.389565651e-10 | G27: =$C$27*'EoL emissions'!D4 -> 4.070666663e-08 | H27: =$C$27*'EoL emissions'!E4 -> 1.628225039e-09 | I27: =$C$27*'EoL emissions'!F4 -> 8.29967439e-10 | J27: =$C$27*'EoL emissions'!G4 -> 0.0002779482063 | K27: =$C$27*'EoL emissions'!H4 -> 4.914465751e-05 | L27: =$C$27*'EoL emissions'!I4 -> 0.0001302167802 | M27: =$C$27*'EoL emissions'!J4 -> 0.0005265997948 | N27: =$C$27*'EoL emissions'!K4 -> 1.036587219e-05 | O27: =$C$27*'EoL emissions'!L4 -> 5.949940174e-05 | P27: =$C$27*'EoL emissions'!M4 -> 2.878308212 | Q27: =$C$27*'EoL emissions'!N4 -> 0.1487706048 | R27: =$C$27*'EoL emissions'!O4 -> 0.001440744793 | S27: =$C$27*'EoL emissions'!P4 -> -0.02646833538 | T27: =$C$27*'EoL emissions'!Q4 -> -2.009061638e-09
B28: end of life HH | C28: =D26*C26 -> 0.11 | E28: =$C$28*'EoL emissions'!B5 -> 0.04900154333 | F28: =$C$28*'EoL emissions'!C5 -> 4.12631982e-10 | G28: =$C$28*'EoL emissions'!D5 -> 8.677284767e-08 | H28: =$C$28*'EoL emissions'!E5 -> 1.861030056e-09 | I28: =$C$28*'EoL emissions'!F5 -> 4.620740321e-10 | J28: =$C$28*'EoL emissions'!G5 -> 0.0002417663802 | K28: =$C$28*'EoL emissions'!H5 -> 4.004349177e-05 | L28: =$C$28*'EoL emissions'!I5 -> 5.960998141e-05 | M28: =$C$28*'EoL emissions'!J5 -> 0.0002274148586 | N28: =$C$28*'EoL emissions'!K5 -> 5.201208117e-06 | O28: =$C$28*'EoL emissions'!L5 -> 0.0001084374477 | P28: =$C$28*'EoL emissions'!M5 -> 6.294670992 | Q28: =$C$28*'EoL emissions'!N5 -> 0.1020644473 | R28: =$C$28*'EoL emissions'!O5 -> 0.002395510017 | S28: =$C$28*'EoL emissions'!P5 -> 0.01644419579 | T28: =$C$28*'EoL emissions'!Q5 -> 1.597542523e-09
A29: POULTRY | E29: =SUM(E22:E28) -> 9.31605792 | F29: =SUM(F22:F28) -> 3.343414903e-05 | G29: 2.042865388e-06 | H29: 7.28486451e-08 | I29: 9.571857888e-07 | J29: 0.1117482496 | K29: 0.01068638479 | L29: 0.1178063494 | M29: 0.5101288338 | N29: 0.002350950663 | O29: 0.04941619812 | P29: 25.50090794 | Q29: 765.5798096 | R29: 2.840396822 | S29: 35.45676488 | T29: 2.495924008e-06
A30: Fish | B30: COD
B31: agriculture | C31: =C32/(1-D31) -> 1.313532272 | D31: =Calculation_original!D31 -> 0 | E31: ='Emissions per kg'!C25*$C$31 -> 2.955447612 | F31: ='Emissions per kg'!D25*$C$31 -> 8.695583642e-07 | G31: ='Emissions per kg'!E25*$C$31 -> 4.374062466e-08 | H31: ='Emissions per kg'!F25*$C$31 -> 7.119344915e-09 | I31: ='Emissions per kg'!G25*$C$31 -> 1.124383625e-07 | J31: ='Emissions per kg'!H25*$C$31 -> 0.01970298408 | K31: ='Emissions per kg'!I25*$C$31 -> 0.0487320473 | L31: ='Emissions per kg'!J25*$C$31 -> 0.04085085366 | M31: ='Emissions per kg'!K25*$C$31 -> 0.1917757117 | N31: ='Emissions per kg'!L25*$C$31 -> 1.35293824e-05 | O31: ='Emissions per kg'!M25*$C$31 -> 0.01746997922 | P31: ='Emissions per kg'!N25*$C$31 -> 4.741851503 | Q31: ='Emissions per kg'!O25*$C$31 -> 2.430034704 | R31: ='Emissions per kg'!P25*$C$31 -> 23.11816799 | S31: ='Emissions per kg'!Q25*$C$31 -> 40.19408753 | T31: ='Emissions per kg'!R25*$C$31 -> 3.940596817e-07
B32: processsing | C32: =(C33/(1-D32))/(1-D33) -> 1.313532272 | D32: =Calculation_original!D32 -> 0.06 | E32: ='Emissions per kg'!C26*$C$32 -> 0.8248982669 | F32: ='Emissions per kg'!D26*$C$32 -> 4.426603757e-06 | G32: ='Emissions per kg'!E26*$C$32 -> 6.580796684e-08 | H32: ='Emissions per kg'!F26*$C$32 -> 5.319805702e-09 | I32: ='Emissions per kg'!G26*$C$32 -> 3.23128939e-08 | J32: ='Emissions per kg'!H26*$C$32 -> 0.0738205137 | K32: ='Emissions per kg'!I26*$C$32 -> 0.003165612776 | L32: ='Emissions per kg'!J26*$C$32 -> 0.004820663439 | M32: ='Emissions per kg'!K26*$C$32 -> 0.01137518948 | N32: ='Emissions per kg'!L26*$C$32 -> 4.452874403e-05 | O32: ='Emissions per kg'!M26*$C$32 -> 0.00103506343 | P32: ='Emissions per kg'!N26*$C$32 -> 0.7513404597 | Q32: ='Emissions per kg'!O26*$C$32 -> 9.234131873 | R32: ='Emissions per kg'!P26*$C$32 -> 0.1405479531 | S32: ='Emissions per kg'!Q26*$C$32 -> 12.55736852 | T32: ='Emissions per kg'!R26*$C$32 -> 1.366073563e-06
B33: packaging | C33: =C34 -> 1.234720336 | D33: =Calculation_original!D33 -> 0 | E33: ='Emissions per kg'!C27*$C$33 -> 0.1063094209 | F33: ='Emissions per kg'!D27*$C$33 -> 3.321397703e-09 | G33: ='Emissions per kg'!E27*$C$33 -> 2.259538215e-08 | H33: ='Emissions per kg'!F27*$C$33 -> 1.077910853e-09 | I33: ='Emissions per kg'!G27*$C$33 -> -1.605136437e-08 | J33: ='Emissions per kg'!H27*$C$33 -> 0.002247191011 | K33: ='Emissions per kg'!I27*$C$33 -> 3.025064823e-05 | L33: ='Emissions per kg'!J27*$C$33 -> 0.0001926163724 | M33: ='Emissions per kg'!K27*$C$33 -> 0.0002210149401 | N33: ='Emissions per kg'!L27*$C$33 -> 4.840103717e-06 | O33: ='Emissions per kg'!M27*$C$33 -> 8.173848623e-05 | P33: ='Emissions per kg'!N27*$C$33 -> 0.143227559 | Q33: ='Emissions per kg'!O27*$C$33 -> -32.47314483 | R33: ='Emissions per kg'!P27*$C$33 -> -0.1158167675 | S33: ='Emissions per kg'!Q27*$C$33 -> 1.43227559 | T33: ='Emissions per kg'!R27*$C$33 -> 2.210149401e-06
B34: retail | C34: =(C35/(1-D35))/(1-D34) -> 1.234720336 | D34: =Calculation_original!D34 -> 0.09 | E34: ='Emissions per kg'!C28*$C$34 -> 0.4716631683 | F34: ='Emissions per kg'!D28*$C$34 -> 8.42079269e-06 | G34: ='Emissions per kg'!E28*$C$34 -> 2.074330164e-08 | H34: ='Emissions per kg'!F28*$C$34 -> 1.011235955e-09 | I34: ='Emissions per kg'!G28*$C$34 -> 1.333497963e-08 | J34: ='Emissions per kg'!H28*$C$34 -> 0.009309791332 | K34: ='Emissions per kg'!I28*$C$34 -> 0.0009297444129 | L34: ='Emissions per kg'!J28*$C$34 -> 0.0008865292011 | M34: ='Emissions per kg'!K28*$C$34 -> 0.003321397703 | N34: ='Emissions per kg'!L28*$C$34 -> 3.025064823e-06 | O34: ='Emissions per kg'!M28*$C$34 -> 0.0003025064823 | P34: ='Emissions per kg'!N28*$C$34 -> 0.3432522534 | Q34: ='Emissions per kg'!O28*$C$34 -> 2.457093468 | R34: ='Emissions per kg'!P28*$C$34 -> 0.05383380664 | S34: ='Emissions per kg'!Q28*$C$34 -> 2.099024571 | T34: ='Emissions per kg'!R28*$C$34 -> 3.580688974e-07
B35: use | C35: 1 | D35: =Calculation_original!D35 -> 0.11 | E35: ='Emissions per kg'!C29*$C$35 -> 0.72 | F35: ='Emissions per kg'!D29*$C$35 -> 2.073e-08 | G35: ='Emissions per kg'!E29*$C$35 -> 7.19e-08 | H35: ='Emissions per kg'!F29*$C$35 -> 4.41e-09 | I35: ='Emissions per kg'!G29*$C$35 -> 1.889e-08 | J35: ='Emissions per kg'!H29*$C$35 -> 0.01193 | K35: ='Emissions per kg'!I29*$C$35 -> 0.001035 | L35: ='Emissions per kg'!J29*$C$35 -> 0.00262 | M35: ='Emissions per kg'!K29*$C$35 -> 0.00947 | N35: ='Emissions per kg'!L29*$C$35 -> 0.0008807 | O35: ='Emissions per kg'!M29*$C$35 -> 0.018577 | P35: ='Emissions per kg'!N29*$C$35 -> 0.3394 | Q35: ='Emissions per kg'!O29*$C$35 -> 18.5 | R35: ='Emissions per kg'!P29*$C$35 -> 1.6367 | S35: ='Emissions per kg'!Q29*$C$35 -> 10.358 | T35: ='Emissions per kg'!R29*$C$35 -> 1.244e-06
B36: end of life P&R | C36: =D32*C32+D34*C34+C33*D33+C31*D31 -> 0.1899367666 | E36: ='EoL emissions'!B4*$C$36 -> 0.06426608869 | F36: ='EoL emissions'!C4*$C$36 -> 7.690113718e-10 | G36: ='EoL emissions'!D4*$C$36 -> 7.131432136e-08 | H36: ='EoL emissions'!E4*$C$36 -> 2.85249993e-09 | I36: ='EoL emissions'!F4*$C$36 -> 1.45402632e-09 | J36: ='EoL emissions'!G4*$C$36 -> 0.0004869395936 | K36: ='EoL emissions'!H4*$C$36 -> 8.609690227e-05 | L36: ='EoL emissions'!I4*$C$36 -> 0.0002281277756 | M36: ='EoL emissions'!J4*$C$36 -> 0.0009225542179 | N36: ='EoL emissions'!K4*$C$36 -> 1.816005097e-05 | O36: ='EoL emissions'!L4*$C$36 -> 0.0001042374581 | P36: ='EoL emissions'!M4*$C$36 -> 5.042530224 | Q36: ='EoL emissions'!N4*$C$36 -> 0.2606323631 | R36: ='EoL emissions'!O4*$C$36 -> 0.002524051849 | S36: ='EoL emissions'!P4*$C$36 -> -0.04637007969 | T36: ='EoL emissions'!Q4*$C$36 -> -3.519690488e-09
B37: end of life HH | C37: =D35*C35 -> 0.11 | E37: ='EoL emissions'!B5*$C$37 -> 0.04900154333 | F37: ='EoL emissions'!C5*$C$37 -> 4.12631982e-10 | G37: ='EoL emissions'!D5*$C$37 -> 8.677284767e-08 | H37: ='EoL emissions'!E5*$C$37 -> 1.861030056e-09 | I37: ='EoL emissions'!F5*$C$37 -> 4.620740321e-10 | J37: ='EoL emissions'!G5*$C$37 -> 0.0002417663802 | K37: ='EoL emissions'!H5*$C$37 -> 4.004349177e-05 | L37: ='EoL emissions'!I5*$C$37 -> 5.960998141e-05 | M37: ='EoL emissions'!J5*$C$37 -> 0.0002274148586 | N37: ='EoL emissions'!K5*$C$37 -> 5.201208117e-06 | O37: ='EoL emissions'!L5*$C$37 -> 0.0001084374477 | P37: ='EoL emissions'!M5*$C$37 -> 6.294670992 | Q37: ='EoL emissions'!N5*$C$37 -> 0.1020644473 | R37: ='EoL emissions'!O5*$C$37 -> 0.002395510017 | S37: ='EoL emissions'!P5*$C$37 -> 0.01644419579 | T37: ='EoL emissions'!Q5*$C$37 -> 1.597542523e-09
A38: COD | E38: =SUM(E31:E37) -> 5.191586101 | F38: =SUM(F31:F37) -> 1.374218785e-05 | G38: 3.828744443e-07 | H38: 2.365182741e-08 | I38: 1.62840972e-07 | J38: 0.1177391861 | K38: 0.05401879553 | L38: 0.04965840043 | M38: 0.2173132829 | N38: 0.0009699845541 | O38: 0.03767896252 | P38: 17.65627299 | Q38: 0.510812023 | R38: 24.83835254 | S38: 66.61083033 | T38: 5.570429395e-06
A39: Fish | B39: SALMON
